{"text_format":"1","workbook":"xlsx","n_sheets":16,"sheets":["Informative","Instructions","Advice on Method statement","B - Background & Site Info","C - Survey Info","C - Survey - Pond 1-10","Form data (IGNORE)","C - Survey summary","D - Impact assmt","E - Mitign & compn ","F-G-H Sum & Figs","I - Declarations","Additional records","C - Survey - Pond 11-20","C - Survey - Pond 21-30","C - Survey - Pond 31-40"],"not_rendered":{"charts":0,"images":5,"macros":1,"external_links":0,"defined_names":84,"comments":0,"pivot_tables":0},"unopened":[],"bounds":{"document_bytes":16777216,"sheet_cells":100000,"rows_first":2000,"rows_last":500,"rows_between":2000,"halvings":0,"cell_chars":16384,"cell_head_chars":4096},"cells_cut":0,"cells_raw":0,"read":"whole","date_system":"1900"}

{"sheet":"Informative","index":0,"n_rows":51,"n_cols":7,"rows_kept":51,"cut":false,"hidden":false,"merged":[[7,1,7,10],[16,1,16,10],[1,2,4,8]]}
[]
[null,null,"Great Crested Newt Method Statement \nfor EPS licence application"]
[]
[]
[]
[]
[]
[null,"Please Enable Content in the message bar, if prompted"]
[]
[]
[]
[]
[]
[]
[]
[]
[null,"Enabling Content on Mac looks like this..."]
[]
[]
[]
[]
[]
[]
[]
[]
[]
[]
[]
[]
[]
[]
[]
[]
[]
[]
[]
[]
[]
[]
[]
[]
[]
[]
[]
[]
[]
[]
[]
[]
[]
[null,null,null,null,null,null,"Begin"]

{"sheet":"Instructions","index":1,"n_rows":474,"n_cols":10,"rows_kept":474,"cut":false,"hidden":false,"merged":[[263,1,267,9],[268,1,268,9],[457,7,457,8],[453,3,453,4],[453,5,453,6],[453,7,453,8],[473,4,473,6],[458,1,463,9],[464,1,464,9],[465,1,467,9],[468,1,470,9],[455,1,455,2],[407,1,407,9],[392,1,393,9],[428,1,428,9],[416,1,416,9],[417,1,417,9],[440,1,444,9],[456,3,456,4],[456,5,456,6],[456,7,456,8],[418,1,427,9],[429,1,431,9],[445,1,451,9],[455,3,455,4],[455,5,455,6],[455,7,455,8],[456,1,456,2],[452,3,452,8],[452,1,453,2],[454,1,454,2],[454,3,454,4],[454,5,454,6],[454,7,454,8],[437,1,439,9],[355,1,358,2],[355,6,356,6],[355,7,356,7],[414,1,415,9],[432,1,436,9],[378,1,378,9],[379,1,384,9],[394,1,402,9],[386,1,388,9],[413,1,413,9],[373,1,374,9],[375,1,376,9],[377,1,377,9],[385,1,385,9],[361,8,362,8],[363,1,363,8],[370,1,372,9],[364,1,368,9],[359,1,362,2],[389,1,391,9],[408,1,412,9],[403,1,404,9],[405,1,405,9],[406,1,406,9],[359,3,360,4],[359,5,360,5],[359,6,360,6],[359,7,360,7],[359,8,360,8],[361,3,362,4],[361,5,362,5],[361,6,362,6],[361,7,362,7],[355,5,356,5],[357,7,358,7],[357,8,358,8],[348,8,350,8],[353,7,354,7],[341,3,342,4],[353,8,354,8],[345,8,346,8],[357,3,358,4],[357,5,358,5],[355,8,356,8],[351,8,352,8],[355,3,356,4],[357,6,358,6],[343,1,346,2],[343,3,344,4],[343,5,344,5],[343,6,344,6],[343,7,344,7],[351,1,354,2],[351,3,352,4],[351,5,352,5],[351,6,352,6],[351,7,352,7],[353,3,354,4],[353,5,354,5],[353,6,354,6],[345,3,346,4],[345,5,346,5],[345,6,346,6],[345,7,346,7],[347,1,347,8],[348,1,350,2],[348,3,350,4],[348,5,350,5],[348,6,350,6],[343,8,344,8],[348,7,350,7],[339,1,342,2],[339,6,340,6],[339,7,340,7],[339,8,340,8],[274,1,283,9],[322,1,322,9],[284,1,292,9],[293,1,293,9],[294,1,302,9],[341,5,342,5],[341,6,342,6],[341,7,342,7],[341,8,342,8],[323,6,326,6],[337,3,338,4],[337,5,338,5],[337,6,338,6],[337,7,338,7],[337,8,338,8],[333,3,334,4],[339,3,340,4],[339,5,340,5],[335,7,336,7],[335,8,336,8],[335,6,336,6],[335,1,338,2],[335,3,336,4],[335,5,336,5],[316,1,321,9],[331,1,334,2],[323,7,326,7],[323,8,326,8],[331,8,332,8],[328,3,330,4],[328,5,330,5],[328,6,330,6],[328,7,330,7],[327,1,327,8],[328,1,330,2],[328,8,330,8],[323,3,326,4],[333,5,334,5],[333,6,334,6],[177,5,179,8],[177,9,179,9],[246,3,249,9],[255,1,259,2],[255,3,259,9],[333,7,334,7],[333,8,334,8],[262,1,262,9],[273,1,273,9],[323,5,326,5],[309,1,315,9],[303,1,306,9],[308,1,308,9],[331,3,332,4],[331,5,332,5],[331,6,332,6],[331,7,332,7],[261,1,261,9],[250,1,254,2],[250,3,254,9],[323,1,326,2],[269,1,272,9],[230,1,236,9],[237,1,244,9],[245,1,245,2],[245,3,245,9],[246,1,249,2],[217,1,217,2],[217,3,217,4],[217,6,217,7],[188,1,188,9],[189,1,194,9],[195,1,203,9],[218,1,218,9],[219,1,219,9],[220,1,220,9],[221,1,228,9],[229,1,229,9],[204,1,209,9],[211,1,213,9],[214,1,214,9],[215,1,215,2],[215,3,215,4],[215,6,215,7],[216,1,216,9],[210,1,210,5],[210,7,210,9],[186,5,186,9],[180,1,180,4],[180,5,180,8],[181,1,181,4],[181,5,181,8],[182,1,182,4],[182,5,182,8],[131,1,136,9],[137,1,137,9],[138,1,143,9],[162,1,172,9],[153,1,159,9],[160,1,160,9],[161,1,161,9],[144,1,152,9],[173,1,175,9],[176,1,176,9],[183,1,183,4],[183,5,183,8],[184,1,184,4],[184,5,184,8],[185,1,185,8],[186,1,186,4],[177,1,179,4],[101,1,101,9],[102,1,102,9],[103,1,112,9],[113,1,121,9],[122,1,130,9],[91,1,91,9],[0,1,2,9],[41,1,41,9],[42,1,42,9],[43,1,43,9],[82,1,82,9],[51,1,53,9],[7,1,13,9],[14,1,19,9],[22,2,26,9],[4,1,4,9],[21,2,21,9],[20,1,20,9],[5,1,5,9],[6,1,6,9],[85,1,87,9],[33,1,40,9],[22,1,26,1],[88,1,89,9],[29,1,31,9],[32,1,32,9],[46,1,49,9],[27,1,28,1],[57,1,57,9],[58,1,58,9],[27,2,28,9],[78,1,81,9],[44,1,44,9],[45,1,45,9],[56,1,56,9],[54,1,54,9],[55,1,55,9],[69,1,69,9],[72,1,77,9],[70,1,70,9],[71,1,71,9],[92,1,92,9],[93,1,93,9],[94,1,94,9],[95,1,95,9],[96,1,96,9],[97,1,97,9],[98,1,98,9],[99,1,99,9],[59,1,66,9],[67,1,67,9],[68,1,68,9],[83,1,84,9]]}
[null,"Template for Method Statement to support application for licence under Regulation 55(2)(e) of The Conservation of Habitats and Species Regulations 2017 (as amended) in respect of great crested newts Triturus cristatus. Form WML-A14-2 (Version April 2020)"]
[]
[]
[]
[null,"Instructions for completion of Method Statement template"]
[]
[null,"Introduction"]
[null,"This template is designed to make the process easier for applicants, by providing standard responses where possible and by indicating optional and mandatory fields, plus making clear the level and type of information required. It will also facilitate assessment of applications, as information will be presented in a standard way. The Macros in this workbook enable the rows to expand with the text where this is indicated, but will require the users to hit enter to leave each cell, to avoid harmless error messages appearing on screen and to ensure that the text can be seen. Please retain page scaling at 130% to avoid the text becoming obscured."]
[]
[]
[]
[]
[]
[]
[null,"This spreadsheet has two main sections: Instructions and advice, and the Method Statement template itself. The instructions should help you complete the Method Statement, as well as providing advice on some common areas of confusion in mitigation. These are designed to assist you in deciding whether to apply for a licence, and if you do, what kind of survey and mitigation should be proposed. Note: that this is offered as general advice and in the event of any enforcement investigation the original legislation must be referred to."]
[]
[]
[]
[]
[]
[null,"Entering information into the template"]
[null,null,"(Pale red) Indicates mandatory fields"]
[null,null,"(Pale green; dashed outline except in some tables) Indicates fields that are either optional or will be necessary in some cases depending on the circumstances. In many cases it is helpful to fill in green fields to provide more detail. Where the spreadsheet can detect a necessary field from data you have already given, a green field will turn red. It is your responsibility to ensure any necessary information is included."]
[]
[]
[]
[]
[null,null,"(Pale blue) Indicates a field that is automatically completed by the spreadsheet, based on data you have entered."]
[]
[null,"IMPORTANT: Only enter data in pale red or pale green fields. Do not enter or alter any data in other coloured fields, including whitespace, as this may affect spreadsheet function. Please do not re-format text, except to underline or make 'bold' any changes if you are submitting an amendment."]
[]
[]
[]
[null,"It is your responsibility to ensure the completed template provides all information necessary for licence determination. Although we have tried to make the template as helpful as possible, some features may not be suitable for accepting the information for your scheme, and occasionally the automatic spreadsheet coding may produce unusual results. If this happens you must take care to explain the scheme on additional sheets, and not rely on the standard responses or automatic spreadsheet coding. It will not be acceptable to submit a Method Statement that provides misleading or incomplete information, and attribute such shortcomings to the template format."]
[]
[]
[]
[]
[]
[]
[]
[null,"Fill in the spreadsheet in order, as some data you enter is used in subsequent calculations or questions."]
[null,"Please be concise with your descriptions and keep information only to what is required. "]
[null,"Several questions have standard responses suitable for a maximum of 10 ponds; should your scheme"]
[null,"involve >10 ponds provision for additional data is included in the Additional Records tab."]
[]
[null,"Viewing: You may find it helpful to zoom in and out by scrolling your mouse wheel while holding down CTRL (or View > Zoom). Sometimes parts of a text box can appear \"cut off\", depending on your computer set-up. Zooming in or out may help, and all the text should be readable if you click inside the box."]
[]
[]
[]
[]
[null,"Printing: To print the whole spreadsheet: File > Print... > Print what > Entire workbook. To print selected worksheets only, select the appropriate tabs (use shift to select a continuous range, and CTRL for non-adjacent worksheets), then File > Print > Print what > Active sheet(s).Please print on both sides."]
[]
[]
[]
[null,"Method Statement structure"]
[null,"The Method Statement is divided into two sections:"]
[null,"(I) Background and supporting information (worksheets with lavender-coloured tabs)"]
[null,"(II) Delivery information (worksheets with blue-coloured tabs)"]
[null,"Within each section, there are subdivisions, e.g. for survey, impact assessment, etc. For modifications to projects already licensed (non-annexed or where significant changes are proposed), or re-submissions following a Further Information Request response, when submitting a hard or an electronic copy it will currently be necessary to re-submit the document in its entirety detailing where changes have been made. If submitting re-submissions or new applications electronically, send the whole template file (plus maps and appendices) because attempting to extract worksheets will cause coding problems; in any case it is no additional effort to send the whole file. See website below for current instructions on the format of licence application submission."]
[]
[]
[]
[]
[]
[]
[]
[null,"https://www.gov.uk/government/publications/great-crested-newts-apply-for-a-mitigation-licence"]
[]
[null,"Important notes on technical mitigation issues"]
[null,"Use the Great crested newt mitigation guidelines (English Nature, 2001) and information on .GOV.UK here:"]
[null,"https://www.gov.uk/guidance/great-crested-newts-surveys-and-mitigation-for-development-projects"]
[null,"This template is designed to record licence application data for a range of common development scenarios. However, this does not restrict the use of novel mitigation practice, where this is appropriate. If you wish to employ a method, approach or level of effort that deviates from the standard recommendations in the guidelines, you must point this out, and provide either: (a) direct evidence from other projects or research that it is likely to be effective; or, if no direct evidence is available (b) a sound rationale for why you think it is appropriate and likely to be effective. "]
[]
[]
[]
[]
[]
[null,"Note that applications that involve reductions compared to standard recommendations (e.g. reduced capture effort or habitat provisions) may only be acceptable if you provide clear logistical and ecological reasons. "]
[]
[]
[]
[null,"Notes on licence assessment"]
[null,"\"Development\" in this Method Statement means an activity that you believe to meet the requirements of Regulation 55(2)(e). It does not refer solely to construction-related activity."]
[]
[null,"This Method Statement is the evidence on which you must demonstrate compliance with Regulation 55(9)(b) (the \"favourable conservation status test\"). The \"no satisfactory alternative\" and \"purpose\" tests are assessed using other criteria."]
[]
[]
[null,"\"Pond\" in this Method Statement means any waterbody that is likely to be used by GCN for foraging, resting or breeding."]
[]
[]
[null,"Application tools"]
[null,"•  Do I need a licence? - rapid risk assessment"]
[null,"•  Conversions"]
[null,"•  Non-licenced avoidance measures"]
[null,"•  Survey data - what kind, how much, how old?"]
[null,"•  Measuring turbidity and vegetation cover"]
[null,"•  Use of Habitat Suitability Index Scores"]
[null,"•  Post development monitoring, advice and guidance"]
[null,"•  References"]
[]
[null,"(1) \"Do I need a licence?\" - rapid risk assessment"]
[null,"Background "]
[null,"In recent years there has been a trend towards increasingly precautionary applications, resulting from a risk-averse approach to mitigation. Whilst considering potential risks to great crested newts is laudable, many recent mitigation schemes were designed for developments that actually had very little or no effect on the newt population. In part this is because it can be difficult to assess whether newts will be affected by certain activities, especially when they take place at some distance from breeding ponds. Newts tend to be present at increasingly low density the further one looks from ponds, and the task of detecting and capturing them becomes more problematic. Further from ponds, there is a corresponding reduction in the scale of impact on populations. Given that great crested newts can disperse over 1km from breeding ponds, the potential for offences may seem vast, yet the probability of an offence outside the core breeding and resting area is often rather small, and even if an offence takes place, the effect on the population may be negligible."]
[]
[]
[]
[]
[]
[]
[]
[]
[]
[null,"Natural England is concerned about the trend for increasingly risk-averse mitigation for several reasons. Primarily, there is no legal need, and little benefit to great crested newt conservation, in undertaking mitigation where there are no offences through development. Even where there technically is an offence, such as the destruction of a small, distant area of resting place habitat, it is arguable that impacts beyond the core area often have little or no tangible impact on the viability of populations. Mitigation in such circumstances is of questionable value in conservation terms. There are, however, substantial costs: developers delay projects and spend large sums on mitigation. Sometimes the mitigation project itself has environmental costs, especially when it entails substantial lengths of newt fencing. In some cases long newt fences are employed with no justification. Natural England wishes to see newt fencing used more appropriately, i.e. only where there is a reasonable risk of capturing, containing and/or excluding newts."]
[]
[]
[]
[]
[]
[]
[]
[]
[null,"Natural England recognises that the two key factors leading consultants to adopt this risk-averse approach are: (a) uncertainty over the presence of newts and whether there will be an offence in areas distant from ponds; (b) undertaking mitigation under licence \"just in case\", so that there is no perceived risk of litigation for their client. Natural England wishes to see mitigation planning shift away from such a highly risk-averse starting point. The domestic legislation protecting great crested newts arises largely from the Habitats Directive, which has a central aim to restore scheduled species to a favourable conservation status. A more proportionate approach to mitigation, addressing tangible impacts on populations whilst giving lower priority to negligible effects, is consistent with the aims of the Directive. The loss of the \"incidental result\" defence from the legislation may create a tension with this approach, but it is hoped that the guidance here will assist."]
[]
[]
[]
[]
[]
[]
[]
[]
[null,"This simple risk assessment can inform the decision as to whether to apply for a licence. It remains the responsibility of the developer - normally acting through their consultant - to decide whether to apply. Early consideration of options can often result in no licence being required - see Non-licensed avoidance measures tool, later in the Instructions section. A sound survey and careful comparison with development plans will often be the best guide to whether a licence should be obtained."]
[]
[]
[]
[]
[]
[null,"Guidance on use"]
[null,"The rapid risk assessment is done by completing the table later in the instruction section. Consider the impacts of the development without any licensed mitigation. For each \"component\", select a likely effect from the drop-down menu. It may help to produce a map of the land marked with 100m and 250m radii around each great crested newt breeding pond, overlaid with the development boundary. The land categories refer to all land, not just that used by newts. N.B. this risk assessment is not part of your application, and there is no obligation to use it; it is a tool to help you decide whether to apply for a licence."]
[]
[]
[]
[]
[]
[null,"Each effect is assigned a notional probability of leading to an offence. Note that these are purely notional for the purpose of this generic assessment, and should not be taken as definitive in a given real case. The score takes into account that some activities (e.g. killing newts) are not entirely predictable. The maximum notional probability is then used to derive a conclusion, which is displayed as red (probability ≥ 0.65), amber (0.3-0.65) or green (<0.3) in the \"risk assessment result\" box. Further information on interpreting the result is given below the table. Following this, you may wish to amend details of the development, and include additional precautions (see tool later in instructions), in order to avoid impacts on newts. You can then re-select the likely effects, to re-calculate the assessment based on the modified development, in order to see whether the risk has been reduced further. This process is in line with the general approach of avoiding offences wherever possible."]
[]
[]
[]
[]
[]
[]
[]
[]
[null,"Remember you should enter the likely effects as if the development were to proceed without any licensed mitigation - i.e. no trapping or fencing, etc. This may mean, for instance, that killing newts is likely as the development would destroy areas they use (though we have taken into account in the probability score that it is often uncertain as to whether newts would be killed by development in a given location away from ponds). You should consider likely effects after taking any appropriate unlicensed precautions to reduce risks - e.g. groundworks during daylight only. Further guidance on this is given in the Non-licensed avoidance measures tool, later in the Instructions section."]
[]
[]
[]
[]
[]
[]
[]
[null,"Caveats and limitations"]
[null,"This risk assessment tool has been developed as a general guide only, and it is inevitably rather simplistic. It has been generated by examining where impacts occurred in past mitigation projects, alongside recent research on newt ecology. It is not a substitute for a site-specific risk assessment informed by survey. In particular, the following factors are not included for sake of simplicity, though they will often have an important role in determining whether an offence would occur: population size, terrestrial habitat quality, presence of dispersal barriers, timing and duration of works, detailed layout of development in relation to newt resting and dispersal. The following factors could increase the risk of committing an offence: large population size, high pond density, good terrestrial habitat, low pre-existing habitat fragmentation, large development footprint, long construction period. The following factors could decrease the risk: small population size, low pond density, poor terrestrial habitat, substantial pre-existing dispersal barriers, small development footprint, short construction period. You should bear these mitigating and aggravating factors in mind when considering risk."]
[]
[]
[]
[]
[]
[]
[]
[]
[]
[]
[null,"It is critical that, even if you decide not to apply for a licence, you ensure that any development takes account of potential newt dispersal. Where great crested newts are present, landuse in that area must ensure there is adequate connectivity. Retaining and improving connectivity will often involve no licensable activities."]
[]
[]
[]
[null,"Component",null,null,null,"Likely effect (select one for each component; select the most harmful option if more than one is likely; lists are in order of harm, top to bottom)",null,null,null,"Notional offence probability score"]
[]
[]
[null,"Great crested newt breeding pond(s)","Great crested newt breeding pond(s)","Great crested newt breeding pond(s)","Great crested newt breeding pond(s)","No effect",null,null,null,{"$f":"INDEX('Form data (IGNORE)'!D164:E165,MATCH(F181,RRA_br_pond_effect,0),2)","v":0}]
[null,"Land within 100m of any breeding pond(s)",null,null,null,"No effect",null,null,null,{"$f":"INDEX('Form data (IGNORE)'!D168:E173,MATCH(F182,RRA_terr_hab_100_effect,0),2)","v":0}]
[null,"Land 100-250m from any breeding pond(s)",null,null,null,"No effect",null,null,null,{"$f":"INDEX('Form data (IGNORE)'!D178:E185,MATCH(F183,RRA_terr_hab_100250_effect,0),2)","v":0}]
[null,"Land >250m from any breeding pond(s)",null,null,null,"No effect",null,null,null,{"$f":"INDEX('Form data (IGNORE)'!D188:E195,MATCH(F184,RRA_terr_hab_250_effect,0),2)","v":0}]
[null,"Individual great crested newts",null,null,null,"No effect",null,null,null,{"$f":"INDEX('Form data (IGNORE)'!D198:E203,MATCH(F185,RRA_indiv_newts_effect,0),2)","v":0}]
[null,"Maximum:",null,null,null,null,null,null,null,{"$f":"MAX(J181:J185)","v":0}]
[null,"Rapid risk assessment result:",null,null,null,{"$f":"IF(MAX(J181:J185)>=0.65,\"RED: OFFENCE HIGHLY LIKELY\",IF(MAX(J181:J185)>=0.3,\"AMBER: OFFENCE LIKELY\",\"GREEN: OFFENCE HIGHLY UNLIKELY\"))","v":"GREEN: OFFENCE HIGHLY UNLIKELY"}]
[]
[null,"Guidance on risk assessment result categories"]
[null,"\"Green: offence highly unlikely\" indicates that the development activities are of such a type, scale and location that it is highly unlikely any offence would be committed should the development proceed. Therefore, no licence would be required. However, bearing in mind that this is a generic assessment, you should carefully examine your specific plans to ensure this is a sound conclusion, and take precautions (see Non-licensed avoidance measures tool) to avoid offences if appropriate. It is likely that any residual offences would have negligible impact on conservation status, and enforcement of such breaches is unlikely to be in the public interest."]
[]
[]
[]
[]
[]
[null,"\"Amber: offence likely\" indicates that the development activities are of such a type, scale and location that an offence is likely. In this case, the best option is to redesign the development (location, layout, methods, duration or timing; see Non-licensed avoidance measures tool) so that the effects are minimised. You can do this and then re-run the risk assessment to test whether the result changes, or preferably run your own detailed site-specific assessment. Bear in mind that this generic risk assessment will over- or under-estimate some risks because it cannot take into account site-specific details, as mentioned in caveats above. In particular, the exact location of the development in relation to resting places, dispersal areas and barriers should be critically examined. Once you have amended the scheme you will need to decide if a licence is required; this should be done if on balance you believe an offence is reasonably likely."]
[]
[]
[]
[]
[]
[]
[]
[]
[null,"\"Red: offence highly likely\" indicates that the development activities are of such a type, scale and location that an offence is highly likely. In this case, you should attempt to re-design the development location, layout, timing, methods or duration in order to avoid impacts (see Non-licensed avoidance measures tool), and re-run the risk assessment. You may also wish to run a site-specific risk assessment to check that this is a valid conclusion. If you cannot avoid the offences, then a licence should be applied for."]
[]
[]
[]
[]
[]
[null,"(2) Conversions",null,null,null,null,null,"Return to Impact assessments"]
[null,"All area figures in this Method Statement template should be entered in hectares, to allow consistent calculations. Some ecologists prefer to work in m², especially for smaller figures such as pond surface areas. Use this tool to easily convert between the two units."]
[]
[]
[]
[null,"Enter area in m²:",null,null,null," = ",{"$f":"D216/10000","v":0},null,"ha"]
[]
[null,"Enter area in ha:",null,null,null," = ",{"$f":"D218*10000","v":0},null,"m²"]
[]
[null,"(3) Non-licensed avoidance measures"]
[null,"Background"]
[null,"Licensable activities should ideally be designed out of developments during the early planning stages. This should result in avoiding harm to great crested newt populations, and can save developers the time and expense of licensed mitigation measures. Many potentially licensable activities can in fact be avoided by careful planning of the development combined with simple precautionary measures. In many cases, adopting such an approach may mean that no licence is required (as no offence would be committed). Even when a licence is applied for because you decide an offence is likely, such measures can still be employed to reduce the level of harm to newt populations. This application tool helps you to plan non-licensed avoidance measures for common development scenarios. You may also use them in licensed projects to reduce impacts."]
[]
[]
[]
[]
[]
[]
[]
[null,"Guidance on use, caveats and limitations"]
[null,"Check the list below for suggestions for avoiding impacts that might be appropriate for your project. You can use this in combination with the \"Do I need a licence? Rapid risk assessment\" tool to help you plan mitigation and decide on whether to apply for a licence. For schemes that cover a large area, you might use these tools to decide that only part(s) of the development should be subject to a licence. This section is based on an examination of approaches considered in recent projects, and is obviously generic. The suggestions may not be appropriate for your particular development, or may require fine-tuning to be helpful. Neither are they exhaustive: we encourage you to develop your own ideas and let us know so that we can include them in future guidance."]
[]
[]
[]
[]
[]
[]
[null,"If you determine that no offences would be committed and therefore decide not to apply for a licence, it may be useful to keep a copy of the decision-making steps, and any precautions that will be taken. In some cases these might form the basis of a non-licensed method statement, to help a developer and their contractors understand how to carry out works with a minimal risk of breaching the law. If soundly produced, this might act as an audit trail and a \"defence\" in the event of any future queries about the development's effects on newts. Similarly, if you use these tools to determine that only part(s) of the development area should be subject to a licence, then it is helpful to include this rationale in the licence application, so that we can see why and how you have included and excluded particular areas in the licensed work."]
[]
[]
[]
[]
[]
[]
[]
[null,"Project element",null,"Suggestions for avoidance measures"]
[null,"Location & layout",null,"(a) Locate site as far as possible from potential breeding ponds and high quality terrestrial habitat. (b) Locate in areas subject to high pre-existing fragmentation. (c) Locate on hard, compacted ground with few fissures. (d) Design layout so that any hard landscaping is as far as possible from ponds, with retained habitat and soft landscaping toward ponds."]
[]
[]
[]
[null,"Timing & duration",null,"(a) Restricting works to the winter period (when newts are rarely active above ground) is sensible if the project would not harm hibernation habitat. Projects with temporary habitat disruption and reinstatement, such as some pipelines, could potentially be carried out without any licensable activity in this way. (b) Keep duration of groundworks as short as possible. (c) Undertake during the day works that might only affect newts above ground."]
[]
[]
[]
[]
[null,"Construction methods and special precautions",null,"(a) Backfill trenches and other excavations before nightfall, or leave a ramp to allow newts to easily exit. (b) Raise stored materials (that might act as temporary resting places) off the ground, e.g. on pallets. (c) For pipelines, use directional drilling to cross areas of core habitat and dispersal routes. (d) Avoid installing structures that act as barriers close to ponds, or include gaps at ground level where walls or fences are unavoidable."]
[]
[]
[]
[]
[]
[null,"(4): Survey data - what kind, how much, how old?"]
[null,"Background"]
[null,"Survey data are essential for any mitigation licence application. Consultants frequently seek advice on requirements for the level of effort, type of survey and age of survey data. The answer to this is that sufficient data need to be provided to demonstrate the level of impact on the population, plan effective mitigation, and allow an assessment of development and mitigation effects. Data requirements will be proportionate to the level of impact of the development. Clearly these will vary from case to case.  The Great crested newt mitigation guidelines and .GOV.UK "]
[]
[]
[]
[]
[null,"(https://www.gov.uk/guidance/great-crested-newts-surveys-and-mitigation-for-development-projects)"]
[null,"provide general comments and technical advice on methods. This application tool provides further guidance to assist with planning pond survey effort and Method Statement preparation. It deals only with standard newt pond surveys and Habitat Suitability Index (HSI) assessments. Other kinds of surveys, e.g. terrestrial newt surveys, may be appropriate either as a substitute or in addition, depending on the situation."]
[]
[]
[]
[null,"Guidance on use, caveats and limitations"]
[null,"Using the table further down the instructions section in Survey Guidance Table, check the likely type of impact that your development would have, and then read across to see which types of surveys are indicated. The table is divided into permanent and temporary habitat loss; the latter occurs when there is rapid reinstatement to appreciably similar conditions following development (e.g. typical pipeline projects). Where both presence/absence and population size class assessment surveys are indicated, these can run together. Note that the indications in this table are meant as minimum standards, and are inevitably generic. The circumstances of a particular scheme may indicate that more surveys are required. For example, additional effort or other types of surveys (e.g. terrestrial dispersal survey, capture-mark-recapture [CMR]) should be done where there is a sound case.  Note that different survey types and effort may be appropriate for different ponds on (or close to) the same development site, especially for large schemes where impacts vary across the footprint."]
[]
[]
[]
[]
[]
[]
[]
[]
[]
[null,"The figures on extent of habitat loss here do not take into account overall habitat availability. You will need to consider the spatial layout of habitat, and in particular barriers to dispersal. So, for example, if 0.1ha of land were to be lost at a distance of 70m from a pond, and that 0.1ha seems likely (from maps, aerial photos or a walk-over survey) to provide the majority of good quality terrestrial habitat for the nearest population, then a population size class assessment should be done (contrary to the standard recommendation in the table). Conversely, for example, if this habitat were separated by major roads and built land, you may decide that no survey is necessary as it is unlikely to be used by newts. Furthermore, this table focuses on typical habitat loss/damage, and does not take into account all possible impact types, such as disturbance only. Again the general advice is to devise surveys appropriate to the level of potential impact."]
[]
[]
[]
[]
[]
[]
[]
[]
[null,"Geographical limits of survey"]
[null,"In keeping with a proportionate and risk-based approach, surveys need reasonable boundaries. The Great crested newt mitigation guidelines explain that surveys of ponds up to around 500m from the development might need to be surveyed. The decision on whether to survey depends primarily on how likely it is that the development would affect newts using those ponds. For developments resulting in permanent or temporary habitat loss at distances over 250m from the nearest pond, carefully consider whether a survey is appropriate. Surveys of land at this distance from ponds are normally appropriate when all of the following conditions are met: (a) maps, aerial photos, walk-over surveys or other data indicate that the pond(s) has potential to support a large great crested newt population, (b) the footprint contains particularly favourable habitat, especially if it constitutes the majority available locally, (c) the development would have a substantial negative effect on that habitat, and (d) there is an absence of dispersal barriers. "]
[]
[]
[]
[]
[]
[]
[]
[]
[null,"That is not to say that all development proposals over 250m from a pond will not require surveys. There are cases where large numbers of newts have been found at 250-500m from ponds, and so impacts are potentially significant, but such cases are rare and can often be predicted by the presence of especially favourable habitat. Developments beyond 500m from the nearest pond would very rarely merit newt surveys."]
[]
[]
[]
[]
[null,"Age of survey data"]
[null,"Newt survey data must be sufficient to accurately reflect the status of the site at the time the licence application is submitted. The older the survey data, the more likely it is to misrepresent status, and in general you are advised to carry out surveys as close as possible to submission. The larger the predicted impacts, the more important it is to have recent data. Particular care must be taken if there have been changes to the habitats on or adjacent to the site since the last survey. A walk-over survey, at the least, should be undertaken within 3 months prior to submission to check for habitat changes since the survey was carried out. If circumstances have changed, then only those areas affected by the changes need to be re-surveyed. "]
[]
[]
[]
[]
[]
[]
[null,"Re-assessment of the impacts will need to be undertaken after any re-surveys, and this may require changes to mitigation plans. The far right column in the table gives maximum acceptable age of survey, from date undertaken to date of licence submission. Note that this assumes no significant habitat changes on or adjacent to the site since last survey. This must be confirmed, e.g. by walk-over survey, within 3 months prior to licence application submission. Whenever you rely on old surveys, mention their key findings in the main body of your Method Statement, and attach the full survey as an annex."]
[]
[]
[]
[]
[]
[null,"Survey guidance table"]
[null,"Impact type and location",null,"Potential terrestrial habitat - loss or damage (ha)",null,"Presence/ likely absence survey","Population size class assessment","HSI","Maximum age of survey data (# breeding seasons)"]
[]
[]
[]
[null,"Permanent habitat loss or damage"]
[null,"Pond(s) lost or damaged, with or without other habitat loss or damage",null,"≥0",null,"YES","YES","YES",2]
[]
[]
[null,"No ponds lost or damaged, development within 50m of nearest pond",null,"≤0.01",null,"YES","NO","YES",3]
[]
[null,null,null,">0.01",null,"YES","YES","YES",2]
[]
[null,"No ponds lost or damaged, development 50-100m from nearest pond",null,"≤0.2",null,"YES","NO","NO",3]
[]
[null,null,null,">0.2",null,"YES","YES","YES",2]
[]
[null,"No ponds lost or damaged, development 100-250m from nearest pond",null,"≤0.5",null,"YES","NO","NO",4]
[]
[null,null,null,">0.5",null,"YES","YES","YES",3]
[]
[null,"No ponds lost or damaged, development >250m from nearest pond (NB see notes)",null,"≤5",null,"YES","NO","NO",4]
[]
[null,null,null,">5",null,"YES","NO","YES",3]
[]
[null,"Temporary habitat loss or damage"]
[null,"Pond(s) lost or damaged, with or without other habitat loss or damage",null,"≥0",null,"YES","YES","YES",2]
[]
[]
[null,"No ponds lost or damaged, development within 50m of nearest pond",null,"≤0.05",null,"YES","NO","YES",3]
[]
[null,null,null,">0.05",null,"YES","YES","YES",3]
[]
[null,"No ponds lost or damaged, development 50-100m from nearest pond",null,"≤0.5",null,"YES","NO","NO",4]
[]
[null,null,null,">0.5",null,"YES","YES","YES",3]
[]
[null,"No ponds lost or damaged, development >100m from nearest pond",null,"≤5",null,"YES","NO","NO",4]
[]
[null,null,null,">5",null,"YES","NO","YES",4]
[]
[]
[null,"Example: Survey undertaken in 2011 between April to June. Application submitted in autumn 2013 using the 2011 survey. The survey supporting the application would not suffice and the 2011 survey is actually 3 survey seasons old by autumn 2013 (i.e. 1st survey season = 2011, 2nd survey season = 2012 and 3rd survey season = 2013).  If the application had been submitted in March/April or even May 2013 it may have been acceptable if fully justified why no further survey effort was required. \n"]
[]
[]
[]
[]
[]
[null,"Measuring turbidity and vegetation cover. These factors can greatly influence survey counts, so it is important to measure them consistently. In the Method Statement, we ask you to use the following convention:"]
[]
[]
[null,"Vegetation cover score (0-5); 0 = no vegetation obscuring survey; 5 = water completely obscured by vegetation."]
[]
[null,"Turbidity score (0-5): 0 = completely clear; 5 = very turbid."]
[]
[null,"(5): Use of the great crested newt Habitat Suitability Index (HSI)"]
[null,"Background"]
[null,"The great crested newt Habitat Suitability Index (HSI) is quantitative measure of habitat quality (source: Oldham R.S., Keeble J., Swan M.J.S. & Jeffcote M. (2000). Evaluating the suitability of habitat for the Great Crested Newt (Triturus cristatus). Herpetological Journal 10 (4), 143-155). The HSI is number between 0 and 1, derived from an assessment of ten habitat variables known to influence the presence of newts. An HSI of 1 is optimal habitat (high probability of occurrence), while an HSI of 0 is very poor habitat (minimal probability of occurrence). The HSI is calculated on a single pond basis, but takes into account surrounding terrestrial habitat and local pond density."]
[]
[]
[]
[]
[]
[null,"Application to great crested newt mitigation"]
[null,"The great crested newt HSI is potentially a useful tool in survey and mitigation. One benefit is that it can be undertaken in a single field visit (with supporting desk work), and at any time of the year (though some variables are more easily measured in spring and summer). Its main uses are:"]
[]
[]
[null,"1) in surveys, to assess habitat quality in a repeatable, objective manner. In particular, the HSI allows individual factors that influence newt presence to be easily identified. These factors could help explain a very high or very low count. A high HSI can justify employing additional survey effort or methods if no newts are found initially."]
[]
[]
[null,"2) in impact assessments, to allow a measure of how damaging a development could be. HSI might also be used as a screening tool to select no impact or minimal impact options in conjunction with (3) below."]
[]
[null,"3) in risk assessments, helping to decide whether an offence might be committed, and therefore whether a licence should be applied for. If a pond has a very low HSI score (say <0.5) then there would typically be a minimal chance of great crested newt presence. Hence, with due care and in limited circumstances (see also caveats below), the HSI might be used in the absence of newt survey to help conclude that an offence is highly unlikely and therefore work could proceed in that area without a licence. This application of the HSI should only be used where the predicted impacts - were newts to be present - would be low (e.g. development at least 100m from pond, permanent habitat loss <0.5ha or temporary habitat loss <5ha). The developer and consultant should realise that there would still be a risk of committing an offence, but it would typically be so low as to be negligible. Obviously, note that if HSI >0.5, this is not confirmation of newt presence; a newt survey would be required to confirm this."]
[]
[]
[]
[]
[]
[]
[]
[]
[null,"4) in habitat enhancement, HSI could be used to identify the low-scoring factors in an existing pond that need addressing to improve its quality for newts."]
[]
[null,"5) in post-development monitoring, to allow an assessment of habitat condition."]
[]
[null,"HSI in licence Method Statements"]
[null,"Natural England recommends that consultants engaged in great crested newt mitigation familiarise themselves with the HSI by reading the original paper by Oldham et al (2000). For field use in mitigation practice, we recommend that consultants follow the slightly simplified version adapted for the National Amphibian and Reptile Recording Scheme (NARRS). A helpful guidance note has been produced by The Herpetological Conservation Trust, available to download at:  "]
[]
[]
[]
[]
[null,"www.narrs.org.uk/documents/HSI%20guidance.pdf "]
[null,"The survey sections of this template include fields for entering HSI data. The preceding guidance on survey data explains when it might be used most effectively."]
[]
[]
[null,"Caveats and limitations"]
[null,"The HSI is not a substitute for undertaking newt surveys; it indicates but cannot confirm presence or absence. A licence application that infers great crested newt presence solely from HSI data (i.e. no newt survey data presented) will be rejected. Very low HSI scores may be used along with scheme details to infer a minimal chance of committing an offence in low impact situations, as explained above. This is on a risk assessment basis and consultants should be aware of the potential hazards of this approach. Whilst current data indicate a generally good relationship, HSI scores should not be used to predict population size. Care should be taken when interpreting low HSI scores; for example, a low scoring pond close to an occupied newt pond may still support newts. Whilst appropriate for most pond types, the HSI may lead to unusual scores for some atypical types (possibly including large expanses of marshes, and complex series of depressions in quarry floors). You are asked in the form to comment on any limitations of the HSI approach in your case, and if these are serious then it may be appropriate not to calculate HSI scores."]
[]
[]
[]
[]
[]
[]
[]
[]
[]
[null,"Post development monitoring advice and guidance"]
[null,"Licences can only be issued where Natural England is confident there will be no detriment to maintaining the conservation status of the newt population at a favourable level, and in some cases a package of monitoring and remedial action will be required to provide that confidence."]
[]
[]
[null,"All mitigation schemes carry a risk of failure. If mitigation measures fail, then the resulting impact on the conservation status of the newts may mean that the “Favourable Conservation Status test” (FCS test) will not have been met. This risk is greatest for activities that are judged to have a medium or high impact. Post-development monitoring has a role in providing confidence in any judgement that there will be no detriment to favourable conservation status by detecting problems that may lead to such a detrimental effect and enabling appropriate remedial action to be taken to avoid it. "]
[]
[]
[]
[]
[null,"Post-development monitoring will be expected for most medium and high impact cases. Monitoring and remedial action will form an important component of the mitigation package in these cases and will be a key prerequisite to an application for a mitigation licence passing the FCS test."]
[]
[]
[null,"The success of mitigation commonly depends on measures undertaken following the main phase of construction and newt capture (e.g. Edgar, Griffiths & Foster, 2005; Lewis, Griffiths & Barrios, 2007). Deficiencies in newly created ponds are a common problem and both aquatic and terrestrial habitat features may require several years of management to achieve a high value for newts. Monitoring is necessary to inform that management. Monitoring great crested newt numbers and breeding can also be used to identify the need for action. "]
[]
[]
[]
[]
[null,"When assessing applications, Natural England considers whether post-development monitoring proposals, in conjunction with the other mitigation measures, will be sufficient to ensure that the FCS test will be met. The need for monitoring, and the type of monitoring required, is related to the impact of the development and the status of the great crested newt population. In this way, monitoring requirements are proportionate to the risk of potential impacts on conservation status. For developments having low impacts, monitoring will not normally be required.  Developers reducing the impact of their projects will therefore benefit from having lower costs following construction. For further details, see table below."]
[]
[]
[]
[]
[]
[]
[null,"Site status assessment/ population size class",null,"Impact type and size"]
[null,null,null,"Low",null,"Medium",null,"High"]
[null,"Small population/ low importance",null,"None",null,"Presence/absence; 2 years",null,"Presence/absence; 4 years"]
[null,"Medium population/ medium importance",null,"None",null,"Pop size class assessment; 4 years",null,"Pop size class assessment; 6 years"]
[null,"High population/ high importance",null,"pop size class assessment; 2 years",null,"Pop size class assessment; 6 years",null,"Pop size class assessment; 10 years"]
[null,null,null,null,null,null,null,"Return to E5.2"]
[null,"In addition to being necessary in some cases to support a conclusion of no detriment to maintenance of favourable conservation status, data produced in accordance with monitoring conditions helps Natural England and others to assess the effectiveness of mitigation measures. This in turn can feed back into good practice, so that future mitigation can be made more effective (these improvements can also help with cost effectiveness).  The UK government has a duty to report to the European Commission on derogations, and for this we rely on data collected under mitigation licences."]
[]
[]
[]
[]
[]
[null,"References"]
[null,"Edgar, P, Griffiths, RA & Foster, JP. 2005. Evaluation of translocation as a tool for mitigating development threats to great crested newts (Triturus cristatus) in England, 1990-2001, Biological Conservation, 122: 45-52."]
[]
[]
[null,"Lewis, B, Griffiths, RA & Barrios, Y. 2007. Field assessment of great crested newt Triturus cristatus mitigation projects in England. Natural England Research Report NERR001. Natural England, Peterborough."]
[]
[]
[]
[]
[null,null,null,null,"Next section"]

{"sheet":"Advice on Method statement","index":2,"n_rows":111,"n_cols":7,"rows_kept":111,"cut":false,"hidden":false,"merged":[[0,1,0,10],[18,1,18,10],[13,1,13,10],[2,1,2,10],[10,1,10,10],[11,1,11,10],[8,1,9,10],[3,1,7,10],[14,1,14,10],[12,1,12,10],[15,1,15,10],[17,1,17,10],[19,1,19,10],[16,1,16,10],[44,1,44,10],[22,1,22,10],[23,1,23,10],[20,1,20,10],[41,1,41,10],[46,1,46,10],[47,1,47,10],[21,1,21,10],[24,1,35,10],[38,1,38,10],[37,1,37,10],[40,1,40,10],[43,1,43,10],[39,1,39,10],[45,1,45,10],[50,1,50,10],[52,1,53,10],[51,1,51,10],[54,1,54,10],[62,1,62,10],[56,1,56,10],[57,1,58,10],[61,1,61,10],[106,1,109,10],[69,1,69,10],[105,1,105,10],[63,1,68,10],[110,1,110,3],[70,1,81,10],[87,1,91,10],[92,1,98,10],[99,1,104,10],[82,1,85,10],[86,1,86,10]]}
[null,"Additional Advice for completing the Method Statement Template"]
[]
[null,"Masterplan Guidance"]
[null,"For phased developments you are required to submit a detailed, stand alone, Masterplan to help assess the overall impacts of the entire works on the GCN population and the future mitigation across the whole scheme.  A Masterplan to support a licence application must be specific to licensing (it is not appropriate to submit planning documents). As a minimum Natural England expects the Licensing Masterplan to include:"]
[]
[]
[]
[]
[null,"1.  A map of the overall site (i.e. the entire area the proposed development will cover) to show the terrestrial and aquatic habitat types and areas CURRENTLY present."]
[]
[]
[null,"2.  Maps showing:"]
[null,"•  Where each construction phase or plot is to be located and where each mitigation licence will be"]
[null,"required within these. "]
[null,"•  The impacts of each phase which requires a licence (loss and damage)"]
[null,"•  All proposed receptor areas, habitat compensation areas (which may be discrete from the receptor"]
[null,"areas) sites, mitigation areas and development footprints"]
[null,"•  Post-development connectivity across the site (i.e. how will mitigation and compensation habitats link"]
[null,"to each other and the wider landscape)"]
[]
[null,"3.  The proposed phasing programme (to include information on the number of phases (i.e. which need a"]
[null,"licence) and indicative time frames for their construction start and end dates."]
[]
[null,"4.  Brief, explanatory text to describe:"]
[null,"•  The overall size of the site (ha) and what it currently consists of (habitat types and areas).\n•  Total terrestrial habitat losses (type and areas) and those for each individual phase.\n•  Total aquatic habitat losses which will be incurred and those for each individual phase.\n•  The impacts caused by the phasing of the development in the absence of mitigation \n•  The total terrestrial habitat compensation proposed and that for each individual phase.\n•  The total aquatic habitat compensation proposed and that for each individual phase.\n•  Where captured newts will be translocated during each individual phase.\n•  How post-development connectivity will be maintained across the entire site. \n•  How the potential for double-handling will be avoided (i.e. the recapture of newts trapped during early phases of the scheme in subsequent phases).\n•  Post development monitoring (in line with recommendations in the Great crested newt mitigation guidelines)\n"]
[]
[]
[]
[]
[]
[]
[]
[]
[]
[]
[]
[]
[null,"5.  A map to show the location and extent of all of the GCN specific habitat measures proposed."]
[]
[null,"6.  A detailed Habitat Maintenance and Management Plan (specific to GCN) to describe how "]
[null,"mitigation/compensation areas will be managed and maintained in the long term to benefit GCNs "]
[null,"(to include the time frame that it will cover)."]
[]
[null,"7.  Assurance of the long term security of the GCN population and confirmation that any proposals are "]
[null," not left as open-ended options before the application is submitted. "]
[]
[null,"8.  Guarantees that proposed receptor sites will be safe-guarded and free from future development "]
[null," pressures. "]
[]
[null,"Return to","Section B1"]
[]
[null,"For further info please see the archived site below:"]
[null,"http://webarchive.nationalarchives.gov.uk/20140605090108/http://www.naturalengland.org.uk/Images/WML-G11_tcm6-9930.pdf"]
[]
[null," in relation to the number of licences required for the development and not construction phases."]
[]
[null,"If link does not open, please paste this into an internet search browser:"]
[null,"webarchive.nationalarchives.gov.uk/20140605090108/http://www.naturalengland.org.uk/Images/WML-G11_tcm6-9930.pdf"]
[]
[]
[]
[null,"Important notes on capture methods and effort"]
[null,"Pitfall trapping minimum effort"]
[null,"Trapping may cease once there have been 5 zero capture days in suitable conditions. These 5 zero capture days may be the last 5 of the minimum capture period, but not earlier. Note: The shortest minimum capture period listed (25 days) is only appropriate in exceptional circumstances, e.g. small population size class and minor development impacts predicted. Deviations from the recommendations within the Great crested newt mitigation guidelines should be fully explained and justified.  A minimum of 25 nights trapping will be acceptable for linear developments (such as pipelines, boreholes, archaeological investigations) which incur temporary impacts only (e.g. where habitats will be fully re-instated to their previous status and no ponds will be lost or damaged)."]
[]
[]
[]
[]
[]
[null,"Seasonal considerations in pitfall trapping and fence installation"]
[null,"Natural England advises that pitfall traps are closed once newts begin to hibernate (generally after the first frosts) and re-opened in suitable weather conditions in the spring when newts become active again above ground.  Although some newts may become active during the winter period, their behaviour is unpredictable and many individuals will remain in hibernation sites, where they are unavailable for capture.  Furthermore, strong directional movements, which are best for trapping, are much less common during this period. Pitfall trapping over the winter period also has welfare implications for both target and non-target species caught in traps. Any animal caught in a pitfall trap is protected under the Animal Welfare Act 2006 and the operator has a duty of care to ensure that captured animals do not endure suffering whilst in captivity.  Natural England will not therefore licence the terrestrial capture of great crested newts over the winter period, even during bouts of milder weather.  \n\nFor applications proposing newt capture in autumn, Natural England expects consideration to be given to the possibility that weather conditions may become unsuitable for newt capture, whereby pitfall traps must be closed and trapping re-started the following spring in suitable weather conditions. In cases such as this it is advisable for 'Work schedule E6a' to reflect possible delays and ensure it is clear that no construction works are scheduled to take place until the agreed capture effort is completed and that traps will be closed and re-opened the following spring."]
[]
[]
[]
[]
[]
[]
[]
[]
[]
[]
[]
[null,"Amphibian fencing should only be installed in winter if there is no risk of harming dormant or hibernating newts.  For example, installing fence lines across ground with no opportunities for refuge (e.g. compacted ground, amenity grassland) pose the least risk to newts. The key point to examine is whether the fence is to be installed in an area likely to be used by wintering newts.                                                                                                                                    "]
[]
[]
[]
[null,"Night searching"]
[null,"(1) Application. This capture method is appropriate only in certain circumstances, as follows: (a) capture area within 100m of pond, unless clear resting place feature more distant and no dispersal barriers (b) newts clearly visible when above ground, i.e. even ground surface, even topography and no or very little vegetation (e.g. even quarry floors, amenity grassland, hardstanding), (c) carried out during period of reasonable dispersal, i.e. March to late June, late August to end October. It may also be used in addition to pitfall trapping, and this may increase capture rates and allow an earlier finish to capture operations. "]
[]
[]
[]
[]
[null,"In the following cases night searching as the sole capture method may be used instead of pitfall trapping: where all the conditions listed previously for applicability are met, and one of the following is the case: (a) ground conditions mean installation of pitfall traps is impractical, (b) vandalism is likely to be so severe that even with standard safeguards pitfall trapping is impractical or dangerous for the newts, (c) other site-specific rationale to believe that night searching would be more effective than trapping. In such cases night searching capture effort proposals are expected to mirror that for pitfall trapping (e.g. 30 nights night searching for a small population in suitable weather conditions and ceasing only when the above criteria have been met - see pitfall trapping minimum effort).  Deviations from the mitigation guidelines recommendations should be fully explained and justified).  "]
[]
[]
[]
[]
[]
[]
[null,"(2) Method. Drift fences erected in lengths forming rough arcs around pond, with some cross-ways lengths. Lay refuges next to fence and any likely resting place features. Searching to be done by highly experienced newt ecologist with high power torch (at least 1M cp). Search on warm nights during rain or shortly after rain. Start around 22.00 even if dark earlier. Search for approx. 3 hours (more on very large sites), repeat scanning areas to check for newts emerging from ground. Check along fence lines (first and last checks) but also search other areas. Walk slowly scanning torch in front; check refuges. Cease search if much leaf fall as this makes newts difficult to detect. Take great care to avoid stepping on newts."]
[]
[]
[]
[]
[]
[null,"Destructive searching and hand searching"]
[null,"These methods are only appropriate for distinct habitat features that can be carefully dismantled by hand or machine, with minimal risk of harm, and after other capture methods are expended. Examples: rubble pile, topsoil mound, patio, fractured hard-standing. Not to be used on extents of habitat such as grassland or scrub. Not to be undertaken in winter when newts are inactive or in extremely hot periods in summer; capture should only be carried out in suitable weather conditions as per the Great crested newt mitigation guidelines.    "]
[]
[]
[]
[null,"Return to table E4",null,null,null,null,"Next Section"]

{"sheet":"B - Background & Site Info","index":3,"n_rows":142,"n_cols":8,"rows_kept":142,"cut":false,"hidden":false,"merged":[[113,1,133,9],[80,1,100,9],[57,1,77,9],[54,1,56,9],[141,4,141,6],[135,1,135,9],[112,1,112,9],[108,1,108,9],[109,1,109,9],[111,1,111,9],[52,1,52,9],[42,1,42,6],[106,1,106,9],[107,1,107,9],[53,1,53,9],[78,1,78,9],[42,7,42,9],[104,1,104,9],[50,1,50,9],[105,1,105,9],[79,1,79,9],[102,1,102,9],[51,1,51,9],[49,1,49,9],[47,1,47,9],[48,1,48,9],[10,1,10,9],[37,1,37,9],[40,1,40,6],[31,1,31,9],[35,1,35,9],[14,1,14,3],[11,1,13,9],[14,4,14,9],[15,1,15,9],[28,1,28,9],[23,1,26,9],[16,1,16,9],[38,1,38,5],[38,7,38,9],[32,1,32,9],[17,4,17,9],[19,1,21,9],[29,1,29,9],[22,1,22,9],[30,1,30,9],[43,1,44,9],[45,1,45,9],[33,1,33,9],[34,1,34,9],[36,7,36,9],[36,1,36,6],[41,1,41,9],[40,7,40,9],[7,1,7,3],[9,1,9,3],[7,4,7,9],[9,4,9,9],[0,1,0,9],[1,1,1,9],[2,1,3,9],[5,1,5,3],[4,1,4,9],[5,4,5,9],[6,1,6,9],[8,1,8,9]]}
[null,"GCN Method Statement WML-A14-2 (Version April 2020)"]
[null,"The Conservation of Habitats and Species Regulations 2017 (as amended)"]
[null,"Method Statement to support application for licence under Regulation 55(2)(e) in respect of Great crested newts Triturus cristatus"]
[]
[null,"Section A. "]
[null,"Site/project name:"]
[]
[null,"Applicant (developer) name:"]
[]
[null,"Named Ecologist:"]
[]
[null,"Is this application for a new Method Statement (not previously licensed), a modification to a licensed Method Statement (non-annexed only), or a re-submission following a \"Further Information Request\" notice?"]
[]
[]
[]
[null,"If a re-submission, please give previous application reference "]
[null,"(eg EPSL, EPSM 20XX-3142A, 20XX XXX EPS MIT):"]
[]
[]
[null,"NB: For re-submissions and modifications (non-annexed) the Method Statement should be re-submitted in its entirety, including all maps, appendices, reports, etc.  You must clearly show any changes from the previously submitted version by underlining relevant text (CTRL-U) or by changing the font colour.                                                                          "]
[]
[]
[]
[null,"In undertaking this mitigation project, I agree to comply with good practice as set out in the Great crested newt mitigation guidelines (GCNMG) (English Nature, 2001). [Note: if you do not check the box to comply with good practice your application will almost certainly be rejected. See comments on Technical mitigation issues in Instructions]"]
[]
[]
[]
[]
[]
[null,"NB: Please be concise with your information and descriptions provided within your Method Statement"]
[]
[null,"Section B Introduction"]
[null,"You have provided a brief description of proposal in the application form, please provide the "]
[null,"following additional background and site information."]
[]
[null,"Relationship with impacts due to other nearby development"]
[null,"B1.1 Is this application part of a phased/multi-plot development? See:",null,null,null,null,null,"Advice on Masterplan guidance"]
[null,"For example, is it part of a phased mineral extraction, housing development or one plot in a multiple"]
[null," ownership residential scheme?.......................",null,null,null,null,null,"If No, go to Question B1.2"]
[]
[null,"If yes, how many great crested newt (GCN) licences will be required? "]
[]
[null,"What licence application phase is this? e.g. licence application 1 of 3."]
[null,"Note: sections in this Method Statement on impact assessment and mitigation measures must explicitly relate to impacts only from the development currently proposed."]
[]
[null,"Your separate master plan document is expected to take due regard of the overall project. This is important to ensure that in-combination effects are considered, and mitigation measures across the whole project are both sufficient and coherent."]
[]
[null,"Confirm you provided: "]
[]
[null,"\u009f A Separate Masterplan document………………."]
[]
[null,"\u009f   Separate Masterplan figures………………………"]
[]
[null,"\u009f\u009f A Habitat Management and Maintenance Plan?..."]
[null,"If you have selected ‘No’ to any of the above questions, please explain why as these are considered necessary and important documents for determination of your application. Not to provide them is likely to result in delays to being able to determine your application whilst we come back to you for this information. "]
[]
[]
[]
[]
[]
[]
[]
[]
[]
[]
[]
[]
[]
[]
[]
[]
[]
[]
[]
[]
[]
[]
[]
[]
[null,"Please provide below a brief summary of how the current application relates to the larger project. "]
[]
[]
[]
[]
[]
[]
[]
[]
[]
[]
[]
[]
[]
[]
[]
[]
[]
[]
[]
[]
[]
[]
[null,"For this method statement also include a map FIG. B1.1 -  see Sum & Figs. tab."]
[]
[null,"B1.2 Apart from any mentioned in B1.1, are there other GCN mitigation projects which might affect the "]
[null,"target population?  You must make reasonable efforts to establish this, including discussions with your"]
[null,"client and the LPA."]
[null,"Notes: Include any projects within 100m of site boundary, and any further away that are likely to seriously "]
[null,"impact on the population at the site. Include current projects, any from the last 5 years, and any planned "]
[null,"to happen within the next 5 years."]
[]
[null,"If yes, provide summary information here, including site names, dates, and - if known - licence reference No.s:"]
[]
[]
[]
[]
[]
[]
[]
[]
[]
[]
[]
[]
[]
[]
[]
[]
[]
[]
[]
[]
[]
[]
[]
[null,"NB: Locations of other GCN sites must be shown on FIG. B1.2 - see Sum & Figs. tab"]
[]
[]
[]
[]
[]
[null,null,null,null,"Next Section"]

{"sheet":"C - Survey Info","index":4,"n_rows":281,"n_cols":9,"rows_kept":281,"cut":false,"hidden":false,"merged":[[268,3,268,5],[265,6,265,9],[264,6,264,9],[266,3,266,5],[266,6,266,9],[265,1,265,2],[263,3,263,5],[254,1,254,3],[268,6,268,9],[267,1,267,2],[267,3,267,5],[258,6,258,9],[259,6,259,9],[261,3,261,5],[259,1,259,2],[258,3,258,5],[263,1,263,2],[261,6,261,9],[262,6,262,9],[262,3,262,5],[267,6,267,9],[280,4,280,6],[184,1,184,9],[207,1,207,5],[191,6,191,7],[251,7,251,9],[263,6,263,9],[260,6,260,9],[258,1,258,2],[262,1,262,2],[265,3,265,5],[261,1,261,2],[264,1,264,2],[252,2,252,6],[192,4,192,5],[250,2,250,6],[250,7,250,9],[266,1,266,2],[219,1,237,9],[252,7,252,9],[269,1,269,3],[269,4,269,9],[268,1,268,2],[264,3,264,5],[251,2,251,6],[253,2,253,6],[253,7,253,9],[249,2,249,6],[249,7,249,9],[244,7,244,9],[245,2,245,6],[260,1,260,2],[259,3,259,5],[260,3,260,5],[257,1,257,9],[254,4,254,9],[245,7,245,9],[248,7,248,9],[246,2,246,6],[247,2,247,6],[247,7,247,9],[244,2,244,6],[246,7,246,9],[248,2,248,6],[193,4,193,5],[194,4,194,8],[191,8,191,9],[243,2,243,6],[193,1,193,2],[243,7,243,9],[212,1,214,9],[239,1,242,6],[189,5,189,6],[191,1,191,2],[191,4,191,5],[196,1,196,4],[209,1,209,5],[189,1,189,2],[189,7,189,8],[192,8,192,9],[218,1,218,3],[216,1,217,7],[193,6,193,7],[198,1,199,9],[194,1,194,2],[204,1,204,9],[193,8,193,9],[206,1,206,5],[211,1,211,6],[210,1,210,6],[26,1,26,9],[28,1,28,9],[29,1,29,9],[55,2,55,9],[58,1,58,9],[59,1,61,9],[47,2,47,9],[54,2,54,9],[53,2,53,9],[48,2,48,9],[49,2,49,9],[50,2,50,9],[34,1,34,9],[45,2,45,9],[51,2,51,9],[31,1,31,8],[33,1,33,9],[30,1,30,9],[27,1,27,8],[42,1,42,9],[43,1,43,9],[56,1,56,9],[21,1,21,9],[46,2,46,9],[0,1,0,9],[1,1,1,9],[10,1,10,9],[13,1,13,9],[14,1,16,9],[9,1,9,8],[17,1,17,8],[8,1,8,9],[19,1,19,9],[2,1,3,9],[4,1,6,9],[18,1,18,9],[11,1,11,9],[7,1,7,8],[22,1,22,5],[23,1,23,8],[40,1,40,9],[24,1,24,9],[25,1,25,4],[36,1,39,9],[44,1,44,9],[35,1,35,9],[64,3,64,4],[52,2,52,9],[74,4,74,6],[74,1,74,3],[65,3,65,4],[72,5,72,9],[68,3,68,4],[67,5,67,9],[69,5,69,9],[70,5,70,9],[63,5,63,9],[75,1,75,9],[124,2,124,3],[68,5,68,9],[112,1,116,9],[70,3,70,4],[144,2,144,3],[126,2,126,3],[127,2,127,3],[62,1,62,9],[69,3,69,4],[67,3,67,4],[71,5,71,9],[77,1,77,5],[125,2,125,3],[72,3,72,4],[73,3,73,4],[73,5,73,9],[79,1,85,9],[71,3,71,4],[66,5,66,9],[64,5,64,9],[65,5,65,9],[66,3,66,4],[63,3,63,4],[271,1,277,9],[148,2,148,3],[145,2,145,3],[201,1,203,9],[192,1,192,2],[128,2,128,3],[129,2,129,3],[111,1,111,9],[142,2,142,3],[143,2,143,3],[133,2,133,3],[138,2,138,3],[140,2,140,3],[134,2,134,3],[136,2,136,3],[146,2,146,3],[132,2,132,3],[157,1,157,9],[165,1,165,9],[160,1,160,9],[192,6,192,7],[158,1,158,9],[189,3,189,4],[135,2,135,3],[76,1,76,9],[188,1,188,9],[163,1,163,9],[164,1,164,8],[131,2,131,3],[147,2,147,3],[150,2,150,3],[149,2,149,3],[155,1,155,9],[117,1,122,9],[109,1,109,9],[130,2,130,3],[108,1,108,9],[86,1,106,9],[166,1,183,9],[139,2,139,3],[159,1,159,9],[141,2,141,3],[151,2,151,3],[151,4,151,7],[161,1,161,9],[162,1,162,8],[153,1,154,9],[185,1,187,9]]}
[null,{"$f":"Ecologist&\": \"&Site_name","v":": "}]
[null,"C Survey and site assessment"]
[null,"C1 Pre-existing survey information on GCN at survey site (eg previous to the survey data used to inform this application)"]
[]
[null,"C1.1 Indicate conclusion on newts at development site from pre-existing survey data, if any. You should make reasonable efforts to find this data, including consulting the NBN Gateway and Local Records Centres."]
[]
[]
[]
[null,"C1.2 Age of pre-existing survey data (years between now and latest survey)"]
[]
[null,"C1.3 Source(s) of pre-existing survey data; also include a copy or summary in an appendix"]
[]
[]
[null,"C2 Status of GCNs in the local area"]
[null,"C2.1 Local status (within approx 10km). Note: often there will be only patchy data on newt distribution, but you may feel able to assign one of the categories below when combined with pond density figures for the local area. Note: this is only a rough measure."]
[]
[]
[]
[null,"Further information on local status"]
[]
[]
[null,"C3 Recent survey (to inform this mitigation project)"]
[null,"C3.1 Objective of survey"]
[]
[null,"C3.2 Survey area and justification"]
[null,"\u009f Clearly state which areas were surveyed…"]
[null,"If Other, please provide comments below:"]
[]
[]
[null,"\u009f Select which ponds were surveyed………"]
[null,"If Other, please provide comments below:"]
[]
[]
[null,"\u009f Provide justification for the area surveyed (whether 250m or 500m of the site)"]
[]
[]
[null,"NB: to accompany the survey section you must identify the survey area and all ponds within that area, indicating those surveyed from those not surveyed, on FIG. C3.2(a) and the 250m and 500m radii limits around the development boundary.  An aerial photograph of the site and surrounding area is also useful."]
[]
[]
[]
[null,"Please label as FIG. C3.2(b) if included.  See Sum &  Figs. tab. "]
[]
[null,"C3.3 Habitat description: waterbodies"]
[null,"C3.3i Briefly describe all waterbodies within your survey area. Please provide only a short text description, e.g. \"Pond 1is a small garden pond in the northwest of the site. Pond 2 is a marl pit pond in the centre of the site\". Includepond references (names). Do not include Habitat Suitability Index (HSI) data here; this is to be added later in the Method Statement."]
[]
[null,"Pond ref","Description"]
[]
[]
[]
[]
[]
[]
[]
[]
[]
[]
[null,"Add further records to the Additional Records tab."]
[]
[null,"C3.3.ii Waterbodies: distance from development site boundary and other ponds."]
[null,"Provide distance (to the nearest 10m) from the development site boundary for each pond within the survey area. If pond is on site, enter \"0\". If a pond on site or close to the development was not surveyed for GCNs, still give the distance, and provide reason for not surveying."]
[]
[]
[]
[null,"Pond ref","Distance (m)","Surveyed or not?",null,"If selected 'No- other reason' explain below"]
[null,{"$f":"B47","v":0}]
[null,{"$f":"B48","v":0}]
[null,0]
[null,0]
[null,0]
[null,0]
[null,0]
[null,0]
[null,0]
[null,0]
[null,"Add more records here",null,null,"Additional records page"]
[]
[null,"C3.4 Habitat description: terrestrial habitats."]
[null,"What is the total area (ha) of the development site?"]
[]
[null,"• Please provide a broad breakdown (ha and habitat type) of terrestrial habitat present on the development site. _Note that this total should be the same as the area included above.  \n• Also, briefly describe the terrestrial habitats present on adjacent areas likely to support GCNs. If there is no _defined boundary to development site, please explain the habitats affected by the works and within the surrounding area.\n• The habitats described in this section should be clearly shown and identified on Figure C3.2(a)"]
[]
[]
[]
[]
[]
[]
[]
[]
[]
[]
[]
[]
[]
[]
[]
[]
[]
[]
[]
[]
[]
[]
[]
[]
[]
[]
[]
[]
[null,"NB: Photographs showing the habitats on site should be provided - FIG. C3.4"]
[null,"see Sum & Figs. tab"]
[]
[null,"C3.5 Waterbodies: quantitative assessment. "]
[null,"A Habitat Suitability Index (HSI) score should be calculated for each pond that would be subject to activities likely to result in adverse impacts on the local GCN population. See guidance in the Instructions section (Survey data and HSI tabs). It is not required for ponds subject to low impacts, though can be entered if you wish; this may be useful, for example, to provide objective evidence that the population affected is likely to be small."]
[]
[]
[]
[]
[null,"In the boxes below, enter the Pond reference (or name) then the SI scores. The spreadsheet will automatically calculate the HSI. It is expected that, for each HSI, all ten SI scores should be entered in most cases. If you did not calculate a particular SI score, leave blank (do not enter \"0\"). If more than two variables are missing, the HSI should be treated as provisional and you should comment on this below. If more than 10 waterbodies need HSI scores, include additional information in an appendix, in the same format as below."]
[]
[]
[]
[]
[]
[]
[null,null,"Date HSI assessment undertaken"]
[null,null,"Pond ref",null,{"$f":"IF($B47=\"\",\"\",$B47)","v":""},{"$f":"IF($B$48=\"\",\"\",$B$48)","v":""},{"$f":"IF($B$49=\"\",\"\",$B$49)","v":""},{"$f":"IF($B$50=\"\",\"\",$B$50)","v":""},{"$f":"IF($B$51=\"\",\"\",$B$51)","v":""}]
[null,null,"SI1 - Location"]
[null,null,"SI2 - Pond area"]
[null,null,"SI3 - Pond drying"]
[null,null,"SI4 - Water quality"]
[null,null,"SI4 - Shade"]
[null,null,"SI6 - Fowl"]
[null,null,"SI7 - Fish"]
[null,null,"SI8 - Ponds"]
[null,null,"SI9 - Terr'l habitat"]
[null,null,"SI10 - Macrophytes"]
[null,null,"HSI",null,{"$f":"IF(AND(E127=\"\",E128=\"\",E129=\"\",E130=\"\",E131=\"\",E132=\"\",E133=\"\",E134=\"\",E135=\"\",E136=\"\"),\"\",POWER(PRODUCT(E127:E136),(1/COUNTIF(E127:E136,\">0\"))))","v":""},{"$f":"IF(AND(F127=\"\",F128=\"\",F129=\"\",F130=\"\",F131=\"\",F132=\"\",F133=\"\",F134=\"\",F135=\"\",F136=\"\"),\"\",POWER(PRODUCT(F127:F136),(1/COUNTIF(F127:F136,\">0\"))))","v":""},{"$f":"IF(AND(G127=\"\",G128=\"\",G129=\"\",G130=\"\",G131=\"\",G132=\"\",G133=\"\",G134=\"\",G135=\"\",G136=\"\"),\"\",POWER(PRODUCT(G127:G136),(1/COUNTIF(G127:G136,\">0\"))))","v":""},{"$f":"IF(AND(H127=\"\",H128=\"\",H129=\"\",H130=\"\",H131=\"\",H132=\"\",H133=\"\",H134=\"\",H135=\"\",H136=\"\"),\"\",POWER(PRODUCT(H127:H136),(1/COUNTIF(H127:H136,\">0\"))))","v":""},{"$f":"IF(AND(I127=\"\",I128=\"\",I129=\"\",I130=\"\",I131=\"\",I132=\"\",I133=\"\",I134=\"\",I135=\"\",I136=\"\"),\"\",POWER(PRODUCT(I127:I136),(1/COUNTIF(I127:I136,\">0\"))))","v":""}]
[]
[null,null,"Date HSI assessment undertaken"]
[null,null,"Pond ref",null,{"$f":"IF($B$52=\"\",\"\",$B$52)","v":""},{"$f":"IF($B$53=\"\",\"\",$B$53)","v":""},{"$f":"IF($B$54=\"\",\"\",$B$54)","v":""},{"$f":"IF($B$55=\"\",\"\",$B$55)","v":""},{"$f":"IF($B$56=\"\",\"\",$B$56)","v":""}]
[null,null,"SI1 - Location"]
[null,null,"SI2 - Pond area"]
[null,null,"SI3 - Pond drying"]
[null,null,"SI4 - Water quality"]
[null,null,"SI4 - Shade"]
[null,null,"SI6 - Fowl"]
[null,null,"SI7 - Fish"]
[null,null,"SI8 - Ponds"]
[null,null,"SI9 - Terr'l habitat"]
[null,null,"SI10 - Macrophytes"]
[null,null,"HSI",null,{"$f":"IF(AND(E141=\"\",E142=\"\",E143=\"\",E144=\"\",E145=\"\",E146=\"\",E147=\"\",E148=\"\",E149=\"\",E150=\"\"),\"\",POWER(PRODUCT(E141:E150),(1/COUNTIF(E141:E150,\">0\"))))","v":""},{"$f":"IF(AND(F141=\"\",F142=\"\",F143=\"\",F144=\"\",F145=\"\",F146=\"\",F147=\"\",F148=\"\",F149=\"\",F150=\"\"),\"\",POWER(PRODUCT(F141:F150),(1/COUNTIF(F141:F150,\">0\"))))","v":""},{"$f":"IF(AND(G141=\"\",G142=\"\",G143=\"\",G144=\"\",G145=\"\",G146=\"\",G147=\"\",G148=\"\",G149=\"\",G150=\"\"),\"\",POWER(PRODUCT(G141:G150),(1/COUNTIF(G141:G150,\">0\"))))","v":""},{"$f":"IF(AND(H141=\"\",H142=\"\",H143=\"\",H144=\"\",H145=\"\",H146=\"\",H147=\"\",H148=\"\",H149=\"\",H150=\"\"),\"\",POWER(PRODUCT(H141:H150),(1/COUNTIF(H141:H150,\">0\"))))","v":""},{"$f":"IF(AND(I141=\"\",I142=\"\",I143=\"\",I144=\"\",I145=\"\",I146=\"\",I147=\"\",I148=\"\",I149=\"\",I150=\"\"),\"\",POWER(PRODUCT(I141:I150),(1/COUNTIF(I141:I150,\">0\"))))","v":""}]
[null,null,"Add more records here",null,"Additional records page"]
[]
[null,"Please comment and describe any constraints on HSI data if appropriate.  If ponds did not under go a HSI assessment please also explain why:"]
[]
[]
[]
[null,"C4 Amphibian survey"]
[null,"C4.1 Terrestrial amphibian survey"]
[null,"Was a terrestrial survey undertaken?..................."]
[null,"If no, proceed to next section."]
[null,"Objective of terrestrial survey:"]
[]
[null,"Which area was surveyed for terrestrial amphibians?"]
[]
[null,"Explain terrestrial survey area(s). Also mark on map, and give map reference here:"]
[]
[]
[]
[]
[]
[]
[]
[]
[]
[]
[]
[]
[]
[]
[]
[]
[]
[]
[]
[null,"Applicants must ensure they retain or have access to the records set out in the technical advice note, and used to support the licence application, for at least 12 months after the first licence return (dates for which will be set out in any licence granted). "]
[]
[]
[null,"Fill in the boxes to show methods, timing, effort and results:"]
[null,"Survey start date:",null,null,null,"Survey end date:"]
[]
[null,"Method:",null,"Refuge search","Pitfall",null,"Night search",null,"Other**"]
[null,"Effort \n(suitable days):"]
[null,"No. of newts* found:"]
[null,"Total newts:",null,{"$f":"SUM(D194:J194)","v":0}]
[]
[null,"Metamorphs and immatures as percentage of total catch:"]
[]
[null,"*for this section, \"no. of newts\" refers more accurately to \"no. of newt observations\", as individuals are not distinguished in typical surveys. If you have individual newt data, state below."]
[]
[]
[null,"Comments on results, e.g. ** if an ‘other’ method was used please explain what this was, favoured areas, migration route, juvenile dispersal route. Also mark observations and locations newts found on a map, and give map reference here:"]
[]
[]
[]
[]
[null,"C4.2 Aquatic surveys for presence / absence using eDNA."]
[null,"A. Have you used eDNA to determine GCN presence? "]
[]
[null,"B. If yes, please confirm the following:"]
[null,"i.     The Defra technical advice note has been strictly followed -"]
[null,"       If no, the results will not be accepted."]
[null,"Applicants must ensure they retain or have access to the records set out in the technical advice note, and used to support the licence application, for at least 12 months after the first licence return (dates for which will be set out in any licence granted). "]
[]
[]
[]
[null,"ii.    Natural England’s published  timeframes for taking eDNA samples \nhas been adhered to -\n"]
[]
[null,"If no, please explain why."]
[]
[]
[]
[]
[]
[]
[]
[]
[]
[]
[]
[]
[]
[]
[]
[]
[]
[]
[]
[]
[null,"iii.     Confirm only licensed GCN surveyors, or suitably trained and competent Accredited Agents (see below table) have taken the eDNA samples to support this licence application. Provide their names and licence references below. "]
[]
[]
[]
[null,"Pond ref","GCN Surveyor / Accredited Agent",null,null,null,null,"Licence Reference"]
[null,{"$f":"IF(B47=\"\",\"\",B47)","v":""}]
[null,{"$f":"IF(B48=\"\",\"\",B48)","v":""}]
[null,""]
[null,""]
[null,""]
[null,""]
[null,""]
[null,""]
[null,""]
[null,""]
[null,"Add more records here",null,null,"Additional records page"]
[]
[]
[null,"C. Complete the following table"]
[null,"Pond reference",null,"Date eDNA sample taken",null,null,"Result (presence or absence)"]
[null,{"$f":"IF(B47=\"\",\"\",B47)","v":""}]
[null,{"$f":"IF(B48=\"\",\"\",B48)","v":""}]
[null,""]
[null,""]
[null,""]
[null,""]
[null,""]
[null,""]
[null,""]
[null,""]
[null,"Add more records here",null,null,"Additional records page"]
[]
[null,"It is only acceptable to use Accredited Agents under a GCN survey licence to collect eDNA samples if it can be demonstrated that they are adequately trained and competent in GCN ecology, conventional survey techniques, trained in the collection of eDNA samples and are experienced GCN surveyors even if they do not hold their own GCN survey licences.   The named ecologist and applicant are responsible for ensuring that this condition is met.\n\n Results of eDNA survey data must be clearly depicted on Figure C3.2a.\n"]
[]
[]
[]
[]
[]
[]
[]
[]
[null,null,null,null,"Next Section"]

{"sheet":"C - Survey - Pond 1-10","index":5,"n_rows":349,"n_cols":17,"rows_kept":349,"cut":false,"hidden":false,"merged":[[327,1,327,8],[327,10,327,16],[328,1,328,3],[328,4,331,16],[326,6,326,7],[326,9,326,10],[326,12,326,13],[348,6,348,12],[342,2,342,14],[343,1,345,14],[346,1,346,14],[335,1,335,14],[336,1,336,8],[336,9,336,14],[337,1,337,14],[338,1,338,12],[340,1,341,12],[324,6,324,7],[324,9,324,10],[324,12,324,13],[318,6,318,7],[318,9,318,10],[318,12,318,13],[320,6,320,7],[320,9,320,10],[320,12,320,13],[322,6,322,7],[316,6,316,7],[316,9,316,10],[316,12,316,13],[307,9,307,11],[322,9,322,10],[322,12,322,13],[308,6,308,8],[308,9,308,11],[307,12,309,14],[312,6,312,7],[314,6,314,7],[314,9,314,10],[314,12,314,13],[312,9,312,10],[285,12,285,13],[287,6,287,7],[287,9,287,10],[287,12,287,13],[312,12,312,13],[309,6,309,8],[309,9,309,11],[294,1,294,8],[294,10,294,16],[295,1,295,3],[295,4,298,16],[308,15,310,15],[308,16,310,16],[310,1,310,5],[307,5,309,5],[307,6,307,8],[309,1,309,3],[302,1,302,16],[303,1,303,9],[303,10,303,16],[304,1,306,16],[307,1,307,4],[308,1,308,4],[275,1,275,4],[275,6,275,8],[283,6,283,7],[283,9,283,10],[283,12,283,13],[291,9,291,10],[291,12,291,13],[293,6,293,7],[293,9,293,10],[293,12,293,13],[289,6,289,7],[289,9,289,10],[289,12,289,13],[285,6,285,7],[291,6,291,7],[281,12,281,13],[275,9,275,11],[279,6,279,7],[279,9,279,10],[279,12,279,13],[281,6,281,7],[281,9,281,10],[274,12,276,14],[285,9,285,10],[269,1,269,16],[270,1,270,9],[270,10,270,16],[271,1,273,16],[274,1,274,4],[275,15,277,15],[258,6,258,7],[258,9,258,10],[258,12,258,13],[260,6,260,7],[260,9,260,10],[260,12,260,13],[275,16,277,16],[276,1,276,3],[276,6,276,8],[276,9,276,11],[277,1,277,5],[261,1,261,8],[261,10,261,16],[262,1,262,3],[262,4,265,16],[274,9,274,11],[274,5,276,5],[274,6,274,8],[256,6,256,7],[256,9,256,10],[256,12,256,13],[246,6,246,7],[246,9,246,10],[246,12,246,13],[248,6,248,7],[248,9,248,10],[248,12,248,13],[250,6,250,7],[252,6,252,7],[252,9,252,10],[252,12,252,13],[254,6,254,7],[254,9,254,10],[254,12,254,13],[250,9,250,10],[250,12,250,13],[236,1,236,16],[237,1,237,9],[237,10,237,16],[238,1,240,16],[241,1,241,4],[241,5,243,5],[241,6,241,8],[241,9,241,11],[241,12,243,14],[242,1,242,4],[242,6,242,8],[242,9,242,11],[242,15,244,15],[242,16,244,16],[243,1,243,3],[243,6,243,8],[243,9,243,11],[244,1,244,5],[228,1,228,8],[228,10,228,16],[229,1,229,3],[229,4,232,16],[223,6,223,7],[223,9,223,10],[223,12,223,13],[225,6,225,7],[225,9,225,10],[225,12,225,13],[227,6,227,7],[227,9,227,10],[227,12,227,13],[221,9,221,10],[221,12,221,13],[217,9,217,10],[217,12,217,13],[209,6,209,8],[209,9,209,11],[209,15,211,15],[209,16,211,16],[210,1,210,3],[210,6,210,8],[210,9,210,11],[211,1,211,5],[213,6,213,7],[213,9,213,10],[213,12,213,13],[215,6,215,7],[215,9,215,10],[215,12,215,13],[217,6,217,7],[219,6,219,7],[219,9,219,10],[219,12,219,13],[221,6,221,7],[203,1,203,16],[204,1,204,9],[204,10,204,16],[205,1,207,16],[208,1,208,4],[208,5,210,5],[208,6,208,8],[208,9,208,11],[208,12,210,14],[209,1,209,4],[195,1,195,8],[195,10,195,16],[196,1,196,3],[196,4,199,16],[190,6,190,7],[190,9,190,10],[190,12,190,13],[192,6,192,7],[192,9,192,10],[192,12,192,13],[194,6,194,7],[194,9,194,10],[194,12,194,13],[188,9,188,10],[188,12,188,13],[184,9,184,10],[184,12,184,13],[176,6,176,8],[176,9,176,11],[176,15,178,15],[176,16,178,16],[177,1,177,3],[177,6,177,8],[177,9,177,11],[178,1,178,5],[180,6,180,7],[180,9,180,10],[180,12,180,13],[182,6,182,7],[182,9,182,10],[182,12,182,13],[184,6,184,7],[186,6,186,7],[186,9,186,10],[186,12,186,13],[188,6,188,7],[170,1,170,16],[171,1,171,9],[171,10,171,16],[172,1,174,16],[175,1,175,4],[175,5,177,5],[175,6,175,8],[175,9,175,11],[175,12,177,14],[176,1,176,4],[162,1,162,8],[162,10,162,16],[163,1,163,3],[163,4,166,16],[157,6,157,7],[157,9,157,10],[157,12,157,13],[159,6,159,7],[159,9,159,10],[159,12,159,13],[161,6,161,7],[161,9,161,10],[161,12,161,13],[155,9,155,10],[155,12,155,13],[151,9,151,10],[151,12,151,13],[143,6,143,8],[143,9,143,11],[143,15,145,15],[143,16,145,16],[144,1,144,3],[144,6,144,8],[144,9,144,11],[145,1,145,5],[147,6,147,7],[147,9,147,10],[147,12,147,13],[149,6,149,7],[149,9,149,10],[149,12,149,13],[151,6,151,7],[153,6,153,7],[153,9,153,10],[153,12,153,13],[155,6,155,7],[137,1,137,16],[138,1,138,9],[138,10,138,16],[139,1,141,16],[142,1,142,4],[142,5,144,5],[142,6,142,8],[142,9,142,11],[142,12,144,14],[143,1,143,4],[129,1,129,8],[129,10,129,16],[130,1,130,3],[130,4,133,16],[124,6,124,7],[124,9,124,10],[124,12,124,13],[126,6,126,7],[126,9,126,10],[126,12,126,13],[128,6,128,7],[128,9,128,10],[128,12,128,13],[122,9,122,10],[122,12,122,13],[118,9,118,10],[118,12,118,13],[110,6,110,8],[110,9,110,11],[110,15,112,15],[110,16,112,16],[111,1,111,3],[111,6,111,8],[111,9,111,11],[112,1,112,5],[114,6,114,7],[114,9,114,10],[114,12,114,13],[116,6,116,7],[116,9,116,10],[116,12,116,13],[118,6,118,7],[120,6,120,7],[120,9,120,10],[120,12,120,13],[122,6,122,7],[104,1,104,16],[105,1,105,9],[105,10,105,16],[106,1,108,16],[109,1,109,4],[109,5,111,5],[109,6,109,8],[109,9,109,11],[109,12,111,14],[110,1,110,4],[81,6,81,7],[81,9,81,10],[81,12,81,13],[83,6,83,7],[83,9,83,10],[83,12,83,13],[96,1,96,8],[96,10,96,16],[97,1,97,3],[97,4,100,16],[91,6,91,7],[91,9,91,10],[91,12,91,13],[93,6,93,7],[93,9,93,10],[93,12,93,13],[95,6,95,7],[95,9,95,10],[95,12,95,13],[85,9,85,10],[85,12,85,13],[85,6,85,7],[87,6,87,7],[87,9,87,10],[87,12,87,13],[89,6,89,7],[89,9,89,10],[89,12,89,13],[63,1,63,8],[63,10,63,16],[64,1,64,3],[64,4,67,16],[71,1,71,16],[72,1,72,9],[72,10,72,16],[77,16,79,16],[78,1,78,3],[78,6,78,8],[78,9,78,11],[79,1,79,5],[73,1,75,16],[76,1,76,4],[76,5,78,5],[76,6,76,8],[76,9,76,11],[76,12,78,14],[77,1,77,4],[77,6,77,8],[77,9,77,11],[77,15,79,15],[44,16,46,16],[48,12,48,13],[52,6,52,7],[52,9,52,10],[52,12,52,13],[58,6,58,7],[58,9,58,10],[58,12,58,13],[60,6,60,7],[60,9,60,10],[60,12,60,13],[44,6,44,8],[44,9,44,11],[45,1,45,3],[45,6,45,8],[45,9,45,11],[46,1,46,5],[48,6,48,7],[48,9,48,10],[62,6,62,7],[62,9,62,10],[62,12,62,13],[56,9,56,10],[56,12,56,13],[54,6,54,7],[54,9,54,10],[54,12,54,13],[56,6,56,7],[50,6,50,7],[50,9,50,10],[50,12,50,13],[38,1,38,16],[11,16,13,16],[13,1,13,5],[10,5,12,5],[11,15,13,15],[12,1,12,3],[12,9,12,11],[10,12,12,14],[44,15,46,15],[39,1,39,9],[39,10,39,16],[31,1,31,3],[25,6,25,7],[25,9,25,10],[40,1,42,16],[31,4,34,16],[27,12,27,13],[25,12,25,13],[43,1,43,4],[43,5,45,5],[43,6,43,8],[43,9,43,11],[43,12,45,14],[44,1,44,4],[0,1,0,16],[1,1,1,9],[1,10,1,16],[2,1,2,4],[2,6,2,16],[19,12,19,13],[15,9,15,10],[19,6,19,7],[17,12,17,13],[19,9,19,10],[10,6,10,8],[10,1,10,4],[12,6,12,8],[10,9,10,11],[11,1,11,4],[11,9,11,11],[11,6,11,8],[4,3,4,16],[4,1,4,2],[5,1,9,16],[3,1,3,4],[3,6,3,12],[3,13,3,16],[30,1,30,8],[29,12,29,13],[29,6,29,7],[15,12,15,13],[17,9,17,10],[23,6,23,7],[17,6,17,7],[15,6,15,7],[29,9,29,10],[21,6,21,7],[23,9,23,10],[23,12,23,13],[21,9,21,10],[21,12,21,13],[27,6,27,7],[27,9,27,10]]}
[null,{"$f":"+Ecologist&\": \"&+Site_name","v":": "}]
[null,"C4.3 Aquatic amphibian survey (conventional methods) - GCN results - Pond 1"]
[null,"Was an aquatic amphibian survey done?",null,null,null,null,"If no, proceed to next section."]
[null,"Total no. of ponds surveyed:",null,null,null,null,"If >10 ponds or >8 visits for a pond, provide further data…",null,null,null,null,null,null,"See additional Survey ponds  11-20 sheet"]
[null,"Surveyor name(s):"]
[null,"Important. Read before completing this section: Enter GCN survey data in relevant boxes in the table below (for Pond 1) and those on subsequent sheets (for up to 9 other ponds). Enter \"0\" where you did a survey and found no newts; leave box blank if no survey was done. This format is designed for a typical single season survey with typical methods and effort. Explain atypical methods/effort later. For multiple year surveys, give details in annex (convert data to this format if possible). Use these tables to provide details only for the most recent season's survey. Append older survey results in full. Automatic yellow highlight indicates possible detectability problem (see Evaluation & interpretation section, later)."]
[]
[]
[]
[]
[null,"Pond reference (e.g. \"Pond 1\") - below",null,null,null,"Method:","Torch",null,null,"Bottle-trap",null,null,"Net",null,null,"Egg search","Larvae"]
[null,null,null,null,null,null,"Torch power:",null,null,"No. of traps used in pond:",null,null,null,null,null,"eggs found?","larvae found? (any method)"]
[null,"No. of survey visits to this pond:"]
[null,"Sex/life stage:",null,null,null,null,"Male","Female","Imm.","Male","Female","Imm.","Male","Female","Imm."]
[null,"(1) Date:","Air temp","Veg cover","Turbidity",{"$f":"IF(OR(AND(NOT(ISBLANK($C16)),$C16<5),AND(NOT(ISBLANK($D16)),$D16>3),AND(NOT(ISBLANK($E16)),$E16>3)),\"1\",\"0\")","v":"0"}]
[null,null,null,null,null,"Adult totals:",{"$f":"G15+H15","v":0},null,null,{"$f":"J15+K15","v":0},null,null,{"$f":"M15+N15","v":0}]
[null,"(2) Date:","Air temp","Veg cover","Turbidity",{"$f":"IF(OR(AND(NOT(ISBLANK($C18)),$C18<5),AND(NOT(ISBLANK($D18)),$D18>3),AND(NOT(ISBLANK($E18)),$E18>3)),\"1\",\"0\")","v":"0"}]
[null,null,null,null,null,"Adult totals:",{"$f":"G17+H17","v":0},null,null,{"$f":"J17+K17","v":0},null,null,{"$f":"M17+N17","v":0}]
[null,"(3) Date:","Air temp","Veg cover","Turbidity",{"$f":"IF(OR(AND(NOT(ISBLANK($C20)),$C20<5),AND(NOT(ISBLANK($D20)),$D20>3),AND(NOT(ISBLANK($E20)),$E20>3)),\"1\",\"0\")","v":"0"}]
[null,null,null,null,null,"Adult totals:",{"$f":"G19+H19","v":0},null,null,{"$f":"J19+K19","v":0},null,null,{"$f":"M19+N19","v":0}]
[null,"(4) Date:","Air temp","Veg cover","Turbidity",{"$f":"IF(OR(AND(NOT(ISBLANK($C22)),$C22<5),AND(NOT(ISBLANK($D22)),$D22>3),AND(NOT(ISBLANK($E22)),$E22>3)),\"1\",\"0\")","v":"0"}]
[null,null,null,null,null,"Adult totals:",{"$f":"G21+H21","v":0},null,null,{"$f":"J21+K21","v":0},null,null,{"$f":"M21+N21","v":0}]
[null,"(5) Date:","Air temp","Veg cover","Turbidity",{"$f":"IF(OR(AND(NOT(ISBLANK($C24)),$C24<5),AND(NOT(ISBLANK($D24)),$D24>3),AND(NOT(ISBLANK($E24)),$E24>3)),\"1\",\"0\")","v":"0"}]
[null,null,null,null,null,"Adult totals:",{"$f":"G23+H23","v":0},null,null,{"$f":"J23+K23","v":0},null,null,{"$f":"M23+N23","v":0}]
[null,"(6) Date:","Air temp","Veg cover","Turbidity",{"$f":"IF(OR(AND(NOT(ISBLANK($C26)),$C26<5),AND(NOT(ISBLANK($D26)),$D26>3),AND(NOT(ISBLANK($E26)),$E26>3)),\"1\",\"0\")","v":"0"}]
[null,null,null,null,null,"Adult totals:",{"$f":"G25+H25","v":0},null,null,{"$f":"J25+K25","v":0},null,null,{"$f":"M25+N25","v":0}]
[null,"(7) Date:","Air temp","Veg cover","Turbidity",{"$f":"IF(OR(AND(NOT(ISBLANK($C28)),$C28<5),AND(NOT(ISBLANK($D28)),$D28>3),AND(NOT(ISBLANK($E28)),$E28>3)),\"1\",\"0\")","v":"0"}]
[null,null,null,null,null,"Adult totals:",{"$f":"G27+H27","v":0},null,null,{"$f":"J27+K27","v":0},null,null,{"$f":"M27+N27","v":0}]
[null,"(8) Date:","Air temp","Veg cover","Turbidity",{"$f":"IF(OR(AND(NOT(ISBLANK($C30)),$C30<5),AND(NOT(ISBLANK($D30)),$D30>3),AND(NOT(ISBLANK($E30)),$E30>3)),\"1\",\"0\")","v":"0"}]
[null,null,null,null,null,"Adult totals:",{"$f":"G29+H29","v":0},null,null,{"$f":"J29+K29","v":0},null,null,{"$f":"M29+N29","v":0}]
[null,"Peak adult count for this pond in any one visit (by torch, trap or net):",null,null,null,null,null,null,null,{"$f":"MAX(G16,J16,M16,G18,J18,M18,G20,J20,M20,G22,J22,M22,G24,J24,M24,G26,J26,M26,G28,J28,M28,G30,J30,M30)","v":0}]
[null,"Comments and constraints:"]
[null,"Temp Veg Tur problem?",{"$f":"F15+F17+F19+F21+F23+F25+F27+F29","v":0}]
[null,"Torch power low?",{"$f":"IF(AND(NOT(ISBLANK(G13)),OR(G13=\"< 50,000 cp\",G13=\"50,000 - 499,999 cp\")),\"1\",\"0\")","v":"0"}]
[null,"Visit 1 overall det problem?",{"$f":"C33+C34","v":0}]
[null,"# ponds",{"$f":"$F$4","v":0}]
[]
[]
[null,{"$f":"+Ecologist&\": \"&+Site_name","v":": "}]
[null,"C4.3 Aquatic amphibian survey (conventional methods)- GCN results (cont - Pond 2)",null,null,null,null,null,null,null,null,"NB: This page prints in landscape format"]
[]
[]
[]
[null,"Pond reference (e.g. Pond 2)",null,null,null,"Method:","Torch",null,null,"Bottle-trap",null,null,"Net",null,null,"Egg search","Larvae"]
[null,null,null,null,null,null,"Torch power:",null,null,"No. of traps used in pond:",null,null,null,null,null,"eggs found?","larvae found? (any method)"]
[null,"No. of survey visits to this pond:"]
[null,"Sex/life stage:",null,null,null,null,"Male","Female","Imm.","Male","Female","Imm.","Male","Female","Imm."]
[null,"(1) Date:","Air temp","Veg cover","Turbidity",{"$f":"IF(OR(AND(NOT(ISBLANK($C49)),$C49<5),AND(NOT(ISBLANK($D49)),$D49>3),AND(NOT(ISBLANK($E49)),$E49>3)),\"1\",\"0\")","v":"0"}]
[null,null,null,null,null,"Adult totals:",{"$f":"G48+H48","v":0},null,null,{"$f":"J48+K48","v":0},null,null,{"$f":"M48+N48","v":0}]
[null,"(2) Date:","Air temp","Veg cover","Turbidity",{"$f":"IF(OR(AND(NOT(ISBLANK($C51)),$C51<5),AND(NOT(ISBLANK($D51)),$D51>3),AND(NOT(ISBLANK($E51)),$E51>3)),\"1\",\"0\")","v":"0"}]
[null,null,null,null,null,"Adult totals:",{"$f":"G50+H50","v":0},null,null,{"$f":"J50+K50","v":0},null,null,{"$f":"M50+N50","v":0}]
[null,"(3) Date:","Air temp","Veg cover","Turbidity",{"$f":"IF(OR(AND(NOT(ISBLANK($C53)),$C53<5),AND(NOT(ISBLANK($D53)),$D53>3),AND(NOT(ISBLANK($E53)),$E53>3)),\"1\",\"0\")","v":"0"}]
[null,null,null,null,null,"Adult totals:",{"$f":"G52+H52","v":0},null,null,{"$f":"J52+K52","v":0},null,null,{"$f":"M52+N52","v":0}]
[null,"(4) Date:","Air temp","Veg cover","Turbidity",{"$f":"IF(OR(AND(NOT(ISBLANK($C55)),$C55<5),AND(NOT(ISBLANK($D55)),$D55>3),AND(NOT(ISBLANK($E55)),$E55>3)),\"1\",\"0\")","v":"0"}]
[null,null,null,null,null,"Adult totals:",{"$f":"G54+H54","v":0},null,null,{"$f":"J54+K54","v":0},null,null,{"$f":"M54+N54","v":0}]
[null,"(5) Date:","Air temp","Veg cover","Turbidity",{"$f":"IF(OR(AND(NOT(ISBLANK($C57)),$C57<5),AND(NOT(ISBLANK($D57)),$D57>3),AND(NOT(ISBLANK($E57)),$E57>3)),\"1\",\"0\")","v":"0"}]
[null,null,null,null,null,"Adult totals:",{"$f":"G56+H56","v":0},null,null,{"$f":"J56+K56","v":0},null,null,{"$f":"M56+N56","v":0}]
[null,"(6) Date:","Air temp","Veg cover","Turbidity",{"$f":"IF(OR(AND(NOT(ISBLANK($C59)),$C59<5),AND(NOT(ISBLANK($D59)),$D59>3),AND(NOT(ISBLANK($E59)),$E59>3)),\"1\",\"0\")","v":"0"}]
[null,null,null,null,null,"Adult totals:",{"$f":"G58+H58","v":0},null,null,{"$f":"J58+K58","v":0},null,null,{"$f":"M58+N58","v":0}]
[null,"(7) Date:","Air temp","Veg cover","Turbidity",{"$f":"IF(OR(AND(NOT(ISBLANK($C61)),$C61<5),AND(NOT(ISBLANK($D61)),$D61>3),AND(NOT(ISBLANK($E61)),$E61>3)),\"1\",\"0\")","v":"0"}]
[null,null,null,null,null,"Adult totals:",{"$f":"G60+H60","v":0},null,null,{"$f":"J60+K60","v":0},null,null,{"$f":"M60+N60","v":0}]
[null,"(8) Date:","Air temp","Veg cover","Turbidity",{"$f":"IF(OR(AND(NOT(ISBLANK($C63)),$C63<5),AND(NOT(ISBLANK($D63)),$D63>3),AND(NOT(ISBLANK($E63)),$E63>3)),\"1\",\"0\")","v":"0"}]
[null,null,null,null,null,"Adult totals:",{"$f":"G62+H62","v":0},null,null,{"$f":"J62+K62","v":0},null,null,{"$f":"M62+N62","v":0}]
[null,"Peak adult count for this pond in any one visit (by torch, trap or net):",null,null,null,null,null,null,null,{"$f":"MAX(G49,J49,M49,G51,J51,M51,G53,J53,M53,G55,J55,M55,G57,J57,M57,G59,J59,M59,G61,J61,M61,G63,J63,M63)","v":0}]
[null,"Comments and constraints:"]
[null,"Temp Veg Tur problem?",{"$f":"F48+F50+F52+F54+F56+F58+F60+F62","v":0}]
[null,"Torch power low?",{"$f":"IF(AND(NOT(ISBLANK(G46)),OR(G46=\"< 50,000 cp\",G46=\"50,000 - 499,999 cp\")),\"1\",\"0\")","v":"0"}]
[null,"Visit 1 overall det problem?",{"$f":"C66+C67","v":0}]
[null,"# ponds",{"$f":"$F$4","v":0}]
[]
[]
[null,{"$f":"+Ecologist&\": \"&+Site_name","v":": "}]
[null,"C4.3 Aquatic amphibian survey (conventional methods) - GCN results (cont - Pond 3)",null,null,null,null,null,null,null,null,"NB: This page prints in landscape format"]
[]
[]
[]
[null,"Pond reference (e.g. Pond 3)",null,null,null,"Method:","Torch",null,null,"Bottle-trap",null,null,"Net",null,null,"Egg search","Larvae"]
[null,null,null,null,null,null,"Torch power:",null,null,"No. of traps used in pond:",null,null,null,null,null,"eggs found?","larvae found? (any method)"]
[null,"No. of survey visits to this pond:"]
[null,"Sex/life stage:",null,null,null,null,"Male","Female","Imm.","Male","Female","Imm.","Male","Female","Imm."]
[null,"(1) Date:","Air temp","Veg cover","Turbidity",{"$f":"IF(OR(AND(NOT(ISBLANK($C82)),$C82<5),AND(NOT(ISBLANK($D82)),$D82>3),AND(NOT(ISBLANK($E82)),$E82>3)),\"1\",\"0\")","v":"0"}]
[null,null,null,null,null,"Adult totals:",{"$f":"G81+H81","v":0},null,null,{"$f":"J81+K81","v":0},null,null,{"$f":"M81+N81","v":0}]
[null,"(2) Date:","Air temp","Veg cover","Turbidity",{"$f":"IF(OR(AND(NOT(ISBLANK($C84)),$C84<5),AND(NOT(ISBLANK($D84)),$D84>3),AND(NOT(ISBLANK($E84)),$E84>3)),\"1\",\"0\")","v":"0"}]
[null,null,null,null,null,"Adult totals:",{"$f":"G83+H83","v":0},null,null,{"$f":"J83+K83","v":0},null,null,{"$f":"M83+N83","v":0}]
[null,"(3) Date:","Air temp","Veg cover","Turbidity",{"$f":"IF(OR(AND(NOT(ISBLANK($C86)),$C86<5),AND(NOT(ISBLANK($D86)),$D86>3),AND(NOT(ISBLANK($E86)),$E86>3)),\"1\",\"0\")","v":"0"}]
[null,null,null,null,null,"Adult totals:",{"$f":"G85+H85","v":0},null,null,{"$f":"J85+K85","v":0},null,null,{"$f":"M85+N85","v":0}]
[null,"(4) Date:","Air temp","Veg cover","Turbidity",{"$f":"IF(OR(AND(NOT(ISBLANK($C88)),$C88<5),AND(NOT(ISBLANK($D88)),$D88>3),AND(NOT(ISBLANK($E88)),$E88>3)),\"1\",\"0\")","v":"0"}]
[null,null,null,null,null,"Adult totals:",{"$f":"G87+H87","v":0},null,null,{"$f":"J87+K87","v":0},null,null,{"$f":"M87+N87","v":0}]
[null,"(5) Date:","Air temp","Veg cover","Turbidity",{"$f":"IF(OR(AND(NOT(ISBLANK($C90)),$C90<5),AND(NOT(ISBLANK($D90)),$D90>3),AND(NOT(ISBLANK($E90)),$E90>3)),\"1\",\"0\")","v":"0"}]
[null,null,null,null,null,"Adult totals:",{"$f":"G89+H89","v":0},null,null,{"$f":"J89+K89","v":0},null,null,{"$f":"M89+N89","v":0}]
[null,"(6) Date:","Air temp","Veg cover","Turbidity",{"$f":"IF(OR(AND(NOT(ISBLANK($C92)),$C92<5),AND(NOT(ISBLANK($D92)),$D92>3),AND(NOT(ISBLANK($E92)),$E92>3)),\"1\",\"0\")","v":"0"}]
[null,null,null,null,null,"Adult totals:",{"$f":"G91+H91","v":0},null,null,{"$f":"J91+K91","v":0},null,null,{"$f":"M91+N91","v":0}]
[null,"(7) Date:","Air temp","Veg cover","Turbidity",{"$f":"IF(OR(AND(NOT(ISBLANK($C94)),$C94<5),AND(NOT(ISBLANK($D94)),$D94>3),AND(NOT(ISBLANK($E94)),$E94>3)),\"1\",\"0\")","v":"0"}]
[null,null,null,null,null,"Adult totals:",{"$f":"G93+H93","v":0},null,null,{"$f":"J93+K93","v":0},null,null,{"$f":"M93+N93","v":0}]
[null,"(8) Date:","Air temp","Veg cover","Turbidity",{"$f":"IF(OR(AND(NOT(ISBLANK($C96)),$C96<5),AND(NOT(ISBLANK($D96)),$D96>3),AND(NOT(ISBLANK($E96)),$E96>3)),\"1\",\"0\")","v":"0"}]
[null,null,null,null,null,"Adult totals:",{"$f":"G95+H95","v":0},null,null,{"$f":"J95+K95","v":0},null,null,{"$f":"M95+N95","v":0}]
[null,"Peak adult count for this pond in any one visit (by torch, trap or net):",null,null,null,null,null,null,null,{"$f":"MAX(G82,J82,M82,G84,J84,M84,G86,J86,M86,G88,J88,M88,G90,J90,M90,G92,J92,M92,G94,J94,M94,G96,J96,M96)","v":0}]
[null,"Comments and constraints:"]
[null,"Temp Veg Tur problem?",{"$f":"F81+F83+F85+F87+F89+F91+F93+F95","v":0}]
[null,"Torch power low?",{"$f":"IF(AND(NOT(ISBLANK(G79)),OR(G79=\"< 50,000 cp\",G79=\"50,000 - 499,999 cp\")),\"1\",\"0\")","v":"0"}]
[null,"Visit 1 overall det problem?",{"$f":"C99+C100","v":0}]
[null,"# ponds",{"$f":"$F$4","v":0}]
[]
[]
[null,{"$f":"+Ecologist&\": \"&+Site_name","v":": "}]
[null,"C4.3 Aquatic amphibian survey (conventional methods) - GCN results (cont - Pond 4)",null,null,null,null,null,null,null,null,"NB: This page prints in landscape format"]
[]
[]
[]
[null,"Pond reference (e.g. Pond 4)",null,null,null,"Method:","Torch",null,null,"Bottle-trap",null,null,"Net",null,null,"Egg search","Larvae"]
[null,null,null,null,null,null,"Torch power:",null,null,"No. of traps used in pond:",null,null,null,null,null,"eggs found?","larvae found? (any method)"]
[null,"No. of survey visits to this pond:"]
[null,"Sex/life stage:",null,null,null,null,"Male","Female","Imm.","Male","Female","Imm.","Male","Female","Imm."]
[null,"(1) Date:","Air temp","Veg cover","Turbidity",{"$f":"IF(OR(AND(NOT(ISBLANK($C115)),$C115<5),AND(NOT(ISBLANK($D115)),$D115>3),AND(NOT(ISBLANK($E115)),$E115>3)),\"1\",\"0\")","v":"0"}]
[null,null,null,null,null,"Adult totals:",{"$f":"G114+H114","v":0},null,null,{"$f":"J114+K114","v":0},null,null,{"$f":"M114+N114","v":0}]
[null,"(2) Date:","Air temp","Veg cover","Turbidity",{"$f":"IF(OR(AND(NOT(ISBLANK($C117)),$C117<5),AND(NOT(ISBLANK($D117)),$D117>3),AND(NOT(ISBLANK($E117)),$E117>3)),\"1\",\"0\")","v":"0"}]
[null,null,null,null,null,"Adult totals:",{"$f":"G116+H116","v":0},null,null,{"$f":"J116+K116","v":0},null,null,{"$f":"M116+N116","v":0}]
[null,"(3) Date:","Air temp","Veg cover","Turbidity",{"$f":"IF(OR(AND(NOT(ISBLANK($C119)),$C119<5),AND(NOT(ISBLANK($D119)),$D119>3),AND(NOT(ISBLANK($E119)),$E119>3)),\"1\",\"0\")","v":"0"}]
[null,null,null,null,null,"Adult totals:",{"$f":"G118+H118","v":0},null,null,{"$f":"J118+K118","v":0},null,null,{"$f":"M118+N118","v":0}]
[null,"(4) Date:","Air temp","Veg cover","Turbidity",{"$f":"IF(OR(AND(NOT(ISBLANK($C121)),$C121<5),AND(NOT(ISBLANK($D121)),$D121>3),AND(NOT(ISBLANK($E121)),$E121>3)),\"1\",\"0\")","v":"0"}]
[null,null,null,null,null,"Adult totals:",{"$f":"G120+H120","v":0},null,null,{"$f":"J120+K120","v":0},null,null,{"$f":"M120+N120","v":0}]
[null,"(5) Date:","Air temp","Veg cover","Turbidity",{"$f":"IF(OR(AND(NOT(ISBLANK($C123)),$C123<5),AND(NOT(ISBLANK($D123)),$D123>3),AND(NOT(ISBLANK($E123)),$E123>3)),\"1\",\"0\")","v":"0"}]
[null,null,null,null,null,"Adult totals:",{"$f":"G122+H122","v":0},null,null,{"$f":"J122+K122","v":0},null,null,{"$f":"M122+N122","v":0}]
[null,"(6) Date:","Air temp","Veg cover","Turbidity",{"$f":"IF(OR(AND(NOT(ISBLANK($C125)),$C125<5),AND(NOT(ISBLANK($D125)),$D125>3),AND(NOT(ISBLANK($E125)),$E125>3)),\"1\",\"0\")","v":"0"}]
[null,null,null,null,null,"Adult totals:",{"$f":"G124+H124","v":0},null,null,{"$f":"J124+K124","v":0},null,null,{"$f":"M124+N124","v":0}]
[null,"(7) Date:","Air temp","Veg cover","Turbidity",{"$f":"IF(OR(AND(NOT(ISBLANK($C127)),$C127<5),AND(NOT(ISBLANK($D127)),$D127>3),AND(NOT(ISBLANK($E127)),$E127>3)),\"1\",\"0\")","v":"0"}]
[null,null,null,null,null,"Adult totals:",{"$f":"G126+H126","v":0},null,null,{"$f":"J126+K126","v":0},null,null,{"$f":"M126+N126","v":0}]
[null,"(8) Date:","Air temp","Veg cover","Turbidity",{"$f":"IF(OR(AND(NOT(ISBLANK($C129)),$C129<5),AND(NOT(ISBLANK($D129)),$D129>3),AND(NOT(ISBLANK($E129)),$E129>3)),\"1\",\"0\")","v":"0"}]
[null,null,null,null,null,"Adult totals:",{"$f":"G128+H128","v":0},null,null,{"$f":"J128+K128","v":0},null,null,{"$f":"M128+N128","v":0}]
[null,"Peak adult count for this pond in any one visit (by torch, trap or net):",null,null,null,null,null,null,null,{"$f":"MAX(G115,J115,M115,G117,J117,M117,G119,J119,M119,G121,J121,M121,G123,J123,M123,G125,J125,M125,G127,J127,M127,G129,J129,M129)","v":0}]
[null,"Comments and constraints:"]
[null,"Temp Veg Tur problem?",{"$f":"F114+F116+F118+F120+F122+F124+F126+F128","v":0}]
[null,"Torch power low?",{"$f":"IF(AND(NOT(ISBLANK(G112)),OR(G112=\"< 50,000 cp\",G112=\"50,000 - 499,999 cp\")),\"1\",\"0\")","v":"0"}]
[null,"Visit 1 overall det problem?",{"$f":"C132+C133","v":0}]
[null,"# ponds",{"$f":"$F$4","v":0}]
[]
[]
[null,{"$f":"+Ecologist&\": \"&+Site_name","v":": "}]
[null,"C4.3 Aquatic amphibian survey (conventional methods) - GCN results (cont - Pond 5)",null,null,null,null,null,null,null,null,"NB: This page prints in landscape format"]
[]
[]
[]
[null,"Pond reference (e.g. Pond 5)",null,null,null,"Method:","Torch",null,null,"Bottle-trap",null,null,"Net",null,null,"Egg search","Larvae"]
[null,null,null,null,null,null,"Torch power:",null,null,"No. of traps used in pond:",null,null,null,null,null,"eggs found?","larvae found? (any method)"]
[null,"No. of survey visits to this pond:"]
[null,"Sex/life stage:",null,null,null,null,"Male","Female","Imm.","Male","Female","Imm.","Male","Female","Imm."]
[null,"(1) Date:","Air temp","Veg cover","Turbidity",{"$f":"IF(OR(AND(NOT(ISBLANK($C148)),$C148<5),AND(NOT(ISBLANK($D148)),$D148>3),AND(NOT(ISBLANK($E148)),$E148>3)),\"1\",\"0\")","v":"0"}]
[null,null,null,null,null,"Adult totals:",{"$f":"G147+H147","v":0},null,null,{"$f":"J147+K147","v":0},null,null,{"$f":"M147+N147","v":0}]
[null,"(2) Date:","Air temp","Veg cover","Turbidity",{"$f":"IF(OR(AND(NOT(ISBLANK($C150)),$C150<5),AND(NOT(ISBLANK($D150)),$D150>3),AND(NOT(ISBLANK($E150)),$E150>3)),\"1\",\"0\")","v":"0"}]
[null,null,null,null,null,"Adult totals:",{"$f":"G149+H149","v":0},null,null,{"$f":"J149+K149","v":0},null,null,{"$f":"M149+N149","v":0}]
[null,"(3) Date:","Air temp","Veg cover","Turbidity",{"$f":"IF(OR(AND(NOT(ISBLANK($C152)),$C152<5),AND(NOT(ISBLANK($D152)),$D152>3),AND(NOT(ISBLANK($E152)),$E152>3)),\"1\",\"0\")","v":"0"}]
[null,null,null,null,null,"Adult totals:",{"$f":"G151+H151","v":0},null,null,{"$f":"J151+K151","v":0},null,null,{"$f":"M151+N151","v":0}]
[null,"(4) Date:","Air temp","Veg cover","Turbidity",{"$f":"IF(OR(AND(NOT(ISBLANK($C154)),$C154<5),AND(NOT(ISBLANK($D154)),$D154>3),AND(NOT(ISBLANK($E154)),$E154>3)),\"1\",\"0\")","v":"0"}]
[null,null,null,null,null,"Adult totals:",{"$f":"G153+H153","v":0},null,null,{"$f":"J153+K153","v":0},null,null,{"$f":"M153+N153","v":0}]
[null,"(5) Date:","Air temp","Veg cover","Turbidity",{"$f":"IF(OR(AND(NOT(ISBLANK($C156)),$C156<5),AND(NOT(ISBLANK($D156)),$D156>3),AND(NOT(ISBLANK($E156)),$E156>3)),\"1\",\"0\")","v":"0"}]
[null,null,null,null,null,"Adult totals:",{"$f":"G155+H155","v":0},null,null,{"$f":"J155+K155","v":0},null,null,{"$f":"M155+N155","v":0}]
[null,"(6) Date:","Air temp","Veg cover","Turbidity",{"$f":"IF(OR(AND(NOT(ISBLANK($C158)),$C158<5),AND(NOT(ISBLANK($D158)),$D158>3),AND(NOT(ISBLANK($E158)),$E158>3)),\"1\",\"0\")","v":"0"}]
[null,null,null,null,null,"Adult totals:",{"$f":"G157+H157","v":0},null,null,{"$f":"J157+K157","v":0},null,null,{"$f":"M157+N157","v":0}]
[null,"(7) Date:","Air temp","Veg cover","Turbidity",{"$f":"IF(OR(AND(NOT(ISBLANK($C160)),$C160<5),AND(NOT(ISBLANK($D160)),$D160>3),AND(NOT(ISBLANK($E160)),$E160>3)),\"1\",\"0\")","v":"0"}]
[null,null,null,null,null,"Adult totals:",{"$f":"G159+H159","v":0},null,null,{"$f":"J159+K159","v":0},null,null,{"$f":"M159+N159","v":0}]
[null,"(8) Date:","Air temp","Veg cover","Turbidity",{"$f":"IF(OR(AND(NOT(ISBLANK($C162)),$C162<5),AND(NOT(ISBLANK($D162)),$D162>3),AND(NOT(ISBLANK($E162)),$E162>3)),\"1\",\"0\")","v":"0"}]
[null,null,null,null,null,"Adult totals:",{"$f":"G161+H161","v":0},null,null,{"$f":"J161+K161","v":0},null,null,{"$f":"M161+N161","v":0}]
[null,"Peak adult count for this pond in any one visit (by torch, trap or net):",null,null,null,null,null,null,null,{"$f":"MAX(G148,J148,M148,G150,J150,M150,G152,J152,M152,G154,J154,M154,G156,J156,M156,G158,J158,M158,G160,J160,M160,G162,J162,M162)","v":0}]
[null,"Comments and constraints:"]
[null,"Temp Veg Tur problem?",{"$f":"F147+F149+F151+F153+F155+F157+F159+F161","v":0}]
[null,"Torch power low?",{"$f":"IF(AND(NOT(ISBLANK(G145)),OR(G145=\"< 50,000 cp\",G145=\"50,000 - 499,999 cp\")),\"1\",\"0\")","v":"0"}]
[null,"Visit 1 overall det problem?",{"$f":"C165+C166","v":0}]
[null,"# ponds",{"$f":"$F$4","v":0}]
[]
[]
[null,{"$f":"+Ecologist&\": \"&+Site_name","v":": "}]
[null,"C4.3 Aquatic amphibian survey (conventional methods) - GCN results (cont - Pond 6)",null,null,null,null,null,null,null,null,"NB: This page prints in landscape format"]
[]
[]
[]
[null,"Pond reference (e.g. Pond 6) ",null,null,null,"Method:","Torch",null,null,"Bottle-trap",null,null,"Net",null,null,"Egg search","Larvae"]
[null,null,null,null,null,null,"Torch power:",null,null,"No. of traps used in pond:",null,null,null,null,null,"eggs found?","larvae found? (any method)"]
[null,"No. of survey visits to this pond:"]
[null,"Sex/life stage:",null,null,null,null,"Male","Female","Imm.","Male","Female","Imm.","Male","Female","Imm."]
[null,"(1) Date:","Air temp","Veg cover","Turbidity",{"$f":"IF(OR(AND(NOT(ISBLANK($C181)),$C181<5),AND(NOT(ISBLANK($D181)),$D181>3),AND(NOT(ISBLANK($E181)),$E181>3)),\"1\",\"0\")","v":"0"}]
[null,null,null,null,null,"Adult totals:",{"$f":"G180+H180","v":0},null,null,{"$f":"J180+K180","v":0},null,null,{"$f":"M180+N180","v":0}]
[null,"(2) Date:","Air temp","Veg cover","Turbidity",{"$f":"IF(OR(AND(NOT(ISBLANK($C183)),$C183<5),AND(NOT(ISBLANK($D183)),$D183>3),AND(NOT(ISBLANK($E183)),$E183>3)),\"1\",\"0\")","v":"0"}]
[null,null,null,null,null,"Adult totals:",{"$f":"G182+H182","v":0},null,null,{"$f":"J182+K182","v":0},null,null,{"$f":"M182+N182","v":0}]
[null,"(3) Date:","Air temp","Veg cover","Turbidity",{"$f":"IF(OR(AND(NOT(ISBLANK($C185)),$C185<5),AND(NOT(ISBLANK($D185)),$D185>3),AND(NOT(ISBLANK($E185)),$E185>3)),\"1\",\"0\")","v":"0"}]
[null,null,null,null,null,"Adult totals:",{"$f":"G184+H184","v":0},null,null,{"$f":"J184+K184","v":0},null,null,{"$f":"M184+N184","v":0}]
[null,"(4) Date:","Air temp","Veg cover","Turbidity",{"$f":"IF(OR(AND(NOT(ISBLANK($C187)),$C187<5),AND(NOT(ISBLANK($D187)),$D187>3),AND(NOT(ISBLANK($E187)),$E187>3)),\"1\",\"0\")","v":"0"}]
[null,null,null,null,null,"Adult totals:",{"$f":"G186+H186","v":0},null,null,{"$f":"J186+K186","v":0},null,null,{"$f":"M186+N186","v":0}]
[null,"(5) Date:","Air temp","Veg cover","Turbidity",{"$f":"IF(OR(AND(NOT(ISBLANK($C189)),$C189<5),AND(NOT(ISBLANK($D189)),$D189>3),AND(NOT(ISBLANK($E189)),$E189>3)),\"1\",\"0\")","v":"0"}]
[null,null,null,null,null,"Adult totals:",{"$f":"G188+H188","v":0},null,null,{"$f":"J188+K188","v":0},null,null,{"$f":"M188+N188","v":0}]
[null,"(6) Date:","Air temp","Veg cover","Turbidity",{"$f":"IF(OR(AND(NOT(ISBLANK($C191)),$C191<5),AND(NOT(ISBLANK($D191)),$D191>3),AND(NOT(ISBLANK($E191)),$E191>3)),\"1\",\"0\")","v":"0"}]
[null,null,null,null,null,"Adult totals:",{"$f":"G190+H190","v":0},null,null,{"$f":"J190+K190","v":0},null,null,{"$f":"M190+N190","v":0}]
[null,"(7) Date:","Air temp","Veg cover","Turbidity",{"$f":"IF(OR(AND(NOT(ISBLANK($C193)),$C193<5),AND(NOT(ISBLANK($D193)),$D193>3),AND(NOT(ISBLANK($E193)),$E193>3)),\"1\",\"0\")","v":"0"}]
[null,null,null,null,null,"Adult totals:",{"$f":"G192+H192","v":0},null,null,{"$f":"J192+K192","v":0},null,null,{"$f":"M192+N192","v":0}]
[null,"(8) Date:","Air temp","Veg cover","Turbidity",{"$f":"IF(OR(AND(NOT(ISBLANK($C195)),$C195<5),AND(NOT(ISBLANK($D195)),$D195>3),AND(NOT(ISBLANK($E195)),$E195>3)),\"1\",\"0\")","v":"0"}]
[null,null,null,null,null,"Adult totals:",{"$f":"G194+H194","v":0},null,null,{"$f":"J194+K194","v":0},null,null,{"$f":"M194+N194","v":0}]
[null,"Peak adult count for this pond in any one visit (by torch, trap or net):",null,null,null,null,null,null,null,{"$f":"MAX(G181,J181,M181,G183,J183,M183,G185,J185,M185,G187,J187,M187,G189,J189,M189,G191,J191,M191,G193,J193,M193,G195,J195,M195)","v":0}]
[null,"Comments and constraints:"]
[null,"Temp Veg Tur problem?",{"$f":"F180+F182+F184+F186+F188+F190+F192+F194","v":0}]
[null,"Torch power low?",{"$f":"IF(AND(NOT(ISBLANK(G178)),OR(G178=\"< 50,000 cp\",G178=\"50,000 - 499,999 cp\")),\"1\",\"0\")","v":"0"}]
[null,"Visit 1 overall det problem?",{"$f":"C198+C199","v":0}]
[null,"# ponds",{"$f":"$F$4","v":0}]
[]
[]
[null,{"$f":"+Ecologist&\": \"&+Site_name","v":": "}]
[null,"C4.3 Aquatic amphibian survey (conventional methods) - GCN results (cont - Pond 7)",null,null,null,null,null,null,null,null,"NB: This page prints in landscape format"]
[]
[]
[]
[null,"Pond reference (e.g. Pond 7)",null,null,null,"Method:","Torch",null,null,"Bottle-trap",null,null,"Net",null,null,"Egg search","Larvae"]
[null,null,null,null,null,null,"Torch power:",null,null,"No. of traps used in pond:",null,null,null,null,null,"eggs found?","larvae found? (any method)"]
[null,"No. of survey visits to this pond:"]
[null,"Sex/life stage:",null,null,null,null,"Male","Female","Imm.","Male","Female","Imm.","Male","Female","Imm."]
[null,"(1) Date:","Air temp","Veg cover","Turbidity",{"$f":"IF(OR(AND(NOT(ISBLANK($C214)),$C214<5),AND(NOT(ISBLANK($D214)),$D214>3),AND(NOT(ISBLANK($E214)),$E214>3)),\"1\",\"0\")","v":"0"}]
[null,null,null,null,null,"Adult totals:",{"$f":"G213+H213","v":0},null,null,{"$f":"J213+K213","v":0},null,null,{"$f":"M213+N213","v":0}]
[null,"(2) Date:","Air temp","Veg cover","Turbidity",{"$f":"IF(OR(AND(NOT(ISBLANK($C216)),$C216<5),AND(NOT(ISBLANK($D216)),$D216>3),AND(NOT(ISBLANK($E216)),$E216>3)),\"1\",\"0\")","v":"0"}]
[null,null,null,null,null,"Adult totals:",{"$f":"G215+H215","v":0},null,null,{"$f":"J215+K215","v":0},null,null,{"$f":"M215+N215","v":0}]
[null,"(3) Date:","Air temp","Veg cover","Turbidity",{"$f":"IF(OR(AND(NOT(ISBLANK($C218)),$C218<5),AND(NOT(ISBLANK($D218)),$D218>3),AND(NOT(ISBLANK($E218)),$E218>3)),\"1\",\"0\")","v":"0"}]
[null,null,null,null,null,"Adult totals:",{"$f":"G217+H217","v":0},null,null,{"$f":"J217+K217","v":0},null,null,{"$f":"M217+N217","v":0}]
[null,"(4) Date:","Air temp","Veg cover","Turbidity",{"$f":"IF(OR(AND(NOT(ISBLANK($C220)),$C220<5),AND(NOT(ISBLANK($D220)),$D220>3),AND(NOT(ISBLANK($E220)),$E220>3)),\"1\",\"0\")","v":"0"}]
[null,null,null,null,null,"Adult totals:",{"$f":"G219+H219","v":0},null,null,{"$f":"J219+K219","v":0},null,null,{"$f":"M219+N219","v":0}]
[null,"(5) Date:","Air temp","Veg cover","Turbidity",{"$f":"IF(OR(AND(NOT(ISBLANK($C222)),$C222<5),AND(NOT(ISBLANK($D222)),$D222>3),AND(NOT(ISBLANK($E222)),$E222>3)),\"1\",\"0\")","v":"0"}]
[null,null,null,null,null,"Adult totals:",{"$f":"G221+H221","v":0},null,null,{"$f":"J221+K221","v":0},null,null,{"$f":"M221+N221","v":0}]
[null,"(6) Date:","Air temp","Veg cover","Turbidity",{"$f":"IF(OR(AND(NOT(ISBLANK($C224)),$C224<5),AND(NOT(ISBLANK($D224)),$D224>3),AND(NOT(ISBLANK($E224)),$E224>3)),\"1\",\"0\")","v":"0"}]
[null,null,null,null,null,"Adult totals:",{"$f":"G223+H223","v":0},null,null,{"$f":"J223+K223","v":0},null,null,{"$f":"M223+N223","v":0}]
[null,"(7) Date:","Air temp","Veg cover","Turbidity",{"$f":"IF(OR(AND(NOT(ISBLANK($C226)),$C226<5),AND(NOT(ISBLANK($D226)),$D226>3),AND(NOT(ISBLANK($E226)),$E226>3)),\"1\",\"0\")","v":"0"}]
[null,null,null,null,null,"Adult totals:",{"$f":"G225+H225","v":0},null,null,{"$f":"J225+K225","v":0},null,null,{"$f":"M225+N225","v":0}]
[null,"(8) Date:","Air temp","Veg cover","Turbidity",{"$f":"IF(OR(AND(NOT(ISBLANK($C228)),$C228<5),AND(NOT(ISBLANK($D228)),$D228>3),AND(NOT(ISBLANK($E228)),$E228>3)),\"1\",\"0\")","v":"0"}]
[null,null,null,null,null,"Adult totals:",{"$f":"G227+H227","v":0},null,null,{"$f":"J227+K227","v":0},null,null,{"$f":"M227+N227","v":0}]
[null,"Peak adult count for this pond in any one visit (by torch, trap or net):",null,null,null,null,null,null,null,{"$f":"MAX(G214,J214,M214,G216,J216,M216,G218,J218,M218,G220,J220,M220,G222,J222,M222,G224,J224,M224,G226,J226,M226,G228,J228,M228)","v":0}]
[null,"Comments and constraints:"]
[null,"Temp Veg Tur problem?",{"$f":"F213+F215+F217+F219+F221+F223+F225+F227","v":0}]
[null,"Torch power low?",{"$f":"IF(AND(NOT(ISBLANK(G211)),OR(G211=\"< 50,000 cp\",G211=\"50,000 - 499,999 cp\")),\"1\",\"0\")","v":"0"}]
[null,"Visit 1 overall det problem?",{"$f":"C231+C232","v":0}]
[null,"# ponds",{"$f":"$F$4","v":0}]
[]
[]
[null,{"$f":"+Ecologist&\": \"&+Site_name","v":": "}]
[null,"C4.3 Aquatic amphibian survey (conventional methods) - GCN results (cont - Pond 8)",null,null,null,null,null,null,null,null,"NB: This page prints in landscape format"]
[]
[]
[]
[null,"Pond reference (e.g. Pond 8)",null,null,null,"Method:","Torch",null,null,"Bottle-trap",null,null,"Net",null,null,"Egg search","Larvae"]
[null,null,null,null,null,null,"Torch power:",null,null,"No. of traps used in pond:",null,null,null,null,null,"eggs found?","larvae found? (any method)"]
[null,"No. of survey visits to this pond:"]
[null,"Sex/life stage:",null,null,null,null,"Male","Female","Imm.","Male","Female","Imm.","Male","Female","Imm."]
[null,"(1) Date:","Air temp","Veg cover","Turbidity",{"$f":"IF(OR(AND(NOT(ISBLANK($C247)),$C247<5),AND(NOT(ISBLANK($D247)),$D247>3),AND(NOT(ISBLANK($E247)),$E247>3)),\"1\",\"0\")","v":"0"}]
[null,null,null,null,null,"Adult totals:",{"$f":"G246+H246","v":0},null,null,{"$f":"J246+K246","v":0},null,null,{"$f":"M246+N246","v":0}]
[null,"(2) Date:","Air temp","Veg cover","Turbidity",{"$f":"IF(OR(AND(NOT(ISBLANK($C249)),$C249<5),AND(NOT(ISBLANK($D249)),$D249>3),AND(NOT(ISBLANK($E249)),$E249>3)),\"1\",\"0\")","v":"0"}]
[null,null,null,null,null,"Adult totals:",{"$f":"G248+H248","v":0},null,null,{"$f":"J248+K248","v":0},null,null,{"$f":"M248+N248","v":0}]
[null,"(3) Date:","Air temp","Veg cover","Turbidity",{"$f":"IF(OR(AND(NOT(ISBLANK($C251)),$C251<5),AND(NOT(ISBLANK($D251)),$D251>3),AND(NOT(ISBLANK($E251)),$E251>3)),\"1\",\"0\")","v":"0"}]
[null,null,null,null,null,"Adult totals:",{"$f":"G250+H250","v":0},null,null,{"$f":"J250+K250","v":0},null,null,{"$f":"M250+N250","v":0}]
[null,"(4) Date:","Air temp","Veg cover","Turbidity",{"$f":"IF(OR(AND(NOT(ISBLANK($C253)),$C253<5),AND(NOT(ISBLANK($D253)),$D253>3),AND(NOT(ISBLANK($E253)),$E253>3)),\"1\",\"0\")","v":"0"}]
[null,null,null,null,null,"Adult totals:",{"$f":"G252+H252","v":0},null,null,{"$f":"J252+K252","v":0},null,null,{"$f":"M252+N252","v":0}]
[null,"(5) Date:","Air temp","Veg cover","Turbidity",{"$f":"IF(OR(AND(NOT(ISBLANK($C255)),$C255<5),AND(NOT(ISBLANK($D255)),$D255>3),AND(NOT(ISBLANK($E255)),$E255>3)),\"1\",\"0\")","v":"0"}]
[null,null,null,null,null,"Adult totals:",{"$f":"G254+H254","v":0},null,null,{"$f":"J254+K254","v":0},null,null,{"$f":"M254+N254","v":0}]
[null,"(6) Date:","Air temp","Veg cover","Turbidity",{"$f":"IF(OR(AND(NOT(ISBLANK($C257)),$C257<5),AND(NOT(ISBLANK($D257)),$D257>3),AND(NOT(ISBLANK($E257)),$E257>3)),\"1\",\"0\")","v":"0"}]
[null,null,null,null,null,"Adult totals:",{"$f":"G256+H256","v":0},null,null,{"$f":"J256+K256","v":0},null,null,{"$f":"M256+N256","v":0}]
[null,"(7) Date:","Air temp","Veg cover","Turbidity",{"$f":"IF(OR(AND(NOT(ISBLANK($C259)),$C259<5),AND(NOT(ISBLANK($D259)),$D259>3),AND(NOT(ISBLANK($E259)),$E259>3)),\"1\",\"0\")","v":"0"}]
[null,null,null,null,null,"Adult totals:",{"$f":"G258+H258","v":0},null,null,{"$f":"J258+K258","v":0},null,null,{"$f":"M258+N258","v":0}]
[null,"(8) Date:","Air temp","Veg cover","Turbidity",{"$f":"IF(OR(AND(NOT(ISBLANK($C261)),$C261<5),AND(NOT(ISBLANK($D261)),$D261>3),AND(NOT(ISBLANK($E261)),$E261>3)),\"1\",\"0\")","v":"0"}]
[null,null,null,null,null,"Adult totals:",{"$f":"G260+H260","v":0},null,null,{"$f":"J260+K260","v":0},null,null,{"$f":"M260+N260","v":0}]
[null,"Peak adult count for this pond in any one visit (by torch, trap or net):",null,null,null,null,null,null,null,{"$f":"MAX(G247,J247,M247,G249,J249,M249,G251,J251,M251,G253,J253,M253,G255,J255,M255,G257,J257,M257,G259,J259,M259,G261,J261,M261)","v":0}]
[null,"Comments and constraints:"]
[null,"Temp Veg Tur problem?",{"$f":"F246+F248+F250+F252+F254+F256+F258+F260","v":0}]
[null,"Torch power low?",{"$f":"IF(AND(NOT(ISBLANK(G244)),OR(G244=\"< 50,000 cp\",G244=\"50,000 - 499,999 cp\")),\"1\",\"0\")","v":"0"}]
[null,"Visit 1 overall det problem?",{"$f":"C264+C265","v":0}]
[null,"# ponds",{"$f":"$F$4","v":0}]
[]
[]
[null,{"$f":"+Ecologist&\": \"&+Site_name","v":": "}]
[null,"C4.3 Aquatic amphibian survey (conventional methods) - GCN results (cont - Pond 9)",null,null,null,null,null,null,null,null,"NB: This page prints in landscape format"]
[]
[]
[]
[null,"Pond reference (e.g. Pond 9)",null,null,null,"Method:","Torch",null,null,"Bottle-trap",null,null,"Net",null,null,"Egg search","Larvae"]
[null,null,null,null,null,null,"Torch power:",null,null,"No. of traps used in pond:",null,null,null,null,null,"eggs found?","larvae found? (any method)"]
[null,"No. of survey visits to this pond:"]
[null,"Sex/life stage:",null,null,null,null,"Male","Female","Imm.","Male","Female","Imm.","Male","Female","Imm."]
[null,"(1) Date:","Air temp","Veg cover","Turbidity",{"$f":"IF(OR(AND(NOT(ISBLANK($C280)),$C280<5),AND(NOT(ISBLANK($D280)),$D280>3),AND(NOT(ISBLANK($E280)),$E280>3)),\"1\",\"0\")","v":"0"}]
[null,null,null,null,null,"Adult totals:",{"$f":"G279+H279","v":0},null,null,{"$f":"J279+K279","v":0},null,null,{"$f":"M279+N279","v":0}]
[null,"(2) Date:","Air temp","Veg cover","Turbidity",{"$f":"IF(OR(AND(NOT(ISBLANK($C282)),$C282<5),AND(NOT(ISBLANK($D282)),$D282>3),AND(NOT(ISBLANK($E282)),$E282>3)),\"1\",\"0\")","v":"0"}]
[null,null,null,null,null,"Adult totals:",{"$f":"G281+H281","v":0},null,null,{"$f":"J281+K281","v":0},null,null,{"$f":"M281+N281","v":0}]
[null,"(3) Date:","Air temp","Veg cover","Turbidity",{"$f":"IF(OR(AND(NOT(ISBLANK($C284)),$C284<5),AND(NOT(ISBLANK($D284)),$D284>3),AND(NOT(ISBLANK($E284)),$E284>3)),\"1\",\"0\")","v":"0"}]
[null,null,null,null,null,"Adult totals:",{"$f":"G283+H283","v":0},null,null,{"$f":"J283+K283","v":0},null,null,{"$f":"M283+N283","v":0}]
[null,"(4) Date:","Air temp","Veg cover","Turbidity",{"$f":"IF(OR(AND(NOT(ISBLANK($C286)),$C286<5),AND(NOT(ISBLANK($D286)),$D286>3),AND(NOT(ISBLANK($E286)),$E286>3)),\"1\",\"0\")","v":"0"}]
[null,null,null,null,null,"Adult totals:",{"$f":"G285+H285","v":0},null,null,{"$f":"J285+K285","v":0},null,null,{"$f":"M285+N285","v":0}]
[null,"(5) Date:","Air temp","Veg cover","Turbidity",{"$f":"IF(OR(AND(NOT(ISBLANK($C288)),$C288<5),AND(NOT(ISBLANK($D288)),$D288>3),AND(NOT(ISBLANK($E288)),$E288>3)),\"1\",\"0\")","v":"0"}]
[null,null,null,null,null,"Adult totals:",{"$f":"G287+H287","v":0},null,null,{"$f":"J287+K287","v":0},null,null,{"$f":"M287+N287","v":0}]
[null,"(6) Date:","Air temp","Veg cover","Turbidity",{"$f":"IF(OR(AND(NOT(ISBLANK($C290)),$C290<5),AND(NOT(ISBLANK($D290)),$D290>3),AND(NOT(ISBLANK($E290)),$E290>3)),\"1\",\"0\")","v":"0"}]
[null,null,null,null,null,"Adult totals:",{"$f":"G289+H289","v":0},null,null,{"$f":"J289+K289","v":0},null,null,{"$f":"M289+N289","v":0}]
[null,"(7) Date:","Air temp","Veg cover","Turbidity",{"$f":"IF(OR(AND(NOT(ISBLANK($C292)),$C292<5),AND(NOT(ISBLANK($D292)),$D292>3),AND(NOT(ISBLANK($E292)),$E292>3)),\"1\",\"0\")","v":"0"}]
[null,null,null,null,null,"Adult totals:",{"$f":"G291+H291","v":0},null,null,{"$f":"J291+K291","v":0},null,null,{"$f":"M291+N291","v":0}]
[null,"(8) Date:","Air temp","Veg cover","Turbidity",{"$f":"IF(OR(AND(NOT(ISBLANK($C294)),$C294<5),AND(NOT(ISBLANK($D294)),$D294>3),AND(NOT(ISBLANK($E294)),$E294>3)),\"1\",\"0\")","v":"0"}]
[null,null,null,null,null,"Adult totals:",{"$f":"G293+H293","v":0},null,null,{"$f":"J293+K293","v":0},null,null,{"$f":"M293+N293","v":0}]
[null,"Peak adult count for this pond in any one visit (by torch, trap or net):",null,null,null,null,null,null,null,{"$f":"MAX(G280,J280,M280,G282,J282,M282,G284,J284,M284,G286,J286,M286,G288,J288,M288,G290,J290,M290,G292,J292,M292,G294,J294,M294)","v":0}]
[null,"Comments and constraints:"]
[null,"Temp Veg Tur problem?",{"$f":"F279+F281+F283+F285+F287+F289+F291+F293","v":0}]
[null,"Torch power low?",{"$f":"IF(AND(NOT(ISBLANK(G277)),OR(G277=\"< 50,000 cp\",G277=\"50,000 - 499,999 cp\")),\"1\",\"0\")","v":"0"}]
[null,"Visit 1 overall det problem?",{"$f":"C297+C298","v":0}]
[null,"# ponds",{"$f":"$F$4","v":0}]
[]
[]
[null,{"$f":"+Ecologist&\": \"&+Site_name","v":": "}]
[null,"C4.3 Aquatic amphibian survey (conventional methods) - GCN results (Pond 10)",null,null,null,null,null,null,null,null,"NB: This page prints in landscape format"]
[]
[]
[]
[null,"Pond reference (e.g. Pond 10)",null,null,null,"Method:","Torch",null,null,"Bottle-trap",null,null,"Net",null,null,"Egg search","Larvae"]
[null,null,null,null,null,null,"Torch power:",null,null,"No. of traps used in pond:",null,null,null,null,null,"eggs found?","larvae found? (any method)"]
[null,"No. of survey visits to this pond:"]
[null,"Sex/life stage:",null,null,null,null,"Male","Female","Imm.","Male","Female","Imm.","Male","Female","Imm."]
[null,"(1) Date:","Air temp","Veg cover","Turbidity",{"$f":"IF(OR(AND(NOT(ISBLANK($C313)),$C313<5),AND(NOT(ISBLANK($D313)),$D313>3),AND(NOT(ISBLANK($E313)),$E313>3)),\"1\",\"0\")","v":"0"}]
[null,null,null,null,null,"Adult totals:",{"$f":"G312+H312","v":0},null,null,{"$f":"J312+K312","v":0},null,null,{"$f":"M312+N312","v":0}]
[null,"(2) Date:","Air temp","Veg cover","Turbidity",{"$f":"IF(OR(AND(NOT(ISBLANK($C315)),$C315<5),AND(NOT(ISBLANK($D315)),$D315>3),AND(NOT(ISBLANK($E315)),$E315>3)),\"1\",\"0\")","v":"0"}]
[null,null,null,null,null,"Adult totals:",{"$f":"G314+H314","v":0},null,null,{"$f":"J314+K314","v":0},null,null,{"$f":"M314+N314","v":0}]
[null,"(3) Date:","Air temp","Veg cover","Turbidity",{"$f":"IF(OR(AND(NOT(ISBLANK($C317)),$C317<5),AND(NOT(ISBLANK($D317)),$D317>3),AND(NOT(ISBLANK($E317)),$E317>3)),\"1\",\"0\")","v":"0"}]
[null,null,null,null,null,"Adult totals:",{"$f":"G316+H316","v":0},null,null,{"$f":"J316+K316","v":0},null,null,{"$f":"M316+N316","v":0}]
[null,"(4) Date:","Air temp","Veg cover","Turbidity",{"$f":"IF(OR(AND(NOT(ISBLANK($C319)),$C319<5),AND(NOT(ISBLANK($D319)),$D319>3),AND(NOT(ISBLANK($E319)),$E319>3)),\"1\",\"0\")","v":"0"}]
[null,null,null,null,null,"Adult totals:",{"$f":"G318+H318","v":0},null,null,{"$f":"J318+K318","v":0},null,null,{"$f":"M318+N318","v":0}]
[null,"(5) Date:","Air temp","Veg cover","Turbidity",{"$f":"IF(OR(AND(NOT(ISBLANK($C321)),$C321<5),AND(NOT(ISBLANK($D321)),$D321>3),AND(NOT(ISBLANK($E321)),$E321>3)),\"1\",\"0\")","v":"0"}]
[null,null,null,null,null,"Adult totals:",{"$f":"G320+H320","v":0},null,null,{"$f":"J320+K320","v":0},null,null,{"$f":"M320+N320","v":0}]
[null,"(6) Date:","Air temp","Veg cover","Turbidity",{"$f":"IF(OR(AND(NOT(ISBLANK($C323)),$C323<5),AND(NOT(ISBLANK($D323)),$D323>3),AND(NOT(ISBLANK($E323)),$E323>3)),\"1\",\"0\")","v":"0"}]
[null,null,null,null,null,"Adult totals:",{"$f":"G322+H322","v":0},null,null,{"$f":"J322+K322","v":0},null,null,{"$f":"M322+N322","v":0}]
[null,"(7) Date:","Air temp","Veg cover","Turbidity",{"$f":"IF(OR(AND(NOT(ISBLANK($C325)),$C325<5),AND(NOT(ISBLANK($D325)),$D325>3),AND(NOT(ISBLANK($E325)),$E325>3)),\"1\",\"0\")","v":"0"}]
[null,null,null,null,null,"Adult totals:",{"$f":"G324+H324","v":0},null,null,{"$f":"J324+K324","v":0},null,null,{"$f":"M324+N324","v":0}]
[null,"(8) Date:","Air temp","Veg cover","Turbidity",{"$f":"IF(OR(AND(NOT(ISBLANK($C327)),$C327<5),AND(NOT(ISBLANK($D327)),$D327>3),AND(NOT(ISBLANK($E327)),$E327>3)),\"1\",\"0\")","v":"0"}]
[null,null,null,null,null,"Adult totals:",{"$f":"G326+H326","v":0},null,null,{"$f":"J326+K326","v":0},null,null,{"$f":"M326+N326","v":0}]
[null,"Peak adult count for this pond in any one visit (by torch, trap or net):",null,null,null,null,null,null,null,{"$f":"MAX(G313,J313,M313,G315,J315,M315,G317,J317,M317,G319,J319,M319,G321,J321,M321,G323,J323,M323,G325,J325,M325,G327,J327,M327)","v":0}]
[null,"Comments and constraints:"]
[null,"Temp Veg Tur problem?",{"$f":"F312+F314+F316+F318+F320+F322+F324+F326","v":0}]
[null,"Torch power low?",{"$f":"IF(AND(NOT(ISBLANK(G310)),OR(G310=\"< 50,000 cp\",G310=\"50,000 - 499,999 cp\")),\"1\",\"0\")","v":"0"}]
[null,"Visit 1 overall det problem?",{"$f":"C330+C331","v":0}]
[null,"# ponds",{"$f":"$F$4","v":0}]
[]
[]
[null,{"$f":"+Ecologist&\": \"&+Site_name","v":": "}]
[null,"C4.4 Aquatic amphibian survey (continued)"]
[]
[null,"1. Confirm that you have undertaken a walkover survey within 3 months prior to submission……………………………………."]
[]
[null,"2. If the survey was not undertaken this year, please confirm whether there are any changes to habitats (aquatic or terrestrial). If yes, please detail the nature of the changes below. "]
[]
[]
[]
[]
[]
[]
[]
[null,null,null,null,null,null,"Next Section"]

{"sheet":"Form data (IGNORE)","index":6,"n_rows":236,"n_cols":8,"rows_kept":236,"cut":false,"hidden":true,"merged":[]}
["NB: DO NOT ADD TO OR MODIFY ANY DATA ON THIS WORKSHEET!"]
["This worksheet should not be submitted with licence applications",null,null,null,null,"Yes_no_na"]
[null,null,null,null,"C4.1","Yes"]
["Current landuse","Act/dev type","Planning_status_current","Pre-existing survey","Terr_surv_obj","No"]
["Built land (buildings, roads etc)","Building (housing, factory etc)","Full planning consent","No pre-existing survey data","Assess if great crested newts present in particular area","N/A"]
["Post-industrial, brownfield","Temporary linear (pipeline etc)","Outline planning consent","Pre-existing survey confirms great crested newt presence","Assess great crested newt dispersal distances and/or direction"]
["Parkland, garden, allotments","Permanent linear (road etc)","Planning applic'n submitted, not yet determined","Pre-existing survey indicates likely great crested newt presence"]
["Semi-natural - grassland","Mineral extraction or landfill","Complex planning situation (explain below)","Pre-existing survey indicates great crested newts likely absent"]
["Semi-natural - woodland","Amenity improvements","Planning permission not required"]
["Semi-natural - scrub","Improving existing structures (WWTW etc)","Permitted development"]
["Semi-natural - other (state below)","Ongoing activity (state below)","Other status (state below)"]
["Farmland - arable","Other (state below)",null,"Age of pre-existing survey","Terr_surv_area"]
["Farmland - pasture",null,null,"Between 1 and 3 years","Whole of development site"]
["Farmland - other (state below)",null,null,"Between 4 and 6 years","Part(s) of development site (state below)"]
["Quarry, landfill",null,null,"Over 6 years","Part(s) of development site + surrounds (state below)"]
["Mixed (state below)",null,null,null,"Area outside development site (state below)"]
["Other (state below)",null,null,null,"Along boundary(ies) of development site (state below)"]
[]
["New_or_amend"]
["New method statement; not previously licensed"]
["Modification to existing licensed method statement"]
["Resubmission of application (not yet licensed)"]
[]
[]
["Local status","Receptor site status","Terr_surv_effort",null,"Mon_period"]
["Frequent - known or likely to occur at c. >5 ponds per square km","Great crested newts absent/highly likely to be absent","Method not used",null,2]
["Occasional - known or likely to occur at c. 1-5 ponds per square km","Great crested newts present; small population size class","1 day",null,4]
["Rare or absent - likely to be absent locally, or c. <5 ponds within 10km","Great crested newt present; medium population size class","2-10 days",null,6]
["Unknown (if data is inadequate to allow one of the approximations above)","Great crested newts present; large population size class","11-30 days",null,10]
[null,"Great crested newts present; abundance unknown","31-60 days","Additional_cap_effort",50]
["Survey objective","Unknown","61-100 days",0,"Other"]
["To confirm presence of great crested newts in a specified area",null,">100 days",5]
["To assess population size class of great crested newts in specified pond(s)",null,null,10]
[null,"Yes_no","Terr_prop_juv",15]
[null,"Yes","<25%",20]
[null,"No","25-75%",30]
[null,null,">75%",40]
[null,null,null,50]
[null,"E5.2",null,60]
[null,"Mon_survey_type","Pond_surv_other_spp_results",80]
[null,"Presence/absence (up to 4 visits) + habitat assessment","Not found",100]
[null,"Population size class (6 visits) + habitat assessment","1-10 adults; no eggs or larvae"]
[null,"eDNA + habitat assessment","1-10 adults + eggs and/or larvae"]
[null,"Other (state below)","11-100 adults; no eggs or larvae"]
[null,null,"11-100 adults + eggs and/or larvae"]
[null,null,">100 adults; no eggs or larvae"]
["Terr_survey_other_spp","Torch_power",">100 adults + eggs and/or larvae"]
["Not found","< 50,000 cp","No adults; eggs or larvae only"]
["1-10 individuals; includes metamorphs or immatures","50,000 - 499,999 cp"]
["1-10 individuals; adults only","500,000 - 999,999 cp"]
["11-100 individuals; includes metamorphs or immatures",">= 1,000,000 cp"]
["11-100 individuals; adults only","Don't know / varies"]
[">100 individuals; includes metamorphs or immatures"]
[">100 individuals; adults only"]
[null,"No_bottles"]
["Pond_surv_no_visits_per_pond","1-10 traps"]
[1,"11-50 traps"]
[2,">50 traps"]
[3,"varies"]
[4]
[5]
[6]
[7]
[8]
[">8"]
["varies"]
[]
["Pond_effect","Pond_effect_score","Terr_hab_50m_effect [old; not used]","Terr_hab<100m_effect_score [old; not used]","terr_hab_50250_effect [old; not used]","Terr_hab100-250m_effect_score [old; not used]"]
["Destruction",0.9,"Major damage",0.9,"Complete destrn or dmg",0.18]
["Damage",0.5,"Moderate damage",0.7,"Moderate destrn or dmg",0.14000000000000001]
["Temporary loss",0.1,"Minor damage",0.5,"Minor destrn or dmg (<0.5ha)",0.1]
["No effect",1E-4,"Temporary impact only",0.2,"Other: major impact",0.04]
[null,null,"Positive effect",2.5000000000000001E-2,"Other: medium impact",5.0000000000000001E-3]
[null,null,"No effect",0.5,"Other: minor impact",0.1]
["Presence_Absence",null,null,0.25,"No effect",0.05]
["Present",null,null,0.1,null,0.02]
["Absent",null,null,0.9,null,0.18]
["N/A",null,null,0.5,null,0.1]
[null,null,null,0.1,null,0.02]
[null,null,null,1E-4,null,1E-4]
[]
[null,null,null,null,"Terrestrial habitat >250m effect [old; not used]","Terr_hab>250m_effect_score [old; not used]"]
["Interf_other_effects","Inter & other eff score",null,"Impact_table_options [for 5.1]","Complete destrn or dmg",4.4999999999999998E-2]
["Major -ve effect",0.9,null,"Major -ve effect","Moderate destrn or dmg",3.5000000000000003E-2]
["Moderate -ve effect",0.5,null,"Moderate -ve effect","Minor destrn or dmg (<5ha)",2.5000000000000001E-2]
["Minor -ve effect",0.1,null,"Minor -ve effect","Other: major impact",0.01]
["Positive effect",1E-4,null,"Temporary -ve effect","Other: medium impact",1.25E-3]
["No effect",0.8,null,"Positive effect","Other: minor impact",2.5000000000000001E-2]
[null,0.5,null,"No effect","No effect",1.2500000000000001E-2]
[null,0.1,null,null,null,5.0000000000000001E-3]
[null,null,null,null,null,4.4999999999999998E-2]
["IA_HSI_peak","HSI-pk_count_score","trap_effort_away_pond",null,null,2.5000000000000001E-2]
["Presence confirmed only",0.2,25,null,null,5.0000000000000001E-3]
["HSI <0.5 (\"poor\")",0.1,30,null,null,1E-4]
["HSI 0.5-0.59 (\"below average\")",0.2,60]
["HSI 0.6-0.69 (\"average\")",0.5,90]
["HSI 0.7-0.79 (\"good\")",0.7]
["HSI >0.8 (\"excellent\")",0.9]
["Peak count 1-10",0.1]
["Peak count 11-100",0.5]
["Peak count >100",0.9]
[]
["Frag_effect","Frag_effect_score"]
["Major fragmentation",0.9]
["Medium fragmentation",0.5]
["Minor fragmentation",0.1]
["Temporary fragmentation",1E-4]
["No fragmentation"]
[]
[]
["Pond_drain_effort","Destr_search_effort","Trap_effort_ring","Hab_mangt_plan_period","Post_dev_mech"]
[1,1,25,"2 years","Section 106 agreement"]
[2,2,30,"4 years","Commuted sum"]
[3,3,60,"5 years","Legal agreement with land mangt org"]
[4,4,90,"10 years","Section 39 Agreement"]
[5,5,150,"20 years","None proposed"]
[6,6,null,"Perpetuity","Other, or combination of mechanisms (state below)"]
[7,7]
[8,8,"Trapeffortshort"]
[9,9,25]
[10,10,30]
[20,20,60]
[25,25,90]
[30,30,"Other"]
[60,60]
[90,90,null,"Current pop via score","Current_hab_size","Current hab size score","Current_prospects","Current prospects score"]
["Other","Current_range score",null,3,"Good - habitat not limiting [+3]",3,"Good - expected to increase size/viability [+3]",3]
[null,3,"Current_pop_via",2,"Medium - good habitat area, some frag'n [+2]",2,"Medium - expected to remain at same level [+2]",2]
[null,2,"Good - large population, high viability [+3]",1,"Poor - small habitat area, high frag'n [+1]",1,"Poor - expected to decline [+1]",1]
["Current_range",1,"Medium - medium population, medium viability [+2]"]
["Good - newts well distributed within 1km [+3]",null,"Poor - small population, low viability [+1]"]
["Medium - newts patchily distributed within 1km [+2]"]
["Poor - newts present in very small area within 1km [+1]"]
[]
[]
[]
[]
[]
[]
[null,null,null,"Pop dev impact score","Hab_dev_impact","Hab dev impact score","Prospects_dev_impact","Prospects dev impact score"]
[null,"Range dev impact score",null,1,"Positive - habitat extent & quality would increase [+1]",1,"Good - higher chance of future pop increase [+1]",1]
[null,1,"Pop_dev_impact",0,"Neutral - habitat extent & quality would be unchanged [0]",0,"Neutral - no effect on future prospects [0]",0]
[null,0,"Positive - pop size & viability would increase [+1]",-1,"Negative - habitat extent & quality would decrease [-1]",-1,"Poor - higher chance of future decline [-1]",-1]
["Range_dev_impact",-1,"Neutral - pop size & viability would be unchanged [0]"]
["Positive - range would increase [+1]",null,"Negative - pop size & viability would decrease [-1]"]
["Neutral - range would be unchanged [0]"]
["Negative - range would decrease [-1]"]
[]
[]
[]
[]
[]
[]
[null,null,null,"Pop mitig effect score","Hab_mitig_effect","Hab mitig effect score","Prospects_mitig_impact","Prospects mitig impact score"]
[null,"Range mitig effect score",null,1,"Positive - habitat extent & quality would increase [+1]",1,"Good - higher chance of future pop increase [+1]",1]
[null,1,"Pop_mitig_effect",0,"Neutral - habitat extent & quality would be unchanged [0]",0,"Neutral - no effect on future prospects [0]",0]
[null,0,"Positive - pop size & viability would increase [+1]",-1,"Negative - habitat extent & quality would decrease [-1]",-1,"Poor - higher chance of future decline [-1]",-1]
["Range_mitig_effect",-1,"Neutral - pop size & viability would be unchanged [0]"]
["Positive - range would increase [+1]",null,"Negative - pop size & viability would decrease [-1]"]
["Neutral - range would be unchanged [0]"]
["Negative - range would decrease [-1]",null,null,"Licence risk assessment"]
[]
[null,null,null,"br_pond_effect"]
[null,null,null,"No effect",0]
[null,null,null,"Damaged or destroyed",1]
[]
[null,null,null,"terr_hab_100_effect"]
[null,null,null,"No effect",0]
["amend_reason",null,null,"0.001 - 0.01 ha lost or damaged",0.05]
["Construction delay (give revised timings below)",null,null,"0.01 - 0.1 ha lost or damaged",0.3]
["Change to construction plans (summarise below)",null,null,"0.1 - 0.5 ha lost or damaged",0.5]
["Discovery of additional areas used by newts (summarise below)",null,null,"0.5 - 1 ha lost or damaged",0.7]
["Discovery of substantially higher newt nos. (summarise below)",null,null,">1 ha lost or damaged",0.9]
["Other (state below)"]
[]
["pond_surv_y_n_reason"]
["Yes",null,null,"terr_hab_100250_effect"]
["No - isolated from development by dispersal barriers",null,null,"No effect",0]
["No - isolated from development by distance",null,null,"0.001 - 0.01 ha lost or damaged",5.0000000000000001E-3]
["No - completely unsuitable for great crested newts",null,null,"0.01 - 0.1 ha lost or damaged",0.01]
["No - access permission denied",null,null,"0.1 - 0.5 ha lost or damaged",0.1]
["No - serious health & safety concerns",null,null,"0.5 - 1 ha lost or damaged",0.3]
["No - other reason",null,null,"1 - 5 ha lost or damaged",0.4]
[null,null,null,"5 - 10 ha lost or damaged",0.5]
["eval_quant",null,null,">10 ha lost or damaged",0.7]
["Minor importance - small population"]
["Moderate importance - medium population",null,null,"terr_hab_250_effect"]
["High importance - large population",null,null,"No effect",0]
["Unknown",null,null,"0.001 - 0.01 ha lost or damaged",5.0000000000000001E-4]
[null,null,null,"0.01 - 0.1 ha lost or damaged",1E-3]
["eval_qual",null,null,"0.1 - 0.5 ha lost or damaged",5.0000000000000001E-3]
["Minor - no breeding on site; habitats common in area",null,null,"0.5 - 1 ha lost or damaged",0.03]
["Moderate - no breeding on site; unusual habitats",null,null,"1 - 5 ha lost or damaged",0.04]
["Moderate - breeding on site; habitats common in area",null,null,"5 - 10 ha lost or damaged",0.3]
["High - breeding on site; habitats unusual or exceptionally favourable",null,null,">10 ha lost or damaged",0.5]
[]
["eval_func",null,null,"indiv_newts_effect"]
["Minor importance - population completely isolated",null,null,"No effect",0]
["Moderate importance - probably some dispersal to/from nearby population(s)",null,null,"Minor disturbance of newts",0.5]
["Major importance - site plays important role for nearby population(s)",null,null,"Significant disturbance of newts",0.8]
[null,null,null,"Capture of newts in excavations etc",0.8]
["eval_context",null,null,"Obstructing dispersal of newts",0.8]
["Minor importance - population size lower than in surrounding area",null,null,"Killing or injuring newts",0.8]
["Moderate importance - population size class typical of area"]
["Major importance - population size class high for area",null,null,"rra_result"]
["Unknown",null,null,"Green: offence highly unlikely"]
[null,null,null,"Amber: offence likely"]
[null,null,null,"Red: offence highly likely"]
[null,"Building (housing, factory etc)"]
["avoidance_dev_type"]
["Temporary linear (pipeline etc)"]
["Permanent linear (road etc)","Mineral extraction or landfill"]
["Mineral extraction or landfill","Amenity improvements"]
["Very small footprint construction  (<0.01ha / 100m2)","Improving existing structures (WWTW etc)"]
["Construction of buildings etc (>0.01ha / 100m2)","Ongoing activity (state below)"]
["Developments not directly affecting ponds, but near gardens with ponds"]
["Temporary minor habitat loss during maintenance (road verge works)"]
["Minimal refuge potential (amenity grassland etc)"]
["Arable"]
[]
[]
[]
[]
["BELOW THIS LINE: NEW FIELDS ADDED FEB 2010"]
[]
[]
["no_of_survey_visits_to_this_pond"]
[0]
[1]
[2]
[3]
[4]
[5]
[6]
[7]
[8]

{"sheet":"C - Survey summary","index":7,"n_rows":129,"n_cols":53,"rows_kept":129,"cut":false,"hidden":false,"merged":[[7,47,8,47],[7,48,8,48],[7,49,8,49],[7,50,8,50],[7,51,8,51],[7,42,8,42],[7,43,8,43],[7,44,8,44],[7,45,8,45],[7,46,8,46],[7,37,8,37],[7,38,8,38],[7,39,8,39],[7,40,8,40],[7,41,8,41],[7,32,8,32],[7,33,8,33],[7,34,8,34],[7,35,8,35],[7,36,8,36],[7,27,8,27],[7,28,8,28],[7,29,8,29],[7,30,8,30],[7,31,8,31],[7,22,8,22],[7,23,8,23],[7,24,8,24],[7,25,8,25],[7,26,8,26],[105,1,125,9],[81,1,101,9],[128,4,128,6],[19,11,19,12],[49,1,49,2],[49,3,49,9],[50,1,50,2],[50,3,50,9],[52,1,52,9],[53,1,53,9],[44,1,44,9],[46,1,46,9],[47,1,47,2],[47,3,47,9],[48,1,48,2],[48,3,48,9],[37,1,43,9],[15,1,15,2],[16,1,16,2],[17,1,17,2],[18,1,18,2],[19,1,19,2],[20,1,25,9],[27,1,27,4],[29,1,34,9],[35,1,35,4],[35,6,35,9],[55,1,55,9],[7,52,8,52],[7,21,8,21],[0,1,0,9],[1,1,1,9],[2,1,2,9],[3,1,3,9],[4,1,6,9],[10,1,10,2],[11,1,11,2],[12,1,12,2],[13,1,13,2],[7,20,8,20],[7,7,9,7],[7,9,9,9],[7,3,9,3],[4,11,5,20],[14,1,14,2],[7,16,8,16],[7,17,8,17],[7,18,8,18],[7,19,8,19],[7,8,9,8],[7,12,8,12],[7,13,8,13],[7,14,8,14],[7,15,8,15],[7,1,9,2],[7,4,9,4],[7,5,9,5],[7,6,9,6],[103,1,103,9],[104,1,104,9],[57,1,77,9],[56,1,56,9],[79,1,79,9],[80,1,80,9]]}
[null,{"$f":"+Ecologist&\": \"&+Site_name","v":": "}]
[null,"C5 Interpretation and evaluation"]
[]
[null,"Summary of presence, peak count, population size class and habitat quality"]
[null,"Enter whether GCNs (any life stage) were detected for each pond, and HSI score for each pond subject to adverse impacts (see guidance in instructions). The other fields (in blue) should be generated automatically based on data you have entered in previous sheets.",null,null,null,null,null,null,null,null,null,"Please note that the table below is not printable. It is included as a guide only for the Peak total site count calculation**."]
[]
[]
[null,"Pond ref",null,"Gt. crested newts detected?","Peak adult count","Pop size class","HSI ","Low detect-ability warning*","Peak count visit number","Eggs",null,null,"Pond 1","Pond 2","Pond 3","Pond 4","Pond 5","Pond 6","Pond 7","Pond 8","Pond 9","Pond 10","Pond 11","Pond 12","Pond 13","Pond 14","Pond 15","Pond 16","Pond 17","Pond 18","Pond 19","Pond 20","Pond 21","Pond 22","Pond 23","Pond 24","Pond 25","Pond 26","Pond 27","Pond 28","Pond 29","Pond 30","Pond 31","Pond 32","Pond 33","Pond 34","Pond 35","Pond 36","Pond 37","Pond 38","Pond 39","Pond 40","Visit total"]
[]
[null,null,null,null,null,null,null,null,null,null,null,"Visit 1",{"$f":"MAX('C - Survey - Pond 1-10'!G16:M16)","v":0},{"$f":"MAX('C - Survey - Pond 1-10'!G49:M49)","v":0},{"$f":"MAX('C - Survey - Pond 1-10'!G82:M82)","v":0},{"$f":"MAX('C - Survey - Pond 1-10'!G115:M115)","v":0},{"$f":"MAX('C - Survey - Pond 1-10'!G148:M148)","v":0},{"$f":"MAX('C - Survey - Pond 1-10'!G181:M181)","v":0},{"$f":"MAX('C - Survey - Pond 1-10'!G214:M214)","v":0},{"$f":"MAX('C - Survey - Pond 1-10'!G247:M247)","v":0},{"$f":"MAX('C - Survey - Pond 1-10'!G280:M280)","v":0},{"$f":"MAX('C - Survey - Pond 1-10'!G313:M313)","v":0},{"$f":"'C - Survey - Pond 11-20'!U10","v":0},{"$f":"'C - Survey - Pond 11-20'!V10","v":0},{"$f":"'C - Survey - Pond 11-20'!W10","v":0},{"$f":"'C - Survey - Pond 11-20'!X10","v":0},{"$f":"'C - Survey - Pond 11-20'!Y10","v":0},{"$f":"'C - Survey - Pond 11-20'!Z10","v":0},{"$f":"'C - Survey - Pond 11-20'!AA10","v":0},{"$f":"'C - Survey - Pond 11-20'!AB10","v":0},{"$f":"'C - Survey - Pond 11-20'!AC10","v":0},{"$f":"'C - Survey - Pond 11-20'!AD10","v":0},{"$f":"'C - Survey - Pond 21-30'!U10","v":0},{"$f":"'C - Survey - Pond 21-30'!V10","v":0},{"$f":"'C - Survey - Pond 21-30'!W10","v":0},{"$f":"'C - Survey - Pond 21-30'!X10","v":0},{"$f":"'C - Survey - Pond 21-30'!Y10","v":0},{"$f":"'C - Survey - Pond 21-30'!Z10","v":0},{"$f":"'C - Survey - Pond 21-30'!AA10","v":0},{"$f":"'C - Survey - Pond 21-30'!AB10","v":0},{"$f":"'C - Survey - Pond 21-30'!AC10","v":0},{"$f":"'C - Survey - Pond 21-30'!AD10","v":0},{"$f":"'C - Survey - Pond 31-40'!U10","v":0},{"$f":"'C - Survey - Pond 31-40'!V10","v":0},{"$f":"'C - Survey - Pond 31-40'!W10","v":0},{"$f":"'C - Survey - Pond 31-40'!X10","v":0},{"$f":"'C - Survey - Pond 31-40'!Y10","v":0},{"$f":"'C - Survey - Pond 31-40'!Z10","v":0},{"$f":"'C - Survey - Pond 31-40'!AA10","v":0},{"$f":"'C - Survey - Pond 31-40'!AB10","v":0},{"$f":"'C - Survey - Pond 31-40'!AC10","v":0},{"$f":"'C - Survey - Pond 31-40'!AD10","v":0},{"$f":"SUM(M10:AZ10)","v":0}]
[null,{"$f":"'C - Survey - Pond 1-10'!B12","v":0},null,null,{"$f":"'C - Survey - Pond 1-10'!J31","v":0},{"$f":"IF(E11=\"\",\"\",IF(E11=0,\"\",IF(E11<=10,\"Small\",IF(AND(E11>10,E11<=100),\"Medium\",IF(E11>100,\"Large\")))))","v":""},{"$f":"'C - Survey Info'!E$137","v":""},{"$f":"IF('C - Survey - Pond 1-10'!C35>0,\"Caution\",\"\")","v":""},{"$f":"IF(E11=0,\"\",M18)","v":""},{"$f":"IF(OR('C - Survey - Pond 1-10'!P15=\"Yes\",'C - Survey - Pond 1-10'!P17=\"Yes\",'C - Survey - Pond 1-10'!P19=\"Yes\",'C - Survey - Pond 1-10'!P21=\"Yes\",'C - Survey - Pond 1-10'!P23=\"Yes\",'C - Survey - Pond 1-10'!P25=\"Yes\",'C - Survey - Pond 1-10'!P27=\"Yes\",'C - Survey - Pond 1-10'!P29=\"Yes\"),\"Yes\",IF(OR('C - Survey - Pond 1-10'!P15=\"No\",'C - Survey - Pond 1-10'!P17=\"No\",'C - Survey - Pond 1-10'!P19=\"No\",'C - Survey - Pond 1-10'!P21=\"No\",'C - Survey - Pond 1-10'!P23=\"No\",'C - Survey - Pond 1-10'!P25=\"No\",'C - Survey - Pond 1-10'!P27=\"No\",'C - Survey - Pond 1-10'!P29=\"No\"),\"No\",\"\"))","v":""},null,"Visit 2",{"$f":"MAX('C - Survey - Pond 1-10'!G18:M18)","v":0},{"$f":"MAX('C - Survey - Pond 1-10'!G51:M51)","v":0},{"$f":"MAX('C - Survey - Pond 1-10'!G84:M84)","v":0},{"$f":"MAX('C - Survey - Pond 1-10'!G117:M117)","v":0},{"$f":"MAX('C - Survey - Pond 1-10'!G150:M150)","v":0},{"$f":"MAX('C - Survey - Pond 1-10'!G183:M183)","v":0},{"$f":"MAX('C - Survey - Pond 1-10'!G216:M216)","v":0},{"$f":"MAX('C - Survey - Pond 1-10'!G249:M249)","v":0},{"$f":"MAX('C - Survey - Pond 1-10'!G282:M282)","v":0},{"$f":"MAX('C - Survey - Pond 1-10'!G315:M315)","v":0},{"$f":"'C - Survey - Pond 11-20'!U11","v":0},{"$f":"'C - Survey - Pond 11-20'!V11","v":0},{"$f":"'C - Survey - Pond 11-20'!W11","v":0},{"$f":"'C - Survey - Pond 11-20'!X11","v":0},{"$f":"'C - Survey - Pond 11-20'!Y11","v":0},{"$f":"'C - Survey - Pond 11-20'!Z11","v":0},{"$f":"'C - Survey - Pond 11-20'!AA11","v":0},{"$f":"'C - Survey - Pond 11-20'!AB11","v":0},{"$f":"'C - Survey - Pond 11-20'!AC11","v":0},{"$f":"'C - Survey - Pond 11-20'!AD11","v":0},{"$f":"'C - Survey - Pond 21-30'!U11","v":0},{"$f":"'C - Survey - Pond 21-30'!V11","v":0},{"$f":"'C - Survey - Pond 21-30'!W11","v":0},{"$f":"'C - Survey - Pond 21-30'!X11","v":0},{"$f":"'C - Survey - Pond 21-30'!Y11","v":0},{"$f":"'C - Survey - Pond 21-30'!Z11","v":0},{"$f":"'C - Survey - Pond 21-30'!AA11","v":0},{"$f":"'C - Survey - Pond 21-30'!AB11","v":0},{"$f":"'C - Survey - Pond 21-30'!AC11","v":0},{"$f":"'C - Survey - Pond 21-30'!AD11","v":0},{"$f":"'C - Survey - Pond 31-40'!U11","v":0},{"$f":"'C - Survey - Pond 31-40'!V11","v":0},{"$f":"'C - Survey - Pond 31-40'!W11","v":0},{"$f":"'C - Survey - Pond 31-40'!X11","v":0},{"$f":"'C - Survey - Pond 31-40'!Y11","v":0},{"$f":"'C - Survey - Pond 31-40'!Z11","v":0},{"$f":"'C - Survey - Pond 31-40'!AA11","v":0},{"$f":"'C - Survey - Pond 31-40'!AB11","v":0},{"$f":"'C - Survey - Pond 31-40'!AC11","v":0},{"$f":"'C - Survey - Pond 31-40'!AD11","v":0},{"$f":"SUM(M11:AZ11)","v":0}]
[null,{"$f":"'C - Survey - Pond 1-10'!B45","v":0},null,null,{"$f":"'C - Survey - Pond 1-10'!J64","v":0},{"$f":"IF(E12=\"\",\"\",IF(E12=0,\"\",IF(E12<=10,\"Small\",IF(AND(E12>10,E12<=100),\"Medium\",IF(E12>100,\"Large\")))))","v":""},{"$f":"'C - Survey Info'!F$137","v":""},{"$f":"IF('C - Survey - Pond 1-10'!C68>0,\"Caution\",\"\")","v":""},{"$f":"IF(E12=0,\"\",N18)","v":""},{"$f":"IF(OR('C - Survey - Pond 1-10'!P48=\"Yes\",'C - Survey - Pond 1-10'!P50=\"Yes\",'C - Survey - Pond 1-10'!P52=\"Yes\",'C - Survey - Pond 1-10'!P54=\"Yes\",'C - Survey - Pond 1-10'!P56=\"Yes\",'C - Survey - Pond 1-10'!P58=\"Yes\",'C - Survey - Pond 1-10'!P60=\"Yes\",'C - Survey - Pond 1-10'!P62=\"Yes\"),\"Yes\",IF(OR('C - Survey - Pond 1-10'!P48=\"No\",'C - Survey - Pond 1-10'!P50=\"No\",'C - Survey - Pond 1-10'!P52=\"No\",'C - Survey - Pond 1-10'!P54=\"No\",'C - Survey - Pond 1-10'!P56=\"No\",'C - Survey - Pond 1-10'!P58=\"No\",'C - Survey - Pond 1-10'!P60=\"No\",'C - Survey - Pond 1-10'!P62=\"No\"),\"No\",\"\"))","v":""},null,"Visit 3",{"$f":"MAX('C - Survey - Pond 1-10'!G20:M20)","v":0},{"$f":"MAX('C - Survey - Pond 1-10'!G53:M53)","v":0},{"$f":"MAX('C - Survey - Pond 1-10'!G86:M86)","v":0},{"$f":"MAX('C - Survey - Pond 1-10'!G119:M119)","v":0},{"$f":"MAX('C - Survey - Pond 1-10'!G152:M152)","v":0},{"$f":"MAX('C - Survey - Pond 1-10'!G185:M185)","v":0},{"$f":"MAX('C - Survey - Pond 1-10'!G218:M218)","v":0},{"$f":"MAX('C - Survey - Pond 1-10'!G251:M251)","v":0},{"$f":"MAX('C - Survey - Pond 1-10'!G284:M284)","v":0},{"$f":"MAX('C - Survey - Pond 1-10'!G317:M317)","v":0},{"$f":"'C - Survey - Pond 11-20'!U12","v":0},{"$f":"'C - Survey - Pond 11-20'!V12","v":0},{"$f":"'C - Survey - Pond 11-20'!W12","v":0},{"$f":"'C - Survey - Pond 11-20'!X12","v":0},{"$f":"'C - Survey - Pond 11-20'!Y12","v":0},{"$f":"'C - Survey - Pond 11-20'!Z12","v":0},{"$f":"'C - Survey - Pond 11-20'!AA12","v":0},{"$f":"'C - Survey - Pond 11-20'!AB12","v":0},{"$f":"'C - Survey - Pond 11-20'!AC12","v":0},{"$f":"'C - Survey - Pond 11-20'!AD12","v":0},{"$f":"'C - Survey - Pond 21-30'!U12","v":0},{"$f":"'C - Survey - Pond 21-30'!V12","v":0},{"$f":"'C - Survey - Pond 21-30'!W12","v":0},{"$f":"'C - Survey - Pond 21-30'!X12","v":0},{"$f":"'C - Survey - Pond 21-30'!Y12","v":0},{"$f":"'C - Survey - Pond 21-30'!Z12","v":0},{"$f":"'C - Survey - Pond 21-30'!AA12","v":0},{"$f":"'C - Survey - Pond 21-30'!AB12","v":0},{"$f":"'C - Survey - Pond 21-30'!AC12","v":0},{"$f":"'C - Survey - Pond 21-30'!AD12","v":0},{"$f":"'C - Survey - Pond 31-40'!U12","v":0},{"$f":"'C - Survey - Pond 31-40'!V12","v":0},{"$f":"'C - Survey - Pond 31-40'!W12","v":0},{"$f":"'C - Survey - Pond 31-40'!X12","v":0},{"$f":"'C - Survey - Pond 31-40'!Y12","v":0},{"$f":"'C - Survey - Pond 31-40'!Z12","v":0},{"$f":"'C - Survey - Pond 31-40'!AA12","v":0},{"$f":"'C - Survey - Pond 31-40'!AB12","v":0},{"$f":"'C - Survey - Pond 31-40'!AC12","v":0},{"$f":"'C - Survey - Pond 31-40'!AD12","v":0},0]
[null,{"$f":"'C - Survey - Pond 1-10'!B78","v":0},null,null,{"$f":"'C - Survey - Pond 1-10'!J97","v":0},"",{"$f":"'C - Survey Info'!G$137","v":""},{"$f":"IF('C - Survey - Pond 1-10'!C101>0,\"Caution\",\"\")","v":""},{"$f":"IF(E13=0,\"\",O18)","v":""},{"$f":"IF(OR('C - Survey - Pond 1-10'!P81=\"Yes\",'C - Survey - Pond 1-10'!P83=\"Yes\",'C - Survey - Pond 1-10'!P85=\"Yes\",'C - Survey - Pond 1-10'!P87=\"Yes\",'C - Survey - Pond 1-10'!P89=\"Yes\",'C - Survey - Pond 1-10'!P91=\"Yes\",'C - Survey - Pond 1-10'!P93=\"Yes\",'C - Survey - Pond 1-10'!P95=\"Yes\"),\"Yes\",IF(OR('C - Survey - Pond 1-10'!P81=\"No\",'C - Survey - Pond 1-10'!P83=\"No\",'C - Survey - Pond 1-10'!P85=\"No\",'C - Survey - Pond 1-10'!P87=\"No\",'C - Survey - Pond 1-10'!P89=\"No\",'C - Survey - Pond 1-10'!P91=\"No\",'C - Survey - Pond 1-10'!P93=\"No\",'C - Survey - Pond 1-10'!P95=\"No\"),\"No\",\"\"))","v":""},null,"Visit 4",{"$f":"MAX('C - Survey - Pond 1-10'!G22:M22)","v":0},{"$f":"MAX('C - Survey - Pond 1-10'!G55:M55)","v":0},{"$f":"MAX('C - Survey - Pond 1-10'!G88:M88)","v":0},{"$f":"MAX('C - Survey - Pond 1-10'!G121:M121)","v":0},{"$f":"MAX('C - Survey - Pond 1-10'!G154:M154)","v":0},{"$f":"MAX('C - Survey - Pond 1-10'!G187:M187)","v":0},{"$f":"MAX('C - Survey - Pond 1-10'!G220:M220)","v":0},{"$f":"MAX('C - Survey - Pond 1-10'!G253:M253)","v":0},{"$f":"MAX('C - Survey - Pond 1-10'!G286:M286)","v":0},{"$f":"MAX('C - Survey - Pond 1-10'!G319:M319)","v":0},{"$f":"'C - Survey - Pond 11-20'!U13","v":0},{"$f":"'C - Survey - Pond 11-20'!V13","v":0},{"$f":"'C - Survey - Pond 11-20'!W13","v":0},{"$f":"'C - Survey - Pond 11-20'!X13","v":0},{"$f":"'C - Survey - Pond 11-20'!Y13","v":0},{"$f":"'C - Survey - Pond 11-20'!Z13","v":0},{"$f":"'C - Survey - Pond 11-20'!AA13","v":0},{"$f":"'C - Survey - Pond 11-20'!AB13","v":0},{"$f":"'C - Survey - Pond 11-20'!AC13","v":0},{"$f":"'C - Survey - Pond 11-20'!AD13","v":0},{"$f":"'C - Survey - Pond 21-30'!U13","v":0},{"$f":"'C - Survey - Pond 21-30'!V13","v":0},{"$f":"'C - Survey - Pond 21-30'!W13","v":0},{"$f":"'C - Survey - Pond 21-30'!X13","v":0},{"$f":"'C - Survey - Pond 21-30'!Y13","v":0},{"$f":"'C - Survey - Pond 21-30'!Z13","v":0},{"$f":"'C - Survey - Pond 21-30'!AA13","v":0},{"$f":"'C - Survey - Pond 21-30'!AB13","v":0},{"$f":"'C - Survey - Pond 21-30'!AC13","v":0},{"$f":"'C - Survey - Pond 21-30'!AD13","v":0},{"$f":"'C - Survey - Pond 31-40'!U13","v":0},{"$f":"'C - Survey - Pond 31-40'!V13","v":0},{"$f":"'C - Survey - Pond 31-40'!W13","v":0},{"$f":"'C - Survey - Pond 31-40'!X13","v":0},{"$f":"'C - Survey - Pond 31-40'!Y13","v":0},{"$f":"'C - Survey - Pond 31-40'!Z13","v":0},{"$f":"'C - Survey - Pond 31-40'!AA13","v":0},{"$f":"'C - Survey - Pond 31-40'!AB13","v":0},{"$f":"'C - Survey - Pond 31-40'!AC13","v":0},{"$f":"'C - Survey - Pond 31-40'!AD13","v":0},0]
[null,{"$f":"'C - Survey - Pond 1-10'!B111","v":0},null,null,{"$f":"'C - Survey - Pond 1-10'!J130","v":0},"",{"$f":"'C - Survey Info'!H$137","v":""},{"$f":"IF('C - Survey - Pond 1-10'!C134>0,\"Caution\",\"\")","v":""},{"$f":"IF(E14=0,\"\",P18)","v":""},{"$f":"IF(OR('C - Survey - Pond 1-10'!P114=\"Yes\",'C - Survey - Pond 1-10'!P116=\"Yes\",'C - Survey - Pond 1-10'!P118=\"Yes\",'C - Survey - Pond 1-10'!P120=\"Yes\",'C - Survey - Pond 1-10'!P122=\"Yes\",'C - Survey - Pond 1-10'!P124=\"Yes\",'C - Survey - Pond 1-10'!P126=\"Yes\",'C - Survey - Pond 1-10'!P128=\"Yes\"),\"Yes\",IF(OR('C - Survey - Pond 1-10'!P114=\"No\",'C - Survey - Pond 1-10'!P116=\"No\",'C - Survey - Pond 1-10'!P118=\"No\",'C - Survey - Pond 1-10'!P120=\"No\",'C - Survey - Pond 1-10'!P122=\"No\",'C - Survey - Pond 1-10'!P124=\"No\",'C - Survey - Pond 1-10'!P126=\"No\",'C - Survey - Pond 1-10'!P128=\"No\"),\"No\",\"\"))","v":""},null,"Visit 5",{"$f":"MAX('C - Survey - Pond 1-10'!G24:M24)","v":0},{"$f":"MAX('C - Survey - Pond 1-10'!G57:M57)","v":0},{"$f":"MAX('C - Survey - Pond 1-10'!G90:M90)","v":0},{"$f":"MAX('C - Survey - Pond 1-10'!G123:M123)","v":0},{"$f":"MAX('C - Survey - Pond 1-10'!G156:M156)","v":0},{"$f":"MAX('C - Survey - Pond 1-10'!G189:M189)","v":0},{"$f":"MAX('C - Survey - Pond 1-10'!G222:M222)","v":0},{"$f":"MAX('C - Survey - Pond 1-10'!G255:M255)","v":0},{"$f":"MAX('C - Survey - Pond 1-10'!G288:M288)","v":0},{"$f":"MAX('C - Survey - Pond 1-10'!G321:M321)","v":0},{"$f":"'C - Survey - Pond 11-20'!U14","v":0},{"$f":"'C - Survey - Pond 11-20'!V14","v":0},{"$f":"'C - Survey - Pond 11-20'!W14","v":0},{"$f":"'C - Survey - Pond 11-20'!X14","v":0},{"$f":"'C - Survey - Pond 11-20'!Y14","v":0},{"$f":"'C - Survey - Pond 11-20'!Z14","v":0},{"$f":"'C - Survey - Pond 11-20'!AA14","v":0},{"$f":"'C - Survey - Pond 11-20'!AB14","v":0},{"$f":"'C - Survey - Pond 11-20'!AC14","v":0},{"$f":"'C - Survey - Pond 11-20'!AD14","v":0},{"$f":"'C - Survey - Pond 21-30'!U14","v":0},{"$f":"'C - Survey - Pond 21-30'!V14","v":0},{"$f":"'C - Survey - Pond 21-30'!W14","v":0},{"$f":"'C - Survey - Pond 21-30'!X14","v":0},{"$f":"'C - Survey - Pond 21-30'!Y14","v":0},{"$f":"'C - Survey - Pond 21-30'!Z14","v":0},{"$f":"'C - Survey - Pond 21-30'!AA14","v":0},{"$f":"'C - Survey - Pond 21-30'!AB14","v":0},{"$f":"'C - Survey - Pond 21-30'!AC14","v":0},{"$f":"'C - Survey - Pond 21-30'!AD14","v":0},{"$f":"'C - Survey - Pond 31-40'!U14","v":0},{"$f":"'C - Survey - Pond 31-40'!V14","v":0},{"$f":"'C - Survey - Pond 31-40'!W14","v":0},{"$f":"'C - Survey - Pond 31-40'!X14","v":0},{"$f":"'C - Survey - Pond 31-40'!Y14","v":0},{"$f":"'C - Survey - Pond 31-40'!Z14","v":0},{"$f":"'C - Survey - Pond 31-40'!AA14","v":0},{"$f":"'C - Survey - Pond 31-40'!AB14","v":0},{"$f":"'C - Survey - Pond 31-40'!AC14","v":0},{"$f":"'C - Survey - Pond 31-40'!AD14","v":0},0]
[null,{"$f":"'C - Survey - Pond 1-10'!B144","v":0},null,null,{"$f":"'C - Survey - Pond 1-10'!J163","v":0},"",{"$f":"'C - Survey Info'!I$137","v":""},{"$f":"IF('C - Survey - Pond 1-10'!C167>0,\"Caution\",\"\")","v":""},{"$f":"IF(E15=0,\"\",Q18)","v":""},{"$f":"IF(OR('C - Survey - Pond 1-10'!P147=\"Yes\",'C - Survey - Pond 1-10'!P149=\"Yes\",'C - Survey - Pond 1-10'!P151=\"Yes\",'C - Survey - Pond 1-10'!P153=\"Yes\",'C - Survey - Pond 1-10'!P155=\"Yes\",'C - Survey - Pond 1-10'!P157=\"Yes\",'C - Survey - Pond 1-10'!P159=\"Yes\",'C - Survey - Pond 1-10'!P161=\"Yes\"),\"Yes\",IF(OR('C - Survey - Pond 1-10'!P147=\"No\",'C - Survey - Pond 1-10'!P149=\"No\",'C - Survey - Pond 1-10'!P151=\"No\",'C - Survey - Pond 1-10'!P153=\"No\",'C - Survey - Pond 1-10'!P155=\"No\",'C - Survey - Pond 1-10'!P157=\"No\",'C - Survey - Pond 1-10'!P159=\"No\",'C - Survey - Pond 1-10'!P161=\"No\"),\"No\",\"\"))","v":""},null,"Visit 6",{"$f":"MAX('C - Survey - Pond 1-10'!G26:M26)","v":0},{"$f":"MAX('C - Survey - Pond 1-10'!G59:M59)","v":0},{"$f":"MAX('C - Survey - Pond 1-10'!G92:M92)","v":0},{"$f":"MAX('C - Survey - Pond 1-10'!G125:M125)","v":0},{"$f":"MAX('C - Survey - Pond 1-10'!G158:M158)","v":0},{"$f":"MAX('C - Survey - Pond 1-10'!G191:M191)","v":0},{"$f":"MAX('C - Survey - Pond 1-10'!G224:M224)","v":0},{"$f":"MAX('C - Survey - Pond 1-10'!G257:M257)","v":0},{"$f":"MAX('C - Survey - Pond 1-10'!G290:M290)","v":0},{"$f":"MAX('C - Survey - Pond 1-10'!G323:M323)","v":0},{"$f":"'C - Survey - Pond 11-20'!U15","v":0},{"$f":"'C - Survey - Pond 11-20'!V15","v":0},{"$f":"'C - Survey - Pond 11-20'!W15","v":0},{"$f":"'C - Survey - Pond 11-20'!X15","v":0},{"$f":"'C - Survey - Pond 11-20'!Y15","v":0},{"$f":"'C - Survey - Pond 11-20'!Z15","v":0},{"$f":"'C - Survey - Pond 11-20'!AA15","v":0},{"$f":"'C - Survey - Pond 11-20'!AB15","v":0},{"$f":"'C - Survey - Pond 11-20'!AC15","v":0},{"$f":"'C - Survey - Pond 11-20'!AD15","v":0},{"$f":"'C - Survey - Pond 21-30'!U15","v":0},{"$f":"'C - Survey - Pond 21-30'!V15","v":0},{"$f":"'C - Survey - Pond 21-30'!W15","v":0},{"$f":"'C - Survey - Pond 21-30'!X15","v":0},{"$f":"'C - Survey - Pond 21-30'!Y15","v":0},{"$f":"'C - Survey - Pond 21-30'!Z15","v":0},{"$f":"'C - Survey - Pond 21-30'!AA15","v":0},{"$f":"'C - Survey - Pond 21-30'!AB15","v":0},{"$f":"'C - Survey - Pond 21-30'!AC15","v":0},{"$f":"'C - Survey - Pond 21-30'!AD15","v":0},{"$f":"'C - Survey - Pond 31-40'!U15","v":0},{"$f":"'C - Survey - Pond 31-40'!V15","v":0},{"$f":"'C - Survey - Pond 31-40'!W15","v":0},{"$f":"'C - Survey - Pond 31-40'!X15","v":0},{"$f":"'C - Survey - Pond 31-40'!Y15","v":0},{"$f":"'C - Survey - Pond 31-40'!Z15","v":0},{"$f":"'C - Survey - Pond 31-40'!AA15","v":0},{"$f":"'C - Survey - Pond 31-40'!AB15","v":0},{"$f":"'C - Survey - Pond 31-40'!AC15","v":0},{"$f":"'C - Survey - Pond 31-40'!AD15","v":0},0]
[null,{"$f":"'C - Survey - Pond 1-10'!B177","v":0},null,null,{"$f":"'C - Survey - Pond 1-10'!J196","v":0},"",{"$f":"'C - Survey Info'!E$151","v":""},{"$f":"IF('C - Survey - Pond 1-10'!C200>0,\"Caution\",\"\")","v":""},{"$f":"IF(E16=0,\"\",R18)","v":""},{"$f":"IF(OR('C - Survey - Pond 1-10'!P180=\"Yes\",'C - Survey - Pond 1-10'!P182=\"Yes\",'C - Survey - Pond 1-10'!P184=\"Yes\",'C - Survey - Pond 1-10'!P186=\"Yes\",'C - Survey - Pond 1-10'!P188=\"Yes\",'C - Survey - Pond 1-10'!P190=\"Yes\",'C - Survey - Pond 1-10'!P192=\"Yes\",'C - Survey - Pond 1-10'!P194=\"Yes\"),\"Yes\",IF(OR('C - Survey - Pond 1-10'!P180=\"No\",'C - Survey - Pond 1-10'!P182=\"No\",'C - Survey - Pond 1-10'!P184=\"No\",'C - Survey - Pond 1-10'!P186=\"No\",'C - Survey - Pond 1-10'!P188=\"No\",'C - Survey - Pond 1-10'!P190=\"No\",'C - Survey - Pond 1-10'!P192=\"No\",'C - Survey - Pond 1-10'!P194=\"No\"),\"No\",\"\"))","v":""},null,"Visit 7",{"$f":"MAX('C - Survey - Pond 1-10'!G28:M28)","v":0},{"$f":"MAX('C - Survey - Pond 1-10'!G61:M61)","v":0},{"$f":"MAX('C - Survey - Pond 1-10'!G94:M94)","v":0},{"$f":"MAX('C - Survey - Pond 1-10'!G127:M127)","v":0},{"$f":"MAX('C - Survey - Pond 1-10'!G160:M160)","v":0},{"$f":"MAX('C - Survey - Pond 1-10'!G193:M193)","v":0},{"$f":"MAX('C - Survey - Pond 1-10'!G226:M226)","v":0},{"$f":"MAX('C - Survey - Pond 1-10'!G259:M259)","v":0},{"$f":"MAX('C - Survey - Pond 1-10'!G292:M292)","v":0},{"$f":"MAX('C - Survey - Pond 1-10'!G325:M325)","v":0},{"$f":"'C - Survey - Pond 11-20'!U16","v":0},{"$f":"'C - Survey - Pond 11-20'!V16","v":0},{"$f":"'C - Survey - Pond 11-20'!W16","v":0},{"$f":"'C - Survey - Pond 11-20'!X16","v":0},{"$f":"'C - Survey - Pond 11-20'!Y16","v":0},{"$f":"'C - Survey - Pond 11-20'!Z16","v":0},{"$f":"'C - Survey - Pond 11-20'!AA16","v":0},{"$f":"'C - Survey - Pond 11-20'!AB16","v":0},{"$f":"'C - Survey - Pond 11-20'!AC16","v":0},{"$f":"'C - Survey - Pond 11-20'!AD16","v":0},{"$f":"'C - Survey - Pond 21-30'!U16","v":0},{"$f":"'C - Survey - Pond 21-30'!V16","v":0},{"$f":"'C - Survey - Pond 21-30'!W16","v":0},{"$f":"'C - Survey - Pond 21-30'!X16","v":0},{"$f":"'C - Survey - Pond 21-30'!Y16","v":0},{"$f":"'C - Survey - Pond 21-30'!Z16","v":0},{"$f":"'C - Survey - Pond 21-30'!AA16","v":0},{"$f":"'C - Survey - Pond 21-30'!AB16","v":0},{"$f":"'C - Survey - Pond 21-30'!AC16","v":0},{"$f":"'C - Survey - Pond 21-30'!AD16","v":0},{"$f":"'C - Survey - Pond 31-40'!U16","v":0},{"$f":"'C - Survey - Pond 31-40'!V16","v":0},{"$f":"'C - Survey - Pond 31-40'!W16","v":0},{"$f":"'C - Survey - Pond 31-40'!X16","v":0},{"$f":"'C - Survey - Pond 31-40'!Y16","v":0},{"$f":"'C - Survey - Pond 31-40'!Z16","v":0},{"$f":"'C - Survey - Pond 31-40'!AA16","v":0},{"$f":"'C - Survey - Pond 31-40'!AB16","v":0},{"$f":"'C - Survey - Pond 31-40'!AC16","v":0},{"$f":"'C - Survey - Pond 31-40'!AD16","v":0},0]
[null,{"$f":"'C - Survey - Pond 1-10'!B210","v":0},null,null,{"$f":"'C - Survey - Pond 1-10'!J229","v":0},"",{"$f":"'C - Survey Info'!F$151","v":""},{"$f":"IF('C - Survey - Pond 1-10'!C233>0,\"Caution\",\"\")","v":""},{"$f":"IF(E17=0,\"\",S18)","v":""},{"$f":"IF(OR('C - Survey - Pond 1-10'!P213=\"Yes\",'C - Survey - Pond 1-10'!P215=\"Yes\",'C - Survey - Pond 1-10'!P217=\"Yes\",'C - Survey - Pond 1-10'!P219=\"Yes\",'C - Survey - Pond 1-10'!P221=\"Yes\",'C - Survey - Pond 1-10'!P223=\"Yes\",'C - Survey - Pond 1-10'!P225=\"Yes\",'C - Survey - Pond 1-10'!P227=\"Yes\"),\"Yes\",IF(OR('C - Survey - Pond 1-10'!P213=\"No\",'C - Survey - Pond 1-10'!P215=\"No\",'C - Survey - Pond 1-10'!P217=\"No\",'C - Survey - Pond 1-10'!P219=\"No\",'C - Survey - Pond 1-10'!P221=\"No\",'C - Survey - Pond 1-10'!P223=\"No\",'C - Survey - Pond 1-10'!P225=\"No\",'C - Survey - Pond 1-10'!P227=\"No\"),\"No\",\"\"))","v":""},null,"Visit 8",{"$f":"MAX('C - Survey - Pond 1-10'!G30:M30)","v":0},{"$f":"MAX('C - Survey - Pond 1-10'!G63:M63)","v":0},{"$f":"MAX('C - Survey - Pond 1-10'!G96:M96)","v":0},{"$f":"MAX('C - Survey - Pond 1-10'!G129:M129)","v":0},{"$f":"MAX('C - Survey - Pond 1-10'!G162:M162)","v":0},{"$f":"MAX('C - Survey - Pond 1-10'!G195:M195)","v":0},{"$f":"MAX('C - Survey - Pond 1-10'!G228:M228)","v":0},{"$f":"MAX('C - Survey - Pond 1-10'!G261:M261)","v":0},{"$f":"MAX('C - Survey - Pond 1-10'!G294:M294)","v":0},{"$f":"MAX('C - Survey - Pond 1-10'!G327:M327)","v":0},{"$f":"'C - Survey - Pond 11-20'!U17","v":0},{"$f":"'C - Survey - Pond 11-20'!V17","v":0},{"$f":"'C - Survey - Pond 11-20'!W17","v":0},{"$f":"'C - Survey - Pond 11-20'!X17","v":0},{"$f":"'C - Survey - Pond 11-20'!Y17","v":0},{"$f":"'C - Survey - Pond 11-20'!Z17","v":0},{"$f":"'C - Survey - Pond 11-20'!AA17","v":0},{"$f":"'C - Survey - Pond 11-20'!AB17","v":0},{"$f":"'C - Survey - Pond 11-20'!AC17","v":0},{"$f":"'C - Survey - Pond 11-20'!AD17","v":0},{"$f":"'C - Survey - Pond 21-30'!U17","v":0},{"$f":"'C - Survey - Pond 21-30'!V17","v":0},{"$f":"'C - Survey - Pond 21-30'!W17","v":0},{"$f":"'C - Survey - Pond 21-30'!X17","v":0},{"$f":"'C - Survey - Pond 21-30'!Y17","v":0},{"$f":"'C - Survey - Pond 21-30'!Z17","v":0},{"$f":"'C - Survey - Pond 21-30'!AA17","v":0},{"$f":"'C - Survey - Pond 21-30'!AB17","v":0},{"$f":"'C - Survey - Pond 21-30'!AC17","v":0},{"$f":"'C - Survey - Pond 21-30'!AD17","v":0},{"$f":"'C - Survey - Pond 31-40'!U17","v":0},{"$f":"'C - Survey - Pond 31-40'!V17","v":0},{"$f":"'C - Survey - Pond 31-40'!W17","v":0},{"$f":"'C - Survey - Pond 31-40'!X17","v":0},{"$f":"'C - Survey - Pond 31-40'!Y17","v":0},{"$f":"'C - Survey - Pond 31-40'!Z17","v":0},{"$f":"'C - Survey - Pond 31-40'!AA17","v":0},{"$f":"'C - Survey - Pond 31-40'!AB17","v":0},{"$f":"'C - Survey - Pond 31-40'!AC17","v":0},{"$f":"'C - Survey - Pond 31-40'!AD17","v":0},0]
[null,{"$f":"'C - Survey - Pond 1-10'!B243","v":0},null,null,{"$f":"'C - Survey - Pond 1-10'!J262","v":0},"",{"$f":"'C - Survey Info'!G$151","v":""},{"$f":"IF('C - Survey - Pond 1-10'!C266>0,\"Caution\",\"\")","v":""},{"$f":"IF(E18=0,\"\",T18)","v":""},{"$f":"IF(OR('C - Survey - Pond 1-10'!P246=\"Yes\",'C - Survey - Pond 1-10'!P248=\"Yes\",'C - Survey - Pond 1-10'!P250=\"Yes\",'C - Survey - Pond 1-10'!P252=\"Yes\",'C - Survey - Pond 1-10'!P254=\"Yes\",'C - Survey - Pond 1-10'!P256=\"Yes\",'C - Survey - Pond 1-10'!P258=\"Yes\",'C - Survey - Pond 1-10'!P260=\"Yes\"),\"Yes\",IF(OR('C - Survey - Pond 1-10'!P246=\"No\",'C - Survey - Pond 1-10'!P248=\"No\",'C - Survey - Pond 1-10'!P250=\"No\",'C - Survey - Pond 1-10'!P252=\"No\",'C - Survey - Pond 1-10'!P254=\"No\",'C - Survey - Pond 1-10'!P256=\"No\",'C - Survey - Pond 1-10'!P258=\"No\",'C - Survey - Pond 1-10'!P260=\"No\"),\"No\",\"\"))","v":""},null,null,{"$f":"MATCH((MAX(M10:M17)),M10:M17,0)","v":1},1,1,1,1,1,1,1,1,1,{"$f":"'C - Survey - Pond 11-20'!U18","v":1},{"$f":"'C - Survey - Pond 11-20'!V18","v":1},{"$f":"'C - Survey - Pond 11-20'!W18","v":1},{"$f":"'C - Survey - Pond 11-20'!X18","v":1},{"$f":"'C - Survey - Pond 11-20'!Y18","v":1},{"$f":"'C - Survey - Pond 11-20'!Z18","v":1},{"$f":"'C - Survey - Pond 11-20'!AA18","v":1},{"$f":"'C - Survey - Pond 11-20'!AB18","v":1},{"$f":"'C - Survey - Pond 11-20'!AC18","v":1},{"$f":"'C - Survey - Pond 11-20'!AD18","v":1},{"$f":"'C - Survey - Pond 21-30'!U18","v":1},{"$f":"'C - Survey - Pond 21-30'!V18","v":1},{"$f":"'C - Survey - Pond 21-30'!W18","v":1},{"$f":"'C - Survey - Pond 21-30'!X18","v":1},{"$f":"'C - Survey - Pond 21-30'!Y18","v":1},{"$f":"'C - Survey - Pond 21-30'!Z18","v":1},{"$f":"'C - Survey - Pond 21-30'!AA18","v":1},{"$f":"'C - Survey - Pond 21-30'!AB18","v":1},{"$f":"'C - Survey - Pond 21-30'!AC18","v":1},{"$f":"'C - Survey - Pond 21-30'!AD18","v":1},{"$f":"'C - Survey - Pond 31-40'!U18","v":1},{"$f":"'C - Survey - Pond 31-40'!V18","v":1},{"$f":"'C - Survey - Pond 31-40'!W18","v":1},{"$f":"'C - Survey - Pond 31-40'!X18","v":1},{"$f":"'C - Survey - Pond 31-40'!Y18","v":1},{"$f":"'C - Survey - Pond 31-40'!Z18","v":1},{"$f":"'C - Survey - Pond 31-40'!AA18","v":1},{"$f":"'C - Survey - Pond 31-40'!AB18","v":1},{"$f":"'C - Survey - Pond 31-40'!AC18","v":1},{"$f":"'C - Survey - Pond 31-40'!AD18","v":1}]
[null,{"$f":"'C - Survey - Pond 1-10'!B276","v":0},null,null,{"$f":"'C - Survey - Pond 1-10'!J295","v":0},"",{"$f":"'C - Survey Info'!H$151","v":""},{"$f":"IF('C - Survey - Pond 1-10'!C299>0,\"Caution\",\"\")","v":""},{"$f":"IF(E19=0,\"\",U18)","v":""},{"$f":"IF(OR('C - Survey - Pond 1-10'!P279=\"Yes\",'C - Survey - Pond 1-10'!P281=\"Yes\",'C - Survey - Pond 1-10'!P283=\"Yes\",'C - Survey - Pond 1-10'!P285=\"Yes\",'C - Survey - Pond 1-10'!P287=\"Yes\",'C - Survey - Pond 1-10'!P289=\"Yes\",'C - Survey - Pond 1-10'!P291=\"Yes\",'C - Survey - Pond 1-10'!P293=\"Yes\"),\"Yes\",IF(OR('C - Survey - Pond 1-10'!P279=\"No\",'C - Survey - Pond 1-10'!P281=\"No\",'C - Survey - Pond 1-10'!P283=\"No\",'C - Survey - Pond 1-10'!P285=\"No\",'C - Survey - Pond 1-10'!P287=\"No\",'C - Survey - Pond 1-10'!P289=\"No\",'C - Survey - Pond 1-10'!P291=\"No\",'C - Survey - Pond 1-10'!P293=\"No\"),\"No\",\"\"))","v":""}]
[null,{"$f":"'C - Survey - Pond 1-10'!B309","v":0},null,null,{"$f":"'C - Survey - Pond 1-10'!J328","v":0},"",{"$f":"'C - Survey Info'!I$151","v":""},{"$f":"IF('C - Survey - Pond 1-10'!C332>0,\"Caution\",\"\")","v":""},{"$f":"IF(E20=0,\"\",V18)","v":""},{"$f":"IF(OR('C - Survey - Pond 1-10'!P312=\"Yes\",'C - Survey - Pond 1-10'!P314=\"Yes\",'C - Survey - Pond 1-10'!P316=\"Yes\",'C - Survey - Pond 1-10'!P318=\"Yes\",'C - Survey - Pond 1-10'!P320=\"Yes\",'C - Survey - Pond 1-10'!P322=\"Yes\",'C - Survey - Pond 1-10'!P324=\"Yes\",'C - Survey - Pond 1-10'!P326=\"Yes\"),\"Yes\",IF(OR('C - Survey - Pond 1-10'!P312=\"No\",'C - Survey - Pond 1-10'!P314=\"No\",'C - Survey - Pond 1-10'!P316=\"No\",'C - Survey - Pond 1-10'!P318=\"No\",'C - Survey - Pond 1-10'!P320=\"No\",'C - Survey - Pond 1-10'!P322=\"No\",'C - Survey - Pond 1-10'!P324=\"No\",'C - Survey - Pond 1-10'!P326=\"No\"),\"No\",\"\"))","v":""},null,"total peak",null,{"$f":"MAX(BA10:BA17)","v":0}]
[null,"*Note: The detectability column will state \"Caution\" if your data suggest any survey was done in poor conditions (temp<5C, veg cover>3, turbidity>3 or torch power <500,000 cp); otherwise it is blank. Aquatic newt surveys should not be carried out when air temp is <5C or with weak torches as results can be misleading. Whilst careful timing can sometimes avoid vegetation and turbidity problems, they are inevitable at some sites. It may be appropriate to undertake more detailed surveys and interpretation techniques (e.g. CMR). If this column returns \"Caution\", or there is any other reason to suspect detectability problems, you should be especially careful about interpreting counts, and comment on this in the constraints box below. "]
[]
[]
[]
[]
[]
[]
[null,"Peak total site count** for all ponds surveyed:",null,null,null,{"$f":"N20","v":0}]
[]
[null,"** This figure is derived as follows. For each survey visit, the spreadsheet picks the highest count of adult newts obtained by torch, net or bottle-trap for each pond. These individual pond counts are then summed to give a site count for each visit. The peak total site count is then the highest of these figures, i.e. highest summed count across all ponds attained on any one visit. This figure may derive from counts using a mixture of methods (torch, bottle-trap or net) - see adjacent table which shows how the figure is derived. The calculations assume survey visits per pond are undertaken within similar timeframes, if this is not the case, this Peak total site count should be calculated by hand and reasons for it explained in the general comments text box below."]
[]
[]
[]
[]
[]
[null,"Population size class for all ponds surveyed:",null,null,null,{"$f":"IF(F28=\"\",\"\",IF(F28=0,\"\",IF(F28<=10,\"Small\",IF(AND(F28>10,F28<=100),\"Medium\",IF(F28>100,\"Large\")))))","v":""}]
[]
[null,"*** this automatically generated size class assumes that it is appropriate to aggregate counts from all ponds, i.e. there is likely to be newt movement between ponds, for example where each pond is within approx 250m of another, with no significant barriers to dispersal. If you believe the automatically generated size class is incorrect for your site, provide your ecological justification in box below and give alternative accounts of peak total site counts and population size class for the site. Where there are meta-populations explain which ponds form each meta-population. For surveys of >10 ponds, data should be added to appendix provided, and note that peak counts etc will need to be derived separately."]
[]
[]
[]
[]
[]
[]
[]
[]
[null,"Site status assessment (see Section 5.8.5 of Great crested newt mitigation guidelines for guidance):"]
[null,"Quantitative"]
[null,"Qualitative"]
[null,"Functional"]
[null,"Contextual"]
[]
[null,"General comments on overall site status, and constraints to interpretation and evaluation -"]
[null,"How did the constraints affect your interpretation of your survey? \n \n\n\n"]
[]
[null,"\u009f  Account for the presence of any barriers to dispersal and explain how this affects your assessment of the "]
[null,"distribution of newts across the site and the presence of meta-populations"]
[]
[]
[]
[]
[]
[]
[]
[]
[]
[]
[]
[]
[]
[]
[]
[]
[]
[]
[]
[]
[]
[]
[null,"\u009f Acknowledge any survey constraints e.g. low detectability warnings (as highlighted in section C5 above), "]
[null,"deviation from survey recommendations in the GCNMG (methodology, timings, effort) etc."]
[]
[]
[]
[]
[]
[]
[]
[]
[]
[]
[]
[]
[]
[]
[]
[]
[]
[]
[]
[]
[]
[]
[null,"\u009f Justify why constrained survey data is considered to accurately represent the size and distribution of the "]
[null,"GCN population(s) present"]
[]
[]
[]
[]
[]
[]
[]
[]
[]
[]
[]
[]
[]
[]
[]
[]
[]
[]
[]
[]
[]
[]
[]
[null,null,null,null,"Next section"]

{"sheet":"D - Impact assmt","index":8,"n_rows":153,"n_cols":9,"rows_kept":153,"cut":false,"hidden":false,"merged":[[152,4,152,6],[139,1,139,9],[55,1,57,9],[148,1,148,9],[140,1,140,9],[141,1,141,9],[144,1,144,9],[145,1,145,9],[147,1,147,9],[80,1,85,9],[108,1,110,9],[133,1,136,9],[142,1,142,8],[137,1,137,9],[143,1,143,9],[150,1,150,9],[149,1,149,9],[58,1,78,9],[86,1,106,9],[111,1,131,9],[0,1,0,9],[2,1,3,9],[1,1,1,3],[5,1,5,3],[8,2,8,5],[11,6,11,7],[11,8,11,9],[11,4,11,5],[7,1,7,9],[10,2,10,3],[10,4,10,5],[10,6,10,7],[10,8,10,9],[11,2,11,3],[4,1,4,9],[14,2,14,3],[15,2,15,3],[16,2,16,3],[15,8,15,9],[13,4,13,5],[14,4,14,5],[16,8,16,9],[18,2,18,3],[8,6,8,9],[9,2,9,3],[9,4,9,5],[9,6,9,7],[9,8,9,9],[12,8,12,9],[12,2,12,3],[25,6,25,9],[20,2,20,3],[19,2,19,3],[12,4,12,5],[18,6,18,7],[18,8,18,9],[12,6,12,7],[13,6,13,7],[15,4,15,5],[13,8,13,9],[17,2,17,3],[16,4,16,5],[17,8,17,9],[17,4,17,5],[19,6,19,7],[14,6,14,7],[15,6,15,7],[16,6,16,7],[17,6,17,7],[19,4,19,5],[19,8,19,9],[18,4,18,5],[14,8,14,9],[13,2,13,3],[33,6,33,7],[33,8,33,9],[26,2,26,5],[28,6,28,9],[28,2,28,5],[27,2,27,5],[26,6,26,9],[27,6,27,9],[32,2,32,3],[32,4,32,5],[36,1,54,9],[34,6,34,7],[24,6,24,9],[23,2,23,5],[23,6,23,9],[24,2,24,5],[34,8,34,9],[33,4,33,5],[20,6,20,7],[35,8,35,9],[35,2,35,3],[31,2,31,5],[31,6,31,9],[35,4,35,5],[35,6,35,7],[32,6,32,7],[32,8,32,9],[33,2,33,3],[34,2,34,3],[34,4,34,5],[20,4,20,5],[22,1,22,9],[20,8,20,9],[25,2,25,5]]}
[null,{"$f":"+Ecologist&\": \"&+Site_name","v":": "}]
[null,"D1 Habitat impact tables"]
[null,"N.B: this section must identify impacts in the absence of mitigation or compensation measures. Refer to the Great crested newt mitigation guidelines for guidance in impact types (section 6). "]
[]
[null,"Should you wish to convert ha to m2 or m2 to ha please use this converter"]
[null,"Total Area of Development (ha):",null,null,{"$f":"'C - Survey Info'!G78","v":0}]
[]
[null,"D1.1 Breakdown of terrestrial impacts"]
[null,null,"Permanent",null,null,null,"Temporary"]
[null,null,"Habitat type",null,"Area lost (ha)",null,"Habitat type",null,"Area damaged (ha)"]
[]
[]
[]
[]
[]
[]
[]
[]
[]
[]
[null,null,"Total Loss",null,{"$f":"SUM(E11:F20)","v":0},null,"Total Damage",null,{"$f":"SUM(I11:J20)","v":0}]
[]
[null,"D1.2 Core, intermediate and distant terrestrial impacts"]
[null,null,"Permanent",null,null,null,"Temporary"]
[null,null,"Area lost (ha)",null,null,null,"Area damaged (ha)"]
[null,"Core \n(<50m from pond)"]
[null,"Intermediate \n(50-250m from pond)"]
[null,"Distant \n(>250m from pond)"]
[null,"Total (ha)",{"$f":"SUM(C26:F28)","v":0},null,null,null,{"$f":"SUM(G26:J28)","v":0}]
[]
[null,"D1.3 Aquatic impacts"]
[null,null,"Permanent",null,null,null,"Temporary"]
[null,null,"Number lost",null,"Area lost (m2)",null,"Number damaged",null,"Area damaged (m2)"]
[null,"GCN Ponds"]
[null,"Other Ponds"]
[null,"Total",{"$f":"SUM(C34:D35)","v":0},null,{"$f":"SUM(E34:F35)","v":0},null,{"$f":"SUM(G34:H35)","v":0},null,{"$f":"SUM(I34:J35)","v":0}]
[null,"Notes on terms in these tables: \n\u009f\u009f 'GCN ponds' must include all ponds or other waterbodies in which GCN were recorded plus any others that are likely to be used by GCNs for foraging e.g. suitable ponds / waterbodies where no GCN were recorded but with good connectivity to other ponds / waterbodies within the survey area found to support GCNs.\n\n\u009f\u009f Area of ponds to be calculated by measuring or estimating extent at winter maximum.\n\n\u009f\u009f \"Terrestrial habitat\" here includes any land likely to be important to the local GCN population for foraging, resting, hibernating or dispersal. This means, for example, that even unvegetated or sparsely vegetated areas close to high quality newt ponds (within around 50m) should be included in impact assessments; this could apply to quarry floors, arable, cracked or damaged hard-standing and amenity grassland. \n                                                                                                 \n\u009fAreas may be excluded from calculations if you assess that they are substantially isolated by barriers to dispersal and therefore highly unlikely to be used by newts; this may even include apparently high quality areas. \n\n\u009f Areas may also be excluded if you believe for any other reason that they are highly unlikely to be used by newts. Please always explain why you have excluded certain areas below.\n\nIf there are discrepancies in the areas in the tables below, please explain in the Impact text boxes below."]
[]
[]
[]
[]
[]
[]
[]
[]
[]
[]
[]
[]
[]
[]
[]
[]
[]
[]
[null,"D2 Pre- and mid-development impacts: descriptive text. Example: \"Vegetation clearance and archaeological investigations in Area A would kill and injure newts, and damage core refuge sites, close to Pond 1. Moderate negative impact on population.\" "]
[]
[]
[]
[]
[]
[]
[]
[]
[]
[]
[]
[]
[]
[]
[]
[]
[]
[]
[]
[]
[]
[]
[]
[]
[null,"D3 Long-term impacts: descriptive text (to always include fragmentation if applicable to scheme) . Example: \n\"Construction of Plot 1 in Area B would kill and injure newts, destroy Pond 1 (a breeding site) and core terrestrial habitat, consisting of rough grassland and deciduous woodland, around Pond 1. Creation of play area in Area C would reduce grassland value for newts. Construction of Plot 1 would create significant dispersal barrier between Ponds 1 and 2. Serious negative impact on population.\""]
[]
[]
[]
[]
[]
[]
[]
[]
[]
[]
[]
[]
[]
[]
[]
[]
[]
[]
[]
[]
[]
[]
[]
[]
[]
[]
[]
[null,"D4 Post-development interference impacts: descriptive text. Example: \"Major increase in risk of fish and invasive aquatic plant introduction due to creation of large residential development adjacent to pond. Potentially serious negative impact on population.\""]
[]
[]
[]
[]
[]
[]
[]
[]
[]
[]
[]
[]
[]
[]
[]
[]
[]
[]
[]
[]
[]
[]
[]
[]
[null,"D5 Other impacts: descriptive text. Example: \"Reduced water table due to altered local hydrology when development is complete. Increased early pond desiccation, resulting in lower breeding success. Likely serious negative impact on population.\" impacts when creating any mitigation or compensation measures."]
[]
[]
[]
[]
[]
[null,"D5.2 Impact assessment map notes"]
[null,"Impact maps must be of a suitable scale to clearly show the following:"]
[null,"§  The development site boundary"]
[null,"§  50m, 250m and 500m radii around each GCN pond boundary"]
[null,"§  Temporary and permanent impacts and habitats affected (to include a key to show the habitat types)."]
[null,"§  Fragmentation impacts and/or barriers to dispersal."]
[null,"More than one map may be required for larger schemes."]
[]
[null,"NB: Impacts must be shown on FIG. D - ensure all habitats types that will be affected"]
[null,"by the proposals and impacts on them (indicating whether temporary or permanent) "]
[null,"are clearly indicated and 50m, 250m and 500m radii are shown around GCN ponds."]
[null,"See Sum & Figs. tab."]
[]
[null,null,null,null,"Next section"]

{"sheet":"E - Mitign & compn ","index":9,"n_rows":375,"n_cols":10,"rows_kept":375,"cut":false,"hidden":false,"merged":[[295,2,295,8],[291,2,291,8],[353,1,353,6],[355,1,355,6],[342,1,342,9],[343,1,343,9],[339,1,341,9],[292,2,292,8],[350,1,350,4],[345,1,345,9],[344,1,344,9],[338,1,338,9],[334,1,334,2],[334,3,334,8],[332,1,332,2],[332,5,332,9],[335,1,335,9],[228,1,248,9],[348,1,348,9],[91,8,91,9],[105,1,107,1],[102,1,103,1],[92,8,92,9],[102,2,102,3],[251,1,251,9],[188,1,188,9],[253,1,253,9],[254,1,254,9],[250,1,250,9],[330,1,330,5],[336,1,337,9],[347,1,347,3],[190,1,190,9],[289,3,289,7],[318,1,318,9],[320,1,320,9],[306,2,306,8],[192,1,212,9],[263,1,283,9],[331,1,331,9],[304,2,304,8],[374,4,374,6],[356,1,356,6],[354,1,354,6],[352,1,352,6],[364,1,366,9],[371,1,371,9],[372,1,372,9],[369,1,369,9],[370,2,370,9],[368,1,368,9],[361,1,361,9],[362,1,362,9],[359,1,359,9],[358,1,358,9],[0,1,0,9],[71,1,71,9],[1,1,1,9],[64,1,67,9],[78,5,79,7],[86,3,86,7],[77,1,77,4],[78,1,79,2],[81,5,81,7],[85,1,85,2],[2,1,12,9],[72,1,72,7],[80,5,80,7],[75,1,75,9],[68,1,68,9],[86,1,86,2],[85,3,85,7],[69,1,69,9],[77,5,77,9],[74,1,74,9],[78,8,79,9],[13,1,62,9],[78,3,79,4],[80,1,80,2],[83,1,83,9],[85,8,85,9],[80,3,80,4],[87,8,87,9],[84,7,84,9],[151,4,151,6],[220,1,220,5],[220,8,220,9],[92,3,92,6],[94,1,94,9],[90,3,90,6],[91,3,91,6],[154,1,157,9],[159,1,179,9],[80,8,80,9],[81,1,81,2],[81,3,81,4],[89,7,89,9],[90,1,90,2],[107,6,107,7],[107,4,107,5],[107,8,107,9],[106,6,106,9],[90,8,90,9],[100,6,101,7],[99,6,99,9],[92,1,92,2],[100,2,101,3],[86,8,86,9],[84,1,84,3],[98,1,98,9],[87,3,87,7],[89,1,89,6],[87,1,87,2],[91,1,91,2],[95,1,97,9],[81,8,81,9],[114,6,114,7],[112,8,113,9],[119,1,122,9],[129,4,129,9],[131,4,131,9],[99,2,99,5],[110,2,111,3],[110,4,111,5],[108,8,109,9],[105,2,105,5],[110,6,111,7],[105,6,105,9],[108,1,109,1],[100,5,101,5],[100,4,101,4],[100,8,101,8],[100,9,101,9],[99,1,101,1],[108,4,109,5],[108,2,109,3],[107,2,107,3],[108,6,109,7],[106,2,106,5],[103,2,103,3],[103,6,103,7],[102,6,102,7],[114,8,114,9],[146,4,146,6],[110,1,111,1],[112,4,113,5],[114,2,114,3],[125,1,128,9],[142,4,142,9],[145,4,145,6],[135,4,135,9],[137,1,137,9],[139,1,141,9],[138,1,138,9],[112,2,113,3],[112,6,113,7],[134,4,134,9],[143,7,144,9],[117,3,117,5],[130,4,130,9],[112,1,113,1],[116,1,116,9],[110,8,111,9],[145,7,145,9],[132,4,132,9],[114,4,114,5],[123,1,123,9],[224,6,224,7],[222,1,222,5],[222,6,222,7],[215,1,216,9],[147,1,147,3],[217,6,217,7],[148,1,148,3],[217,1,217,5],[221,1,221,5],[182,1,187,9],[150,4,150,6],[151,7,151,9],[152,2,152,7],[149,7,149,9],[147,4,147,6],[214,1,214,9],[221,8,221,9],[218,1,219,5],[189,1,189,9],[221,6,221,7],[143,4,144,6],[133,4,133,9],[145,1,145,3],[225,6,225,7],[227,6,227,7],[226,8,226,9],[227,8,227,9],[286,1,286,9],[257,1,262,9],[255,1,255,9],[149,1,149,3],[146,1,146,3],[249,1,249,9],[225,8,225,9],[225,1,225,5],[224,1,224,5],[222,8,222,9],[223,8,223,9],[226,1,226,5],[227,1,227,5],[224,8,224,9],[226,6,226,7],[223,1,223,5],[285,1,285,9],[148,4,148,6],[147,7,147,9],[148,7,148,9],[149,4,149,6],[146,7,146,9],[218,8,219,9],[223,6,223,7],[220,6,220,7],[218,6,219,7],[180,1,180,9],[158,1,158,9],[150,1,150,3],[151,1,151,3],[150,7,150,9],[181,1,181,9],[290,1,290,9],[301,1,301,9],[313,1,317,9],[305,2,305,8],[293,2,293,8],[329,1,329,9],[287,1,287,9],[328,1,328,3],[288,1,288,9],[303,2,303,8],[311,1,311,7],[326,1,327,9],[307,2,307,8],[308,2,308,8],[325,1,325,9],[322,1,323,9],[324,1,324,9],[297,1,297,9],[310,1,310,9],[296,2,296,8],[309,2,309,8],[298,1,299,9],[302,2,302,8],[294,2,294,8]]}
[null,{"$f":"+Ecologist&\": \"&+Site_name","v":": "}]
[]
[null,"E1 The mitigation solution being proposed in the Method Statement should be the one that delivers the ‘need’ with the least impact on the newt population. \nPlease explain why this design was chosen over other potential solutions - set out what other mitigation proposals were considered and why they were not feasible, for example: \n\u009f• if the proposal is to construct a new road and it will destroy breeding ponds, explain why it is not possible to retain the ponds in the proposed design etc; or, \n•\u009f if a residential development results in a net loss of habitat, explain why it was not possible to reduce the housing footprint; or, \n•\u009f if pond drain down is planned for the summer months when newts are breeding please explain why it is not possible to schedule this in, followed by pond destruction, in late September onwards; or\n•\u009f if your proposal includes a non-standard approach to meeting the 'need'."]
[]
[]
[]
[]
[]
[]
[]
[]
[]
[]
[]
[]
[]
[]
[]
[]
[]
[]
[]
[]
[]
[]
[]
[]
[]
[]
[]
[]
[]
[]
[]
[]
[]
[]
[]
[]
[]
[]
[]
[]
[]
[]
[]
[]
[]
[]
[]
[]
[]
[]
[]
[]
[]
[]
[]
[]
[]
[]
[]
[]
[]
[null,"E2 Receptor site selection. NB: this relates to the place(s) where any captured newts will be released. It does not just refer to distant receptor sites or need to be the entire compensation area; where GCN will be placed must be clearly indicated on the relevant map.  Enter details below unless no newts will be captured or displaced.  "]
[]
[]
[]
[null,"NB: Location of the receptor site in relation to the development site must be provided on FIG. E2 "]
[null,"see Sum & Figs. tab"]
[]
[null,"E2.1 Existing GCN status at receptor site(s)"]
[]
[]
[null,"E2.2 Survey information for receptor site if different from the survey for the application proposal."]
[]
[]
[null,"E2.3 Receptor site locations. Must include: ",null,null,null,"Please record further sites in Additional Records tab"]
[null,"Site name",null,"OS grid ref \neg AB12345678",null," Administration area - if different from development site",null,null,"Distance from development site (m)."]
[]
[]
[]
[]
[null,"E2.4 Receptor site(s): ownership and land status. Please note that any receptor site must be free from future"]
[null,"development proposals/threats.",null,null,null,null,null,"Additional records tab."]
[null,"Site name",null,"Site Ownership",null,null,null,null,"Conservation Designation?"]
[null,{"$f":"IF(B81=\"\",\"\",B81)","v":""}]
[null,{"$f":"IF(B82=\"\",\"\",B82)","v":""}]
[]
[null,"E2.5 Receptor site: habitat description, size (ha) & adjacent land use.",null,null,null,null,null,"Additional Records tab"]
[null,"Site name",null,"Habitat description",null,null,null,"Size (ha)","Adjacent Land Use"]
[null,{"$f":"IF(B81=\"\",\"\",B81)","v":""}]
[null,{"$f":"IF(B82=\"\",\"\",B82)","v":""}]
[]
[null,"E3 Habitat creation, restoration and/or enhancement"]
[null,"The left side of table below summarises the impacts you specified in section D. Enter the habitat creation, restoration and/or enhancement that will be undertaken to compensate for these impacts in the right hand column."]
[]
[]
[null,"Should you wish to convert ha to m2 or m2 to ha please use this converter"]
[null,"Aquatic \nhabitat","Impacts",null,null,null,"Compensation"]
[null,null,"Effect",null,"Number","Total Area \n(m2)","Measure",null,"Number","Total Area\n(m2)"]
[]
[null,"GCN ponds","Lost",null,{"$f":"'D - Impact assmt'!C36","v":0},{"$f":"+'D - Impact assmt'!E36","v":0},"Created"]
[null,null,"Damaged",null,{"$f":"'D - Impact assmt'!G36","v":0},{"$f":"+'D - Impact assmt'!I36","v":0},"Restored / reinstated / enhanced"]
[]
[null,"Terrestrial \nhabitat","Impacts",null,null,null,"Compensation"]
[null,null,"Area lost (ha)",null,null,null,"Area gained (ha)"]
[null,null,"Permanent",null,"Temporary",null,"Created",null,"Restored / reinstated / enhanced"]
[null,"Core",{"$f":"'D - Impact assmt'!C26","v":0},null,{"$f":"'D - Impact assmt'!G26","v":0}]
[]
[null,"Intermediate",{"$f":"'D - Impact assmt'!C27","v":0},null,{"$f":"'D - Impact assmt'!G27","v":0}]
[]
[null,"Distant",{"$f":"'D - Impact assmt'!C28","v":0},null,{"$f":"'D - Impact assmt'!G28","v":0}]
[]
[null,"Totals",{"$f":"SUM(C109:D114)","v":0},null,{"$f":"SUM(E109:F114)","v":0},null,{"$f":"SUM(G109:H114)","v":0},null,{"$f":"SUM(I109:J114)","v":0}]
[]
[null,"NB: All habitat creation, restoration and enhancement measures must be shown on FIG. E3.1 - see"]
[null,null,null,"Sum & Figs. tab"]
[]
[null,"If a net loss of habitat (ha) is proposed please provide in the text box below an ecological justification to explain why the habitat measures proposed are considered sufficient to compensate for the impacts of the development. Some reduction in terrestrial habitat area may be acceptable provided there is an appreciable increase in habitat quality."]
[]
[]
[]
[]
[]
[null,"E3.1 Describe the creation, restoration or enhancement of aquatic habitats (include design and water body dimensions as per mitigation guidelines and waterbody location. Dimensions these will be included in any annexed licence issued).  \nNB: Only put timing of aquatic creation, restoration or enhancement in the timetable E6a."]
[]
[]
[]
[null,"Pond reference","Surface Area (m2)","Max. Depth (m)","Design / enhancement measures and location"]
[]
[null," "]
[null," "]
[null," "]
[null," "]
[null," "]
[]
[null,"E Mitigation & compensation (continued)"]
[null,"E3.2 Terrestrial habitat measures"]
[null,"State number/area/length of any terrestrial habitat measures. Leave blank if not applicable.  *Dimensions of hibernacula are expected to be at least that recommended in the mitigation guidelines."]
[]
[]
[null,null,null,null,"Number/area (ha)/length**"]
[null,null,null,null,"Created",null,null,"Reinstated / Restored / Enhanced"]
[]
[null,"Hedgerow planting"]
[null,"Grassland re-seeding"]
[null,"Grassland management (just for GCN)"]
[null,"Scrub planting"]
[null,"Woodland planting"]
[null,"Hibernacula creation*"]
[null,"Refuge creation"]
[null,null,"** Information must be consistent with Table E3."]
[]
[null,"Please describe management methods and explain any novel designs, non-standard proposals or techniques in the free text box below.  Also describe any other terrestrial habitat measures, including locations & design. \n(Confirm landowner agreement for these measures, if they are to be created on land outside of the applicant's ownership, in Declaration worksheet J).  \n"]
[]
[]
[]
[null,"NB: Do not put in specific dates here; add these into E6a (separate document)."]
[]
[]
[]
[]
[]
[]
[]
[]
[]
[]
[]
[]
[]
[]
[]
[]
[]
[]
[]
[]
[]
[]
[null,"E3.3 Integration with roads and other hard landscapes."]
[null,"Explain any measures you will take to integrate mitigation with roads and other hard landscapes. If you propose any connectivity measures, such as underpasses, please specify:\n\n•  Design (to include length, width, height and guide fencing) \n\n•  Monitoring (to include methodology and duration)\n\n•  Maintenance (to detail how long-term functionality of the underpass(es) and entrances will be ensured)"]
[]
[]
[]
[]
[]
[null,"NB: Locations & details of any proposed connectivity measures must be provided on FIG. E3.3 - see:"]
[null," Sum & Figs. tab"]
[null,"NB: If you have identified fragmentation as an impact this is something you should address."]
[]
[]
[]
[]
[]
[]
[]
[]
[]
[]
[]
[]
[]
[]
[]
[]
[]
[]
[]
[]
[]
[]
[]
[null,"E Mitigation & compensation (continued)"]
[null,"E4 Capture, exclusion & translocation:  Please do not refer to any dates in this section - these should be provided in E6."]
[]
[null,"State capture +/or exclusion methods, with effort levels.  ",null,null,null,null,"Pls Read Advice Notes"]
[null,null,null,null,null,null,"Use method?\nYes/no",null,"Minimum capture effort (days)"]
[]
[null,"At pond: bottle-trap, net, hand search &/or drain down"]
[null,"At pond: ring-fence, pitfall trap (+ fence & refuges)"]
[null,"Away from pond: hand search"]
[null,"Away from pond: destructive search"]
[null,"Away from pond: fence, pitfall trap (& refuges)"]
[null,"Away from pond: night search"]
[null,"Away from pond: exclusion fence only "]
[null,"Other or additional method(s) - state below:"]
[]
[]
[]
[]
[]
[]
[]
[]
[]
[]
[]
[]
[]
[]
[]
[]
[]
[]
[]
[]
[]
[]
[null,"NB:  • A minimum of 25 nights trapping will only be acceptable in exceptional circumstances which are fully\n"]
[null," justified and explained. See guidance on capture effort"]
[]
[null,"NB: Locations of all capture/exclusion activities must be shown on FIG. E4(a)"]
[null," - Any non-standard capture/exclusion measures should be detailed on FIG. E4(b) - see H - Figures tab."]
[null," - if timings of works are different for different meta-populations please separate out in your work schedule."]
[]
[null,"Briefly explain your capture/exclusion proposals, for example:\n• Justify the use of non-standard methodologies and/or deviation from recommendations in the Great crested newt mitigation guidelines\n• Explain differing capture effort in trapping compartments\nNB: If a very complex capture operation is proposed the methodology should be explained in detail below."]
[]
[]
[]
[]
[]
[]
[]
[]
[]
[]
[]
[]
[]
[]
[]
[]
[]
[]
[]
[]
[]
[]
[]
[]
[]
[]
[]
[null,"E Mitigation & compensation (continued)"]
[null,"E5 Post-development site safeguard. Refer to Section 8.5 of the Great crested newt mitigation guidelines."]
[null,"E5.1 Habitat management & maintenance"]
[null,"Is any specific post-development habitat management and site maintenance planned? "]
[null,null,null,"If no, proceed to population monitoring section E5.2."]
[null,"State which of the following habitat management operations will occur:"]
[null,null,"Aquatic vegetation management in water bodies"]
[null,null,"Clearance of shading tree or scrub cover around pond margins"]
[null,null,"Mowing, cutting or grazing of grassland"]
[null,null,"Desilting and clearance of leaf-fall "]
[null,null,"Woodland and scrub management"]
[null,null,"Other (state below)"]
[]
[null,"NB: Details of site management and maintenance should be shown on FIG. E5.1. - see \"H Sum & Figs\" tab.  Indicate which areas (including which ponds) the management and maintenance plan will apply to."]
[]
[]
[null,"State which of the following site maintenance operations will occur:"]
[null,null,"Checking for fish presence, and removal through appropriate methods"]
[null,null,"Checking pond condition and remedial action as required"]
[null,null,"Checking for and removal of dumped rubbish"]
[null,null,"Reinstatement following fire, acute pollution or other major damage"]
[null,null,"Repair or replace fences"]
[null,null,"Maintain tunnel, underpass, guide fencing in good condition"]
[null,null,"Repair or replace interpretation boards"]
[null,null,"Other (state below)"]
[]
[null,"State the period for which habitat management and maintenance plan will continue:"]
[]
[null,"NOTE: A separate, detailed plan must also be attached if \n(a) population size class is large and impacts are moderate-high, \n(b) regionally important population and impacts are moderate-high, \n(c) losses of > 2 breeding water bodies on site supporting medium size class population, or \n(d) phased or multi-plot developments. "]
[]
[]
[]
[]
[null,"If your proposal meets one of the above (a - d), confirm that such a document is attached:"]
[]
[null,"Please note, if you have selected ‘No’, you are likely to receive a Further Information Request."]
[]
[null,"E5.2 Post-development population monitoring (refer to Section 8.5.2 of the Great crested newt mitigation guidelines and advice at beginning of this template)."]
[]
[null,"NB: Details of ponds which will be monitored post development must be shown and referenced on FIG. E5.2.  "]
[null," see Sum & Figs. tab"]
[null,"NB: It is the licensee's responsibility to ensure that post development monitoring is carried out and that remedial action is taken if compensation measures are failing."]
[]
[null,"Is population monitoring required? Y/N"]
[null,"Please refer to table in the post development monitoring advice section"]
[null,"If no, proceed to section E5.3"]
[null,"Indicate timing and type of post-development population monitoring:"]
[null,"Timing (years post-dev't):"]
[]
[null,"Type of monitoring:"]
[]
[null,"Specify which ponds will be monitored. Additionally, if your post-development monitoring proposals do not follow the GCNMG please provide your ecological justification below. Comments on monitoring period, methods or effort. "]
[]
[]
[null,"NB:  A Natural England mitigation licence will not confer rights of access to monitor water bodies or other habitats which lie outside the licensee's ownership. Permission/s should be granted prior to applying for a licence. Please see Declaration section in worksheet I."]
[]
[]
[]
[null,"E5.3 Site safeguard"]
[null,"Mechanism(s) for site safeguard."]
[null,"Is there a mechanism in place to secure site safeguard?........................."]
[]
[null,"If N/A, please briefly explain why."]
[]
[]
[null,"If yes, please confirm which apply to your scheme:"]
[]
[null,"i) Restrictive Covenant……………………………………………………………"]
[null,"ii) Clause to relinquish future development rights in S106 agreement………"]
[null,"iii) NERC Act agreement…………………………………………………………"]
[null,"iv) Explicit recognition of site in local planning documents…………………."]
[null,"v) Designation as County Wildlife Site or similar…………………………….."]
[null,"vi) other………"]
[]
[null,"Please confirm that the receptor site and mitigation and / or compensation land is free from future development.  "]
[]
[null,"Note : if you state 'No' your application will almost certainly be rejected; provide justification below."]
[]
[]
[null,"NOTE: A copy of any significant document, such as a Section 106 agreement, must be included with your application. It must be clear within any s106, or other legal document/agreement, where the specific reference to GCN is."]
[]
[]
[]
[null,"E6 Work Schedule  "]
[null,"Please complete a separate Work Schedule for Great crested newt Annexed Licence, and submit with your"]
[null,"application."]
[]
[]
[]
[null,null,null,null,"Next section"]

{"sheet":"F-G-H Sum & Figs","index":10,"n_rows":55,"n_cols":8,"rows_kept":55,"cut":false,"hidden":false,"merged":[[16,2,16,8],[23,1,23,2],[18,1,18,2],[20,7,20,9],[29,1,29,2],[28,3,28,6],[29,3,29,6],[26,7,26,9],[28,1,28,2],[28,7,28,9],[29,7,29,9],[21,3,21,6],[20,1,20,2],[21,1,21,2],[23,3,23,6],[20,3,20,6],[0,1,0,9],[1,1,1,9],[4,1,6,9],[14,2,14,9],[15,2,15,8],[2,1,3,9],[8,1,8,9],[9,1,11,9],[13,1,13,9],[17,2,17,6],[23,7,23,9],[54,4,54,7],[48,1,48,9],[46,1,46,7],[43,7,43,9],[38,1,38,6],[42,1,42,6],[42,7,42,9],[43,1,43,6],[44,1,44,6],[44,7,44,9],[41,1,41,6],[41,7,41,9],[38,7,38,9],[36,1,36,6],[24,7,24,9],[25,7,25,9],[30,3,30,6],[27,7,27,9],[22,3,22,6],[22,7,22,9],[30,7,30,9],[26,3,26,6],[27,3,27,6],[34,1,34,2],[34,3,34,6],[27,1,27,2],[26,1,26,2],[24,3,24,6],[25,3,25,6],[30,1,30,2],[24,1,24,2],[25,1,25,2],[21,7,21,9],[39,1,39,6],[40,1,40,6],[40,7,40,9],[32,7,32,9],[33,7,33,9],[31,3,31,6],[32,3,32,6],[31,1,31,2],[32,1,32,2],[31,7,31,9],[33,3,33,6],[34,7,34,9],[39,7,39,9],[33,1,33,2],[22,1,22,2]]}
[null,{"$f":"+Ecologist&\": \"&+Site_name","v":": "}]
[null,"F - Final post development Layout"]
[null,"F1 Final Post development Layout Figure F1 is required"]
[]
[null,"NB: Please show the final layout on FIG. F1. - see \"H and list of figures\"below. This must show the final development layout and include ponds, buildings, roads, GCN tunnels , other mitigation or compensation measures, etc."]
[]
[]
[]
[null,"G - Checklist of Documents, figures, maps and diagrams to include"]
[null,"You must provide maps, photographs and diagrams to adequately explain the mitigation plans. Use the checklist below to understand what is required for your application. All maps and figures must be included as individual files. Additional maps, photos or diagrams should be included where necessary."]
[]
[]
[]
[null,"Map / Figure guidance: Ensure each map / figures includes the following:"]
[null,null,"•  Site name and figure reference"]
[null,null,"•  Scale bar and Direction of North"]
[null,null,"•  Date DD/MM/YYYY"]
[]
[null,"H - List of figures"]
[]
[null,"Figure reference",null,"Mandatory or not?",null,null,null,"What it must show \n(also see details above on site reference, dating and naming)."]
[null,"Figure B1.1",null,"Yes, if the application is part of a phased or multi-plot development",null,null,null,"Masterplan map showing the location of each individual phase or plot associated with the overall scheme.  The phase to which the current application refers should be highlighted"]
[null,"Figure B1.2",null,"Yes, if there are other GCN mitigation projects nearby which might affect the target population",null,null,null,"Map to show location of other nearby GCN mitigation sites to show development boundaries and compensation/mitigation areas."]
[null,"Figure C3.2a",null,"Yes",null,null,null,"Survey map to show development site location, survey area and ponds. The terrestrial and aquatic habitats described in sections C3.3 and  C3.4 should also be shown. Indicate which ponds were found to support GCN, including specifying results of any eDNA sampling if relevant."]
[null,"Figure C3.2b",null,"-        ",null,null,null,"Aerial photograph of site for information only to help better inform the application."]
[null,"Photos C3.4",null,"Yes",null,null,null,"Photographs to show terrestrial and aquatic habitats on the development site and surrounding area (to include the receptor area)."]
[null,"Figure D",null,"Yes",null,null,null,"Impact map to show the location and extent of the different habitat types to be temporarily and/or permanently lost/damaged (as detailed in section D of the Method Statement). Radii of 50, 250 and 500m around each GCN pond which will be impacted must be shown."]
[null,"Figure E2",null,"Yes",null,null,null,"Receptor site map to show the location of the receptor site(s) in relation to the development."]
[null,"Figure E3.1",null,"Yes, if habitat creation, enhancement or restoration is proposed",null,null,null,"Habitat measures map to show the location and extent of all terrestrial and aquatic habitat measures detailed in section E3 of the Method Statement)."]
[null,"Figure E3.3",null,"Yes, if measures to improve connectivity are proposed",null,null,null,"Connectivity map to show the location of any measures employed to improve connectivity e.g. underpasses/tunnels, newt friendly traffic and /or drainage features (dropped kerbs/set-back gully pots) etc."]
[null,"Figure E4a",null,"Yes ",null,null,null,"Capture and exclusion map to show how GCNs will be cleared from the development site and prevented from entering during construction.  A clear differentiation should be made between different types of amphibian fencing (e.g. permanent, temporary, perimeter, drift, ring, one-way etc).  Direction of travel over one-way fences should also be shown."]
[null,"Figure E4b",null,"Yes, if non-standard measures are proposed",null,null,null,"Non-standard capture and exclusion measures – diagrams or photographs to show designs/specifications."]
[null,"Figure E5.1",null,"Yes, if habitat management and maintenance is proposed",null,null,null,"Post-development management and maintenance map to show the location and extent of the terrestrial and aquatic habitats to be managed and maintained in accordance with section E5.1 of the Method Statement. To include tunnels/underpasses/guide fencing if applicable. Ponds to be managed and maintained must be clearly referenced."]
[null,"Figure E5.2",null,"Yes, if monitoring has been proposed",null,null,null,"Post-development monitoring map to show, and reference, all of the waterbodies to be monitored (as detailed in section E5.2 of the Method Statement).  To include tunnel/underpass/guide fencing if applicable."]
[null,"Figure F1",null,"Yes",null,null,null,"Final development layout map to show both the development layout (e.g. buildings, rail, roads) and all of the mitigation/compensation measures proposed (e.g. including ponds, tunnels, receptor areas)"]
[]
[null,"List of documents"]
[]
[null,"Document",null,null,null,null,null,"Mandatory or not?"]
[null,"Completed application form",null,null,null,null,null,"Yes"]
[null,"Completed method statement template",null,null,null,null,null,"Yes"]
[null,"Completed work schedule",null,null,null,null,null,"Yes"]
[null,"Figures - as stated above",null,null,null,null,null,"Yes"]
[null,"Separate Masterplan document",null,null,null,null,null,"Yes - if part of a phased or multi-plot development"]
[null,"a\nSeparate Habitat Management and\nMaintenance Plan",null,null,null,null,null,"Yes - if:\n(a) population size class is large and impacts are moderate-high, or\n(b) regionally important population and impacts are moderate-high, or\n(c) losses of > 2 breeding water bodies on site supporting medium size class population, or \n(d) phased or multi-plot developments. "]
[]
[null,"List any other maps, photographs or diagrams attached:"]
[]
[]
[]
[]
[]
[]
[]
[null,null,null,null,"Next Section"]

{"sheet":"I - Declarations","index":11,"n_rows":30,"n_cols":5,"rows_kept":30,"cut":false,"hidden":false,"merged":[[0,1,0,9],[1,1,1,9],[2,2,3,9],[5,1,5,9],[6,2,8,9],[7,1,8,1],[26,1,26,9],[29,4,29,7],[9,1,9,9],[10,2,12,9],[11,1,12,1],[14,2,15,9],[16,1,16,9],[18,1,25,9]]}
[null,{"$f":"+Ecologist&\": \"&+Site_name","v":": "}]
[null,"I - Declarations"]
[null,null,"Re: E2: I confirm that relevant landowner consent/s has/have been granted to accept great crested newts onto land outside the applicant's ownership."]
[]
[]
[]
[null,null,"Re: E3.1 and E3.2 – I confirm that landownership consent/s has/have been granted to allow the creation of the proposed habitat compensation (aquatic or terrestrial) on land outside the applicant's ownership."]
[]
[]
[]
[null,null,"Re: E5.2 – I confirm that consent/s has/have been granted by the relevant landowner/s for monitoring and maintenance purposes, as set out in E5.2, on land outside the applicant's ownership."]
[]
[]
[]
[null,null,"RE: E5.1 and E5.2 - I, the applicant, confirm that all habitat management, maintenance and monitoring detailed in section 5, and accompanying documents, will be undertaken. "]
[]
[]
[]
[null,"Unsecured consents statement:  \nIf you have been unable to secure consents for any of the four declarations please explain why and detail any plans you have in place to obtain the consent(s) or provide details of any right(s) or agreement(s) that will enable the lawful implementation of the proposed mitigation, compensation and monitoring.  Important Note: Failure to provide the appropriate landowner consents means that the Method Statement is unlikely to meet the requirements for the FCS test to be met.  It is therefore in your interest to ensure that the appropriate consents have been secured before applying for a licence.\n"]
[]
[]
[]
[]
[]
[]
[]
[]
[]
[]
[null,null,null,null,"Return to beginning"]

{"sheet":"Additional records","index":12,"n_rows":107,"n_cols":9,"rows_kept":107,"cut":false,"hidden":false,"merged":[[93,5,93,7],[93,8,93,9],[85,3,85,5],[85,6,85,9],[86,1,86,2],[86,3,86,5],[86,6,86,9],[90,1,90,4],[0,1,0,9],[1,1,1,9],[2,1,2,9],[17,3,17,4],[17,5,17,9],[84,6,84,9],[85,1,85,2],[83,1,83,2],[83,3,83,5],[83,6,83,9],[84,1,84,2],[84,3,84,5],[26,3,26,4],[26,5,26,9],[63,2,63,6],[63,7,63,9],[4,2,4,9],[5,2,5,9],[30,1,30,3],[62,2,62,6],[62,7,62,9],[3,1,3,4],[3,7,3,9],[16,7,16,9],[9,2,9,9],[10,2,10,9],[6,2,6,9],[7,2,7,9],[8,2,8,9],[13,2,13,9],[14,2,14,9],[11,2,11,9],[12,2,12,9],[91,1,92,2],[91,3,92,4],[91,5,92,7],[91,8,92,9],[90,7,90,9],[69,7,69,9],[18,3,18,4],[18,5,18,9],[61,7,61,9],[64,2,64,6],[64,7,64,9],[22,3,22,4],[22,5,22,9],[23,3,23,4],[65,2,65,6],[79,1,79,2],[79,3,79,5],[24,5,24,9],[25,3,25,4],[25,5,25,9],[27,3,27,4],[21,5,21,9],[67,7,67,9],[65,7,65,9],[66,2,66,6],[19,3,19,4],[19,5,19,9],[20,3,20,4],[20,5,20,9],[21,3,21,4],[27,5,27,9],[23,5,23,9],[24,3,24,4],[66,7,66,9],[30,7,30,9],[31,2,31,3],[67,2,67,6],[68,7,68,9],[69,2,69,6],[76,1,76,2],[76,3,76,5],[76,6,76,9],[75,7,75,9],[71,2,71,6],[71,7,71,9],[72,2,72,6],[72,7,72,9],[70,2,70,6],[70,7,70,9],[68,2,68,6],[94,5,94,7],[95,5,95,7],[94,8,94,9],[95,8,95,9],[94,3,94,4],[95,3,95,4],[82,6,82,9],[77,1,77,2],[77,3,77,5],[77,6,77,9],[78,1,78,2],[78,3,78,5],[78,6,78,9],[82,1,82,2],[82,3,82,5],[81,6,81,9],[79,6,79,9],[80,1,80,2],[80,3,80,5],[80,6,80,9],[81,1,81,2],[81,3,81,5],[93,1,93,2],[93,3,93,4],[110,1,110,2],[110,3,110,6],[110,8,110,9],[108,3,108,6],[109,3,109,6],[103,1,103,2],[103,3,103,7],[103,8,103,9],[106,1,106,2],[107,1,107,2],[107,3,107,6],[107,8,107,9],[105,7,105,9],[105,1,105,6],[108,1,108,2],[109,1,109,2],[108,8,108,9],[109,8,109,9],[99,3,99,7],[99,1,99,2],[106,3,106,6],[102,3,102,7],[106,8,106,9],[101,3,101,7],[96,1,96,2],[96,3,96,4],[96,5,96,7],[96,8,96,9],[100,1,100,2],[100,3,100,7],[100,8,100,9],[99,8,99,9],[98,1,98,4],[98,7,98,9],[101,1,101,2],[102,1,102,2],[101,8,101,9],[102,8,102,9]]}
[null,"Records of additional pond(s) surveyed "]
[null,"Please use this page to record extra data, if more than 10 ponds were surveyed - Ponds 11 - 20"]
[]
[null,"C3.3i continued Ponds 11 - 20",null,null,null,null,null,"Back to Original section"]
[null,"Pond ref","Description"]
[]
[]
[]
[]
[]
[]
[]
[]
[]
[]
[]
[null,"C3.3ii continued",null,null,null,null,null,"Back to Original section"]
[null,"Pond ref","Distance (m)","Surveyed or not?",null,"If not why not?"]
[null,{"$f":"IF(B6=\"\",\"\",B6)","v":""}]
[null,{"$f":"IF(B7=\"\",\"\",B7)","v":""}]
[null,""]
[null,""]
[null,""]
[null,""]
[null,""]
[null,""]
[null,""]
[null,""]
[]
[]
[null,"C3.5 additional ponds HSI score",null,null,null,null,null,"Back to Original section"]
[null,null,"Date HSI assessmt"]
[null,null,"Pond ref",null,{"$f":"IF($B$6=\"\",\"\",$B$6)","v":""},{"$f":"IF($B$7=\"\",\"\",$B$7)","v":""},{"$f":"IF($B$8=\"\",\"\",$B$8)","v":""},{"$f":"IF($B$9=\"\",\"\",$B$9)","v":""},{"$f":"IF($B$10=\"\",\"\",$B$10)","v":""}]
[null,null,"SI1 - Location"]
[null,null,"SI2 - Pond area"]
[null,null,"SI3 - Pond drying"]
[null,null,"SI4 - Water quality"]
[null,null,"SI4 - Shade"]
[null,null,"SI6 - Fowl"]
[null,null,"SI7 - Fish"]
[null,null,"SI8 - Ponds"]
[null,null,"SI9 - Terr'l habitat"]
[null,null,"SI10 - Macrophytes"]
[null,null,"HSI",null,{"$f":"IF(AND(E34=\"\",E35=\"\",E36=\"\",E37=\"\",E38=\"\",E39=\"\",E40=\"\",E41=\"\",E42=\"\",E43=\"\"),\"\",POWER(PRODUCT(E34:E43),(1/COUNTIF(E34:E43,\">0\"))))","v":""},{"$f":"IF(AND(F34=\"\",F35=\"\",F36=\"\",F37=\"\",F38=\"\",F39=\"\",F40=\"\",F41=\"\",F42=\"\",F43=\"\"),\"\",POWER(PRODUCT(F34:F43),(1/COUNTIF(F34:F43,\">0\"))))","v":""},{"$f":"IF(AND(G34=\"\",G35=\"\",G36=\"\",G37=\"\",G38=\"\",G39=\"\",G40=\"\",G41=\"\",G42=\"\",G43=\"\"),\"\",POWER(PRODUCT(G34:G43),(1/COUNTIF(G34:G43,\">0\"))))","v":""},{"$f":"IF(AND(H34=\"\",H35=\"\",H36=\"\",H37=\"\",H38=\"\",H39=\"\",H40=\"\",H41=\"\",H42=\"\",H43=\"\"),\"\",POWER(PRODUCT(H34:H43),(1/COUNTIF(H34:H43,\">0\"))))","v":""},{"$f":"IF(AND(I34=\"\",I35=\"\",I36=\"\",I37=\"\",I38=\"\",I39=\"\",I40=\"\",I41=\"\",I42=\"\",I43=\"\"),\"\",POWER(PRODUCT(I34:I43),(1/COUNTIF(I34:I43,\">0\"))))","v":""}]
[]
[]
[]
[null,null,"Date HSI assessmt"]
[null,null,"Pond ref",null,{"$f":"IF($B$11=\"\",\"\",$B$11)","v":""},{"$f":"IF($B$12=\"\",\"\",$B$12)","v":""},{"$f":"IF($B$13=\"\",\"\",$B$13)","v":""},{"$f":"IF($B$14=\"\",\"\",$B$14)","v":""},{"$f":"IF($B$15=\"\",\"\",$B$15)","v":""}]
[null,null,"SI1 - Location"]
[null,null,"SI2 - Pond area"]
[null,null,"SI3 - Pond drying"]
[null,null,"SI4 - Water quality"]
[null,null,"SI4 - Shade"]
[null,null,"SI6 - Fowl"]
[null,null,"SI7 - Fish"]
[null,null,"SI8 - Ponds"]
[null,null,"SI9 - Terr'l habitat"]
[null,null,"SI10 - Macrophytes"]
[null,null,"HSI",null,{"$f":"IF(AND(E50=\"\",E51=\"\",E52=\"\",E53=\"\",E54=\"\",E55=\"\",E56=\"\",E57=\"\",E58=\"\",E59=\"\"),\"\",POWER(PRODUCT(E50:E59),(1/COUNTIF(E50:E59,\">0\"))))","v":""},{"$f":"IF(AND(F50=\"\",F51=\"\",F52=\"\",F53=\"\",F54=\"\",F55=\"\",F56=\"\",F57=\"\",F58=\"\",F59=\"\"),\"\",POWER(PRODUCT(F50:F59),(1/COUNTIF(F50:F59,\">0\"))))","v":""},{"$f":"IF(AND(G50=\"\",G51=\"\",G52=\"\",G53=\"\",G54=\"\",G55=\"\",G56=\"\",G57=\"\",G58=\"\",G59=\"\"),\"\",POWER(PRODUCT(G50:G59),(1/COUNTIF(G50:G59,\">0\"))))","v":""},{"$f":"IF(AND(H50=\"\",H51=\"\",H52=\"\",H53=\"\",H54=\"\",H55=\"\",H56=\"\",H57=\"\",H58=\"\",H59=\"\"),\"\",POWER(PRODUCT(H50:H59),(1/COUNTIF(H50:H59,\">0\"))))","v":""},{"$f":"IF(AND(I50=\"\",I51=\"\",I52=\"\",I53=\"\",I54=\"\",I55=\"\",I56=\"\",I57=\"\",I58=\"\",I59=\"\"),\"\",POWER(PRODUCT(I50:I59),(1/COUNTIF(I50:I59,\">0\"))))","v":""}]
[]
[null,"C4.2iii Continued",null,null,null,null,null,"Back to Original section"]
[null,"Pond ref","GCN Surveyor / Accredited Agent",null,null,null,null,"Licence Reference"]
[null,{"$f":"IF(B6=\"\",\"\",B6)","v":""}]
[null,""]
[null,""]
[null,""]
[null,""]
[null,""]
[null,""]
[null,""]
[null,""]
[null,""]
[]
[]
[null,"4.2c Continued",null,null,null,null,null,"Back to Original section"]
[null,"Pond reference",null,"Date eDNA sample taken",null,null,"Result (presence or absence)"]
[null,{"$f":"IF(B6=\"\",\"\",B6)","v":""}]
[null,{"$f":"IF(B7=\"\",\"\",B7)","v":""}]
[null,""]
[null,""]
[null,""]
[null,""]
[null,""]
[null,""]
[null,""]
[null,""]
[]
[]
[]
[null,"E2.3 Receptor site locations. Continued",null,null,null,null,null,"Back to original section"]
[null,"Site name",null,"OS grid ref \neg AB12345678",null," Administration area - if different from development site",null,null,"Distance from development site (m)."]
[]
[]
[]
[]
[]
[]
[null,"E2.4 Receptor site(s): continued",null,null,null,null,null,"Back to original section"]
[null,"Site name",null,"Site Ownership",null,null,null,null,"Conservation Designation?"]
[]
[]
[]
[]
[]
[null,"E2.5 Receptor site(s):  continued",null,null,null,null,null,"Back to original section"]
[null,"Site name",null,"Habitat description",null,null,null,"Size (ha)","Adjacent Land Use"]

{"sheet":"C - Survey - Pond 11-20","index":13,"n_rows":333,"n_cols":31,"rows_kept":333,"cut":false,"hidden":false,"merged":[[327,1,327,8],[327,10,327,16],[328,1,328,3],[328,4,331,16],[322,6,322,7],[322,9,322,10],[322,12,322,13],[324,6,324,7],[324,9,324,10],[324,12,324,13],[326,6,326,7],[326,9,326,10],[326,12,326,13],[320,9,320,10],[320,12,320,13],[316,9,316,10],[316,12,316,13],[308,6,308,8],[308,9,308,11],[308,15,310,15],[308,16,310,16],[309,1,309,3],[309,6,309,8],[309,9,309,11],[310,1,310,5],[312,6,312,7],[312,9,312,10],[312,12,312,13],[314,6,314,7],[314,9,314,10],[314,12,314,13],[316,6,316,7],[318,6,318,7],[318,9,318,10],[318,12,318,13],[320,6,320,7],[302,1,302,16],[303,1,303,9],[303,10,303,16],[304,1,306,16],[307,1,307,4],[307,5,309,5],[307,6,307,8],[307,9,307,11],[307,12,309,14],[308,1,308,4],[294,1,294,8],[294,10,294,16],[295,1,295,3],[295,4,298,16],[289,6,289,7],[289,9,289,10],[289,12,289,13],[291,6,291,7],[291,9,291,10],[291,12,291,13],[293,6,293,7],[293,9,293,10],[293,12,293,13],[287,9,287,10],[287,12,287,13],[283,9,283,10],[283,12,283,13],[275,6,275,8],[275,9,275,11],[275,15,277,15],[275,16,277,16],[276,1,276,3],[276,6,276,8],[276,9,276,11],[277,1,277,5],[279,6,279,7],[279,9,279,10],[279,12,279,13],[281,6,281,7],[281,9,281,10],[281,12,281,13],[283,6,283,7],[285,6,285,7],[285,9,285,10],[285,12,285,13],[287,6,287,7],[269,1,269,16],[270,1,270,9],[270,10,270,16],[271,1,273,16],[274,1,274,4],[274,5,276,5],[274,6,274,8],[274,9,274,11],[274,12,276,14],[275,1,275,4],[261,1,261,8],[261,10,261,16],[262,1,262,3],[262,4,265,16],[256,6,256,7],[256,9,256,10],[256,12,256,13],[258,6,258,7],[258,9,258,10],[258,12,258,13],[260,6,260,7],[260,9,260,10],[260,12,260,13],[254,9,254,10],[254,12,254,13],[250,9,250,10],[250,12,250,13],[242,6,242,8],[242,9,242,11],[242,15,244,15],[242,16,244,16],[243,1,243,3],[243,6,243,8],[243,9,243,11],[244,1,244,5],[246,6,246,7],[246,9,246,10],[246,12,246,13],[248,6,248,7],[248,9,248,10],[248,12,248,13],[250,6,250,7],[252,6,252,7],[252,9,252,10],[252,12,252,13],[254,6,254,7],[236,1,236,16],[237,1,237,9],[237,10,237,16],[238,1,240,16],[241,1,241,4],[241,5,243,5],[241,6,241,8],[241,9,241,11],[241,12,243,14],[242,1,242,4],[228,1,228,8],[228,10,228,16],[229,1,229,3],[229,4,232,16],[223,6,223,7],[223,9,223,10],[223,12,223,13],[225,6,225,7],[225,9,225,10],[225,12,225,13],[227,6,227,7],[227,9,227,10],[227,12,227,13],[221,9,221,10],[221,12,221,13],[217,9,217,10],[217,12,217,13],[209,6,209,8],[209,9,209,11],[209,15,211,15],[209,16,211,16],[210,1,210,3],[210,6,210,8],[210,9,210,11],[211,1,211,5],[213,6,213,7],[213,9,213,10],[213,12,213,13],[215,6,215,7],[215,9,215,10],[215,12,215,13],[217,6,217,7],[219,6,219,7],[219,9,219,10],[219,12,219,13],[221,6,221,7],[203,1,203,16],[204,1,204,9],[204,10,204,16],[205,1,207,16],[208,1,208,4],[208,5,210,5],[208,6,208,8],[208,9,208,11],[208,12,210,14],[209,1,209,4],[195,1,195,8],[195,10,195,16],[196,1,196,3],[196,4,199,16],[190,6,190,7],[190,9,190,10],[190,12,190,13],[192,6,192,7],[192,9,192,10],[192,12,192,13],[194,6,194,7],[194,9,194,10],[194,12,194,13],[188,9,188,10],[188,12,188,13],[184,9,184,10],[184,12,184,13],[176,6,176,8],[176,9,176,11],[176,15,178,15],[176,16,178,16],[177,1,177,3],[177,6,177,8],[177,9,177,11],[178,1,178,5],[180,6,180,7],[180,9,180,10],[180,12,180,13],[182,6,182,7],[182,9,182,10],[182,12,182,13],[184,6,184,7],[186,6,186,7],[186,9,186,10],[186,12,186,13],[188,6,188,7],[170,1,170,16],[171,1,171,9],[171,10,171,16],[172,1,174,16],[175,1,175,4],[175,5,177,5],[175,6,175,8],[175,9,175,11],[175,12,177,14],[176,1,176,4],[162,1,162,8],[162,10,162,16],[163,1,163,3],[163,4,166,16],[157,6,157,7],[157,9,157,10],[157,12,157,13],[159,6,159,7],[159,9,159,10],[159,12,159,13],[161,6,161,7],[161,9,161,10],[161,12,161,13],[155,9,155,10],[155,12,155,13],[151,9,151,10],[151,12,151,13],[143,6,143,8],[143,9,143,11],[143,15,145,15],[143,16,145,16],[144,1,144,3],[144,6,144,8],[144,9,144,11],[145,1,145,5],[147,6,147,7],[147,9,147,10],[147,12,147,13],[149,6,149,7],[149,9,149,10],[149,12,149,13],[151,6,151,7],[153,6,153,7],[153,9,153,10],[153,12,153,13],[155,6,155,7],[137,1,137,16],[138,1,138,9],[138,10,138,16],[139,1,141,16],[142,1,142,4],[142,5,144,5],[142,6,142,8],[142,9,142,11],[142,12,144,14],[143,1,143,4],[129,1,129,8],[129,10,129,16],[130,1,130,3],[130,4,133,16],[124,6,124,7],[124,9,124,10],[124,12,124,13],[126,6,126,7],[126,9,126,10],[126,12,126,13],[128,6,128,7],[128,9,128,10],[128,12,128,13],[122,9,122,10],[122,12,122,13],[118,9,118,10],[118,12,118,13],[110,6,110,8],[110,9,110,11],[110,15,112,15],[110,16,112,16],[111,1,111,3],[111,6,111,8],[111,9,111,11],[112,1,112,5],[114,6,114,7],[114,9,114,10],[114,12,114,13],[116,6,116,7],[116,9,116,10],[116,12,116,13],[118,6,118,7],[120,6,120,7],[120,9,120,10],[120,12,120,13],[122,6,122,7],[104,1,104,16],[105,1,105,9],[105,10,105,16],[106,1,108,16],[109,1,109,4],[109,5,111,5],[109,6,109,8],[109,9,109,11],[109,12,111,14],[110,1,110,4],[96,1,96,8],[96,10,96,16],[97,1,97,3],[97,4,100,16],[91,6,91,7],[91,9,91,10],[91,12,91,13],[93,6,93,7],[93,9,93,10],[93,12,93,13],[95,6,95,7],[95,9,95,10],[95,12,95,13],[89,9,89,10],[89,12,89,13],[85,9,85,10],[85,12,85,13],[77,6,77,8],[77,9,77,11],[77,15,79,15],[77,16,79,16],[78,1,78,3],[78,6,78,8],[78,9,78,11],[79,1,79,5],[81,6,81,7],[81,9,81,10],[81,12,81,13],[83,6,83,7],[83,9,83,10],[83,12,83,13],[85,6,85,7],[87,6,87,7],[87,9,87,10],[87,12,87,13],[89,6,89,7],[71,1,71,16],[72,1,72,9],[72,10,72,16],[73,1,75,16],[76,1,76,4],[76,5,78,5],[76,6,76,8],[76,9,76,11],[76,12,78,14],[77,1,77,4],[63,1,63,8],[63,10,63,16],[64,1,64,3],[64,4,67,16],[58,6,58,7],[58,9,58,10],[58,12,58,13],[60,6,60,7],[60,9,60,10],[60,12,60,13],[62,6,62,7],[62,9,62,10],[62,12,62,13],[56,9,56,10],[56,12,56,13],[52,9,52,10],[52,12,52,13],[44,6,44,8],[44,9,44,11],[44,15,46,15],[44,16,46,16],[45,1,45,3],[45,6,45,8],[45,9,45,11],[46,1,46,5],[48,6,48,7],[48,9,48,10],[48,12,48,13],[50,6,50,7],[50,9,50,10],[50,12,50,13],[52,6,52,7],[54,6,54,7],[54,9,54,10],[54,12,54,13],[56,6,56,7],[38,1,38,16],[39,1,39,9],[39,10,39,16],[40,1,42,16],[43,1,43,4],[43,5,45,5],[43,6,43,8],[43,9,43,11],[43,12,45,14],[44,1,44,4],[30,1,30,8],[31,1,31,3],[31,4,34,16],[25,9,25,10],[25,12,25,13],[15,6,15,7],[15,9,15,10],[15,12,15,13],[17,6,17,7],[17,9,17,10],[27,6,27,7],[27,9,27,10],[27,12,27,13],[29,6,29,7],[29,9,29,10],[29,12,29,13],[0,1,0,16],[2,1,2,4],[3,1,3,4],[23,6,23,7],[23,9,23,10],[23,12,23,13],[25,6,25,7],[19,12,19,13],[11,15,13,15],[12,9,12,11],[17,12,17,13],[19,6,19,7],[19,9,19,10],[21,6,21,7],[21,9,21,10],[21,12,21,13],[10,6,10,8],[12,1,12,3],[12,6,12,8],[3,6,3,16],[2,6,2,9],[2,10,2,16],[1,1,1,16],[11,16,13,16],[13,1,13,5],[4,1,4,2],[4,3,4,16],[5,1,9,16],[10,1,10,4],[10,5,12,5],[10,9,10,11],[10,12,12,14],[11,1,11,4],[11,6,11,8],[11,9,11,11],[7,29,8,29],[7,30,8,30],[19,28,19,29],[7,20,8,20],[7,21,8,21],[7,22,8,22],[7,23,8,23],[7,24,8,24],[7,25,8,25],[7,26,8,26],[7,27,8,27],[7,28,8,28]]}
[null,{"$f":"+Ecologist&\": \"&+Site_name","v":": "}]
[null,"C4.3 Aquatic amphibian survey (conventional methods) - GCN results - Pond 11"]
[null,"Was an aquatic amphibian survey done?",null,null,null,null,"If no, proceed to next section.",null,null,null,"Return to Ponds 1 - 10 tab"]
[null,"Total no. of ponds surveyed:",null,null,null,{"$f":"'C - Survey - Pond 1-10'!F4","v":0}]
[null,"Surveyor name(s):"]
[null,"Important. Read before completing this section: Enter GCN survey data in relevant boxes in the table below (for Pond 1) and those on subsequent sheets (for up to 9 other ponds). Enter \"0\" where you did a survey and found no newts; leave box blank if no survey was done. This format is designed for a typical single season survey with typical methods and effort. Explain atypical methods/effort later. For multiple year surveys, give details in annex (convert data to this format if possible). Use these tables to provide details only for the most recent season's survey. Append older survey results in full. Automatic yellow highlight indicates possible detectability problem (see Evaluation & interpretation section, later)."]
[]
[null,null,null,null,null,null,null,null,null,null,null,null,null,null,null,null,null,null,null,null,"Pond 11","Pond 12","Pond 13","Pond 14","Pond 15","Pond 16","Pond 17","Pond 18","Pond 19","Pond 20","Visit total"]
[]
[null,null,null,null,null,null,null,null,null,null,null,null,null,null,null,null,null,null,null,"Visit 1",{"$f":"MAX('C - Survey - Pond 11-20'!G16:M16)","v":0},{"$f":"MAX('C - Survey - Pond 11-20'!G49:M49)","v":0},{"$f":"MAX('C - Survey - Pond 11-20'!G82:M82)","v":0},{"$f":"MAX('C - Survey - Pond 11-20'!G115:M115)","v":0},{"$f":"MAX('C - Survey - Pond 11-20'!G148:M148)","v":0},{"$f":"MAX('C - Survey - Pond 11-20'!G181:M181)","v":0},{"$f":"MAX('C - Survey - Pond 11-20'!G214:M214)","v":0},{"$f":"MAX('C - Survey - Pond 11-20'!G247:M247)","v":0},{"$f":"MAX('C - Survey - Pond 11-20'!G280:M280)","v":0},{"$f":"MAX('C - Survey - Pond 11-20'!G313:M313)","v":0},{"$f":"SUM(U10:AD10)","v":0}]
[null,"Pond reference (e.g. \"Pond 11\") - below",null,null,null,"Method:","Torch",null,null,"Bottle-trap",null,null,"Net",null,null,"Egg search","Larvae",null,null,"Visit 2",{"$f":"MAX('C - Survey - Pond 11-20'!G18:M18)","v":0},{"$f":"MAX('C - Survey - Pond 11-20'!G51:M51)","v":0},{"$f":"MAX('C - Survey - Pond 11-20'!G84:M84)","v":0},{"$f":"MAX('C - Survey - Pond 11-20'!G117:M117)","v":0},{"$f":"MAX('C - Survey - Pond 11-20'!G150:M150)","v":0},{"$f":"MAX('C - Survey - Pond 11-20'!G183:M183)","v":0},{"$f":"MAX('C - Survey - Pond 11-20'!G216:M216)","v":0},{"$f":"MAX('C - Survey - Pond 11-20'!G249:M249)","v":0},{"$f":"MAX('C - Survey - Pond 11-20'!G282:M282)","v":0},{"$f":"MAX('C - Survey - Pond 11-20'!G315:M315)","v":0},{"$f":"SUM(U11:AD11)","v":0}]
[null,null,null,null,null,null,"Torch power:",null,null,"No. of traps used in pond:",null,null,null,null,null,"eggs found?","larvae found? (any method)",null,null,"Visit 3",{"$f":"MAX('C - Survey - Pond 11-20'!G20:M20)","v":0},{"$f":"MAX('C - Survey - Pond 11-20'!G53:M53)","v":0},{"$f":"MAX('C - Survey - Pond 11-20'!G86:M86)","v":0},{"$f":"MAX('C - Survey - Pond 11-20'!G119:M119)","v":0},{"$f":"MAX('C - Survey - Pond 11-20'!G152:M152)","v":0},{"$f":"MAX('C - Survey - Pond 11-20'!G185:M185)","v":0},{"$f":"MAX('C - Survey - Pond 11-20'!G218:M218)","v":0},{"$f":"MAX('C - Survey - Pond 11-20'!G251:M251)","v":0},{"$f":"MAX('C - Survey - Pond 11-20'!G284:M284)","v":0},{"$f":"MAX('C - Survey - Pond 11-20'!G317:M317)","v":0},0]
[null,"No. of survey visits to this pond:",null,null,0,null,null,null,null,null,null,null,null,null,null,null,null,null,null,"Visit 4",{"$f":"MAX('C - Survey - Pond 11-20'!G22:M22)","v":0},{"$f":"MAX('C - Survey - Pond 11-20'!G55:M55)","v":0},{"$f":"MAX('C - Survey - Pond 11-20'!G88:M88)","v":0},{"$f":"MAX('C - Survey - Pond 11-20'!G121:M121)","v":0},{"$f":"MAX('C - Survey - Pond 11-20'!G154:M154)","v":0},{"$f":"MAX('C - Survey - Pond 11-20'!G187:M187)","v":0},{"$f":"MAX('C - Survey - Pond 11-20'!G220:M220)","v":0},{"$f":"MAX('C - Survey - Pond 11-20'!G253:M253)","v":0},{"$f":"MAX('C - Survey - Pond 11-20'!G286:M286)","v":0},{"$f":"MAX('C - Survey - Pond 11-20'!G319:M319)","v":0},0]
[null,"Sex/life stage:",null,null,null,null,"Male","Female","Imm.","Male","Female","Imm.","Male","Female","Imm.",null,null,null,null,"Visit 5",{"$f":"MAX('C - Survey - Pond 11-20'!G24:M24)","v":0},{"$f":"MAX('C - Survey - Pond 11-20'!G57:M57)","v":0},{"$f":"MAX('C - Survey - Pond 11-20'!G90:M90)","v":0},{"$f":"MAX('C - Survey - Pond 11-20'!G123:M123)","v":0},{"$f":"MAX('C - Survey - Pond 11-20'!G156:M156)","v":0},{"$f":"MAX('C - Survey - Pond 11-20'!G189:M189)","v":0},{"$f":"MAX('C - Survey - Pond 11-20'!G222:M222)","v":0},{"$f":"MAX('C - Survey - Pond 11-20'!G255:M255)","v":0},{"$f":"MAX('C - Survey - Pond 11-20'!G288:M288)","v":0},{"$f":"MAX('C - Survey - Pond 11-20'!G321:M321)","v":0},0]
[null,"(1) Date:","Air temp","Veg cover","Turbidity",{"$f":"IF(OR(AND(NOT(ISBLANK($C16)),$C16<5),AND(NOT(ISBLANK($D16)),$D16>3),AND(NOT(ISBLANK($E16)),$E16>3)),\"1\",\"0\")","v":"0"},null,null,null,null,null,null,null,null,null,null,null,null,null,"Visit 6",{"$f":"MAX('C - Survey - Pond 11-20'!G26:M26)","v":0},{"$f":"MAX('C - Survey - Pond 11-20'!G59:M59)","v":0},{"$f":"MAX('C - Survey - Pond 11-20'!G92:M92)","v":0},{"$f":"MAX('C - Survey - Pond 11-20'!G125:M125)","v":0},{"$f":"MAX('C - Survey - Pond 11-20'!G158:M158)","v":0},{"$f":"MAX('C - Survey - Pond 11-20'!G191:M191)","v":0},{"$f":"MAX('C - Survey - Pond 11-20'!G224:M224)","v":0},{"$f":"MAX('C - Survey - Pond 11-20'!G257:M257)","v":0},{"$f":"MAX('C - Survey - Pond 11-20'!G290:M290)","v":0},{"$f":"MAX('C - Survey - Pond 11-20'!G323:M323)","v":0},0]
[null,null,null,null,null,"Adult totals:",{"$f":"G15+H15","v":0},null,null,{"$f":"J15+K15","v":0},null,null,{"$f":"M15+N15","v":0},null,null,null,null,null,null,"Visit 7",{"$f":"MAX('C - Survey - Pond 11-20'!G28:M28)","v":0},{"$f":"MAX('C - Survey - Pond 11-20'!G61:M61)","v":0},{"$f":"MAX('C - Survey - Pond 11-20'!G94:M94)","v":0},{"$f":"MAX('C - Survey - Pond 11-20'!G127:M127)","v":0},{"$f":"MAX('C - Survey - Pond 11-20'!G160:M160)","v":0},{"$f":"MAX('C - Survey - Pond 11-20'!G193:M193)","v":0},{"$f":"MAX('C - Survey - Pond 11-20'!G226:M226)","v":0},{"$f":"MAX('C - Survey - Pond 11-20'!G259:M259)","v":0},{"$f":"MAX('C - Survey - Pond 11-20'!G292:M292)","v":0},{"$f":"MAX('C - Survey - Pond 11-20'!G325:M325)","v":0},0]
[null,"(2) Date:","Air temp","Veg cover","Turbidity",{"$f":"IF(OR(AND(NOT(ISBLANK($C18)),$C18<5),AND(NOT(ISBLANK($D18)),$D18>3),AND(NOT(ISBLANK($E18)),$E18>3)),\"1\",\"0\")","v":"0"},null,null,null,null,null,null,null,null,null,null,null,null,null,"Visit 8",{"$f":"MAX('C - Survey - Pond 11-20'!G30:M30)","v":0},{"$f":"MAX('C - Survey - Pond 11-20'!G63:M63)","v":0},{"$f":"MAX('C - Survey - Pond 11-20'!G96:M96)","v":0},{"$f":"MAX('C - Survey - Pond 11-20'!G129:M129)","v":0},{"$f":"MAX('C - Survey - Pond 11-20'!G162:M162)","v":0},{"$f":"MAX('C - Survey - Pond 11-20'!G195:M195)","v":0},{"$f":"MAX('C - Survey - Pond 11-20'!G228:M228)","v":0},{"$f":"MAX('C - Survey - Pond 11-20'!G261:M261)","v":0},{"$f":"MAX('C - Survey - Pond 11-20'!G294:M294)","v":0},{"$f":"MAX('C - Survey - Pond 11-20'!G327:M327)","v":0},0]
[null,null,null,null,null,"Adult totals:",{"$f":"G17+H17","v":0},null,null,{"$f":"J17+K17","v":0},null,null,{"$f":"M17+N17","v":0},null,null,null,null,null,null,null,{"$f":"MATCH((MAX(U10:U17)),U10:U17,0)","v":1},{"$f":"MATCH((MAX(V10:V17)),V10:V17,0)","v":1},1,1,1,1,1,1,1,1]
[null,"(3) Date:","Air temp","Veg cover","Turbidity",{"$f":"IF(OR(AND(NOT(ISBLANK($C20)),$C20<5),AND(NOT(ISBLANK($D20)),$D20>3),AND(NOT(ISBLANK($E20)),$E20>3)),\"1\",\"0\")","v":"0"}]
[null,null,null,null,null,"Adult totals:",{"$f":"G19+H19","v":0},null,null,{"$f":"J19+K19","v":0},null,null,{"$f":"M19+N19","v":0},null,null,null,null,null,null,null,null,null,null,null,null,null,null,null,"total peak",null,{"$f":"MAX(AE10:AE17)","v":0}]
[null,"(4) Date:","Air temp","Veg cover","Turbidity",{"$f":"IF(OR(AND(NOT(ISBLANK($C22)),$C22<5),AND(NOT(ISBLANK($D22)),$D22>3),AND(NOT(ISBLANK($E22)),$E22>3)),\"1\",\"0\")","v":"0"}]
[null,null,null,null,null,"Adult totals:",{"$f":"G21+H21","v":0},null,null,{"$f":"J21+K21","v":0},null,null,{"$f":"M21+N21","v":0}]
[null,"(5) Date:","Air temp","Veg cover","Turbidity",{"$f":"IF(OR(AND(NOT(ISBLANK($C24)),$C24<5),AND(NOT(ISBLANK($D24)),$D24>3),AND(NOT(ISBLANK($E24)),$E24>3)),\"1\",\"0\")","v":"0"}]
[null,null,null,null,null,"Adult totals:",{"$f":"G23+H23","v":0},null,null,{"$f":"J23+K23","v":0},null,null,{"$f":"M23+N23","v":0}]
[null,"(6) Date:","Air temp","Veg cover","Turbidity",{"$f":"IF(OR(AND(NOT(ISBLANK($C26)),$C26<5),AND(NOT(ISBLANK($D26)),$D26>3),AND(NOT(ISBLANK($E26)),$E26>3)),\"1\",\"0\")","v":"0"}]
[null,null,null,null,null,"Adult totals:",{"$f":"G25+H25","v":0},null,null,{"$f":"J25+K25","v":0},null,null,{"$f":"M25+N25","v":0}]
[null,"(7) Date:","Air temp","Veg cover","Turbidity",{"$f":"IF(OR(AND(NOT(ISBLANK($C28)),$C28<5),AND(NOT(ISBLANK($D28)),$D28>3),AND(NOT(ISBLANK($E28)),$E28>3)),\"1\",\"0\")","v":"0"}]
[null,null,null,null,null,"Adult totals:",{"$f":"G27+H27","v":0},null,null,{"$f":"J27+K27","v":0},null,null,{"$f":"M27+N27","v":0}]
[null,"(8) Date:","Air temp","Veg cover","Turbidity",{"$f":"IF(OR(AND(NOT(ISBLANK($C30)),$C30<5),AND(NOT(ISBLANK($D30)),$D30>3),AND(NOT(ISBLANK($E30)),$E30>3)),\"1\",\"0\")","v":"0"}]
[null,null,null,null,null,"Adult totals:",{"$f":"G29+H29","v":0},null,null,{"$f":"J29+K29","v":0},null,null,{"$f":"M29+N29","v":0}]
[null,"Peak adult count for this pond in any one visit (by torch, trap or net):",null,null,null,null,null,null,null,{"$f":"MAX(G16,J16,M16,G18,J18,M18,G20,J20,M20,G22,J22,M22,G24,J24,M24,G26,J26,M26,G28,J28,M28,G30,J30,M30)","v":0}]
[null,"Comments and constraints:"]
[null,"Temp Veg Tur problem?",{"$f":"F15+F17+F19+F21+F23+F25+F27+F29","v":0}]
[null,"Torch power low?",{"$f":"IF(AND(NOT(ISBLANK(G13)),OR(G13=\"< 50,000 cp\",G13=\"50,000 - 499,999 cp\")),\"1\",\"0\")","v":"0"}]
[null,"Visit 1 overall det problem?",{"$f":"C33+C34","v":0}]
[null,"# ponds",{"$f":"$F$4","v":0}]
[]
[]
[null,{"$f":"+Ecologist&\": \"&+Site_name","v":": "}]
[null,"C4.3 Aquatic amphibian survey (conventional methods)- GCN results (cont - Pond 12)",null,null,null,null,null,null,null,null,"NB: This page prints in landscape format"]
[]
[]
[]
[null,"Pond reference (e.g. Pond 12)",null,null,null,"Method:","Torch",null,null,"Bottle-trap",null,null,"Net",null,null,"Egg search","Larvae"]
[null,null,null,null,null,null,"Torch power:",null,null,"No. of traps used in pond:",null,null,null,null,null,"eggs found?","larvae found? (any method)"]
[null,"No. of survey visits to this pond:"]
[null,"Sex/life stage:",null,null,null,null,"Male","Female","Imm.","Male","Female","Imm.","Male","Female","Imm."]
[null,"(1) Date:","Air temp","Veg cover","Turbidity",{"$f":"IF(OR(AND(NOT(ISBLANK($C49)),$C49<5),AND(NOT(ISBLANK($D49)),$D49>3),AND(NOT(ISBLANK($E49)),$E49>3)),\"1\",\"0\")","v":"0"}]
[null,null,null,null,null,"Adult totals:",{"$f":"G48+H48","v":0},null,null,{"$f":"J48+K48","v":0},null,null,{"$f":"M48+N48","v":0}]
[null,"(2) Date:","Air temp","Veg cover","Turbidity",{"$f":"IF(OR(AND(NOT(ISBLANK($C51)),$C51<5),AND(NOT(ISBLANK($D51)),$D51>3),AND(NOT(ISBLANK($E51)),$E51>3)),\"1\",\"0\")","v":"0"}]
[null,null,null,null,null,"Adult totals:",{"$f":"G50+H50","v":0},null,null,{"$f":"J50+K50","v":0},null,null,{"$f":"M50+N50","v":0}]
[null,"(3) Date:","Air temp","Veg cover","Turbidity",{"$f":"IF(OR(AND(NOT(ISBLANK($C53)),$C53<5),AND(NOT(ISBLANK($D53)),$D53>3),AND(NOT(ISBLANK($E53)),$E53>3)),\"1\",\"0\")","v":"0"}]
[null,null,null,null,null,"Adult totals:",{"$f":"G52+H52","v":0},null,null,{"$f":"J52+K52","v":0},null,null,{"$f":"M52+N52","v":0}]
[null,"(4) Date:","Air temp","Veg cover","Turbidity",{"$f":"IF(OR(AND(NOT(ISBLANK($C55)),$C55<5),AND(NOT(ISBLANK($D55)),$D55>3),AND(NOT(ISBLANK($E55)),$E55>3)),\"1\",\"0\")","v":"0"}]
[null,null,null,null,null,"Adult totals:",{"$f":"G54+H54","v":0},null,null,{"$f":"J54+K54","v":0},null,null,{"$f":"M54+N54","v":0}]
[null,"(5) Date:","Air temp","Veg cover","Turbidity",{"$f":"IF(OR(AND(NOT(ISBLANK($C57)),$C57<5),AND(NOT(ISBLANK($D57)),$D57>3),AND(NOT(ISBLANK($E57)),$E57>3)),\"1\",\"0\")","v":"0"}]
[null,null,null,null,null,"Adult totals:",{"$f":"G56+H56","v":0},null,null,{"$f":"J56+K56","v":0},null,null,{"$f":"M56+N56","v":0}]
[null,"(6) Date:","Air temp","Veg cover","Turbidity",{"$f":"IF(OR(AND(NOT(ISBLANK($C59)),$C59<5),AND(NOT(ISBLANK($D59)),$D59>3),AND(NOT(ISBLANK($E59)),$E59>3)),\"1\",\"0\")","v":"0"}]
[null,null,null,null,null,"Adult totals:",{"$f":"G58+H58","v":0},null,null,{"$f":"J58+K58","v":0},null,null,{"$f":"M58+N58","v":0}]
[null,"(7) Date:","Air temp","Veg cover","Turbidity",{"$f":"IF(OR(AND(NOT(ISBLANK($C61)),$C61<5),AND(NOT(ISBLANK($D61)),$D61>3),AND(NOT(ISBLANK($E61)),$E61>3)),\"1\",\"0\")","v":"0"}]
[null,null,null,null,null,"Adult totals:",{"$f":"G60+H60","v":0},null,null,{"$f":"J60+K60","v":0},null,null,{"$f":"M60+N60","v":0}]
[null,"(8) Date:","Air temp","Veg cover","Turbidity",{"$f":"IF(OR(AND(NOT(ISBLANK($C63)),$C63<5),AND(NOT(ISBLANK($D63)),$D63>3),AND(NOT(ISBLANK($E63)),$E63>3)),\"1\",\"0\")","v":"0"}]
[null,null,null,null,null,"Adult totals:",{"$f":"G62+H62","v":0},null,null,{"$f":"J62+K62","v":0},null,null,{"$f":"M62+N62","v":0}]
[null,"Peak adult count for this pond in any one visit (by torch, trap or net):",null,null,null,null,null,null,null,{"$f":"MAX(G49,J49,M49,G51,J51,M51,G53,J53,M53,G55,J55,M55,G57,J57,M57,G59,J59,M59,G61,J61,M61,G63,J63,M63)","v":0}]
[null,"Comments and constraints:"]
[null,"Temp Veg Tur problem?",{"$f":"F48+F50+F52+F54+F56+F58+F60+F62","v":0}]
[null,"Torch power low?",{"$f":"IF(AND(NOT(ISBLANK(G46)),OR(G46=\"< 50,000 cp\",G46=\"50,000 - 499,999 cp\")),\"1\",\"0\")","v":"0"}]
[null,"Visit 1 overall det problem?",{"$f":"C66+C67","v":0}]
[null,"# ponds",{"$f":"$F$4","v":0}]
[]
[]
[null,{"$f":"+Ecologist&\": \"&+Site_name","v":": "}]
[null,"C4.3 Aquatic amphibian survey (conventional surveys- GCN results (cont - Pond 13)",null,null,null,null,null,null,null,null,"NB: This page prints in landscape format"]
[]
[]
[]
[null,"Pond reference (e.g. Pond 13)",null,null,null,"Method:","Torch",null,null,"Bottle-trap",null,null,"Net",null,null,"Egg search","Larvae"]
[null,null,null,null,null,null,"Torch power:",null,null,"No. of traps used in pond:",null,null,null,null,null,"eggs found?","larvae found? (any method)"]
[null,"No. of survey visits to this pond:"]
[null,"Sex/life stage:",null,null,null,null,"Male","Female","Imm.","Male","Female","Imm.","Male","Female","Imm."]
[null,"(1) Date:","Air temp","Veg cover","Turbidity",{"$f":"IF(OR(AND(NOT(ISBLANK($C82)),$C82<5),AND(NOT(ISBLANK($D82)),$D82>3),AND(NOT(ISBLANK($E82)),$E82>3)),\"1\",\"0\")","v":"0"}]
[null,null,null,null,null,"Adult totals:",{"$f":"G81+H81","v":0},null,null,{"$f":"J81+K81","v":0},null,null,{"$f":"M81+N81","v":0}]
[null,"(2) Date:","Air temp","Veg cover","Turbidity",{"$f":"IF(OR(AND(NOT(ISBLANK($C84)),$C84<5),AND(NOT(ISBLANK($D84)),$D84>3),AND(NOT(ISBLANK($E84)),$E84>3)),\"1\",\"0\")","v":"0"}]
[null,null,null,null,null,"Adult totals:",{"$f":"G83+H83","v":0},null,null,{"$f":"J83+K83","v":0},null,null,{"$f":"M83+N83","v":0}]
[null,"(3) Date:","Air temp","Veg cover","Turbidity",{"$f":"IF(OR(AND(NOT(ISBLANK($C86)),$C86<5),AND(NOT(ISBLANK($D86)),$D86>3),AND(NOT(ISBLANK($E86)),$E86>3)),\"1\",\"0\")","v":"0"}]
[null,null,null,null,null,"Adult totals:",{"$f":"G85+H85","v":0},null,null,{"$f":"J85+K85","v":0},null,null,{"$f":"M85+N85","v":0}]
[null,"(4) Date:","Air temp","Veg cover","Turbidity",{"$f":"IF(OR(AND(NOT(ISBLANK($C88)),$C88<5),AND(NOT(ISBLANK($D88)),$D88>3),AND(NOT(ISBLANK($E88)),$E88>3)),\"1\",\"0\")","v":"0"}]
[null,null,null,null,null,"Adult totals:",{"$f":"G87+H87","v":0},null,null,{"$f":"J87+K87","v":0},null,null,{"$f":"M87+N87","v":0}]
[null,"(5) Date:","Air temp","Veg cover","Turbidity",{"$f":"IF(OR(AND(NOT(ISBLANK($C90)),$C90<5),AND(NOT(ISBLANK($D90)),$D90>3),AND(NOT(ISBLANK($E90)),$E90>3)),\"1\",\"0\")","v":"0"}]
[null,null,null,null,null,"Adult totals:",{"$f":"G89+H89","v":0},null,null,{"$f":"J89+K89","v":0},null,null,{"$f":"M89+N89","v":0}]
[null,"(6) Date:","Air temp","Veg cover","Turbidity",{"$f":"IF(OR(AND(NOT(ISBLANK($C92)),$C92<5),AND(NOT(ISBLANK($D92)),$D92>3),AND(NOT(ISBLANK($E92)),$E92>3)),\"1\",\"0\")","v":"0"}]
[null,null,null,null,null,"Adult totals:",{"$f":"G91+H91","v":0},null,null,{"$f":"J91+K91","v":0},null,null,{"$f":"M91+N91","v":0}]
[null,"(7) Date:","Air temp","Veg cover","Turbidity",{"$f":"IF(OR(AND(NOT(ISBLANK($C94)),$C94<5),AND(NOT(ISBLANK($D94)),$D94>3),AND(NOT(ISBLANK($E94)),$E94>3)),\"1\",\"0\")","v":"0"}]
[null,null,null,null,null,"Adult totals:",{"$f":"G93+H93","v":0},null,null,{"$f":"J93+K93","v":0},null,null,{"$f":"M93+N93","v":0}]
[null,"(8) Date:","Air temp","Veg cover","Turbidity",{"$f":"IF(OR(AND(NOT(ISBLANK($C96)),$C96<5),AND(NOT(ISBLANK($D96)),$D96>3),AND(NOT(ISBLANK($E96)),$E96>3)),\"1\",\"0\")","v":"0"}]
[null,null,null,null,null,"Adult totals:",{"$f":"G95+H95","v":0},null,null,{"$f":"J95+K95","v":0},null,null,{"$f":"M95+N95","v":0}]
[null,"Peak adult count for this pond in any one visit (by torch, trap or net):",null,null,null,null,null,null,null,{"$f":"MAX(G82,J82,M82,G84,J84,M84,G86,J86,M86,G88,J88,M88,G90,J90,M90,G92,J92,M92,G94,J94,M94,G96,J96,M96)","v":0}]
[null,"Comments and constraints:"]
[null,"Temp Veg Tur problem?",{"$f":"F81+F83+F85+F87+F89+F91+F93+F95","v":0}]
[null,"Torch power low?",{"$f":"IF(AND(NOT(ISBLANK(G79)),OR(G79=\"< 50,000 cp\",G79=\"50,000 - 499,999 cp\")),\"1\",\"0\")","v":"0"}]
[null,"Visit 1 overall det problem?",{"$f":"C99+C100","v":0}]
[null,"# ponds",{"$f":"$F$4","v":0}]
[]
[]
[null,{"$f":"+Ecologist&\": \"&+Site_name","v":": "}]
[null,"C4.3 Aquatic amphibian survey (conventional methods) - GCN results (cont- Pond 14)",null,null,null,null,null,null,null,null,"NB: This page prints in landscape format"]
[]
[]
[]
[null,"Pond reference (e.g. Pond 14)",null,null,null,"Method:","Torch",null,null,"Bottle-trap",null,null,"Net",null,null,"Egg search","Larvae"]
[null,null,null,null,null,null,"Torch power:",null,null,"No. of traps used in pond:",null,null,null,null,null,"eggs found?","larvae found? (any method)"]
[null,"No. of survey visits to this pond:"]
[null,"Sex/life stage:",null,null,null,null,"Male","Female","Imm.","Male","Female","Imm.","Male","Female","Imm."]
[null,"(1) Date:","Air temp","Veg cover","Turbidity",{"$f":"IF(OR(AND(NOT(ISBLANK($C115)),$C115<5),AND(NOT(ISBLANK($D115)),$D115>3),AND(NOT(ISBLANK($E115)),$E115>3)),\"1\",\"0\")","v":"0"}]
[null,null,null,null,null,"Adult totals:",{"$f":"G114+H114","v":0},null,null,{"$f":"J114+K114","v":0},null,null,{"$f":"M114+N114","v":0}]
[null,"(2) Date:","Air temp","Veg cover","Turbidity",{"$f":"IF(OR(AND(NOT(ISBLANK($C117)),$C117<5),AND(NOT(ISBLANK($D117)),$D117>3),AND(NOT(ISBLANK($E117)),$E117>3)),\"1\",\"0\")","v":"0"}]
[null,null,null,null,null,"Adult totals:",{"$f":"G116+H116","v":0},null,null,{"$f":"J116+K116","v":0},null,null,{"$f":"M116+N116","v":0}]
[null,"(3) Date:","Air temp","Veg cover","Turbidity",{"$f":"IF(OR(AND(NOT(ISBLANK($C119)),$C119<5),AND(NOT(ISBLANK($D119)),$D119>3),AND(NOT(ISBLANK($E119)),$E119>3)),\"1\",\"0\")","v":"0"}]
[null,null,null,null,null,"Adult totals:",{"$f":"G118+H118","v":0},null,null,{"$f":"J118+K118","v":0},null,null,{"$f":"M118+N118","v":0}]
[null,"(4) Date:","Air temp","Veg cover","Turbidity",{"$f":"IF(OR(AND(NOT(ISBLANK($C121)),$C121<5),AND(NOT(ISBLANK($D121)),$D121>3),AND(NOT(ISBLANK($E121)),$E121>3)),\"1\",\"0\")","v":"0"}]
[null,null,null,null,null,"Adult totals:",{"$f":"G120+H120","v":0},null,null,{"$f":"J120+K120","v":0},null,null,{"$f":"M120+N120","v":0}]
[null,"(5) Date:","Air temp","Veg cover","Turbidity",{"$f":"IF(OR(AND(NOT(ISBLANK($C123)),$C123<5),AND(NOT(ISBLANK($D123)),$D123>3),AND(NOT(ISBLANK($E123)),$E123>3)),\"1\",\"0\")","v":"0"}]
[null,null,null,null,null,"Adult totals:",{"$f":"G122+H122","v":0},null,null,{"$f":"J122+K122","v":0},null,null,{"$f":"M122+N122","v":0}]
[null,"(6) Date:","Air temp","Veg cover","Turbidity",{"$f":"IF(OR(AND(NOT(ISBLANK($C125)),$C125<5),AND(NOT(ISBLANK($D125)),$D125>3),AND(NOT(ISBLANK($E125)),$E125>3)),\"1\",\"0\")","v":"0"}]
[null,null,null,null,null,"Adult totals:",{"$f":"G124+H124","v":0},null,null,{"$f":"J124+K124","v":0},null,null,{"$f":"M124+N124","v":0}]
[null,"(7) Date:","Air temp","Veg cover","Turbidity",{"$f":"IF(OR(AND(NOT(ISBLANK($C127)),$C127<5),AND(NOT(ISBLANK($D127)),$D127>3),AND(NOT(ISBLANK($E127)),$E127>3)),\"1\",\"0\")","v":"0"}]
[null,null,null,null,null,"Adult totals:",{"$f":"G126+H126","v":0},null,null,{"$f":"J126+K126","v":0},null,null,{"$f":"M126+N126","v":0}]
[null,"(8) Date:","Air temp","Veg cover","Turbidity",{"$f":"IF(OR(AND(NOT(ISBLANK($C129)),$C129<5),AND(NOT(ISBLANK($D129)),$D129>3),AND(NOT(ISBLANK($E129)),$E129>3)),\"1\",\"0\")","v":"0"}]
[null,null,null,null,null,"Adult totals:",{"$f":"G128+H128","v":0},null,null,{"$f":"J128+K128","v":0},null,null,{"$f":"M128+N128","v":0}]
[null,"Peak adult count for this pond in any one visit (by torch, trap or net):",null,null,null,null,null,null,null,{"$f":"MAX(G115,J115,M115,G117,J117,M117,G119,J119,M119,G121,J121,M121,G123,J123,M123,G125,J125,M125,G127,J127,M127,G129,J129,M129)","v":0}]
[null,"Comments and constraints:"]
[null,"Temp Veg Tur problem?",{"$f":"F114+F116+F118+F120+F122+F124+F126+F128","v":0}]
[null,"Torch power low?",{"$f":"IF(AND(NOT(ISBLANK(G112)),OR(G112=\"< 50,000 cp\",G112=\"50,000 - 499,999 cp\")),\"1\",\"0\")","v":"0"}]
[null,"Visit 1 overall det problem?",{"$f":"C132+C133","v":0}]
[null,"# ponds",{"$f":"$F$4","v":0}]
[]
[]
[null,{"$f":"+Ecologist&\": \"&+Site_name","v":": "}]
[null,"C4.3 Aquatic amphibian survey (conventional methods) - GCN results (cont - Pond 15)",null,null,null,null,null,null,null,null,"NB: This page prints in landscape format"]
[]
[]
[]
[null,"Pond reference (e.g. Pond 15) ",null,null,null,"Method:","Torch",null,null,"Bottle-trap",null,null,"Net",null,null,"Egg search","Larvae"]
[null,null,null,null,null,null,"Torch power:",null,null,"No. of traps used in pond:",null,null,null,null,null,"eggs found?","larvae found? (any method)"]
[null,"No. of survey visits to this pond:"]
[null,"Sex/life stage:",null,null,null,null,"Male","Female","Imm.","Male","Female","Imm.","Male","Female","Imm."]
[null,"(1) Date:","Air temp","Veg cover","Turbidity",{"$f":"IF(OR(AND(NOT(ISBLANK($C148)),$C148<5),AND(NOT(ISBLANK($D148)),$D148>3),AND(NOT(ISBLANK($E148)),$E148>3)),\"1\",\"0\")","v":"0"}]
[null,null,null,null,null,"Adult totals:",{"$f":"G147+H147","v":0},null,null,{"$f":"J147+K147","v":0},null,null,{"$f":"M147+N147","v":0}]
[null,"(2) Date:","Air temp","Veg cover","Turbidity",{"$f":"IF(OR(AND(NOT(ISBLANK($C150)),$C150<5),AND(NOT(ISBLANK($D150)),$D150>3),AND(NOT(ISBLANK($E150)),$E150>3)),\"1\",\"0\")","v":"0"}]
[null,null,null,null,null,"Adult totals:",{"$f":"G149+H149","v":0},null,null,{"$f":"J149+K149","v":0},null,null,{"$f":"M149+N149","v":0}]
[null,"(3) Date:","Air temp","Veg cover","Turbidity",{"$f":"IF(OR(AND(NOT(ISBLANK($C152)),$C152<5),AND(NOT(ISBLANK($D152)),$D152>3),AND(NOT(ISBLANK($E152)),$E152>3)),\"1\",\"0\")","v":"0"}]
[null,null,null,null,null,"Adult totals:",{"$f":"G151+H151","v":0},null,null,{"$f":"J151+K151","v":0},null,null,{"$f":"M151+N151","v":0}]
[null,"(4) Date:","Air temp","Veg cover","Turbidity",{"$f":"IF(OR(AND(NOT(ISBLANK($C154)),$C154<5),AND(NOT(ISBLANK($D154)),$D154>3),AND(NOT(ISBLANK($E154)),$E154>3)),\"1\",\"0\")","v":"0"}]
[null,null,null,null,null,"Adult totals:",{"$f":"G153+H153","v":0},null,null,{"$f":"J153+K153","v":0},null,null,{"$f":"M153+N153","v":0}]
[null,"(5) Date:","Air temp","Veg cover","Turbidity",{"$f":"IF(OR(AND(NOT(ISBLANK($C156)),$C156<5),AND(NOT(ISBLANK($D156)),$D156>3),AND(NOT(ISBLANK($E156)),$E156>3)),\"1\",\"0\")","v":"0"}]
[null,null,null,null,null,"Adult totals:",{"$f":"G155+H155","v":0},null,null,{"$f":"J155+K155","v":0},null,null,{"$f":"M155+N155","v":0}]
[null,"(6) Date:","Air temp","Veg cover","Turbidity",{"$f":"IF(OR(AND(NOT(ISBLANK($C158)),$C158<5),AND(NOT(ISBLANK($D158)),$D158>3),AND(NOT(ISBLANK($E158)),$E158>3)),\"1\",\"0\")","v":"0"}]
[null,null,null,null,null,"Adult totals:",{"$f":"G157+H157","v":0},null,null,{"$f":"J157+K157","v":0},null,null,{"$f":"M157+N157","v":0}]
[null,"(7) Date:","Air temp","Veg cover","Turbidity",{"$f":"IF(OR(AND(NOT(ISBLANK($C160)),$C160<5),AND(NOT(ISBLANK($D160)),$D160>3),AND(NOT(ISBLANK($E160)),$E160>3)),\"1\",\"0\")","v":"0"}]
[null,null,null,null,null,"Adult totals:",{"$f":"G159+H159","v":0},null,null,{"$f":"J159+K159","v":0},null,null,{"$f":"M159+N159","v":0}]
[null,"(8) Date:","Air temp","Veg cover","Turbidity",{"$f":"IF(OR(AND(NOT(ISBLANK($C162)),$C162<5),AND(NOT(ISBLANK($D162)),$D162>3),AND(NOT(ISBLANK($E162)),$E162>3)),\"1\",\"0\")","v":"0"}]
[null,null,null,null,null,"Adult totals:",{"$f":"G161+H161","v":0},null,null,{"$f":"J161+K161","v":0},null,null,{"$f":"M161+N161","v":0}]
[null,"Peak adult count for this pond in any one visit (by torch, trap or net):",null,null,null,null,null,null,null,{"$f":"MAX(G148,J148,M148,G150,J150,M150,G152,J152,M152,G154,J154,M154,G156,J156,M156,G158,J158,M158,G160,J160,M160,G162,J162,M162)","v":0}]
[null,"Comments and constraints:"]
[null,"Temp Veg Tur problem?",{"$f":"F147+F149+F151+F153+F155+F157+F159+F161","v":0}]
[null,"Torch power low?",{"$f":"IF(AND(NOT(ISBLANK(G145)),OR(G145=\"< 50,000 cp\",G145=\"50,000 - 499,999 cp\")),\"1\",\"0\")","v":"0"}]
[null,"Visit 1 overall det problem?",{"$f":"C165+C166","v":0}]
[null,"# ponds",{"$f":"$F$4","v":0}]
[]
[]
[null,{"$f":"+Ecologist&\": \"&+Site_name","v":": "}]
[null,"C4.3 Aquatic amphibian survey (conventional methods) - GCN results (cont - Pond 16)",null,null,null,null,null,null,null,null,"NB: This page prints in landscape format"]
[]
[]
[]
[null,"Pond reference (e.g. Pond 16)",null,null,null,"Method:","Torch",null,null,"Bottle-trap",null,null,"Net",null,null,"Egg search","Larvae"]
[null,null,null,null,null,null,"Torch power:",null,null,"No. of traps used in pond:",null,null,null,null,null,"eggs found?","larvae found? (any method)"]
[null,"No. of survey visits to this pond:"]
[null,"Sex/life stage:",null,null,null,null,"Male","Female","Imm.","Male","Female","Imm.","Male","Female","Imm."]
[null,"(1) Date:","Air temp","Veg cover","Turbidity",{"$f":"IF(OR(AND(NOT(ISBLANK($C181)),$C181<5),AND(NOT(ISBLANK($D181)),$D181>3),AND(NOT(ISBLANK($E181)),$E181>3)),\"1\",\"0\")","v":"0"}]
[null,null,null,null,null,"Adult totals:",{"$f":"G180+H180","v":0},null,null,{"$f":"J180+K180","v":0},null,null,{"$f":"M180+N180","v":0}]
[null,"(2) Date:","Air temp","Veg cover","Turbidity",{"$f":"IF(OR(AND(NOT(ISBLANK($C183)),$C183<5),AND(NOT(ISBLANK($D183)),$D183>3),AND(NOT(ISBLANK($E183)),$E183>3)),\"1\",\"0\")","v":"0"}]
[null,null,null,null,null,"Adult totals:",{"$f":"G182+H182","v":0},null,null,{"$f":"J182+K182","v":0},null,null,{"$f":"M182+N182","v":0}]
[null,"(3) Date:","Air temp","Veg cover","Turbidity",{"$f":"IF(OR(AND(NOT(ISBLANK($C185)),$C185<5),AND(NOT(ISBLANK($D185)),$D185>3),AND(NOT(ISBLANK($E185)),$E185>3)),\"1\",\"0\")","v":"0"}]
[null,null,null,null,null,"Adult totals:",{"$f":"G184+H184","v":0},null,null,{"$f":"J184+K184","v":0},null,null,{"$f":"M184+N184","v":0}]
[null,"(4) Date:","Air temp","Veg cover","Turbidity",{"$f":"IF(OR(AND(NOT(ISBLANK($C187)),$C187<5),AND(NOT(ISBLANK($D187)),$D187>3),AND(NOT(ISBLANK($E187)),$E187>3)),\"1\",\"0\")","v":"0"}]
[null,null,null,null,null,"Adult totals:",{"$f":"G186+H186","v":0},null,null,{"$f":"J186+K186","v":0},null,null,{"$f":"M186+N186","v":0}]
[null,"(5) Date:","Air temp","Veg cover","Turbidity",{"$f":"IF(OR(AND(NOT(ISBLANK($C189)),$C189<5),AND(NOT(ISBLANK($D189)),$D189>3),AND(NOT(ISBLANK($E189)),$E189>3)),\"1\",\"0\")","v":"0"}]
[null,null,null,null,null,"Adult totals:",{"$f":"G188+H188","v":0},null,null,{"$f":"J188+K188","v":0},null,null,{"$f":"M188+N188","v":0}]
[null,"(6) Date:","Air temp","Veg cover","Turbidity",{"$f":"IF(OR(AND(NOT(ISBLANK($C191)),$C191<5),AND(NOT(ISBLANK($D191)),$D191>3),AND(NOT(ISBLANK($E191)),$E191>3)),\"1\",\"0\")","v":"0"}]
[null,null,null,null,null,"Adult totals:",{"$f":"G190+H190","v":0},null,null,{"$f":"J190+K190","v":0},null,null,{"$f":"M190+N190","v":0}]
[null,"(7) Date:","Air temp","Veg cover","Turbidity",{"$f":"IF(OR(AND(NOT(ISBLANK($C193)),$C193<5),AND(NOT(ISBLANK($D193)),$D193>3),AND(NOT(ISBLANK($E193)),$E193>3)),\"1\",\"0\")","v":"0"}]
[null,null,null,null,null,"Adult totals:",{"$f":"G192+H192","v":0},null,null,{"$f":"J192+K192","v":0},null,null,{"$f":"M192+N192","v":0}]
[null,"(8) Date:","Air temp","Veg cover","Turbidity",{"$f":"IF(OR(AND(NOT(ISBLANK($C195)),$C195<5),AND(NOT(ISBLANK($D195)),$D195>3),AND(NOT(ISBLANK($E195)),$E195>3)),\"1\",\"0\")","v":"0"}]
[null,null,null,null,null,"Adult totals:",{"$f":"G194+H194","v":0},null,null,{"$f":"J194+K194","v":0},null,null,{"$f":"M194+N194","v":0}]
[null,"Peak adult count for this pond in any one visit (by torch, trap or net):",null,null,null,null,null,null,null,{"$f":"MAX(G181,J181,M181,G183,J183,M183,G185,J185,M185,G187,J187,M187,G189,J189,M189,G191,J191,M191,G193,J193,M193,G195,J195,M195)","v":0}]
[null,"Comments and constraints:"]
[null,"Temp Veg Tur problem?",{"$f":"F180+F182+F184+F186+F188+F190+F192+F194","v":0}]
[null,"Torch power low?",{"$f":"IF(AND(NOT(ISBLANK(G178)),OR(G178=\"< 50,000 cp\",G178=\"50,000 - 499,999 cp\")),\"1\",\"0\")","v":"0"}]
[null,"Visit 1 overall det problem?",{"$f":"C198+C199","v":0}]
[null,"# ponds",{"$f":"$F$4","v":0}]
[]
[]
[null,{"$f":"+Ecologist&\": \"&+Site_name","v":": "}]
[null,"C4.3 Aquatic amphibian survey (conventional methods) - GCN results (cont - Pond 17)",null,null,null,null,null,null,null,null,"NB: This page prints in landscape format"]
[]
[]
[]
[null,"Pond reference (e.g. Pond 17)",null,null,null,"Method:","Torch",null,null,"Bottle-trap",null,null,"Net",null,null,"Egg search","Larvae"]
[null,null,null,null,null,null,"Torch power:",null,null,"No. of traps used in pond:",null,null,null,null,null,"eggs found?","larvae found? (any method)"]
[null,"No. of survey visits to this pond:"]
[null,"Sex/life stage:",null,null,null,null,"Male","Female","Imm.","Male","Female","Imm.","Male","Female","Imm."]
[null,"(1) Date:","Air temp","Veg cover","Turbidity",{"$f":"IF(OR(AND(NOT(ISBLANK($C214)),$C214<5),AND(NOT(ISBLANK($D214)),$D214>3),AND(NOT(ISBLANK($E214)),$E214>3)),\"1\",\"0\")","v":"0"}]
[null,null,null,null,null,"Adult totals:",{"$f":"G213+H213","v":0},null,null,{"$f":"J213+K213","v":0},null,null,{"$f":"M213+N213","v":0}]
[null,"(2) Date:","Air temp","Veg cover","Turbidity",{"$f":"IF(OR(AND(NOT(ISBLANK($C216)),$C216<5),AND(NOT(ISBLANK($D216)),$D216>3),AND(NOT(ISBLANK($E216)),$E216>3)),\"1\",\"0\")","v":"0"}]
[null,null,null,null,null,"Adult totals:",{"$f":"G215+H215","v":0},null,null,{"$f":"J215+K215","v":0},null,null,{"$f":"M215+N215","v":0}]
[null,"(3) Date:","Air temp","Veg cover","Turbidity",{"$f":"IF(OR(AND(NOT(ISBLANK($C218)),$C218<5),AND(NOT(ISBLANK($D218)),$D218>3),AND(NOT(ISBLANK($E218)),$E218>3)),\"1\",\"0\")","v":"0"}]
[null,null,null,null,null,"Adult totals:",{"$f":"G217+H217","v":0},null,null,{"$f":"J217+K217","v":0},null,null,{"$f":"M217+N217","v":0}]
[null,"(4) Date:","Air temp","Veg cover","Turbidity",{"$f":"IF(OR(AND(NOT(ISBLANK($C220)),$C220<5),AND(NOT(ISBLANK($D220)),$D220>3),AND(NOT(ISBLANK($E220)),$E220>3)),\"1\",\"0\")","v":"0"}]
[null,null,null,null,null,"Adult totals:",{"$f":"G219+H219","v":0},null,null,{"$f":"J219+K219","v":0},null,null,{"$f":"M219+N219","v":0}]
[null,"(5) Date:","Air temp","Veg cover","Turbidity",{"$f":"IF(OR(AND(NOT(ISBLANK($C222)),$C222<5),AND(NOT(ISBLANK($D222)),$D222>3),AND(NOT(ISBLANK($E222)),$E222>3)),\"1\",\"0\")","v":"0"}]
[null,null,null,null,null,"Adult totals:",{"$f":"G221+H221","v":0},null,null,{"$f":"J221+K221","v":0},null,null,{"$f":"M221+N221","v":0}]
[null,"(6) Date:","Air temp","Veg cover","Turbidity",{"$f":"IF(OR(AND(NOT(ISBLANK($C224)),$C224<5),AND(NOT(ISBLANK($D224)),$D224>3),AND(NOT(ISBLANK($E224)),$E224>3)),\"1\",\"0\")","v":"0"}]
[null,null,null,null,null,"Adult totals:",{"$f":"G223+H223","v":0},null,null,{"$f":"J223+K223","v":0},null,null,{"$f":"M223+N223","v":0}]
[null,"(7) Date:","Air temp","Veg cover","Turbidity",{"$f":"IF(OR(AND(NOT(ISBLANK($C226)),$C226<5),AND(NOT(ISBLANK($D226)),$D226>3),AND(NOT(ISBLANK($E226)),$E226>3)),\"1\",\"0\")","v":"0"}]
[null,null,null,null,null,"Adult totals:",{"$f":"G225+H225","v":0},null,null,{"$f":"J225+K225","v":0},null,null,{"$f":"M225+N225","v":0}]
[null,"(8) Date:","Air temp","Veg cover","Turbidity",{"$f":"IF(OR(AND(NOT(ISBLANK($C228)),$C228<5),AND(NOT(ISBLANK($D228)),$D228>3),AND(NOT(ISBLANK($E228)),$E228>3)),\"1\",\"0\")","v":"0"}]
[null,null,null,null,null,"Adult totals:",{"$f":"G227+H227","v":0},null,null,{"$f":"J227+K227","v":0},null,null,{"$f":"M227+N227","v":0}]
[null,"Peak adult count for this pond in any one visit (by torch, trap or net):",null,null,null,null,null,null,null,{"$f":"MAX(G214,J214,M214,G216,J216,M216,G218,J218,M218,G220,J220,M220,G222,J222,M222,G224,J224,M224,G226,J226,M226,G228,J228,M228)","v":0}]
[null,"Comments and constraints:"]
[null,"Temp Veg Tur problem?",{"$f":"F213+F215+F217+F219+F221+F223+F225+F227","v":0}]
[null,"Torch power low?",{"$f":"IF(AND(NOT(ISBLANK(G211)),OR(G211=\"< 50,000 cp\",G211=\"50,000 - 499,999 cp\")),\"1\",\"0\")","v":"0"}]
[null,"Visit 1 overall det problem?",{"$f":"C231+C232","v":0}]
[null,"# ponds",{"$f":"$F$4","v":0}]
[]
[]
[null,{"$f":"+Ecologist&\": \"&+Site_name","v":": "}]
[null,"C4.3 Aquatic amphibian survey (conventional methods)- GCN results (cont - Pond 18)",null,null,null,null,null,null,null,null,"NB: This page prints in landscape format"]
[]
[]
[]
[null,"Pond reference (e.g. Pond 18)",null,null,null,"Method:","Torch",null,null,"Bottle-trap",null,null,"Net",null,null,"Egg search","Larvae"]
[null,null,null,null,null,null,"Torch power:",null,null,"No. of traps used in pond:",null,null,null,null,null,"eggs found?","larvae found? (any method)"]
[null,"No. of survey visits to this pond:"]
[null,"Sex/life stage:",null,null,null,null,"Male","Female","Imm.","Male","Female","Imm.","Male","Female","Imm."]
[null,"(1) Date:","Air temp","Veg cover","Turbidity",{"$f":"IF(OR(AND(NOT(ISBLANK($C247)),$C247<5),AND(NOT(ISBLANK($D247)),$D247>3),AND(NOT(ISBLANK($E247)),$E247>3)),\"1\",\"0\")","v":"0"}]
[null,null,null,null,null,"Adult totals:",{"$f":"G246+H246","v":0},null,null,{"$f":"J246+K246","v":0},null,null,{"$f":"M246+N246","v":0}]
[null,"(2) Date:","Air temp","Veg cover","Turbidity",{"$f":"IF(OR(AND(NOT(ISBLANK($C249)),$C249<5),AND(NOT(ISBLANK($D249)),$D249>3),AND(NOT(ISBLANK($E249)),$E249>3)),\"1\",\"0\")","v":"0"}]
[null,null,null,null,null,"Adult totals:",{"$f":"G248+H248","v":0},null,null,{"$f":"J248+K248","v":0},null,null,{"$f":"M248+N248","v":0}]
[null,"(3) Date:","Air temp","Veg cover","Turbidity",{"$f":"IF(OR(AND(NOT(ISBLANK($C251)),$C251<5),AND(NOT(ISBLANK($D251)),$D251>3),AND(NOT(ISBLANK($E251)),$E251>3)),\"1\",\"0\")","v":"0"}]
[null,null,null,null,null,"Adult totals:",{"$f":"G250+H250","v":0},null,null,{"$f":"J250+K250","v":0},null,null,{"$f":"M250+N250","v":0}]
[null,"(4) Date:","Air temp","Veg cover","Turbidity",{"$f":"IF(OR(AND(NOT(ISBLANK($C253)),$C253<5),AND(NOT(ISBLANK($D253)),$D253>3),AND(NOT(ISBLANK($E253)),$E253>3)),\"1\",\"0\")","v":"0"}]
[null,null,null,null,null,"Adult totals:",{"$f":"G252+H252","v":0},null,null,{"$f":"J252+K252","v":0},null,null,{"$f":"M252+N252","v":0}]
[null,"(5) Date:","Air temp","Veg cover","Turbidity",{"$f":"IF(OR(AND(NOT(ISBLANK($C255)),$C255<5),AND(NOT(ISBLANK($D255)),$D255>3),AND(NOT(ISBLANK($E255)),$E255>3)),\"1\",\"0\")","v":"0"}]
[null,null,null,null,null,"Adult totals:",{"$f":"G254+H254","v":0},null,null,{"$f":"J254+K254","v":0},null,null,{"$f":"M254+N254","v":0}]
[null,"(6) Date:","Air temp","Veg cover","Turbidity",{"$f":"IF(OR(AND(NOT(ISBLANK($C257)),$C257<5),AND(NOT(ISBLANK($D257)),$D257>3),AND(NOT(ISBLANK($E257)),$E257>3)),\"1\",\"0\")","v":"0"}]
[null,null,null,null,null,"Adult totals:",{"$f":"G256+H256","v":0},null,null,{"$f":"J256+K256","v":0},null,null,{"$f":"M256+N256","v":0}]
[null,"(7) Date:","Air temp","Veg cover","Turbidity",{"$f":"IF(OR(AND(NOT(ISBLANK($C259)),$C259<5),AND(NOT(ISBLANK($D259)),$D259>3),AND(NOT(ISBLANK($E259)),$E259>3)),\"1\",\"0\")","v":"0"}]
[null,null,null,null,null,"Adult totals:",{"$f":"G258+H258","v":0},null,null,{"$f":"J258+K258","v":0},null,null,{"$f":"M258+N258","v":0}]
[null,"(8) Date:","Air temp","Veg cover","Turbidity",{"$f":"IF(OR(AND(NOT(ISBLANK($C261)),$C261<5),AND(NOT(ISBLANK($D261)),$D261>3),AND(NOT(ISBLANK($E261)),$E261>3)),\"1\",\"0\")","v":"0"}]
[null,null,null,null,null,"Adult totals:",{"$f":"G260+H260","v":0},null,null,{"$f":"J260+K260","v":0},null,null,{"$f":"M260+N260","v":0}]
[null,"Peak adult count for this pond in any one visit (by torch, trap or net):",null,null,null,null,null,null,null,{"$f":"MAX(G247,J247,M247,G249,J249,M249,G251,J251,M251,G253,J253,M253,G255,J255,M255,G257,J257,M257,G259,J259,M259,G261,J261,M261)","v":0}]
[null,"Comments and constraints:"]
[null,"Temp Veg Tur problem?",{"$f":"F246+F248+F250+F252+F254+F256+F258+F260","v":0}]
[null,"Torch power low?",{"$f":"IF(AND(NOT(ISBLANK(G244)),OR(G244=\"< 50,000 cp\",G244=\"50,000 - 499,999 cp\")),\"1\",\"0\")","v":"0"}]
[null,"Visit 1 overall det problem?",{"$f":"C264+C265","v":0}]
[null,"# ponds",{"$f":"$F$4","v":0}]
[]
[]
[null,{"$f":"+Ecologist&\": \"&+Site_name","v":": "}]
[null,"C4.3 Aquatic amphibian survey (conventional methods) - GCN results (cont - Pond 19)",null,null,null,null,null,null,null,null,"NB: This page prints in landscape format"]
[]
[]
[]
[null,"Pond reference (e.g. Pond 19):",null,null,null,"Method:","Torch",null,null,"Bottle-trap",null,null,"Net",null,null,"Egg search","Larvae"]
[null,null,null,null,null,null,"Torch power:",null,null,"No. of traps used in pond:",null,null,null,null,null,"eggs found?","larvae found? (any method)"]
[null,"No. of survey visits to this pond:"]
[null,"Sex/life stage:",null,null,null,null,"Male","Female","Imm.","Male","Female","Imm.","Male","Female","Imm."]
[null,"(1) Date:","Air temp","Veg cover","Turbidity",{"$f":"IF(OR(AND(NOT(ISBLANK($C280)),$C280<5),AND(NOT(ISBLANK($D280)),$D280>3),AND(NOT(ISBLANK($E280)),$E280>3)),\"1\",\"0\")","v":"0"}]
[null,null,null,null,null,"Adult totals:",{"$f":"G279+H279","v":0},null,null,{"$f":"J279+K279","v":0},null,null,{"$f":"M279+N279","v":0}]
[null,"(2) Date:","Air temp","Veg cover","Turbidity",{"$f":"IF(OR(AND(NOT(ISBLANK($C282)),$C282<5),AND(NOT(ISBLANK($D282)),$D282>3),AND(NOT(ISBLANK($E282)),$E282>3)),\"1\",\"0\")","v":"0"}]
[null,null,null,null,null,"Adult totals:",{"$f":"G281+H281","v":0},null,null,{"$f":"J281+K281","v":0},null,null,{"$f":"M281+N281","v":0}]
[null,"(3) Date:","Air temp","Veg cover","Turbidity",{"$f":"IF(OR(AND(NOT(ISBLANK($C284)),$C284<5),AND(NOT(ISBLANK($D284)),$D284>3),AND(NOT(ISBLANK($E284)),$E284>3)),\"1\",\"0\")","v":"0"}]
[null,null,null,null,null,"Adult totals:",{"$f":"G283+H283","v":0},null,null,{"$f":"J283+K283","v":0},null,null,{"$f":"M283+N283","v":0}]
[null,"(4) Date:","Air temp","Veg cover","Turbidity",{"$f":"IF(OR(AND(NOT(ISBLANK($C286)),$C286<5),AND(NOT(ISBLANK($D286)),$D286>3),AND(NOT(ISBLANK($E286)),$E286>3)),\"1\",\"0\")","v":"0"}]
[null,null,null,null,null,"Adult totals:",{"$f":"G285+H285","v":0},null,null,{"$f":"J285+K285","v":0},null,null,{"$f":"M285+N285","v":0}]
[null,"(5) Date:","Air temp","Veg cover","Turbidity",{"$f":"IF(OR(AND(NOT(ISBLANK($C288)),$C288<5),AND(NOT(ISBLANK($D288)),$D288>3),AND(NOT(ISBLANK($E288)),$E288>3)),\"1\",\"0\")","v":"0"}]
[null,null,null,null,null,"Adult totals:",{"$f":"G287+H287","v":0},null,null,{"$f":"J287+K287","v":0},null,null,{"$f":"M287+N287","v":0}]
[null,"(6) Date:","Air temp","Veg cover","Turbidity",{"$f":"IF(OR(AND(NOT(ISBLANK($C290)),$C290<5),AND(NOT(ISBLANK($D290)),$D290>3),AND(NOT(ISBLANK($E290)),$E290>3)),\"1\",\"0\")","v":"0"}]
[null,null,null,null,null,"Adult totals:",{"$f":"G289+H289","v":0},null,null,{"$f":"J289+K289","v":0},null,null,{"$f":"M289+N289","v":0}]
[null,"(7) Date:","Air temp","Veg cover","Turbidity",{"$f":"IF(OR(AND(NOT(ISBLANK($C292)),$C292<5),AND(NOT(ISBLANK($D292)),$D292>3),AND(NOT(ISBLANK($E292)),$E292>3)),\"1\",\"0\")","v":"0"}]
[null,null,null,null,null,"Adult totals:",{"$f":"G291+H291","v":0},null,null,{"$f":"J291+K291","v":0},null,null,{"$f":"M291+N291","v":0}]
[null,"(8) Date:","Air temp","Veg cover","Turbidity",{"$f":"IF(OR(AND(NOT(ISBLANK($C294)),$C294<5),AND(NOT(ISBLANK($D294)),$D294>3),AND(NOT(ISBLANK($E294)),$E294>3)),\"1\",\"0\")","v":"0"}]
[null,null,null,null,null,"Adult totals:",{"$f":"G293+H293","v":0},null,null,{"$f":"J293+K293","v":0},null,null,{"$f":"M293+N293","v":0}]
[null,"Peak adult count for this pond in any one visit (by torch, trap or net):",null,null,null,null,null,null,null,{"$f":"MAX(G280,J280,M280,G282,J282,M282,G284,J284,M284,G286,J286,M286,G288,J288,M288,G290,J290,M290,G292,J292,M292,G294,J294,M294)","v":0}]
[null,"Comments and constraints:"]
[null,"Temp Veg Tur problem?",{"$f":"F279+F281+F283+F285+F287+F289+F291+F293","v":0}]
[null,"Torch power low?",{"$f":"IF(AND(NOT(ISBLANK(G277)),OR(G277=\"< 50,000 cp\",G277=\"50,000 - 499,999 cp\")),\"1\",\"0\")","v":"0"}]
[null,"Visit 1 overall det problem?",{"$f":"C297+C298","v":0}]
[null,"# ponds",{"$f":"$F$4","v":0}]
[]
[]
[null,{"$f":"+Ecologist&\": \"&+Site_name","v":": "}]
[null,"C4.3 Aquatic amphibian survey (conventional methods) - GCN results (cont - Pond 20)",null,null,null,null,null,null,null,null,"NB: This page prints in landscape format"]
[]
[]
[]
[null,"Pond reference (e.g. Pond 20)",null,null,null,"Method:","Torch",null,null,"Bottle-trap",null,null,"Net",null,null,"Egg search","Larvae"]
[null,null,null,null,null,null,"Torch power:",null,null,"No. of traps used in pond:",null,null,null,null,null,"eggs found?","larvae found? (any method)"]
[null,"No. of survey visits to this pond:"]
[null,"Sex/life stage:",null,null,null,null,"Male","Female","Imm.","Male","Female","Imm.","Male","Female","Imm."]
[null,"(1) Date:","Air temp","Veg cover","Turbidity",{"$f":"IF(OR(AND(NOT(ISBLANK($C313)),$C313<5),AND(NOT(ISBLANK($D313)),$D313>3),AND(NOT(ISBLANK($E313)),$E313>3)),\"1\",\"0\")","v":"0"}]
[null,null,null,null,null,"Adult totals:",{"$f":"G312+H312","v":0},null,null,{"$f":"J312+K312","v":0},null,null,{"$f":"M312+N312","v":0}]
[null,"(2) Date:","Air temp","Veg cover","Turbidity",{"$f":"IF(OR(AND(NOT(ISBLANK($C315)),$C315<5),AND(NOT(ISBLANK($D315)),$D315>3),AND(NOT(ISBLANK($E315)),$E315>3)),\"1\",\"0\")","v":"0"}]
[null,null,null,null,null,"Adult totals:",{"$f":"G314+H314","v":0},null,null,{"$f":"J314+K314","v":0},null,null,{"$f":"M314+N314","v":0}]
[null,"(3) Date:","Air temp","Veg cover","Turbidity",{"$f":"IF(OR(AND(NOT(ISBLANK($C317)),$C317<5),AND(NOT(ISBLANK($D317)),$D317>3),AND(NOT(ISBLANK($E317)),$E317>3)),\"1\",\"0\")","v":"0"}]
[null,null,null,null,null,"Adult totals:",{"$f":"G316+H316","v":0},null,null,{"$f":"J316+K316","v":0},null,null,{"$f":"M316+N316","v":0}]
[null,"(4) Date:","Air temp","Veg cover","Turbidity",{"$f":"IF(OR(AND(NOT(ISBLANK($C319)),$C319<5),AND(NOT(ISBLANK($D319)),$D319>3),AND(NOT(ISBLANK($E319)),$E319>3)),\"1\",\"0\")","v":"0"}]
[null,null,null,null,null,"Adult totals:",{"$f":"G318+H318","v":0},null,null,{"$f":"J318+K318","v":0},null,null,{"$f":"M318+N318","v":0}]
[null,"(5) Date:","Air temp","Veg cover","Turbidity",{"$f":"IF(OR(AND(NOT(ISBLANK($C321)),$C321<5),AND(NOT(ISBLANK($D321)),$D321>3),AND(NOT(ISBLANK($E321)),$E321>3)),\"1\",\"0\")","v":"0"}]
[null,null,null,null,null,"Adult totals:",{"$f":"G320+H320","v":0},null,null,{"$f":"J320+K320","v":0},null,null,{"$f":"M320+N320","v":0}]
[null,"(6) Date:","Air temp","Veg cover","Turbidity",{"$f":"IF(OR(AND(NOT(ISBLANK($C323)),$C323<5),AND(NOT(ISBLANK($D323)),$D323>3),AND(NOT(ISBLANK($E323)),$E323>3)),\"1\",\"0\")","v":"0"}]
[null,null,null,null,null,"Adult totals:",{"$f":"G322+H322","v":0},null,null,{"$f":"J322+K322","v":0},null,null,{"$f":"M322+N322","v":0}]
[null,"(7) Date:","Air temp","Veg cover","Turbidity",{"$f":"IF(OR(AND(NOT(ISBLANK($C325)),$C325<5),AND(NOT(ISBLANK($D325)),$D325>3),AND(NOT(ISBLANK($E325)),$E325>3)),\"1\",\"0\")","v":"0"}]
[null,null,null,null,null,"Adult totals:",{"$f":"G324+H324","v":0},null,null,{"$f":"J324+K324","v":0},null,null,{"$f":"M324+N324","v":0}]
[null,"(8) Date:","Air temp","Veg cover","Turbidity",{"$f":"IF(OR(AND(NOT(ISBLANK($C327)),$C327<5),AND(NOT(ISBLANK($D327)),$D327>3),AND(NOT(ISBLANK($E327)),$E327>3)),\"1\",\"0\")","v":"0"}]
[null,null,null,null,null,"Adult totals:",{"$f":"G326+H326","v":0},null,null,{"$f":"J326+K326","v":0},null,null,{"$f":"M326+N326","v":0}]
[null,"Peak adult count for this pond in any one visit (by torch, trap or net):",null,null,null,null,null,null,null,{"$f":"MAX(G313,J313,M313,G315,J315,M315,G317,J317,M317,G319,J319,M319,G321,J321,M321,G323,J323,M323,G325,J325,M325,G327,J327,M327)","v":0}]
[null,"Comments and constraints:"]
[null,"Temp Veg Tur problem?",{"$f":"F312+F314+F316+F318+F320+F322+F324+F326","v":0}]
[null,"Torch power low?",{"$f":"IF(AND(NOT(ISBLANK(G310)),OR(G310=\"< 50,000 cp\",G310=\"50,000 - 499,999 cp\")),\"1\",\"0\")","v":"0"}]
[null,"Visit 1 overall det problem?",{"$f":"C330+C331","v":0}]
[null,"# ponds",{"$f":"$F$4","v":0}]

{"sheet":"C - Survey - Pond 21-30","index":14,"n_rows":333,"n_cols":31,"rows_kept":333,"cut":false,"hidden":false,"merged":[[0,1,0,16],[1,1,1,16],[2,1,2,4],[2,6,2,9],[2,10,2,16],[3,1,3,4],[3,6,3,16],[12,1,12,3],[12,6,12,8],[12,9,12,11],[13,1,13,5],[4,1,4,2],[4,3,4,16],[5,1,9,16],[10,1,10,4],[10,5,12,5],[10,6,10,8],[10,9,10,11],[10,12,12,14],[11,1,11,4],[11,6,11,8],[15,6,15,7],[15,9,15,10],[15,12,15,13],[17,6,17,7],[17,9,17,10],[17,12,17,13],[11,9,11,11],[11,15,13,15],[11,16,13,16],[23,6,23,7],[23,9,23,10],[23,12,23,13],[25,6,25,7],[25,9,25,10],[25,12,25,13],[19,6,19,7],[19,9,19,10],[19,12,19,13],[21,6,21,7],[21,9,21,10],[21,12,21,13],[30,1,30,8],[31,1,31,3],[31,4,34,16],[38,1,38,16],[39,1,39,9],[39,10,39,16],[27,6,27,7],[27,9,27,10],[27,12,27,13],[29,6,29,7],[29,9,29,10],[29,12,29,13],[44,16,46,16],[45,1,45,3],[45,6,45,8],[45,9,45,11],[46,1,46,5],[48,6,48,7],[48,9,48,10],[48,12,48,13],[40,1,42,16],[43,1,43,4],[43,5,45,5],[43,6,43,8],[43,9,43,11],[43,12,45,14],[44,1,44,4],[44,6,44,8],[44,9,44,11],[44,15,46,15],[54,6,54,7],[54,9,54,10],[54,12,54,13],[56,6,56,7],[56,9,56,10],[56,12,56,13],[50,6,50,7],[50,9,50,10],[50,12,50,13],[52,6,52,7],[52,9,52,10],[52,12,52,13],[62,6,62,7],[62,9,62,10],[62,12,62,13],[63,1,63,8],[63,10,63,16],[64,1,64,3],[64,4,67,16],[58,6,58,7],[58,9,58,10],[58,12,58,13],[60,6,60,7],[60,9,60,10],[60,12,60,13],[77,16,79,16],[78,1,78,3],[78,6,78,8],[78,9,78,11],[79,1,79,5],[71,1,71,16],[72,1,72,9],[72,10,72,16],[73,1,75,16],[76,1,76,4],[76,5,78,5],[76,6,76,8],[76,9,76,11],[76,12,78,14],[77,1,77,4],[81,6,81,7],[81,9,81,10],[81,12,81,13],[83,6,83,7],[83,9,83,10],[83,12,83,13],[77,6,77,8],[77,9,77,11],[77,15,79,15],[89,6,89,7],[89,9,89,10],[89,12,89,13],[91,6,91,7],[91,9,91,10],[91,12,91,13],[85,6,85,7],[85,9,85,10],[85,12,85,13],[87,6,87,7],[87,9,87,10],[87,12,87,13],[96,1,96,8],[96,10,96,16],[97,1,97,3],[97,4,100,16],[104,1,104,16],[105,1,105,9],[105,10,105,16],[93,6,93,7],[93,9,93,10],[93,12,93,13],[95,6,95,7],[95,9,95,10],[95,12,95,13],[110,16,112,16],[111,1,111,3],[111,6,111,8],[111,9,111,11],[112,1,112,5],[114,6,114,7],[114,9,114,10],[114,12,114,13],[106,1,108,16],[109,1,109,4],[109,5,111,5],[109,6,109,8],[109,9,109,11],[109,12,111,14],[110,1,110,4],[110,6,110,8],[110,9,110,11],[110,15,112,15],[120,6,120,7],[120,9,120,10],[120,12,120,13],[122,6,122,7],[122,9,122,10],[122,12,122,13],[116,6,116,7],[116,9,116,10],[116,12,116,13],[118,6,118,7],[118,9,118,10],[118,12,118,13],[128,6,128,7],[128,9,128,10],[128,12,128,13],[129,1,129,8],[129,10,129,16],[130,1,130,3],[130,4,133,16],[124,6,124,7],[124,9,124,10],[124,12,124,13],[126,6,126,7],[126,9,126,10],[126,12,126,13],[143,16,145,16],[144,1,144,3],[144,6,144,8],[144,9,144,11],[145,1,145,5],[137,1,137,16],[138,1,138,9],[138,10,138,16],[139,1,141,16],[142,1,142,4],[142,5,144,5],[142,6,142,8],[142,9,142,11],[142,12,144,14],[143,1,143,4],[147,6,147,7],[147,9,147,10],[147,12,147,13],[149,6,149,7],[149,9,149,10],[149,12,149,13],[143,6,143,8],[143,9,143,11],[143,15,145,15],[155,6,155,7],[155,9,155,10],[155,12,155,13],[157,6,157,7],[157,9,157,10],[157,12,157,13],[151,6,151,7],[151,9,151,10],[151,12,151,13],[153,6,153,7],[153,9,153,10],[153,12,153,13],[162,1,162,8],[162,10,162,16],[163,1,163,3],[163,4,166,16],[170,1,170,16],[171,1,171,9],[171,10,171,16],[159,6,159,7],[159,9,159,10],[159,12,159,13],[161,6,161,7],[161,9,161,10],[161,12,161,13],[176,16,178,16],[177,1,177,3],[177,6,177,8],[177,9,177,11],[178,1,178,5],[180,6,180,7],[180,9,180,10],[180,12,180,13],[172,1,174,16],[175,1,175,4],[175,5,177,5],[175,6,175,8],[175,9,175,11],[175,12,177,14],[176,1,176,4],[176,6,176,8],[176,9,176,11],[176,15,178,15],[186,6,186,7],[186,9,186,10],[186,12,186,13],[188,6,188,7],[188,9,188,10],[188,12,188,13],[182,6,182,7],[182,9,182,10],[182,12,182,13],[184,6,184,7],[184,9,184,10],[184,12,184,13],[194,6,194,7],[194,9,194,10],[194,12,194,13],[195,1,195,8],[195,10,195,16],[196,1,196,3],[196,4,199,16],[190,6,190,7],[190,9,190,10],[190,12,190,13],[192,6,192,7],[192,9,192,10],[192,12,192,13],[209,16,211,16],[210,1,210,3],[210,6,210,8],[210,9,210,11],[211,1,211,5],[203,1,203,16],[204,1,204,9],[204,10,204,16],[205,1,207,16],[208,1,208,4],[208,5,210,5],[208,6,208,8],[208,9,208,11],[208,12,210,14],[209,1,209,4],[213,6,213,7],[213,9,213,10],[213,12,213,13],[215,6,215,7],[215,9,215,10],[215,12,215,13],[209,6,209,8],[209,9,209,11],[209,15,211,15],[221,6,221,7],[221,9,221,10],[221,12,221,13],[223,6,223,7],[223,9,223,10],[223,12,223,13],[217,6,217,7],[217,9,217,10],[217,12,217,13],[219,6,219,7],[219,9,219,10],[219,12,219,13],[228,1,228,8],[228,10,228,16],[229,1,229,3],[229,4,232,16],[236,1,236,16],[237,1,237,9],[237,10,237,16],[225,6,225,7],[225,9,225,10],[225,12,225,13],[227,6,227,7],[227,9,227,10],[227,12,227,13],[242,16,244,16],[243,1,243,3],[243,6,243,8],[243,9,243,11],[244,1,244,5],[246,6,246,7],[246,9,246,10],[246,12,246,13],[238,1,240,16],[241,1,241,4],[241,5,243,5],[241,6,241,8],[241,9,241,11],[241,12,243,14],[242,1,242,4],[242,6,242,8],[242,9,242,11],[242,15,244,15],[252,6,252,7],[252,9,252,10],[252,12,252,13],[254,6,254,7],[254,9,254,10],[254,12,254,13],[248,6,248,7],[248,9,248,10],[248,12,248,13],[250,6,250,7],[250,9,250,10],[250,12,250,13],[260,6,260,7],[260,9,260,10],[260,12,260,13],[261,1,261,8],[261,10,261,16],[262,1,262,3],[262,4,265,16],[256,6,256,7],[256,9,256,10],[256,12,256,13],[258,6,258,7],[258,9,258,10],[258,12,258,13],[275,16,277,16],[276,1,276,3],[276,6,276,8],[276,9,276,11],[277,1,277,5],[269,1,269,16],[270,1,270,9],[270,10,270,16],[271,1,273,16],[274,1,274,4],[274,5,276,5],[274,6,274,8],[274,9,274,11],[274,12,276,14],[275,1,275,4],[279,6,279,7],[279,9,279,10],[279,12,279,13],[281,6,281,7],[281,9,281,10],[281,12,281,13],[275,6,275,8],[275,9,275,11],[275,15,277,15],[287,6,287,7],[287,9,287,10],[287,12,287,13],[289,6,289,7],[289,9,289,10],[289,12,289,13],[283,6,283,7],[283,9,283,10],[283,12,283,13],[285,6,285,7],[285,9,285,10],[285,12,285,13],[294,1,294,8],[294,10,294,16],[295,1,295,3],[295,4,298,16],[302,1,302,16],[303,1,303,9],[303,10,303,16],[291,6,291,7],[291,9,291,10],[291,12,291,13],[293,6,293,7],[293,9,293,10],[293,12,293,13],[308,16,310,16],[309,1,309,3],[309,6,309,8],[309,9,309,11],[310,1,310,5],[312,6,312,7],[312,9,312,10],[312,12,312,13],[304,1,306,16],[307,1,307,4],[307,5,309,5],[307,6,307,8],[307,9,307,11],[307,12,309,14],[308,1,308,4],[308,6,308,8],[308,9,308,11],[308,15,310,15],[318,6,318,7],[318,9,318,10],[318,12,318,13],[320,6,320,7],[320,9,320,10],[320,12,320,13],[314,6,314,7],[314,9,314,10],[314,12,314,13],[316,6,316,7],[316,9,316,10],[316,12,316,13],[326,6,326,7],[326,9,326,10],[326,12,326,13],[327,1,327,8],[327,10,327,16],[328,1,328,3],[328,4,331,16],[322,6,322,7],[322,9,322,10],[322,12,322,13],[324,6,324,7],[324,9,324,10],[324,12,324,13],[7,29,8,29],[7,30,8,30],[19,28,19,29],[7,20,8,20],[7,21,8,21],[7,22,8,22],[7,23,8,23],[7,24,8,24],[7,25,8,25],[7,26,8,26],[7,27,8,27],[7,28,8,28]]}
[null,{"$f":"+Ecologist&\": \"&+Site_name","v":": "}]
[null,"C4.3 Aquatic amphibian survey (conventional methods) - GCN results - Pond 21"]
[null,"Was an aquatic amphibian survey done?",null,null,null,null,"If no, proceed to next section.",null,null,null,"Return to Ponds 1 - 10 tab"]
[null,"Total no. of ponds surveyed:",null,null,null,{"$f":"'C - Survey - Pond 1-10'!F4","v":0}]
[null,"Surveyor name(s):"]
[null,"Important. Read before completing this section: Enter GCN survey data in relevant boxes in the table below (for Pond 1) and those on subsequent sheets (for up to 9 other ponds). Enter \"0\" where you did a survey and found no newts; leave box blank if no survey was done. This format is designed for a typical single season survey with typical methods and effort. Explain atypical methods/effort later. For multiple year surveys, give details in annex (convert data to this format if possible). Use these tables to provide details only for the most recent season's survey. Append older survey results in full. Automatic yellow highlight indicates possible detectability problem (see Evaluation & interpretation section, later)."]
[]
[null,null,null,null,null,null,null,null,null,null,null,null,null,null,null,null,null,null,null,null,"Pond 21","Pond 22","Pond 23","Pond 24","Pond 25","Pond 26","Pond 27","Pond 28","Pond 29","Pond 30","Visit total"]
[]
[null,null,null,null,null,null,null,null,null,null,null,null,null,null,null,null,null,null,null,"Visit 1",{"$f":"MAX('C - Survey - Pond 21-30'!G16:M16)","v":0},{"$f":"MAX('C - Survey - Pond 21-30'!G49:M49)","v":0},{"$f":"MAX('C - Survey - Pond 21-30'!G82:M82)","v":0},{"$f":"MAX('C - Survey - Pond 21-30'!G115:M115)","v":0},{"$f":"MAX('C - Survey - Pond 21-30'!G148:M148)","v":0},{"$f":"MAX('C - Survey - Pond 21-30'!G181:M181)","v":0},{"$f":"MAX('C - Survey - Pond 21-30'!G214:M214)","v":0},{"$f":"MAX('C - Survey - Pond 21-30'!G247:M247)","v":0},{"$f":"MAX('C - Survey - Pond 21-30'!G280:M280)","v":0},{"$f":"MAX('C - Survey - Pond 21-30'!G313:M313)","v":0},{"$f":"SUM(U10:AD10)","v":0}]
[null,"Pond reference (e.g. \"Pond 21\") - below",null,null,null,"Method:","Torch",null,null,"Bottle-trap",null,null,"Net",null,null,"Egg search","Larvae",null,null,"Visit 2",{"$f":"MAX('C - Survey - Pond 21-30'!G18:M18)","v":0},{"$f":"MAX('C - Survey - Pond 21-30'!G51:M51)","v":0},{"$f":"MAX('C - Survey - Pond 21-30'!G84:M84)","v":0},{"$f":"MAX('C - Survey - Pond 21-30'!G117:M117)","v":0},{"$f":"MAX('C - Survey - Pond 21-30'!G150:M150)","v":0},{"$f":"MAX('C - Survey - Pond 21-30'!G183:M183)","v":0},{"$f":"MAX('C - Survey - Pond 21-30'!G216:M216)","v":0},{"$f":"MAX('C - Survey - Pond 21-30'!G249:M249)","v":0},{"$f":"MAX('C - Survey - Pond 21-30'!G282:M282)","v":0},{"$f":"MAX('C - Survey - Pond 21-30'!G315:M315)","v":0},{"$f":"SUM(U11:AD11)","v":0}]
[null,null,null,null,null,null,"Torch power:",null,null,"No. of traps used in pond:",null,null,null,null,null,"eggs found?","larvae found? (any method)",null,null,"Visit 3",{"$f":"MAX('C - Survey - Pond 21-30'!G20:M20)","v":0},{"$f":"MAX('C - Survey - Pond 21-30'!G53:M53)","v":0},{"$f":"MAX('C - Survey - Pond 21-30'!G86:M86)","v":0},{"$f":"MAX('C - Survey - Pond 21-30'!G119:M119)","v":0},{"$f":"MAX('C - Survey - Pond 21-30'!G152:M152)","v":0},{"$f":"MAX('C - Survey - Pond 21-30'!G185:M185)","v":0},{"$f":"MAX('C - Survey - Pond 21-30'!G218:M218)","v":0},{"$f":"MAX('C - Survey - Pond 21-30'!G251:M251)","v":0},{"$f":"MAX('C - Survey - Pond 21-30'!G284:M284)","v":0},{"$f":"MAX('C - Survey - Pond 21-30'!G317:M317)","v":0},0]
[null,"No. of survey visits to this pond:",null,null,0,null,null,null,null,null,null,null,null,null,null,null,null,null,null,"Visit 4",{"$f":"MAX('C - Survey - Pond 21-30'!G22:M22)","v":0},{"$f":"MAX('C - Survey - Pond 21-30'!G55:M55)","v":0},{"$f":"MAX('C - Survey - Pond 21-30'!G88:M88)","v":0},{"$f":"MAX('C - Survey - Pond 21-30'!G121:M121)","v":0},{"$f":"MAX('C - Survey - Pond 21-30'!G154:M154)","v":0},{"$f":"MAX('C - Survey - Pond 21-30'!G187:M187)","v":0},{"$f":"MAX('C - Survey - Pond 21-30'!G220:M220)","v":0},{"$f":"MAX('C - Survey - Pond 21-30'!G253:M253)","v":0},{"$f":"MAX('C - Survey - Pond 21-30'!G286:M286)","v":0},{"$f":"MAX('C - Survey - Pond 21-30'!G319:M319)","v":0},0]
[null,"Sex/life stage:",null,null,null,null,"Male","Female","Imm.","Male","Female","Imm.","Male","Female","Imm.",null,null,null,null,"Visit 5",{"$f":"MAX('C - Survey - Pond 21-30'!G24:M24)","v":0},{"$f":"MAX('C - Survey - Pond 21-30'!G57:M57)","v":0},{"$f":"MAX('C - Survey - Pond 21-30'!G90:M90)","v":0},{"$f":"MAX('C - Survey - Pond 21-30'!G123:M123)","v":0},{"$f":"MAX('C - Survey - Pond 21-30'!G156:M156)","v":0},{"$f":"MAX('C - Survey - Pond 21-30'!G189:M189)","v":0},{"$f":"MAX('C - Survey - Pond 21-30'!G222:M222)","v":0},{"$f":"MAX('C - Survey - Pond 21-30'!G255:M255)","v":0},{"$f":"MAX('C - Survey - Pond 21-30'!G288:M288)","v":0},{"$f":"MAX('C - Survey - Pond 21-30'!G321:M321)","v":0},0]
[null,"(1) Date:","Air temp","Veg cover","Turbidity",{"$f":"IF(OR(AND(NOT(ISBLANK($C16)),$C16<5),AND(NOT(ISBLANK($D16)),$D16>3),AND(NOT(ISBLANK($E16)),$E16>3)),\"1\",\"0\")","v":"0"},null,null,null,null,null,null,null,null,null,null,null,null,null,"Visit 6",{"$f":"MAX('C - Survey - Pond 21-30'!G26:M26)","v":0},{"$f":"MAX('C - Survey - Pond 21-30'!G59:M59)","v":0},{"$f":"MAX('C - Survey - Pond 21-30'!G92:M92)","v":0},{"$f":"MAX('C - Survey - Pond 21-30'!G125:M125)","v":0},{"$f":"MAX('C - Survey - Pond 21-30'!G158:M158)","v":0},{"$f":"MAX('C - Survey - Pond 21-30'!G191:M191)","v":0},{"$f":"MAX('C - Survey - Pond 21-30'!G224:M224)","v":0},{"$f":"MAX('C - Survey - Pond 21-30'!G257:M257)","v":0},{"$f":"MAX('C - Survey - Pond 21-30'!G290:M290)","v":0},{"$f":"MAX('C - Survey - Pond 21-30'!G323:M323)","v":0},0]
[null,null,null,null,null,"Adult totals:",{"$f":"G15+H15","v":0},null,null,{"$f":"J15+K15","v":0},null,null,{"$f":"M15+N15","v":0},null,null,null,null,null,null,"Visit 7",{"$f":"MAX('C - Survey - Pond 21-30'!G28:M28)","v":0},{"$f":"MAX('C - Survey - Pond 21-30'!G61:M61)","v":0},{"$f":"MAX('C - Survey - Pond 21-30'!G94:M94)","v":0},{"$f":"MAX('C - Survey - Pond 21-30'!G127:M127)","v":0},{"$f":"MAX('C - Survey - Pond 21-30'!G160:M160)","v":0},{"$f":"MAX('C - Survey - Pond 21-30'!G193:M193)","v":0},{"$f":"MAX('C - Survey - Pond 21-30'!G226:M226)","v":0},{"$f":"MAX('C - Survey - Pond 21-30'!G259:M259)","v":0},{"$f":"MAX('C - Survey - Pond 21-30'!G292:M292)","v":0},{"$f":"MAX('C - Survey - Pond 21-30'!G325:M325)","v":0},0]
[null,"(2) Date:","Air temp","Veg cover","Turbidity",{"$f":"IF(OR(AND(NOT(ISBLANK($C18)),$C18<5),AND(NOT(ISBLANK($D18)),$D18>3),AND(NOT(ISBLANK($E18)),$E18>3)),\"1\",\"0\")","v":"0"},null,null,null,null,null,null,null,null,null,null,null,null,null,"Visit 8",{"$f":"MAX('C - Survey - Pond 21-30'!G30:M30)","v":0},{"$f":"MAX('C - Survey - Pond 21-30'!G63:M63)","v":0},{"$f":"MAX('C - Survey - Pond 21-30'!G96:M96)","v":0},{"$f":"MAX('C - Survey - Pond 21-30'!G129:M129)","v":0},{"$f":"MAX('C - Survey - Pond 21-30'!G162:M162)","v":0},{"$f":"MAX('C - Survey - Pond 21-30'!G195:M195)","v":0},{"$f":"MAX('C - Survey - Pond 21-30'!G228:M228)","v":0},{"$f":"MAX('C - Survey - Pond 21-30'!G261:M261)","v":0},{"$f":"MAX('C - Survey - Pond 21-30'!G294:M294)","v":0},{"$f":"MAX('C - Survey - Pond 21-30'!G327:M327)","v":0},0]
[null,null,null,null,null,"Adult totals:",{"$f":"G17+H17","v":0},null,null,{"$f":"J17+K17","v":0},null,null,{"$f":"M17+N17","v":0},null,null,null,null,null,null,null,{"$f":"MATCH((MAX(U10:U17)),U10:U17,0)","v":1},{"$f":"MATCH((MAX(V10:V17)),V10:V17,0)","v":1},1,1,1,1,1,1,1,1]
[null,"(3) Date:","Air temp","Veg cover","Turbidity",{"$f":"IF(OR(AND(NOT(ISBLANK($C20)),$C20<5),AND(NOT(ISBLANK($D20)),$D20>3),AND(NOT(ISBLANK($E20)),$E20>3)),\"1\",\"0\")","v":"0"}]
[null,null,null,null,null,"Adult totals:",{"$f":"G19+H19","v":0},null,null,{"$f":"J19+K19","v":0},null,null,{"$f":"M19+N19","v":0},null,null,null,null,null,null,null,null,null,null,null,null,null,null,null,"total peak",null,{"$f":"MAX(AE10:AE17)","v":0}]
[null,"(4) Date:","Air temp","Veg cover","Turbidity",{"$f":"IF(OR(AND(NOT(ISBLANK($C22)),$C22<5),AND(NOT(ISBLANK($D22)),$D22>3),AND(NOT(ISBLANK($E22)),$E22>3)),\"1\",\"0\")","v":"0"}]
[null,null,null,null,null,"Adult totals:",{"$f":"G21+H21","v":0},null,null,{"$f":"J21+K21","v":0},null,null,{"$f":"M21+N21","v":0}]
[null,"(5) Date:","Air temp","Veg cover","Turbidity",{"$f":"IF(OR(AND(NOT(ISBLANK($C24)),$C24<5),AND(NOT(ISBLANK($D24)),$D24>3),AND(NOT(ISBLANK($E24)),$E24>3)),\"1\",\"0\")","v":"0"}]
[null,null,null,null,null,"Adult totals:",{"$f":"G23+H23","v":0},null,null,{"$f":"J23+K23","v":0},null,null,{"$f":"M23+N23","v":0}]
[null,"(6) Date:","Air temp","Veg cover","Turbidity",{"$f":"IF(OR(AND(NOT(ISBLANK($C26)),$C26<5),AND(NOT(ISBLANK($D26)),$D26>3),AND(NOT(ISBLANK($E26)),$E26>3)),\"1\",\"0\")","v":"0"}]
[null,null,null,null,null,"Adult totals:",{"$f":"G25+H25","v":0},null,null,{"$f":"J25+K25","v":0},null,null,{"$f":"M25+N25","v":0}]
[null,"(7) Date:","Air temp","Veg cover","Turbidity",{"$f":"IF(OR(AND(NOT(ISBLANK($C28)),$C28<5),AND(NOT(ISBLANK($D28)),$D28>3),AND(NOT(ISBLANK($E28)),$E28>3)),\"1\",\"0\")","v":"0"}]
[null,null,null,null,null,"Adult totals:",{"$f":"G27+H27","v":0},null,null,{"$f":"J27+K27","v":0},null,null,{"$f":"M27+N27","v":0}]
[null,"(8) Date:","Air temp","Veg cover","Turbidity",{"$f":"IF(OR(AND(NOT(ISBLANK($C30)),$C30<5),AND(NOT(ISBLANK($D30)),$D30>3),AND(NOT(ISBLANK($E30)),$E30>3)),\"1\",\"0\")","v":"0"}]
[null,null,null,null,null,"Adult totals:",{"$f":"G29+H29","v":0},null,null,{"$f":"J29+K29","v":0},null,null,{"$f":"M29+N29","v":0}]
[null,"Peak adult count for this pond in any one visit (by torch, trap or net):",null,null,null,null,null,null,null,{"$f":"MAX(G16,J16,M16,G18,J18,M18,G20,J20,M20,G22,J22,M22,G24,J24,M24,G26,J26,M26,G28,J28,M28,G30,J30,M30)","v":0}]
[null,"Comments and constraints:"]
[null,"Temp Veg Tur problem?",{"$f":"F15+F17+F19+F21+F23+F25+F27+F29","v":0}]
[null,"Torch power low?",{"$f":"IF(AND(NOT(ISBLANK(G13)),OR(G13=\"< 50,000 cp\",G13=\"50,000 - 499,999 cp\")),\"1\",\"0\")","v":"0"}]
[null,"Visit 1 overall det problem?",{"$f":"C33+C34","v":0}]
[null,"# ponds",{"$f":"$F$4","v":0}]
[]
[]
[null,{"$f":"+Ecologist&\": \"&+Site_name","v":": "}]
[null,"C4.3 Aquatic amphibian survey (conventional methods)- GCN results (cont.)",null,null,null,null,null,null,null,null,"NB: This page prints in landscape format"]
[]
[]
[]
[null,"Pond reference (e.g. Pond 22)",null,null,null,"Method:","Torch",null,null,"Bottle-trap",null,null,"Net",null,null,"Egg search","Larvae"]
[null,null,null,null,null,null,"Torch power:",null,null,"No. of traps used in pond:",null,null,null,null,null,"eggs found?","larvae found? (any method)"]
[null,"No. of survey visits to this pond:"]
[null,"Sex/life stage:",null,null,null,null,"Male","Female","Imm.","Male","Female","Imm.","Male","Female","Imm."]
[null,"(1) Date:","Air temp","Veg cover","Turbidity",{"$f":"IF(OR(AND(NOT(ISBLANK($C49)),$C49<5),AND(NOT(ISBLANK($D49)),$D49>3),AND(NOT(ISBLANK($E49)),$E49>3)),\"1\",\"0\")","v":"0"}]
[null,null,null,null,null,"Adult totals:",{"$f":"G48+H48","v":0},null,null,{"$f":"J48+K48","v":0},null,null,{"$f":"M48+N48","v":0}]
[null,"(2) Date:","Air temp","Veg cover","Turbidity",{"$f":"IF(OR(AND(NOT(ISBLANK($C51)),$C51<5),AND(NOT(ISBLANK($D51)),$D51>3),AND(NOT(ISBLANK($E51)),$E51>3)),\"1\",\"0\")","v":"0"}]
[null,null,null,null,null,"Adult totals:",{"$f":"G50+H50","v":0},null,null,{"$f":"J50+K50","v":0},null,null,{"$f":"M50+N50","v":0}]
[null,"(3) Date:","Air temp","Veg cover","Turbidity",{"$f":"IF(OR(AND(NOT(ISBLANK($C53)),$C53<5),AND(NOT(ISBLANK($D53)),$D53>3),AND(NOT(ISBLANK($E53)),$E53>3)),\"1\",\"0\")","v":"0"}]
[null,null,null,null,null,"Adult totals:",{"$f":"G52+H52","v":0},null,null,{"$f":"J52+K52","v":0},null,null,{"$f":"M52+N52","v":0}]
[null,"(4) Date:","Air temp","Veg cover","Turbidity",{"$f":"IF(OR(AND(NOT(ISBLANK($C55)),$C55<5),AND(NOT(ISBLANK($D55)),$D55>3),AND(NOT(ISBLANK($E55)),$E55>3)),\"1\",\"0\")","v":"0"}]
[null,null,null,null,null,"Adult totals:",{"$f":"G54+H54","v":0},null,null,{"$f":"J54+K54","v":0},null,null,{"$f":"M54+N54","v":0}]
[null,"(5) Date:","Air temp","Veg cover","Turbidity",{"$f":"IF(OR(AND(NOT(ISBLANK($C57)),$C57<5),AND(NOT(ISBLANK($D57)),$D57>3),AND(NOT(ISBLANK($E57)),$E57>3)),\"1\",\"0\")","v":"0"}]
[null,null,null,null,null,"Adult totals:",{"$f":"G56+H56","v":0},null,null,{"$f":"J56+K56","v":0},null,null,{"$f":"M56+N56","v":0}]
[null,"(6) Date:","Air temp","Veg cover","Turbidity",{"$f":"IF(OR(AND(NOT(ISBLANK($C59)),$C59<5),AND(NOT(ISBLANK($D59)),$D59>3),AND(NOT(ISBLANK($E59)),$E59>3)),\"1\",\"0\")","v":"0"}]
[null,null,null,null,null,"Adult totals:",{"$f":"G58+H58","v":0},null,null,{"$f":"J58+K58","v":0},null,null,{"$f":"M58+N58","v":0}]
[null,"(7) Date:","Air temp","Veg cover","Turbidity",{"$f":"IF(OR(AND(NOT(ISBLANK($C61)),$C61<5),AND(NOT(ISBLANK($D61)),$D61>3),AND(NOT(ISBLANK($E61)),$E61>3)),\"1\",\"0\")","v":"0"}]
[null,null,null,null,null,"Adult totals:",{"$f":"G60+H60","v":0},null,null,{"$f":"J60+K60","v":0},null,null,{"$f":"M60+N60","v":0}]
[null,"(8) Date:","Air temp","Veg cover","Turbidity",{"$f":"IF(OR(AND(NOT(ISBLANK($C63)),$C63<5),AND(NOT(ISBLANK($D63)),$D63>3),AND(NOT(ISBLANK($E63)),$E63>3)),\"1\",\"0\")","v":"0"}]
[null,null,null,null,null,"Adult totals:",{"$f":"G62+H62","v":0},null,null,{"$f":"J62+K62","v":0},null,null,{"$f":"M62+N62","v":0}]
[null,"Peak adult count for this pond in any one visit (by torch, trap or net):",null,null,null,null,null,null,null,{"$f":"MAX(G49,J49,M49,G51,J51,M51,G53,J53,M53,G55,J55,M55,G57,J57,M57,G59,J59,M59,G61,J61,M61,G63,J63,M63)","v":0}]
[null,"Comments and constraints:"]
[null,"Temp Veg Tur problem?",{"$f":"F48+F50+F52+F54+F56+F58+F60+F62","v":0}]
[null,"Torch power low?",{"$f":"IF(AND(NOT(ISBLANK(G46)),OR(G46=\"< 50,000 cp\",G46=\"50,000 - 499,999 cp\")),\"1\",\"0\")","v":"0"}]
[null,"Visit 1 overall det problem?",{"$f":"C66+C67","v":0}]
[null,"# ponds",{"$f":"$F$4","v":0}]
[]
[]
[null,{"$f":"+Ecologist&\": \"&+Site_name","v":": "}]
[null,"C4.3 Aquatic amphibian survey (conventional surveys- GCN results (cont.)",null,null,null,null,null,null,null,null,"NB: This page prints in landscape format"]
[]
[]
[]
[null,"Pond reference (e.g. Pond 23)",null,null,null,"Method:","Torch",null,null,"Bottle-trap",null,null,"Net",null,null,"Egg search","Larvae"]
[null,null,null,null,null,null,"Torch power:",null,null,"No. of traps used in pond:",null,null,null,null,null,"eggs found?","larvae found? (any method)"]
[null,"No. of survey visits to this pond:"]
[null,"Sex/life stage:",null,null,null,null,"Male","Female","Imm.","Male","Female","Imm.","Male","Female","Imm."]
[null,"(1) Date:","Air temp","Veg cover","Turbidity",{"$f":"IF(OR(AND(NOT(ISBLANK($C82)),$C82<5),AND(NOT(ISBLANK($D82)),$D82>3),AND(NOT(ISBLANK($E82)),$E82>3)),\"1\",\"0\")","v":"0"}]
[null,null,null,null,null,"Adult totals:",{"$f":"G81+H81","v":0},null,null,{"$f":"J81+K81","v":0},null,null,{"$f":"M81+N81","v":0}]
[null,"(2) Date:","Air temp","Veg cover","Turbidity",{"$f":"IF(OR(AND(NOT(ISBLANK($C84)),$C84<5),AND(NOT(ISBLANK($D84)),$D84>3),AND(NOT(ISBLANK($E84)),$E84>3)),\"1\",\"0\")","v":"0"}]
[null,null,null,null,null,"Adult totals:",{"$f":"G83+H83","v":0},null,null,{"$f":"J83+K83","v":0},null,null,{"$f":"M83+N83","v":0}]
[null,"(3) Date:","Air temp","Veg cover","Turbidity",{"$f":"IF(OR(AND(NOT(ISBLANK($C86)),$C86<5),AND(NOT(ISBLANK($D86)),$D86>3),AND(NOT(ISBLANK($E86)),$E86>3)),\"1\",\"0\")","v":"0"}]
[null,null,null,null,null,"Adult totals:",{"$f":"G85+H85","v":0},null,null,{"$f":"J85+K85","v":0},null,null,{"$f":"M85+N85","v":0}]
[null,"(4) Date:","Air temp","Veg cover","Turbidity",{"$f":"IF(OR(AND(NOT(ISBLANK($C88)),$C88<5),AND(NOT(ISBLANK($D88)),$D88>3),AND(NOT(ISBLANK($E88)),$E88>3)),\"1\",\"0\")","v":"0"}]
[null,null,null,null,null,"Adult totals:",{"$f":"G87+H87","v":0},null,null,{"$f":"J87+K87","v":0},null,null,{"$f":"M87+N87","v":0}]
[null,"(5) Date:","Air temp","Veg cover","Turbidity",{"$f":"IF(OR(AND(NOT(ISBLANK($C90)),$C90<5),AND(NOT(ISBLANK($D90)),$D90>3),AND(NOT(ISBLANK($E90)),$E90>3)),\"1\",\"0\")","v":"0"}]
[null,null,null,null,null,"Adult totals:",{"$f":"G89+H89","v":0},null,null,{"$f":"J89+K89","v":0},null,null,{"$f":"M89+N89","v":0}]
[null,"(6) Date:","Air temp","Veg cover","Turbidity",{"$f":"IF(OR(AND(NOT(ISBLANK($C92)),$C92<5),AND(NOT(ISBLANK($D92)),$D92>3),AND(NOT(ISBLANK($E92)),$E92>3)),\"1\",\"0\")","v":"0"}]
[null,null,null,null,null,"Adult totals:",{"$f":"G91+H91","v":0},null,null,{"$f":"J91+K91","v":0},null,null,{"$f":"M91+N91","v":0}]
[null,"(7) Date:","Air temp","Veg cover","Turbidity",{"$f":"IF(OR(AND(NOT(ISBLANK($C94)),$C94<5),AND(NOT(ISBLANK($D94)),$D94>3),AND(NOT(ISBLANK($E94)),$E94>3)),\"1\",\"0\")","v":"0"}]
[null,null,null,null,null,"Adult totals:",{"$f":"G93+H93","v":0},null,null,{"$f":"J93+K93","v":0},null,null,{"$f":"M93+N93","v":0}]
[null,"(8) Date:","Air temp","Veg cover","Turbidity",{"$f":"IF(OR(AND(NOT(ISBLANK($C96)),$C96<5),AND(NOT(ISBLANK($D96)),$D96>3),AND(NOT(ISBLANK($E96)),$E96>3)),\"1\",\"0\")","v":"0"}]
[null,null,null,null,null,"Adult totals:",{"$f":"G95+H95","v":0},null,null,{"$f":"J95+K95","v":0},null,null,{"$f":"M95+N95","v":0}]
[null,"Peak adult count for this pond in any one visit (by torch, trap or net):",null,null,null,null,null,null,null,{"$f":"MAX(G82,J82,M82,G84,J84,M84,G86,J86,M86,G88,J88,M88,G90,J90,M90,G92,J92,M92,G94,J94,M94,G96,J96,M96)","v":0}]
[null,"Comments and constraints:"]
[null,"Temp Veg Tur problem?",{"$f":"F81+F83+F85+F87+F89+F91+F93+F95","v":0}]
[null,"Torch power low?",{"$f":"IF(AND(NOT(ISBLANK(G79)),OR(G79=\"< 50,000 cp\",G79=\"50,000 - 499,999 cp\")),\"1\",\"0\")","v":"0"}]
[null,"Visit 1 overall det problem?",{"$f":"C99+C100","v":0}]
[null,"# ponds",{"$f":"$F$4","v":0}]
[]
[]
[null,{"$f":"+Ecologist&\": \"&+Site_name","v":": "}]
[null,"C4.3 Aquatic amphibian survey (conventional methods) - GCN results (cont.)",null,null,null,null,null,null,null,null,"NB: This page prints in landscape format"]
[]
[]
[]
[null,"Pond reference (e.g. Pond 24)",null,null,null,"Method:","Torch",null,null,"Bottle-trap",null,null,"Net",null,null,"Egg search","Larvae"]
[null,null,null,null,null,null,"Torch power:",null,null,"No. of traps used in pond:",null,null,null,null,null,"eggs found?","larvae found? (any method)"]
[null,"No. of survey visits to this pond:"]
[null,"Sex/life stage:",null,null,null,null,"Male","Female","Imm.","Male","Female","Imm.","Male","Female","Imm."]
[null,"(1) Date:","Air temp","Veg cover","Turbidity",{"$f":"IF(OR(AND(NOT(ISBLANK($C115)),$C115<5),AND(NOT(ISBLANK($D115)),$D115>3),AND(NOT(ISBLANK($E115)),$E115>3)),\"1\",\"0\")","v":"0"}]
[null,null,null,null,null,"Adult totals:",{"$f":"G114+H114","v":0},null,null,{"$f":"J114+K114","v":0},null,null,{"$f":"M114+N114","v":0}]
[null,"(2) Date:","Air temp","Veg cover","Turbidity",{"$f":"IF(OR(AND(NOT(ISBLANK($C117)),$C117<5),AND(NOT(ISBLANK($D117)),$D117>3),AND(NOT(ISBLANK($E117)),$E117>3)),\"1\",\"0\")","v":"0"}]
[null,null,null,null,null,"Adult totals:",{"$f":"G116+H116","v":0},null,null,{"$f":"J116+K116","v":0},null,null,{"$f":"M116+N116","v":0}]
[null,"(3) Date:","Air temp","Veg cover","Turbidity",{"$f":"IF(OR(AND(NOT(ISBLANK($C119)),$C119<5),AND(NOT(ISBLANK($D119)),$D119>3),AND(NOT(ISBLANK($E119)),$E119>3)),\"1\",\"0\")","v":"0"}]
[null,null,null,null,null,"Adult totals:",{"$f":"G118+H118","v":0},null,null,{"$f":"J118+K118","v":0},null,null,{"$f":"M118+N118","v":0}]
[null,"(4) Date:","Air temp","Veg cover","Turbidity",{"$f":"IF(OR(AND(NOT(ISBLANK($C121)),$C121<5),AND(NOT(ISBLANK($D121)),$D121>3),AND(NOT(ISBLANK($E121)),$E121>3)),\"1\",\"0\")","v":"0"}]
[null,null,null,null,null,"Adult totals:",{"$f":"G120+H120","v":0},null,null,{"$f":"J120+K120","v":0},null,null,{"$f":"M120+N120","v":0}]
[null,"(5) Date:","Air temp","Veg cover","Turbidity",{"$f":"IF(OR(AND(NOT(ISBLANK($C123)),$C123<5),AND(NOT(ISBLANK($D123)),$D123>3),AND(NOT(ISBLANK($E123)),$E123>3)),\"1\",\"0\")","v":"0"}]
[null,null,null,null,null,"Adult totals:",{"$f":"G122+H122","v":0},null,null,{"$f":"J122+K122","v":0},null,null,{"$f":"M122+N122","v":0}]
[null,"(6) Date:","Air temp","Veg cover","Turbidity",{"$f":"IF(OR(AND(NOT(ISBLANK($C125)),$C125<5),AND(NOT(ISBLANK($D125)),$D125>3),AND(NOT(ISBLANK($E125)),$E125>3)),\"1\",\"0\")","v":"0"}]
[null,null,null,null,null,"Adult totals:",{"$f":"G124+H124","v":0},null,null,{"$f":"J124+K124","v":0},null,null,{"$f":"M124+N124","v":0}]
[null,"(7) Date:","Air temp","Veg cover","Turbidity",{"$f":"IF(OR(AND(NOT(ISBLANK($C127)),$C127<5),AND(NOT(ISBLANK($D127)),$D127>3),AND(NOT(ISBLANK($E127)),$E127>3)),\"1\",\"0\")","v":"0"}]
[null,null,null,null,null,"Adult totals:",{"$f":"G126+H126","v":0},null,null,{"$f":"J126+K126","v":0},null,null,{"$f":"M126+N126","v":0}]
[null,"(8) Date:","Air temp","Veg cover","Turbidity",{"$f":"IF(OR(AND(NOT(ISBLANK($C129)),$C129<5),AND(NOT(ISBLANK($D129)),$D129>3),AND(NOT(ISBLANK($E129)),$E129>3)),\"1\",\"0\")","v":"0"}]
[null,null,null,null,null,"Adult totals:",{"$f":"G128+H128","v":0},null,null,{"$f":"J128+K128","v":0},null,null,{"$f":"M128+N128","v":0}]
[null,"Peak adult count for this pond in any one visit (by torch, trap or net):",null,null,null,null,null,null,null,{"$f":"MAX(G115,J115,M115,G117,J117,M117,G119,J119,M119,G121,J121,M121,G123,J123,M123,G125,J125,M125,G127,J127,M127,G129,J129,M129)","v":0}]
[null,"Comments and constraints:"]
[null,"Temp Veg Tur problem?",{"$f":"F114+F116+F118+F120+F122+F124+F126+F128","v":0}]
[null,"Torch power low?",{"$f":"IF(AND(NOT(ISBLANK(G112)),OR(G112=\"< 50,000 cp\",G112=\"50,000 - 499,999 cp\")),\"1\",\"0\")","v":"0"}]
[null,"Visit 1 overall det problem?",{"$f":"C132+C133","v":0}]
[null,"# ponds",{"$f":"$F$4","v":0}]
[]
[]
[null,{"$f":"+Ecologist&\": \"&+Site_name","v":": "}]
[null,"C4.3 Aquatic amphibian survey (conventional methods) - GCN results (cont.)",null,null,null,null,null,null,null,null,"NB: This page prints in landscape format"]
[]
[]
[]
[null,"Pond reference (e.g. Pond 25) ",null,null,null,"Method:","Torch",null,null,"Bottle-trap",null,null,"Net",null,null,"Egg search","Larvae"]
[null,null,null,null,null,null,"Torch power:",null,null,"No. of traps used in pond:",null,null,null,null,null,"eggs found?","larvae found? (any method)"]
[null,"No. of survey visits to this pond:"]
[null,"Sex/life stage:",null,null,null,null,"Male","Female","Imm.","Male","Female","Imm.","Male","Female","Imm."]
[null,"(1) Date:","Air temp","Veg cover","Turbidity",{"$f":"IF(OR(AND(NOT(ISBLANK($C148)),$C148<5),AND(NOT(ISBLANK($D148)),$D148>3),AND(NOT(ISBLANK($E148)),$E148>3)),\"1\",\"0\")","v":"0"}]
[null,null,null,null,null,"Adult totals:",{"$f":"G147+H147","v":0},null,null,{"$f":"J147+K147","v":0},null,null,{"$f":"M147+N147","v":0}]
[null,"(2) Date:","Air temp","Veg cover","Turbidity",{"$f":"IF(OR(AND(NOT(ISBLANK($C150)),$C150<5),AND(NOT(ISBLANK($D150)),$D150>3),AND(NOT(ISBLANK($E150)),$E150>3)),\"1\",\"0\")","v":"0"}]
[null,null,null,null,null,"Adult totals:",{"$f":"G149+H149","v":0},null,null,{"$f":"J149+K149","v":0},null,null,{"$f":"M149+N149","v":0}]
[null,"(3) Date:","Air temp","Veg cover","Turbidity",{"$f":"IF(OR(AND(NOT(ISBLANK($C152)),$C152<5),AND(NOT(ISBLANK($D152)),$D152>3),AND(NOT(ISBLANK($E152)),$E152>3)),\"1\",\"0\")","v":"0"}]
[null,null,null,null,null,"Adult totals:",{"$f":"G151+H151","v":0},null,null,{"$f":"J151+K151","v":0},null,null,{"$f":"M151+N151","v":0}]
[null,"(4) Date:","Air temp","Veg cover","Turbidity",{"$f":"IF(OR(AND(NOT(ISBLANK($C154)),$C154<5),AND(NOT(ISBLANK($D154)),$D154>3),AND(NOT(ISBLANK($E154)),$E154>3)),\"1\",\"0\")","v":"0"}]
[null,null,null,null,null,"Adult totals:",{"$f":"G153+H153","v":0},null,null,{"$f":"J153+K153","v":0},null,null,{"$f":"M153+N153","v":0}]
[null,"(5) Date:","Air temp","Veg cover","Turbidity",{"$f":"IF(OR(AND(NOT(ISBLANK($C156)),$C156<5),AND(NOT(ISBLANK($D156)),$D156>3),AND(NOT(ISBLANK($E156)),$E156>3)),\"1\",\"0\")","v":"0"}]
[null,null,null,null,null,"Adult totals:",{"$f":"G155+H155","v":0},null,null,{"$f":"J155+K155","v":0},null,null,{"$f":"M155+N155","v":0}]
[null,"(6) Date:","Air temp","Veg cover","Turbidity",{"$f":"IF(OR(AND(NOT(ISBLANK($C158)),$C158<5),AND(NOT(ISBLANK($D158)),$D158>3),AND(NOT(ISBLANK($E158)),$E158>3)),\"1\",\"0\")","v":"0"}]
[null,null,null,null,null,"Adult totals:",{"$f":"G157+H157","v":0},null,null,{"$f":"J157+K157","v":0},null,null,{"$f":"M157+N157","v":0}]
[null,"(7) Date:","Air temp","Veg cover","Turbidity",{"$f":"IF(OR(AND(NOT(ISBLANK($C160)),$C160<5),AND(NOT(ISBLANK($D160)),$D160>3),AND(NOT(ISBLANK($E160)),$E160>3)),\"1\",\"0\")","v":"0"}]
[null,null,null,null,null,"Adult totals:",{"$f":"G159+H159","v":0},null,null,{"$f":"J159+K159","v":0},null,null,{"$f":"M159+N159","v":0}]
[null,"(8) Date:","Air temp","Veg cover","Turbidity",{"$f":"IF(OR(AND(NOT(ISBLANK($C162)),$C162<5),AND(NOT(ISBLANK($D162)),$D162>3),AND(NOT(ISBLANK($E162)),$E162>3)),\"1\",\"0\")","v":"0"}]
[null,null,null,null,null,"Adult totals:",{"$f":"G161+H161","v":0},null,null,{"$f":"J161+K161","v":0},null,null,{"$f":"M161+N161","v":0}]
[null,"Peak adult count for this pond in any one visit (by torch, trap or net):",null,null,null,null,null,null,null,{"$f":"MAX(G148,J148,M148,G150,J150,M150,G152,J152,M152,G154,J154,M154,G156,J156,M156,G158,J158,M158,G160,J160,M160,G162,J162,M162)","v":0}]
[null,"Comments and constraints:"]
[null,"Temp Veg Tur problem?",{"$f":"F147+F149+F151+F153+F155+F157+F159+F161","v":0}]
[null,"Torch power low?",{"$f":"IF(AND(NOT(ISBLANK(G145)),OR(G145=\"< 50,000 cp\",G145=\"50,000 - 499,999 cp\")),\"1\",\"0\")","v":"0"}]
[null,"Visit 1 overall det problem?",{"$f":"C165+C166","v":0}]
[null,"# ponds",{"$f":"$F$4","v":0}]
[]
[]
[null,{"$f":"+Ecologist&\": \"&+Site_name","v":": "}]
[null,"C4.3 Aquatic amphibian survey (conventional methods) - GCN results (cont.)",null,null,null,null,null,null,null,null,"NB: This page prints in landscape format"]
[]
[]
[]
[null,"Pond reference (e.g. Pond 26)",null,null,null,"Method:","Torch",null,null,"Bottle-trap",null,null,"Net",null,null,"Egg search","Larvae"]
[null,null,null,null,null,null,"Torch power:",null,null,"No. of traps used in pond:",null,null,null,null,null,"eggs found?","larvae found? (any method)"]
[null,"No. of survey visits to this pond:"]
[null,"Sex/life stage:",null,null,null,null,"Male","Female","Imm.","Male","Female","Imm.","Male","Female","Imm."]
[null,"(1) Date:","Air temp","Veg cover","Turbidity",{"$f":"IF(OR(AND(NOT(ISBLANK($C181)),$C181<5),AND(NOT(ISBLANK($D181)),$D181>3),AND(NOT(ISBLANK($E181)),$E181>3)),\"1\",\"0\")","v":"0"}]
[null,null,null,null,null,"Adult totals:",{"$f":"G180+H180","v":0},null,null,{"$f":"J180+K180","v":0},null,null,{"$f":"M180+N180","v":0}]
[null,"(2) Date:","Air temp","Veg cover","Turbidity",{"$f":"IF(OR(AND(NOT(ISBLANK($C183)),$C183<5),AND(NOT(ISBLANK($D183)),$D183>3),AND(NOT(ISBLANK($E183)),$E183>3)),\"1\",\"0\")","v":"0"}]
[null,null,null,null,null,"Adult totals:",{"$f":"G182+H182","v":0},null,null,{"$f":"J182+K182","v":0},null,null,{"$f":"M182+N182","v":0}]
[null,"(3) Date:","Air temp","Veg cover","Turbidity",{"$f":"IF(OR(AND(NOT(ISBLANK($C185)),$C185<5),AND(NOT(ISBLANK($D185)),$D185>3),AND(NOT(ISBLANK($E185)),$E185>3)),\"1\",\"0\")","v":"0"}]
[null,null,null,null,null,"Adult totals:",{"$f":"G184+H184","v":0},null,null,{"$f":"J184+K184","v":0},null,null,{"$f":"M184+N184","v":0}]
[null,"(4) Date:","Air temp","Veg cover","Turbidity",{"$f":"IF(OR(AND(NOT(ISBLANK($C187)),$C187<5),AND(NOT(ISBLANK($D187)),$D187>3),AND(NOT(ISBLANK($E187)),$E187>3)),\"1\",\"0\")","v":"0"}]
[null,null,null,null,null,"Adult totals:",{"$f":"G186+H186","v":0},null,null,{"$f":"J186+K186","v":0},null,null,{"$f":"M186+N186","v":0}]
[null,"(5) Date:","Air temp","Veg cover","Turbidity",{"$f":"IF(OR(AND(NOT(ISBLANK($C189)),$C189<5),AND(NOT(ISBLANK($D189)),$D189>3),AND(NOT(ISBLANK($E189)),$E189>3)),\"1\",\"0\")","v":"0"}]
[null,null,null,null,null,"Adult totals:",{"$f":"G188+H188","v":0},null,null,{"$f":"J188+K188","v":0},null,null,{"$f":"M188+N188","v":0}]
[null,"(6) Date:","Air temp","Veg cover","Turbidity",{"$f":"IF(OR(AND(NOT(ISBLANK($C191)),$C191<5),AND(NOT(ISBLANK($D191)),$D191>3),AND(NOT(ISBLANK($E191)),$E191>3)),\"1\",\"0\")","v":"0"}]
[null,null,null,null,null,"Adult totals:",{"$f":"G190+H190","v":0},null,null,{"$f":"J190+K190","v":0},null,null,{"$f":"M190+N190","v":0}]
[null,"(7) Date:","Air temp","Veg cover","Turbidity",{"$f":"IF(OR(AND(NOT(ISBLANK($C193)),$C193<5),AND(NOT(ISBLANK($D193)),$D193>3),AND(NOT(ISBLANK($E193)),$E193>3)),\"1\",\"0\")","v":"0"}]
[null,null,null,null,null,"Adult totals:",{"$f":"G192+H192","v":0},null,null,{"$f":"J192+K192","v":0},null,null,{"$f":"M192+N192","v":0}]
[null,"(8) Date:","Air temp","Veg cover","Turbidity",{"$f":"IF(OR(AND(NOT(ISBLANK($C195)),$C195<5),AND(NOT(ISBLANK($D195)),$D195>3),AND(NOT(ISBLANK($E195)),$E195>3)),\"1\",\"0\")","v":"0"}]
[null,null,null,null,null,"Adult totals:",{"$f":"G194+H194","v":0},null,null,{"$f":"J194+K194","v":0},null,null,{"$f":"M194+N194","v":0}]
[null,"Peak adult count for this pond in any one visit (by torch, trap or net):",null,null,null,null,null,null,null,{"$f":"MAX(G181,J181,M181,G183,J183,M183,G185,J185,M185,G187,J187,M187,G189,J189,M189,G191,J191,M191,G193,J193,M193,G195,J195,M195)","v":0}]
[null,"Comments and constraints:"]
[null,"Temp Veg Tur problem?",{"$f":"F180+F182+F184+F186+F188+F190+F192+F194","v":0}]
[null,"Torch power low?",{"$f":"IF(AND(NOT(ISBLANK(G178)),OR(G178=\"< 50,000 cp\",G178=\"50,000 - 499,999 cp\")),\"1\",\"0\")","v":"0"}]
[null,"Visit 1 overall det problem?",{"$f":"C198+C199","v":0}]
[null,"# ponds",{"$f":"$F$4","v":0}]
[]
[]
[null,{"$f":"+Ecologist&\": \"&+Site_name","v":": "}]
[null,"C4.3 Aquatic amphibian survey (conventional methods) - GCN results (cont.)",null,null,null,null,null,null,null,null,"NB: This page prints in landscape format"]
[]
[]
[]
[null,"Pond reference (e.g. Pond 27)",null,null,null,"Method:","Torch",null,null,"Bottle-trap",null,null,"Net",null,null,"Egg search","Larvae"]
[null,null,null,null,null,null,"Torch power:",null,null,"No. of traps used in pond:",null,null,null,null,null,"eggs found?","larvae found? (any method)"]
[null,"No. of survey visits to this pond:"]
[null,"Sex/life stage:",null,null,null,null,"Male","Female","Imm.","Male","Female","Imm.","Male","Female","Imm."]
[null,"(1) Date:","Air temp","Veg cover","Turbidity",{"$f":"IF(OR(AND(NOT(ISBLANK($C214)),$C214<5),AND(NOT(ISBLANK($D214)),$D214>3),AND(NOT(ISBLANK($E214)),$E214>3)),\"1\",\"0\")","v":"0"}]
[null,null,null,null,null,"Adult totals:",{"$f":"G213+H213","v":0},null,null,{"$f":"J213+K213","v":0},null,null,{"$f":"M213+N213","v":0}]
[null,"(2) Date:","Air temp","Veg cover","Turbidity",{"$f":"IF(OR(AND(NOT(ISBLANK($C216)),$C216<5),AND(NOT(ISBLANK($D216)),$D216>3),AND(NOT(ISBLANK($E216)),$E216>3)),\"1\",\"0\")","v":"0"}]
[null,null,null,null,null,"Adult totals:",{"$f":"G215+H215","v":0},null,null,{"$f":"J215+K215","v":0},null,null,{"$f":"M215+N215","v":0}]
[null,"(3) Date:","Air temp","Veg cover","Turbidity",{"$f":"IF(OR(AND(NOT(ISBLANK($C218)),$C218<5),AND(NOT(ISBLANK($D218)),$D218>3),AND(NOT(ISBLANK($E218)),$E218>3)),\"1\",\"0\")","v":"0"}]
[null,null,null,null,null,"Adult totals:",{"$f":"G217+H217","v":0},null,null,{"$f":"J217+K217","v":0},null,null,{"$f":"M217+N217","v":0}]
[null,"(4) Date:","Air temp","Veg cover","Turbidity",{"$f":"IF(OR(AND(NOT(ISBLANK($C220)),$C220<5),AND(NOT(ISBLANK($D220)),$D220>3),AND(NOT(ISBLANK($E220)),$E220>3)),\"1\",\"0\")","v":"0"}]
[null,null,null,null,null,"Adult totals:",{"$f":"G219+H219","v":0},null,null,{"$f":"J219+K219","v":0},null,null,{"$f":"M219+N219","v":0}]
[null,"(5) Date:","Air temp","Veg cover","Turbidity",{"$f":"IF(OR(AND(NOT(ISBLANK($C222)),$C222<5),AND(NOT(ISBLANK($D222)),$D222>3),AND(NOT(ISBLANK($E222)),$E222>3)),\"1\",\"0\")","v":"0"}]
[null,null,null,null,null,"Adult totals:",{"$f":"G221+H221","v":0},null,null,{"$f":"J221+K221","v":0},null,null,{"$f":"M221+N221","v":0}]
[null,"(6) Date:","Air temp","Veg cover","Turbidity",{"$f":"IF(OR(AND(NOT(ISBLANK($C224)),$C224<5),AND(NOT(ISBLANK($D224)),$D224>3),AND(NOT(ISBLANK($E224)),$E224>3)),\"1\",\"0\")","v":"0"}]
[null,null,null,null,null,"Adult totals:",{"$f":"G223+H223","v":0},null,null,{"$f":"J223+K223","v":0},null,null,{"$f":"M223+N223","v":0}]
[null,"(7) Date:","Air temp","Veg cover","Turbidity",{"$f":"IF(OR(AND(NOT(ISBLANK($C226)),$C226<5),AND(NOT(ISBLANK($D226)),$D226>3),AND(NOT(ISBLANK($E226)),$E226>3)),\"1\",\"0\")","v":"0"}]
[null,null,null,null,null,"Adult totals:",{"$f":"G225+H225","v":0},null,null,{"$f":"J225+K225","v":0},null,null,{"$f":"M225+N225","v":0}]
[null,"(8) Date:","Air temp","Veg cover","Turbidity",{"$f":"IF(OR(AND(NOT(ISBLANK($C228)),$C228<5),AND(NOT(ISBLANK($D228)),$D228>3),AND(NOT(ISBLANK($E228)),$E228>3)),\"1\",\"0\")","v":"0"}]
[null,null,null,null,null,"Adult totals:",{"$f":"G227+H227","v":0},null,null,{"$f":"J227+K227","v":0},null,null,{"$f":"M227+N227","v":0}]
[null,"Peak adult count for this pond in any one visit (by torch, trap or net):",null,null,null,null,null,null,null,{"$f":"MAX(G214,J214,M214,G216,J216,M216,G218,J218,M218,G220,J220,M220,G222,J222,M222,G224,J224,M224,G226,J226,M226,G228,J228,M228)","v":0}]
[null,"Comments and constraints:"]
[null,"Temp Veg Tur problem?",{"$f":"F213+F215+F217+F219+F221+F223+F225+F227","v":0}]
[null,"Torch power low?",{"$f":"IF(AND(NOT(ISBLANK(G211)),OR(G211=\"< 50,000 cp\",G211=\"50,000 - 499,999 cp\")),\"1\",\"0\")","v":"0"}]
[null,"Visit 1 overall det problem?",{"$f":"C231+C232","v":0}]
[null,"# ponds",{"$f":"$F$4","v":0}]
[]
[]
[null,{"$f":"+Ecologist&\": \"&+Site_name","v":": "}]
[null,"C4.3 Aquatic amphibian survey (conventional methods)- GCN results (cont.)",null,null,null,null,null,null,null,null,"NB: This page prints in landscape format"]
[]
[]
[]
[null,"Pond reference (e.g. Pond 28)",null,null,null,"Method:","Torch",null,null,"Bottle-trap",null,null,"Net",null,null,"Egg search","Larvae"]
[null,null,null,null,null,null,"Torch power:",null,null,"No. of traps used in pond:",null,null,null,null,null,"eggs found?","larvae found? (any method)"]
[null,"No. of survey visits to this pond:"]
[null,"Sex/life stage:",null,null,null,null,"Male","Female","Imm.","Male","Female","Imm.","Male","Female","Imm."]
[null,"(1) Date:","Air temp","Veg cover","Turbidity",{"$f":"IF(OR(AND(NOT(ISBLANK($C247)),$C247<5),AND(NOT(ISBLANK($D247)),$D247>3),AND(NOT(ISBLANK($E247)),$E247>3)),\"1\",\"0\")","v":"0"}]
[null,null,null,null,null,"Adult totals:",{"$f":"G246+H246","v":0},null,null,{"$f":"J246+K246","v":0},null,null,{"$f":"M246+N246","v":0}]
[null,"(2) Date:","Air temp","Veg cover","Turbidity",{"$f":"IF(OR(AND(NOT(ISBLANK($C249)),$C249<5),AND(NOT(ISBLANK($D249)),$D249>3),AND(NOT(ISBLANK($E249)),$E249>3)),\"1\",\"0\")","v":"0"}]
[null,null,null,null,null,"Adult totals:",{"$f":"G248+H248","v":0},null,null,{"$f":"J248+K248","v":0},null,null,{"$f":"M248+N248","v":0}]
[null,"(3) Date:","Air temp","Veg cover","Turbidity",{"$f":"IF(OR(AND(NOT(ISBLANK($C251)),$C251<5),AND(NOT(ISBLANK($D251)),$D251>3),AND(NOT(ISBLANK($E251)),$E251>3)),\"1\",\"0\")","v":"0"}]
[null,null,null,null,null,"Adult totals:",{"$f":"G250+H250","v":0},null,null,{"$f":"J250+K250","v":0},null,null,{"$f":"M250+N250","v":0}]
[null,"(4) Date:","Air temp","Veg cover","Turbidity",{"$f":"IF(OR(AND(NOT(ISBLANK($C253)),$C253<5),AND(NOT(ISBLANK($D253)),$D253>3),AND(NOT(ISBLANK($E253)),$E253>3)),\"1\",\"0\")","v":"0"}]
[null,null,null,null,null,"Adult totals:",{"$f":"G252+H252","v":0},null,null,{"$f":"J252+K252","v":0},null,null,{"$f":"M252+N252","v":0}]
[null,"(5) Date:","Air temp","Veg cover","Turbidity",{"$f":"IF(OR(AND(NOT(ISBLANK($C255)),$C255<5),AND(NOT(ISBLANK($D255)),$D255>3),AND(NOT(ISBLANK($E255)),$E255>3)),\"1\",\"0\")","v":"0"}]
[null,null,null,null,null,"Adult totals:",{"$f":"G254+H254","v":0},null,null,{"$f":"J254+K254","v":0},null,null,{"$f":"M254+N254","v":0}]
[null,"(6) Date:","Air temp","Veg cover","Turbidity",{"$f":"IF(OR(AND(NOT(ISBLANK($C257)),$C257<5),AND(NOT(ISBLANK($D257)),$D257>3),AND(NOT(ISBLANK($E257)),$E257>3)),\"1\",\"0\")","v":"0"}]
[null,null,null,null,null,"Adult totals:",{"$f":"G256+H256","v":0},null,null,{"$f":"J256+K256","v":0},null,null,{"$f":"M256+N256","v":0}]
[null,"(7) Date:","Air temp","Veg cover","Turbidity",{"$f":"IF(OR(AND(NOT(ISBLANK($C259)),$C259<5),AND(NOT(ISBLANK($D259)),$D259>3),AND(NOT(ISBLANK($E259)),$E259>3)),\"1\",\"0\")","v":"0"}]
[null,null,null,null,null,"Adult totals:",{"$f":"G258+H258","v":0},null,null,{"$f":"J258+K258","v":0},null,null,{"$f":"M258+N258","v":0}]
[null,"(8) Date:","Air temp","Veg cover","Turbidity",{"$f":"IF(OR(AND(NOT(ISBLANK($C261)),$C261<5),AND(NOT(ISBLANK($D261)),$D261>3),AND(NOT(ISBLANK($E261)),$E261>3)),\"1\",\"0\")","v":"0"}]
[null,null,null,null,null,"Adult totals:",{"$f":"G260+H260","v":0},null,null,{"$f":"J260+K260","v":0},null,null,{"$f":"M260+N260","v":0}]
[null,"Peak adult count for this pond in any one visit (by torch, trap or net):",null,null,null,null,null,null,null,{"$f":"MAX(G247,J247,M247,G249,J249,M249,G251,J251,M251,G253,J253,M253,G255,J255,M255,G257,J257,M257,G259,J259,M259,G261,J261,M261)","v":0}]
[null,"Comments and constraints:"]
[null,"Temp Veg Tur problem?",{"$f":"F246+F248+F250+F252+F254+F256+F258+F260","v":0}]
[null,"Torch power low?",{"$f":"IF(AND(NOT(ISBLANK(G244)),OR(G244=\"< 50,000 cp\",G244=\"50,000 - 499,999 cp\")),\"1\",\"0\")","v":"0"}]
[null,"Visit 1 overall det problem?",{"$f":"C264+C265","v":0}]
[null,"# ponds",{"$f":"$F$4","v":0}]
[]
[]
[null,{"$f":"+Ecologist&\": \"&+Site_name","v":": "}]
[null,"C4.3 Aquatic amphibian survey (conventional methods) - GCN results (cont.)",null,null,null,null,null,null,null,null,"NB: This page prints in landscape format"]
[]
[]
[]
[null,"Pond reference (e.g. Pond 29):",null,null,null,"Method:","Torch",null,null,"Bottle-trap",null,null,"Net",null,null,"Egg search","Larvae"]
[null,null,null,null,null,null,"Torch power:",null,null,"No. of traps used in pond:",null,null,null,null,null,"eggs found?","larvae found? (any method)"]
[null,"No. of survey visits to this pond:"]
[null,"Sex/life stage:",null,null,null,null,"Male","Female","Imm.","Male","Female","Imm.","Male","Female","Imm."]
[null,"(1) Date:","Air temp","Veg cover","Turbidity",{"$f":"IF(OR(AND(NOT(ISBLANK($C280)),$C280<5),AND(NOT(ISBLANK($D280)),$D280>3),AND(NOT(ISBLANK($E280)),$E280>3)),\"1\",\"0\")","v":"0"}]
[null,null,null,null,null,"Adult totals:",{"$f":"G279+H279","v":0},null,null,{"$f":"J279+K279","v":0},null,null,{"$f":"M279+N279","v":0}]
[null,"(2) Date:","Air temp","Veg cover","Turbidity",{"$f":"IF(OR(AND(NOT(ISBLANK($C282)),$C282<5),AND(NOT(ISBLANK($D282)),$D282>3),AND(NOT(ISBLANK($E282)),$E282>3)),\"1\",\"0\")","v":"0"}]
[null,null,null,null,null,"Adult totals:",{"$f":"G281+H281","v":0},null,null,{"$f":"J281+K281","v":0},null,null,{"$f":"M281+N281","v":0}]
[null,"(3) Date:","Air temp","Veg cover","Turbidity",{"$f":"IF(OR(AND(NOT(ISBLANK($C284)),$C284<5),AND(NOT(ISBLANK($D284)),$D284>3),AND(NOT(ISBLANK($E284)),$E284>3)),\"1\",\"0\")","v":"0"}]
[null,null,null,null,null,"Adult totals:",{"$f":"G283+H283","v":0},null,null,{"$f":"J283+K283","v":0},null,null,{"$f":"M283+N283","v":0}]
[null,"(4) Date:","Air temp","Veg cover","Turbidity",{"$f":"IF(OR(AND(NOT(ISBLANK($C286)),$C286<5),AND(NOT(ISBLANK($D286)),$D286>3),AND(NOT(ISBLANK($E286)),$E286>3)),\"1\",\"0\")","v":"0"}]
[null,null,null,null,null,"Adult totals:",{"$f":"G285+H285","v":0},null,null,{"$f":"J285+K285","v":0},null,null,{"$f":"M285+N285","v":0}]
[null,"(5) Date:","Air temp","Veg cover","Turbidity",{"$f":"IF(OR(AND(NOT(ISBLANK($C288)),$C288<5),AND(NOT(ISBLANK($D288)),$D288>3),AND(NOT(ISBLANK($E288)),$E288>3)),\"1\",\"0\")","v":"0"}]
[null,null,null,null,null,"Adult totals:",{"$f":"G287+H287","v":0},null,null,{"$f":"J287+K287","v":0},null,null,{"$f":"M287+N287","v":0}]
[null,"(6) Date:","Air temp","Veg cover","Turbidity",{"$f":"IF(OR(AND(NOT(ISBLANK($C290)),$C290<5),AND(NOT(ISBLANK($D290)),$D290>3),AND(NOT(ISBLANK($E290)),$E290>3)),\"1\",\"0\")","v":"0"}]
[null,null,null,null,null,"Adult totals:",{"$f":"G289+H289","v":0},null,null,{"$f":"J289+K289","v":0},null,null,{"$f":"M289+N289","v":0}]
[null,"(7) Date:","Air temp","Veg cover","Turbidity",{"$f":"IF(OR(AND(NOT(ISBLANK($C292)),$C292<5),AND(NOT(ISBLANK($D292)),$D292>3),AND(NOT(ISBLANK($E292)),$E292>3)),\"1\",\"0\")","v":"0"}]
[null,null,null,null,null,"Adult totals:",{"$f":"G291+H291","v":0},null,null,{"$f":"J291+K291","v":0},null,null,{"$f":"M291+N291","v":0}]
[null,"(8) Date:","Air temp","Veg cover","Turbidity",{"$f":"IF(OR(AND(NOT(ISBLANK($C294)),$C294<5),AND(NOT(ISBLANK($D294)),$D294>3),AND(NOT(ISBLANK($E294)),$E294>3)),\"1\",\"0\")","v":"0"}]
[null,null,null,null,null,"Adult totals:",{"$f":"G293+H293","v":0},null,null,{"$f":"J293+K293","v":0},null,null,{"$f":"M293+N293","v":0}]
[null,"Peak adult count for this pond in any one visit (by torch, trap or net):",null,null,null,null,null,null,null,{"$f":"MAX(G280,J280,M280,G282,J282,M282,G284,J284,M284,G286,J286,M286,G288,J288,M288,G290,J290,M290,G292,J292,M292,G294,J294,M294)","v":0}]
[null,"Comments and constraints:"]
[null,"Temp Veg Tur problem?",{"$f":"F279+F281+F283+F285+F287+F289+F291+F293","v":0}]
[null,"Torch power low?",{"$f":"IF(AND(NOT(ISBLANK(G277)),OR(G277=\"< 50,000 cp\",G277=\"50,000 - 499,999 cp\")),\"1\",\"0\")","v":"0"}]
[null,"Visit 1 overall det problem?",{"$f":"C297+C298","v":0}]
[null,"# ponds",{"$f":"$F$4","v":0}]
[]
[]
[null,{"$f":"+Ecologist&\": \"&+Site_name","v":": "}]
[null,"C4.3 Aquatic amphibian survey (conventional methods) - GCN results (cont.)",null,null,null,null,null,null,null,null,"NB: This page prints in landscape format"]
[]
[]
[]
[null,"Pond reference (e.g. Pond 30)",null,null,null,"Method:","Torch",null,null,"Bottle-trap",null,null,"Net",null,null,"Egg search","Larvae"]
[null,null,null,null,null,null,"Torch power:",null,null,"No. of traps used in pond:",null,null,null,null,null,"eggs found?","larvae found? (any method)"]
[null,"No. of survey visits to this pond:"]
[null,"Sex/life stage:",null,null,null,null,"Male","Female","Imm.","Male","Female","Imm.","Male","Female","Imm."]
[null,"(1) Date:","Air temp","Veg cover","Turbidity",{"$f":"IF(OR(AND(NOT(ISBLANK($C313)),$C313<5),AND(NOT(ISBLANK($D313)),$D313>3),AND(NOT(ISBLANK($E313)),$E313>3)),\"1\",\"0\")","v":"0"}]
[null,null,null,null,null,"Adult totals:",{"$f":"G312+H312","v":0},null,null,{"$f":"J312+K312","v":0},null,null,{"$f":"M312+N312","v":0}]
[null,"(2) Date:","Air temp","Veg cover","Turbidity",{"$f":"IF(OR(AND(NOT(ISBLANK($C315)),$C315<5),AND(NOT(ISBLANK($D315)),$D315>3),AND(NOT(ISBLANK($E315)),$E315>3)),\"1\",\"0\")","v":"0"}]
[null,null,null,null,null,"Adult totals:",{"$f":"G314+H314","v":0},null,null,{"$f":"J314+K314","v":0},null,null,{"$f":"M314+N314","v":0}]
[null,"(3) Date:","Air temp","Veg cover","Turbidity",{"$f":"IF(OR(AND(NOT(ISBLANK($C317)),$C317<5),AND(NOT(ISBLANK($D317)),$D317>3),AND(NOT(ISBLANK($E317)),$E317>3)),\"1\",\"0\")","v":"0"}]
[null,null,null,null,null,"Adult totals:",{"$f":"G316+H316","v":0},null,null,{"$f":"J316+K316","v":0},null,null,{"$f":"M316+N316","v":0}]
[null,"(4) Date:","Air temp","Veg cover","Turbidity",{"$f":"IF(OR(AND(NOT(ISBLANK($C319)),$C319<5),AND(NOT(ISBLANK($D319)),$D319>3),AND(NOT(ISBLANK($E319)),$E319>3)),\"1\",\"0\")","v":"0"}]
[null,null,null,null,null,"Adult totals:",{"$f":"G318+H318","v":0},null,null,{"$f":"J318+K318","v":0},null,null,{"$f":"M318+N318","v":0}]
[null,"(5) Date:","Air temp","Veg cover","Turbidity",{"$f":"IF(OR(AND(NOT(ISBLANK($C321)),$C321<5),AND(NOT(ISBLANK($D321)),$D321>3),AND(NOT(ISBLANK($E321)),$E321>3)),\"1\",\"0\")","v":"0"}]
[null,null,null,null,null,"Adult totals:",{"$f":"G320+H320","v":0},null,null,{"$f":"J320+K320","v":0},null,null,{"$f":"M320+N320","v":0}]
[null,"(6) Date:","Air temp","Veg cover","Turbidity",{"$f":"IF(OR(AND(NOT(ISBLANK($C323)),$C323<5),AND(NOT(ISBLANK($D323)),$D323>3),AND(NOT(ISBLANK($E323)),$E323>3)),\"1\",\"0\")","v":"0"}]
[null,null,null,null,null,"Adult totals:",{"$f":"G322+H322","v":0},null,null,{"$f":"J322+K322","v":0},null,null,{"$f":"M322+N322","v":0}]
[null,"(7) Date:","Air temp","Veg cover","Turbidity",{"$f":"IF(OR(AND(NOT(ISBLANK($C325)),$C325<5),AND(NOT(ISBLANK($D325)),$D325>3),AND(NOT(ISBLANK($E325)),$E325>3)),\"1\",\"0\")","v":"0"}]
[null,null,null,null,null,"Adult totals:",{"$f":"G324+H324","v":0},null,null,{"$f":"J324+K324","v":0},null,null,{"$f":"M324+N324","v":0}]
[null,"(8) Date:","Air temp","Veg cover","Turbidity",{"$f":"IF(OR(AND(NOT(ISBLANK($C327)),$C327<5),AND(NOT(ISBLANK($D327)),$D327>3),AND(NOT(ISBLANK($E327)),$E327>3)),\"1\",\"0\")","v":"0"}]
[null,null,null,null,null,"Adult totals:",{"$f":"G326+H326","v":0},null,null,{"$f":"J326+K326","v":0},null,null,{"$f":"M326+N326","v":0}]
[null,"Peak adult count for this pond in any one visit (by torch, trap or net):",null,null,null,null,null,null,null,{"$f":"MAX(G313,J313,M313,G315,J315,M315,G317,J317,M317,G319,J319,M319,G321,J321,M321,G323,J323,M323,G325,J325,M325,G327,J327,M327)","v":0}]
[null,"Comments and constraints:"]
[null,"Temp Veg Tur problem?",{"$f":"F312+F314+F316+F318+F320+F322+F324+F326","v":0}]
[null,"Torch power low?",{"$f":"IF(AND(NOT(ISBLANK(G310)),OR(G310=\"< 50,000 cp\",G310=\"50,000 - 499,999 cp\")),\"1\",\"0\")","v":"0"}]
[null,"Visit 1 overall det problem?",{"$f":"C330+C331","v":0}]
[null,"# ponds",{"$f":"$F$4","v":0}]

{"sheet":"C - Survey - Pond 31-40","index":15,"n_rows":333,"n_cols":31,"rows_kept":333,"cut":false,"hidden":false,"merged":[[0,1,0,16],[1,1,1,16],[2,1,2,4],[2,6,2,9],[2,10,2,16],[3,1,3,4],[3,6,3,16],[12,1,12,3],[12,6,12,8],[12,9,12,11],[13,1,13,5],[4,1,4,2],[4,3,4,16],[5,1,9,16],[10,1,10,4],[10,5,12,5],[10,6,10,8],[10,9,10,11],[10,12,12,14],[11,1,11,4],[11,6,11,8],[15,6,15,7],[15,9,15,10],[15,12,15,13],[17,6,17,7],[17,9,17,10],[17,12,17,13],[11,9,11,11],[11,15,13,15],[11,16,13,16],[23,6,23,7],[23,9,23,10],[23,12,23,13],[25,6,25,7],[25,9,25,10],[25,12,25,13],[19,6,19,7],[19,9,19,10],[19,12,19,13],[21,6,21,7],[21,9,21,10],[21,12,21,13],[30,1,30,8],[31,1,31,3],[31,4,34,16],[38,1,38,16],[39,1,39,9],[39,10,39,16],[27,6,27,7],[27,9,27,10],[27,12,27,13],[29,6,29,7],[29,9,29,10],[29,12,29,13],[44,16,46,16],[45,1,45,3],[45,6,45,8],[45,9,45,11],[46,1,46,5],[48,6,48,7],[48,9,48,10],[48,12,48,13],[40,1,42,16],[43,1,43,4],[43,5,45,5],[43,6,43,8],[43,9,43,11],[43,12,45,14],[44,1,44,4],[44,6,44,8],[44,9,44,11],[44,15,46,15],[54,6,54,7],[54,9,54,10],[54,12,54,13],[56,6,56,7],[56,9,56,10],[56,12,56,13],[50,6,50,7],[50,9,50,10],[50,12,50,13],[52,6,52,7],[52,9,52,10],[52,12,52,13],[62,6,62,7],[62,9,62,10],[62,12,62,13],[63,1,63,8],[63,10,63,16],[64,1,64,3],[64,4,67,16],[58,6,58,7],[58,9,58,10],[58,12,58,13],[60,6,60,7],[60,9,60,10],[60,12,60,13],[77,16,79,16],[78,1,78,3],[78,6,78,8],[78,9,78,11],[79,1,79,5],[71,1,71,16],[72,1,72,9],[72,10,72,16],[73,1,75,16],[76,1,76,4],[76,5,78,5],[76,6,76,8],[76,9,76,11],[76,12,78,14],[77,1,77,4],[81,6,81,7],[81,9,81,10],[81,12,81,13],[83,6,83,7],[83,9,83,10],[83,12,83,13],[77,6,77,8],[77,9,77,11],[77,15,79,15],[89,6,89,7],[89,9,89,10],[89,12,89,13],[91,6,91,7],[91,9,91,10],[91,12,91,13],[85,6,85,7],[85,9,85,10],[85,12,85,13],[87,6,87,7],[87,9,87,10],[87,12,87,13],[96,1,96,8],[96,10,96,16],[97,1,97,3],[97,4,100,16],[104,1,104,16],[105,1,105,9],[105,10,105,16],[93,6,93,7],[93,9,93,10],[93,12,93,13],[95,6,95,7],[95,9,95,10],[95,12,95,13],[110,16,112,16],[111,1,111,3],[111,6,111,8],[111,9,111,11],[112,1,112,5],[114,6,114,7],[114,9,114,10],[114,12,114,13],[106,1,108,16],[109,1,109,4],[109,5,111,5],[109,6,109,8],[109,9,109,11],[109,12,111,14],[110,1,110,4],[110,6,110,8],[110,9,110,11],[110,15,112,15],[120,6,120,7],[120,9,120,10],[120,12,120,13],[122,6,122,7],[122,9,122,10],[122,12,122,13],[116,6,116,7],[116,9,116,10],[116,12,116,13],[118,6,118,7],[118,9,118,10],[118,12,118,13],[128,6,128,7],[128,9,128,10],[128,12,128,13],[129,1,129,8],[129,10,129,16],[130,1,130,3],[130,4,133,16],[124,6,124,7],[124,9,124,10],[124,12,124,13],[126,6,126,7],[126,9,126,10],[126,12,126,13],[143,16,145,16],[144,1,144,3],[144,6,144,8],[144,9,144,11],[145,1,145,5],[137,1,137,16],[138,1,138,9],[138,10,138,16],[139,1,141,16],[142,1,142,4],[142,5,144,5],[142,6,142,8],[142,9,142,11],[142,12,144,14],[143,1,143,4],[147,6,147,7],[147,9,147,10],[147,12,147,13],[149,6,149,7],[149,9,149,10],[149,12,149,13],[143,6,143,8],[143,9,143,11],[143,15,145,15],[155,6,155,7],[155,9,155,10],[155,12,155,13],[157,6,157,7],[157,9,157,10],[157,12,157,13],[151,6,151,7],[151,9,151,10],[151,12,151,13],[153,6,153,7],[153,9,153,10],[153,12,153,13],[162,1,162,8],[162,10,162,16],[163,1,163,3],[163,4,166,16],[170,1,170,16],[171,1,171,9],[171,10,171,16],[159,6,159,7],[159,9,159,10],[159,12,159,13],[161,6,161,7],[161,9,161,10],[161,12,161,13],[176,16,178,16],[177,1,177,3],[177,6,177,8],[177,9,177,11],[178,1,178,5],[180,6,180,7],[180,9,180,10],[180,12,180,13],[172,1,174,16],[175,1,175,4],[175,5,177,5],[175,6,175,8],[175,9,175,11],[175,12,177,14],[176,1,176,4],[176,6,176,8],[176,9,176,11],[176,15,178,15],[186,6,186,7],[186,9,186,10],[186,12,186,13],[188,6,188,7],[188,9,188,10],[188,12,188,13],[182,6,182,7],[182,9,182,10],[182,12,182,13],[184,6,184,7],[184,9,184,10],[184,12,184,13],[194,6,194,7],[194,9,194,10],[194,12,194,13],[195,1,195,8],[195,10,195,16],[196,1,196,3],[196,4,199,16],[190,6,190,7],[190,9,190,10],[190,12,190,13],[192,6,192,7],[192,9,192,10],[192,12,192,13],[209,16,211,16],[210,1,210,3],[210,6,210,8],[210,9,210,11],[211,1,211,5],[203,1,203,16],[204,1,204,9],[204,10,204,16],[205,1,207,16],[208,1,208,4],[208,5,210,5],[208,6,208,8],[208,9,208,11],[208,12,210,14],[209,1,209,4],[213,6,213,7],[213,9,213,10],[213,12,213,13],[215,6,215,7],[215,9,215,10],[215,12,215,13],[209,6,209,8],[209,9,209,11],[209,15,211,15],[221,6,221,7],[221,9,221,10],[221,12,221,13],[223,6,223,7],[223,9,223,10],[223,12,223,13],[217,6,217,7],[217,9,217,10],[217,12,217,13],[219,6,219,7],[219,9,219,10],[219,12,219,13],[228,1,228,8],[228,10,228,16],[229,1,229,3],[229,4,232,16],[236,1,236,16],[237,1,237,9],[237,10,237,16],[225,6,225,7],[225,9,225,10],[225,12,225,13],[227,6,227,7],[227,9,227,10],[227,12,227,13],[242,16,244,16],[243,1,243,3],[243,6,243,8],[243,9,243,11],[244,1,244,5],[246,6,246,7],[246,9,246,10],[246,12,246,13],[238,1,240,16],[241,1,241,4],[241,5,243,5],[241,6,241,8],[241,9,241,11],[241,12,243,14],[242,1,242,4],[242,6,242,8],[242,9,242,11],[242,15,244,15],[252,6,252,7],[252,9,252,10],[252,12,252,13],[254,6,254,7],[254,9,254,10],[254,12,254,13],[248,6,248,7],[248,9,248,10],[248,12,248,13],[250,6,250,7],[250,9,250,10],[250,12,250,13],[260,6,260,7],[260,9,260,10],[260,12,260,13],[261,1,261,8],[261,10,261,16],[262,1,262,3],[262,4,265,16],[256,6,256,7],[256,9,256,10],[256,12,256,13],[258,6,258,7],[258,9,258,10],[258,12,258,13],[275,16,277,16],[276,1,276,3],[276,6,276,8],[276,9,276,11],[277,1,277,5],[269,1,269,16],[270,1,270,9],[270,10,270,16],[271,1,273,16],[274,1,274,4],[274,5,276,5],[274,6,274,8],[274,9,274,11],[274,12,276,14],[275,1,275,4],[279,6,279,7],[279,9,279,10],[279,12,279,13],[281,6,281,7],[281,9,281,10],[281,12,281,13],[275,6,275,8],[275,9,275,11],[275,15,277,15],[287,6,287,7],[287,9,287,10],[287,12,287,13],[289,6,289,7],[289,9,289,10],[289,12,289,13],[283,6,283,7],[283,9,283,10],[283,12,283,13],[285,6,285,7],[285,9,285,10],[285,12,285,13],[294,1,294,8],[294,10,294,16],[295,1,295,3],[295,4,298,16],[302,1,302,16],[303,1,303,9],[303,10,303,16],[291,6,291,7],[291,9,291,10],[291,12,291,13],[293,6,293,7],[293,9,293,10],[293,12,293,13],[308,16,310,16],[309,1,309,3],[309,6,309,8],[309,9,309,11],[310,1,310,5],[312,6,312,7],[312,9,312,10],[312,12,312,13],[304,1,306,16],[307,1,307,4],[307,5,309,5],[307,6,307,8],[307,9,307,11],[307,12,309,14],[308,1,308,4],[308,6,308,8],[308,9,308,11],[308,15,310,15],[318,6,318,7],[318,9,318,10],[318,12,318,13],[320,6,320,7],[320,9,320,10],[320,12,320,13],[314,6,314,7],[314,9,314,10],[314,12,314,13],[316,6,316,7],[316,9,316,10],[316,12,316,13],[326,6,326,7],[326,9,326,10],[326,12,326,13],[327,1,327,8],[327,10,327,16],[328,1,328,3],[328,4,331,16],[322,6,322,7],[322,9,322,10],[322,12,322,13],[324,6,324,7],[324,9,324,10],[324,12,324,13],[7,29,8,29],[7,30,8,30],[19,28,19,29],[7,20,8,20],[7,21,8,21],[7,22,8,22],[7,23,8,23],[7,24,8,24],[7,25,8,25],[7,26,8,26],[7,27,8,27],[7,28,8,28]]}
[null,{"$f":"+Ecologist&\": \"&+Site_name","v":": "}]
[null,"C4.3 Aquatic amphibian survey (conventional methods) - GCN results - Pond 31"]
[null,"Was an aquatic amphibian survey done?",null,null,null,null,"If no, proceed to next section.",null,null,null,"Return to Ponds 1 - 10 tab"]
[null,"Total no. of ponds surveyed:",null,null,null,{"$f":"'C - Survey - Pond 1-10'!F4","v":0}]
[null,"Surveyor name(s):"]
[null,"Important. Read before completing this section: Enter GCN survey data in relevant boxes in the table below (for Pond 1) and those on subsequent sheets (for up to 9 other ponds). Enter \"0\" where you did a survey and found no newts; leave box blank if no survey was done. This format is designed for a typical single season survey with typical methods and effort. Explain atypical methods/effort later. For multiple year surveys, give details in annex (convert data to this format if possible). Use these tables to provide details only for the most recent season's survey. Append older survey results in full. Automatic yellow highlight indicates possible detectability problem (see Evaluation & interpretation section, later)."]
[]
[null,null,null,null,null,null,null,null,null,null,null,null,null,null,null,null,null,null,null,null,"Pond 31","Pond 32","Pond 33","Pond 34","Pond 35","Pond 36","Pond 37","Pond 38","Pond 39","Pond 40","Visit total"]
[]
[null,null,null,null,null,null,null,null,null,null,null,null,null,null,null,null,null,null,null,"Visit 1",{"$f":"MAX('C - Survey - Pond 31-40'!G16:M16)","v":0},{"$f":"MAX('C - Survey - Pond 31-40'!G49:M49)","v":0},{"$f":"MAX('C - Survey - Pond 31-40'!G82:M82)","v":0},{"$f":"MAX('C - Survey - Pond 31-40'!G115:M115)","v":0},{"$f":"MAX('C - Survey - Pond 31-40'!G148:M148)","v":0},{"$f":"MAX('C - Survey - Pond 31-40'!G181:M181)","v":0},{"$f":"MAX('C - Survey - Pond 31-40'!G214:M214)","v":0},{"$f":"MAX('C - Survey - Pond 31-40'!G247:M247)","v":0},{"$f":"MAX('C - Survey - Pond 31-40'!G280:M280)","v":0},{"$f":"MAX('C - Survey - Pond 31-40'!G313:M313)","v":0},{"$f":"SUM(U10:AD10)","v":0}]
[null,"Pond reference (e.g. \"Pond 31\") - below",null,null,null,"Method:","Torch",null,null,"Bottle-trap",null,null,"Net",null,null,"Egg search","Larvae",null,null,"Visit 2",{"$f":"MAX('C - Survey - Pond 31-40'!G18:M18)","v":0},{"$f":"MAX('C - Survey - Pond 31-40'!G51:M51)","v":0},{"$f":"MAX('C - Survey - Pond 31-40'!G84:M84)","v":0},{"$f":"MAX('C - Survey - Pond 31-40'!G117:M117)","v":0},{"$f":"MAX('C - Survey - Pond 31-40'!G150:M150)","v":0},{"$f":"MAX('C - Survey - Pond 31-40'!G183:M183)","v":0},{"$f":"MAX('C - Survey - Pond 31-40'!G216:M216)","v":0},{"$f":"MAX('C - Survey - Pond 31-40'!G249:M249)","v":0},{"$f":"MAX('C - Survey - Pond 31-40'!G282:M282)","v":0},{"$f":"MAX('C - Survey - Pond 31-40'!G315:M315)","v":0},{"$f":"SUM(U11:AD11)","v":0}]
[null,null,null,null,null,null,"Torch power:",null,null,"No. of traps used in pond:",null,null,null,null,null,"eggs found?","larvae found? (any method)",null,null,"Visit 3",{"$f":"MAX('C - Survey - Pond 31-40'!G20:M20)","v":0},{"$f":"MAX('C - Survey - Pond 31-40'!G53:M53)","v":0},{"$f":"MAX('C - Survey - Pond 31-40'!G86:M86)","v":0},{"$f":"MAX('C - Survey - Pond 31-40'!G119:M119)","v":0},{"$f":"MAX('C - Survey - Pond 31-40'!G152:M152)","v":0},{"$f":"MAX('C - Survey - Pond 31-40'!G185:M185)","v":0},{"$f":"MAX('C - Survey - Pond 31-40'!G218:M218)","v":0},{"$f":"MAX('C - Survey - Pond 31-40'!G251:M251)","v":0},{"$f":"MAX('C - Survey - Pond 31-40'!G284:M284)","v":0},{"$f":"MAX('C - Survey - Pond 31-40'!G317:M317)","v":0},0]
[null,"No. of survey visits to this pond:",null,null,null,null,null,null,null,null,null,null,null,null,null,null,null,null,null,"Visit 4",{"$f":"MAX('C - Survey - Pond 31-40'!G22:M22)","v":0},{"$f":"MAX('C - Survey - Pond 31-40'!G55:M55)","v":0},{"$f":"MAX('C - Survey - Pond 31-40'!G88:M88)","v":0},{"$f":"MAX('C - Survey - Pond 31-40'!G121:M121)","v":0},{"$f":"MAX('C - Survey - Pond 31-40'!G154:M154)","v":0},{"$f":"MAX('C - Survey - Pond 31-40'!G187:M187)","v":0},{"$f":"MAX('C - Survey - Pond 31-40'!G220:M220)","v":0},{"$f":"MAX('C - Survey - Pond 31-40'!G253:M253)","v":0},{"$f":"MAX('C - Survey - Pond 31-40'!G286:M286)","v":0},{"$f":"MAX('C - Survey - Pond 31-40'!G319:M319)","v":0},0]
[null,"Sex/life stage:",null,null,null,null,"Male","Female","Imm.","Male","Female","Imm.","Male","Female","Imm.",null,null,null,null,"Visit 5",{"$f":"MAX('C - Survey - Pond 31-40'!G24:M24)","v":0},{"$f":"MAX('C - Survey - Pond 31-40'!G57:M57)","v":0},{"$f":"MAX('C - Survey - Pond 31-40'!G90:M90)","v":0},{"$f":"MAX('C - Survey - Pond 31-40'!G123:M123)","v":0},{"$f":"MAX('C - Survey - Pond 31-40'!G156:M156)","v":0},{"$f":"MAX('C - Survey - Pond 31-40'!G189:M189)","v":0},{"$f":"MAX('C - Survey - Pond 31-40'!G222:M222)","v":0},{"$f":"MAX('C - Survey - Pond 31-40'!G255:M255)","v":0},{"$f":"MAX('C - Survey - Pond 31-40'!G288:M288)","v":0},{"$f":"MAX('C - Survey - Pond 31-40'!G321:M321)","v":0},0]
[null,"(1) Date:","Air temp","Veg cover","Turbidity",{"$f":"IF(OR(AND(NOT(ISBLANK($C16)),$C16<5),AND(NOT(ISBLANK($D16)),$D16>3),AND(NOT(ISBLANK($E16)),$E16>3)),\"1\",\"0\")","v":"0"},null,null,null,null,null,null,null,null,null,null,null,null,null,"Visit 6",{"$f":"MAX('C - Survey - Pond 31-40'!G26:M26)","v":0},{"$f":"MAX('C - Survey - Pond 31-40'!G59:M59)","v":0},{"$f":"MAX('C - Survey - Pond 31-40'!G92:M92)","v":0},{"$f":"MAX('C - Survey - Pond 31-40'!G125:M125)","v":0},{"$f":"MAX('C - Survey - Pond 31-40'!G158:M158)","v":0},{"$f":"MAX('C - Survey - Pond 31-40'!G191:M191)","v":0},{"$f":"MAX('C - Survey - Pond 31-40'!G224:M224)","v":0},{"$f":"MAX('C - Survey - Pond 31-40'!G257:M257)","v":0},{"$f":"MAX('C - Survey - Pond 31-40'!G290:M290)","v":0},{"$f":"MAX('C - Survey - Pond 31-40'!G323:M323)","v":0},0]
[null,null,null,null,null,"Adult totals:",{"$f":"G15+H15","v":0},null,null,{"$f":"J15+K15","v":0},null,null,{"$f":"M15+N15","v":0},null,null,null,null,null,null,"Visit 7",{"$f":"MAX('C - Survey - Pond 31-40'!G28:M28)","v":0},{"$f":"MAX('C - Survey - Pond 31-40'!G61:M61)","v":0},{"$f":"MAX('C - Survey - Pond 31-40'!G94:M94)","v":0},{"$f":"MAX('C - Survey - Pond 31-40'!G127:M127)","v":0},{"$f":"MAX('C - Survey - Pond 31-40'!G160:M160)","v":0},{"$f":"MAX('C - Survey - Pond 31-40'!G193:M193)","v":0},{"$f":"MAX('C - Survey - Pond 31-40'!G226:M226)","v":0},{"$f":"MAX('C - Survey - Pond 31-40'!G259:M259)","v":0},{"$f":"MAX('C - Survey - Pond 31-40'!G292:M292)","v":0},{"$f":"MAX('C - Survey - Pond 31-40'!G325:M325)","v":0},0]
[null,"(2) Date:","Air temp","Veg cover","Turbidity",{"$f":"IF(OR(AND(NOT(ISBLANK($C18)),$C18<5),AND(NOT(ISBLANK($D18)),$D18>3),AND(NOT(ISBLANK($E18)),$E18>3)),\"1\",\"0\")","v":"0"},null,null,null,null,null,null,null,null,null,null,null,null,null,"Visit 8",{"$f":"MAX('C - Survey - Pond 31-40'!G30:M30)","v":0},{"$f":"MAX('C - Survey - Pond 31-40'!G63:M63)","v":0},{"$f":"MAX('C - Survey - Pond 31-40'!G96:M96)","v":0},{"$f":"MAX('C - Survey - Pond 31-40'!G129:M129)","v":0},{"$f":"MAX('C - Survey - Pond 31-40'!G162:M162)","v":0},{"$f":"MAX('C - Survey - Pond 31-40'!G195:M195)","v":0},{"$f":"MAX('C - Survey - Pond 31-40'!G228:M228)","v":0},{"$f":"MAX('C - Survey - Pond 31-40'!G261:M261)","v":0},{"$f":"MAX('C - Survey - Pond 31-40'!G294:M294)","v":0},{"$f":"MAX('C - Survey - Pond 31-40'!G327:M327)","v":0},0]
[null,null,null,null,null,"Adult totals:",{"$f":"G17+H17","v":0},null,null,{"$f":"J17+K17","v":0},null,null,{"$f":"M17+N17","v":0},null,null,null,null,null,null,null,{"$f":"MATCH((MAX(U10:U17)),U10:U17,0)","v":1},{"$f":"MATCH((MAX(V10:V17)),V10:V17,0)","v":1},1,1,1,1,1,1,1,1]
[null,"(3) Date:","Air temp","Veg cover","Turbidity",{"$f":"IF(OR(AND(NOT(ISBLANK($C20)),$C20<5),AND(NOT(ISBLANK($D20)),$D20>3),AND(NOT(ISBLANK($E20)),$E20>3)),\"1\",\"0\")","v":"0"}]
[null,null,null,null,null,"Adult totals:",{"$f":"G19+H19","v":0},null,null,{"$f":"J19+K19","v":0},null,null,{"$f":"M19+N19","v":0},null,null,null,null,null,null,null,null,null,null,null,null,null,null,null,"total peak",null,{"$f":"MAX(AE10:AE17)","v":0}]
[null,"(4) Date:","Air temp","Veg cover","Turbidity",{"$f":"IF(OR(AND(NOT(ISBLANK($C22)),$C22<5),AND(NOT(ISBLANK($D22)),$D22>3),AND(NOT(ISBLANK($E22)),$E22>3)),\"1\",\"0\")","v":"0"}]
[null,null,null,null,null,"Adult totals:",{"$f":"G21+H21","v":0},null,null,{"$f":"J21+K21","v":0},null,null,{"$f":"M21+N21","v":0}]
[null,"(5) Date:","Air temp","Veg cover","Turbidity",{"$f":"IF(OR(AND(NOT(ISBLANK($C24)),$C24<5),AND(NOT(ISBLANK($D24)),$D24>3),AND(NOT(ISBLANK($E24)),$E24>3)),\"1\",\"0\")","v":"0"}]
[null,null,null,null,null,"Adult totals:",{"$f":"G23+H23","v":0},null,null,{"$f":"J23+K23","v":0},null,null,{"$f":"M23+N23","v":0}]
[null,"(6) Date:","Air temp","Veg cover","Turbidity",{"$f":"IF(OR(AND(NOT(ISBLANK($C26)),$C26<5),AND(NOT(ISBLANK($D26)),$D26>3),AND(NOT(ISBLANK($E26)),$E26>3)),\"1\",\"0\")","v":"0"}]
[null,null,null,null,null,"Adult totals:",{"$f":"G25+H25","v":0},null,null,{"$f":"J25+K25","v":0},null,null,{"$f":"M25+N25","v":0}]
[null,"(7) Date:","Air temp","Veg cover","Turbidity",{"$f":"IF(OR(AND(NOT(ISBLANK($C28)),$C28<5),AND(NOT(ISBLANK($D28)),$D28>3),AND(NOT(ISBLANK($E28)),$E28>3)),\"1\",\"0\")","v":"0"}]
[null,null,null,null,null,"Adult totals:",{"$f":"G27+H27","v":0},null,null,{"$f":"J27+K27","v":0},null,null,{"$f":"M27+N27","v":0}]
[null,"(8) Date:","Air temp","Veg cover","Turbidity",{"$f":"IF(OR(AND(NOT(ISBLANK($C30)),$C30<5),AND(NOT(ISBLANK($D30)),$D30>3),AND(NOT(ISBLANK($E30)),$E30>3)),\"1\",\"0\")","v":"0"}]
[null,null,null,null,null,"Adult totals:",{"$f":"G29+H29","v":0},null,null,{"$f":"J29+K29","v":0},null,null,{"$f":"M29+N29","v":0}]
[null,"Peak adult count for this pond in any one visit (by torch, trap or net):",null,null,null,null,null,null,null,{"$f":"MAX(G16,J16,M16,G18,J18,M18,G20,J20,M20,G22,J22,M22,G24,J24,M24,G26,J26,M26,G28,J28,M28,G30,J30,M30)","v":0}]
[null,"Comments and constraints:"]
[null,"Temp Veg Tur problem?",{"$f":"F15+F17+F19+F21+F23+F25+F27+F29","v":0}]
[null,"Torch power low?",{"$f":"IF(AND(NOT(ISBLANK(G13)),OR(G13=\"< 50,000 cp\",G13=\"50,000 - 499,999 cp\")),\"1\",\"0\")","v":"0"}]
[null,"Visit 1 overall det problem?",{"$f":"C33+C34","v":0}]
[null,"# ponds",{"$f":"$F$4","v":0}]
[]
[]
[null,{"$f":"+Ecologist&\": \"&+Site_name","v":": "}]
[null,"C4.3 Aquatic amphibian survey (conventional methods)- GCN results (cont.)",null,null,null,null,null,null,null,null,"NB: This page prints in landscape format"]
[]
[]
[]
[null,"Pond reference (e.g. Pond 32)",null,null,null,"Method:","Torch",null,null,"Bottle-trap",null,null,"Net",null,null,"Egg search","Larvae"]
[null,null,null,null,null,null,"Torch power:",null,null,"No. of traps used in pond:",null,null,null,null,null,"eggs found?","larvae found? (any method)"]
[null,"No. of survey visits to this pond:"]
[null,"Sex/life stage:",null,null,null,null,"Male","Female","Imm.","Male","Female","Imm.","Male","Female","Imm."]
[null,"(1) Date:","Air temp","Veg cover","Turbidity",{"$f":"IF(OR(AND(NOT(ISBLANK($C49)),$C49<5),AND(NOT(ISBLANK($D49)),$D49>3),AND(NOT(ISBLANK($E49)),$E49>3)),\"1\",\"0\")","v":"0"}]
[null,null,null,null,null,"Adult totals:",{"$f":"G48+H48","v":0},null,null,{"$f":"J48+K48","v":0},null,null,{"$f":"M48+N48","v":0}]
[null,"(2) Date:","Air temp","Veg cover","Turbidity",{"$f":"IF(OR(AND(NOT(ISBLANK($C51)),$C51<5),AND(NOT(ISBLANK($D51)),$D51>3),AND(NOT(ISBLANK($E51)),$E51>3)),\"1\",\"0\")","v":"0"}]
[null,null,null,null,null,"Adult totals:",{"$f":"G50+H50","v":0},null,null,{"$f":"J50+K50","v":0},null,null,{"$f":"M50+N50","v":0}]
[null,"(3) Date:","Air temp","Veg cover","Turbidity",{"$f":"IF(OR(AND(NOT(ISBLANK($C53)),$C53<5),AND(NOT(ISBLANK($D53)),$D53>3),AND(NOT(ISBLANK($E53)),$E53>3)),\"1\",\"0\")","v":"0"}]
[null,null,null,null,null,"Adult totals:",{"$f":"G52+H52","v":0},null,null,{"$f":"J52+K52","v":0},null,null,{"$f":"M52+N52","v":0}]
[null,"(4) Date:","Air temp","Veg cover","Turbidity",{"$f":"IF(OR(AND(NOT(ISBLANK($C55)),$C55<5),AND(NOT(ISBLANK($D55)),$D55>3),AND(NOT(ISBLANK($E55)),$E55>3)),\"1\",\"0\")","v":"0"}]
[null,null,null,null,null,"Adult totals:",{"$f":"G54+H54","v":0},null,null,{"$f":"J54+K54","v":0},null,null,{"$f":"M54+N54","v":0}]
[null,"(5) Date:","Air temp","Veg cover","Turbidity",{"$f":"IF(OR(AND(NOT(ISBLANK($C57)),$C57<5),AND(NOT(ISBLANK($D57)),$D57>3),AND(NOT(ISBLANK($E57)),$E57>3)),\"1\",\"0\")","v":"0"}]
[null,null,null,null,null,"Adult totals:",{"$f":"G56+H56","v":0},null,null,{"$f":"J56+K56","v":0},null,null,{"$f":"M56+N56","v":0}]
[null,"(6) Date:","Air temp","Veg cover","Turbidity",{"$f":"IF(OR(AND(NOT(ISBLANK($C59)),$C59<5),AND(NOT(ISBLANK($D59)),$D59>3),AND(NOT(ISBLANK($E59)),$E59>3)),\"1\",\"0\")","v":"0"}]
[null,null,null,null,null,"Adult totals:",{"$f":"G58+H58","v":0},null,null,{"$f":"J58+K58","v":0},null,null,{"$f":"M58+N58","v":0}]
[null,"(7) Date:","Air temp","Veg cover","Turbidity",{"$f":"IF(OR(AND(NOT(ISBLANK($C61)),$C61<5),AND(NOT(ISBLANK($D61)),$D61>3),AND(NOT(ISBLANK($E61)),$E61>3)),\"1\",\"0\")","v":"0"}]
[null,null,null,null,null,"Adult totals:",{"$f":"G60+H60","v":0},null,null,{"$f":"J60+K60","v":0},null,null,{"$f":"M60+N60","v":0}]
[null,"(8) Date:","Air temp","Veg cover","Turbidity",{"$f":"IF(OR(AND(NOT(ISBLANK($C63)),$C63<5),AND(NOT(ISBLANK($D63)),$D63>3),AND(NOT(ISBLANK($E63)),$E63>3)),\"1\",\"0\")","v":"0"}]
[null,null,null,null,null,"Adult totals:",{"$f":"G62+H62","v":0},null,null,{"$f":"J62+K62","v":0},null,null,{"$f":"M62+N62","v":0}]
[null,"Peak adult count for this pond in any one visit (by torch, trap or net):",null,null,null,null,null,null,null,{"$f":"MAX(G49,J49,M49,G51,J51,M51,G53,J53,M53,G55,J55,M55,G57,J57,M57,G59,J59,M59,G61,J61,M61,G63,J63,M63)","v":0}]
[null,"Comments and constraints:"]
[null,"Temp Veg Tur problem?",{"$f":"F48+F50+F52+F54+F56+F58+F60+F62","v":0}]
[null,"Torch power low?",{"$f":"IF(AND(NOT(ISBLANK(G46)),OR(G46=\"< 50,000 cp\",G46=\"50,000 - 499,999 cp\")),\"1\",\"0\")","v":"0"}]
[null,"Visit 1 overall det problem?",{"$f":"C66+C67","v":0}]
[null,"# ponds",{"$f":"$F$4","v":0}]
[]
[]
[null,{"$f":"+Ecologist&\": \"&+Site_name","v":": "}]
[null,"C4.3 Aquatic amphibian survey (conventional surveys- GCN results (cont.)",null,null,null,null,null,null,null,null,"NB: This page prints in landscape format"]
[]
[]
[]
[null,"Pond reference (e.g. Pond 33)",null,null,null,"Method:","Torch",null,null,"Bottle-trap",null,null,"Net",null,null,"Egg search","Larvae"]
[null,null,null,null,null,null,"Torch power:",null,null,"No. of traps used in pond:",null,null,null,null,null,"eggs found?","larvae found? (any method)"]
[null,"No. of survey visits to this pond:"]
[null,"Sex/life stage:",null,null,null,null,"Male","Female","Imm.","Male","Female","Imm.","Male","Female","Imm."]
[null,"(1) Date:","Air temp","Veg cover","Turbidity",{"$f":"IF(OR(AND(NOT(ISBLANK($C82)),$C82<5),AND(NOT(ISBLANK($D82)),$D82>3),AND(NOT(ISBLANK($E82)),$E82>3)),\"1\",\"0\")","v":"0"}]
[null,null,null,null,null,"Adult totals:",{"$f":"G81+H81","v":0},null,null,{"$f":"J81+K81","v":0},null,null,{"$f":"M81+N81","v":0}]
[null,"(2) Date:","Air temp","Veg cover","Turbidity",{"$f":"IF(OR(AND(NOT(ISBLANK($C84)),$C84<5),AND(NOT(ISBLANK($D84)),$D84>3),AND(NOT(ISBLANK($E84)),$E84>3)),\"1\",\"0\")","v":"0"}]
[null,null,null,null,null,"Adult totals:",{"$f":"G83+H83","v":0},null,null,{"$f":"J83+K83","v":0},null,null,{"$f":"M83+N83","v":0}]
[null,"(3) Date:","Air temp","Veg cover","Turbidity",{"$f":"IF(OR(AND(NOT(ISBLANK($C86)),$C86<5),AND(NOT(ISBLANK($D86)),$D86>3),AND(NOT(ISBLANK($E86)),$E86>3)),\"1\",\"0\")","v":"0"}]
[null,null,null,null,null,"Adult totals:",{"$f":"G85+H85","v":0},null,null,{"$f":"J85+K85","v":0},null,null,{"$f":"M85+N85","v":0}]
[null,"(4) Date:","Air temp","Veg cover","Turbidity",{"$f":"IF(OR(AND(NOT(ISBLANK($C88)),$C88<5),AND(NOT(ISBLANK($D88)),$D88>3),AND(NOT(ISBLANK($E88)),$E88>3)),\"1\",\"0\")","v":"0"}]
[null,null,null,null,null,"Adult totals:",{"$f":"G87+H87","v":0},null,null,{"$f":"J87+K87","v":0},null,null,{"$f":"M87+N87","v":0}]
[null,"(5) Date:","Air temp","Veg cover","Turbidity",{"$f":"IF(OR(AND(NOT(ISBLANK($C90)),$C90<5),AND(NOT(ISBLANK($D90)),$D90>3),AND(NOT(ISBLANK($E90)),$E90>3)),\"1\",\"0\")","v":"0"}]
[null,null,null,null,null,"Adult totals:",{"$f":"G89+H89","v":0},null,null,{"$f":"J89+K89","v":0},null,null,{"$f":"M89+N89","v":0}]
[null,"(6) Date:","Air temp","Veg cover","Turbidity",{"$f":"IF(OR(AND(NOT(ISBLANK($C92)),$C92<5),AND(NOT(ISBLANK($D92)),$D92>3),AND(NOT(ISBLANK($E92)),$E92>3)),\"1\",\"0\")","v":"0"}]
[null,null,null,null,null,"Adult totals:",{"$f":"G91+H91","v":0},null,null,{"$f":"J91+K91","v":0},null,null,{"$f":"M91+N91","v":0}]
[null,"(7) Date:","Air temp","Veg cover","Turbidity",{"$f":"IF(OR(AND(NOT(ISBLANK($C94)),$C94<5),AND(NOT(ISBLANK($D94)),$D94>3),AND(NOT(ISBLANK($E94)),$E94>3)),\"1\",\"0\")","v":"0"}]
[null,null,null,null,null,"Adult totals:",{"$f":"G93+H93","v":0},null,null,{"$f":"J93+K93","v":0},null,null,{"$f":"M93+N93","v":0}]
[null,"(8) Date:","Air temp","Veg cover","Turbidity",{"$f":"IF(OR(AND(NOT(ISBLANK($C96)),$C96<5),AND(NOT(ISBLANK($D96)),$D96>3),AND(NOT(ISBLANK($E96)),$E96>3)),\"1\",\"0\")","v":"0"}]
[null,null,null,null,null,"Adult totals:",{"$f":"G95+H95","v":0},null,null,{"$f":"J95+K95","v":0},null,null,{"$f":"M95+N95","v":0}]
[null,"Peak adult count for this pond in any one visit (by torch, trap or net):",null,null,null,null,null,null,null,{"$f":"MAX(G82,J82,M82,G84,J84,M84,G86,J86,M86,G88,J88,M88,G90,J90,M90,G92,J92,M92,G94,J94,M94,G96,J96,M96)","v":0}]
[null,"Comments and constraints:"]
[null,"Temp Veg Tur problem?",{"$f":"F81+F83+F85+F87+F89+F91+F93+F95","v":0}]
[null,"Torch power low?",{"$f":"IF(AND(NOT(ISBLANK(G79)),OR(G79=\"< 50,000 cp\",G79=\"50,000 - 499,999 cp\")),\"1\",\"0\")","v":"0"}]
[null,"Visit 1 overall det problem?",{"$f":"C99+C100","v":0}]
[null,"# ponds",{"$f":"$F$4","v":0}]
[]
[]
[null,{"$f":"+Ecologist&\": \"&+Site_name","v":": "}]
[null,"C4.3 Aquatic amphibian survey (conventional methods) - GCN results (cont.)",null,null,null,null,null,null,null,null,"NB: This page prints in landscape format"]
[]
[]
[]
[null,"Pond reference (e.g. Pond 34)",null,null,null,"Method:","Torch",null,null,"Bottle-trap",null,null,"Net",null,null,"Egg search","Larvae"]
[null,null,null,null,null,null,"Torch power:",null,null,"No. of traps used in pond:",null,null,null,null,null,"eggs found?","larvae found? (any method)"]
[null,"No. of survey visits to this pond:"]
[null,"Sex/life stage:",null,null,null,null,"Male","Female","Imm.","Male","Female","Imm.","Male","Female","Imm."]
[null,"(1) Date:","Air temp","Veg cover","Turbidity",{"$f":"IF(OR(AND(NOT(ISBLANK($C115)),$C115<5),AND(NOT(ISBLANK($D115)),$D115>3),AND(NOT(ISBLANK($E115)),$E115>3)),\"1\",\"0\")","v":"0"}]
[null,null,null,null,null,"Adult totals:",{"$f":"G114+H114","v":0},null,null,{"$f":"J114+K114","v":0},null,null,{"$f":"M114+N114","v":0}]
[null,"(2) Date:","Air temp","Veg cover","Turbidity",{"$f":"IF(OR(AND(NOT(ISBLANK($C117)),$C117<5),AND(NOT(ISBLANK($D117)),$D117>3),AND(NOT(ISBLANK($E117)),$E117>3)),\"1\",\"0\")","v":"0"}]
[null,null,null,null,null,"Adult totals:",{"$f":"G116+H116","v":0},null,null,{"$f":"J116+K116","v":0},null,null,{"$f":"M116+N116","v":0}]
[null,"(3) Date:","Air temp","Veg cover","Turbidity",{"$f":"IF(OR(AND(NOT(ISBLANK($C119)),$C119<5),AND(NOT(ISBLANK($D119)),$D119>3),AND(NOT(ISBLANK($E119)),$E119>3)),\"1\",\"0\")","v":"0"}]
[null,null,null,null,null,"Adult totals:",{"$f":"G118+H118","v":0},null,null,{"$f":"J118+K118","v":0},null,null,{"$f":"M118+N118","v":0}]
[null,"(4) Date:","Air temp","Veg cover","Turbidity",{"$f":"IF(OR(AND(NOT(ISBLANK($C121)),$C121<5),AND(NOT(ISBLANK($D121)),$D121>3),AND(NOT(ISBLANK($E121)),$E121>3)),\"1\",\"0\")","v":"0"}]
[null,null,null,null,null,"Adult totals:",{"$f":"G120+H120","v":0},null,null,{"$f":"J120+K120","v":0},null,null,{"$f":"M120+N120","v":0}]
[null,"(5) Date:","Air temp","Veg cover","Turbidity",{"$f":"IF(OR(AND(NOT(ISBLANK($C123)),$C123<5),AND(NOT(ISBLANK($D123)),$D123>3),AND(NOT(ISBLANK($E123)),$E123>3)),\"1\",\"0\")","v":"0"}]
[null,null,null,null,null,"Adult totals:",{"$f":"G122+H122","v":0},null,null,{"$f":"J122+K122","v":0},null,null,{"$f":"M122+N122","v":0}]
[null,"(6) Date:","Air temp","Veg cover","Turbidity",{"$f":"IF(OR(AND(NOT(ISBLANK($C125)),$C125<5),AND(NOT(ISBLANK($D125)),$D125>3),AND(NOT(ISBLANK($E125)),$E125>3)),\"1\",\"0\")","v":"0"}]
[null,null,null,null,null,"Adult totals:",{"$f":"G124+H124","v":0},null,null,{"$f":"J124+K124","v":0},null,null,{"$f":"M124+N124","v":0}]
[null,"(7) Date:","Air temp","Veg cover","Turbidity",{"$f":"IF(OR(AND(NOT(ISBLANK($C127)),$C127<5),AND(NOT(ISBLANK($D127)),$D127>3),AND(NOT(ISBLANK($E127)),$E127>3)),\"1\",\"0\")","v":"0"}]
[null,null,null,null,null,"Adult totals:",{"$f":"G126+H126","v":0},null,null,{"$f":"J126+K126","v":0},null,null,{"$f":"M126+N126","v":0}]
[null,"(8) Date:","Air temp","Veg cover","Turbidity",{"$f":"IF(OR(AND(NOT(ISBLANK($C129)),$C129<5),AND(NOT(ISBLANK($D129)),$D129>3),AND(NOT(ISBLANK($E129)),$E129>3)),\"1\",\"0\")","v":"0"}]
[null,null,null,null,null,"Adult totals:",{"$f":"G128+H128","v":0},null,null,{"$f":"J128+K128","v":0},null,null,{"$f":"M128+N128","v":0}]
[null,"Peak adult count for this pond in any one visit (by torch, trap or net):",null,null,null,null,null,null,null,{"$f":"MAX(G115,J115,M115,G117,J117,M117,G119,J119,M119,G121,J121,M121,G123,J123,M123,G125,J125,M125,G127,J127,M127,G129,J129,M129)","v":0}]
[null,"Comments and constraints:"]
[null,"Temp Veg Tur problem?",{"$f":"F114+F116+F118+F120+F122+F124+F126+F128","v":0}]
[null,"Torch power low?",{"$f":"IF(AND(NOT(ISBLANK(G112)),OR(G112=\"< 50,000 cp\",G112=\"50,000 - 499,999 cp\")),\"1\",\"0\")","v":"0"}]
[null,"Visit 1 overall det problem?",{"$f":"C132+C133","v":0}]
[null,"# ponds",{"$f":"$F$4","v":0}]
[]
[]
[null,{"$f":"+Ecologist&\": \"&+Site_name","v":": "}]
[null,"C4.3 Aquatic amphibian survey (conventional methods) - GCN results (cont.)",null,null,null,null,null,null,null,null,"NB: This page prints in landscape format"]
[]
[]
[]
[null,"Pond reference (e.g. Pond 35) ",null,null,null,"Method:","Torch",null,null,"Bottle-trap",null,null,"Net",null,null,"Egg search","Larvae"]
[null,null,null,null,null,null,"Torch power:",null,null,"No. of traps used in pond:",null,null,null,null,null,"eggs found?","larvae found? (any method)"]
[null,"No. of survey visits to this pond:"]
[null,"Sex/life stage:",null,null,null,null,"Male","Female","Imm.","Male","Female","Imm.","Male","Female","Imm."]
[null,"(1) Date:","Air temp","Veg cover","Turbidity",{"$f":"IF(OR(AND(NOT(ISBLANK($C148)),$C148<5),AND(NOT(ISBLANK($D148)),$D148>3),AND(NOT(ISBLANK($E148)),$E148>3)),\"1\",\"0\")","v":"0"}]
[null,null,null,null,null,"Adult totals:",{"$f":"G147+H147","v":0},null,null,{"$f":"J147+K147","v":0},null,null,{"$f":"M147+N147","v":0}]
[null,"(2) Date:","Air temp","Veg cover","Turbidity",{"$f":"IF(OR(AND(NOT(ISBLANK($C150)),$C150<5),AND(NOT(ISBLANK($D150)),$D150>3),AND(NOT(ISBLANK($E150)),$E150>3)),\"1\",\"0\")","v":"0"}]
[null,null,null,null,null,"Adult totals:",{"$f":"G149+H149","v":0},null,null,{"$f":"J149+K149","v":0},null,null,{"$f":"M149+N149","v":0}]
[null,"(3) Date:","Air temp","Veg cover","Turbidity",{"$f":"IF(OR(AND(NOT(ISBLANK($C152)),$C152<5),AND(NOT(ISBLANK($D152)),$D152>3),AND(NOT(ISBLANK($E152)),$E152>3)),\"1\",\"0\")","v":"0"}]
[null,null,null,null,null,"Adult totals:",{"$f":"G151+H151","v":0},null,null,{"$f":"J151+K151","v":0},null,null,{"$f":"M151+N151","v":0}]
[null,"(4) Date:","Air temp","Veg cover","Turbidity",{"$f":"IF(OR(AND(NOT(ISBLANK($C154)),$C154<5),AND(NOT(ISBLANK($D154)),$D154>3),AND(NOT(ISBLANK($E154)),$E154>3)),\"1\",\"0\")","v":"0"}]
[null,null,null,null,null,"Adult totals:",{"$f":"G153+H153","v":0},null,null,{"$f":"J153+K153","v":0},null,null,{"$f":"M153+N153","v":0}]
[null,"(5) Date:","Air temp","Veg cover","Turbidity",{"$f":"IF(OR(AND(NOT(ISBLANK($C156)),$C156<5),AND(NOT(ISBLANK($D156)),$D156>3),AND(NOT(ISBLANK($E156)),$E156>3)),\"1\",\"0\")","v":"0"}]
[null,null,null,null,null,"Adult totals:",{"$f":"G155+H155","v":0},null,null,{"$f":"J155+K155","v":0},null,null,{"$f":"M155+N155","v":0}]
[null,"(6) Date:","Air temp","Veg cover","Turbidity",{"$f":"IF(OR(AND(NOT(ISBLANK($C158)),$C158<5),AND(NOT(ISBLANK($D158)),$D158>3),AND(NOT(ISBLANK($E158)),$E158>3)),\"1\",\"0\")","v":"0"}]
[null,null,null,null,null,"Adult totals:",{"$f":"G157+H157","v":0},null,null,{"$f":"J157+K157","v":0},null,null,{"$f":"M157+N157","v":0}]
[null,"(7) Date:","Air temp","Veg cover","Turbidity",{"$f":"IF(OR(AND(NOT(ISBLANK($C160)),$C160<5),AND(NOT(ISBLANK($D160)),$D160>3),AND(NOT(ISBLANK($E160)),$E160>3)),\"1\",\"0\")","v":"0"}]
[null,null,null,null,null,"Adult totals:",{"$f":"G159+H159","v":0},null,null,{"$f":"J159+K159","v":0},null,null,{"$f":"M159+N159","v":0}]
[null,"(8) Date:","Air temp","Veg cover","Turbidity",{"$f":"IF(OR(AND(NOT(ISBLANK($C162)),$C162<5),AND(NOT(ISBLANK($D162)),$D162>3),AND(NOT(ISBLANK($E162)),$E162>3)),\"1\",\"0\")","v":"0"}]
[null,null,null,null,null,"Adult totals:",{"$f":"G161+H161","v":0},null,null,{"$f":"J161+K161","v":0},null,null,{"$f":"M161+N161","v":0}]
[null,"Peak adult count for this pond in any one visit (by torch, trap or net):",null,null,null,null,null,null,null,{"$f":"MAX(G148,J148,M148,G150,J150,M150,G152,J152,M152,G154,J154,M154,G156,J156,M156,G158,J158,M158,G160,J160,M160,G162,J162,M162)","v":0}]
[null,"Comments and constraints:"]
[null,"Temp Veg Tur problem?",{"$f":"F147+F149+F151+F153+F155+F157+F159+F161","v":0}]
[null,"Torch power low?",{"$f":"IF(AND(NOT(ISBLANK(G145)),OR(G145=\"< 50,000 cp\",G145=\"50,000 - 499,999 cp\")),\"1\",\"0\")","v":"0"}]
[null,"Visit 1 overall det problem?",{"$f":"C165+C166","v":0}]
[null,"# ponds",{"$f":"$F$4","v":0}]
[]
[]
[null,{"$f":"+Ecologist&\": \"&+Site_name","v":": "}]
[null,"C4.3 Aquatic amphibian survey (conventional methods) - GCN results (cont.)",null,null,null,null,null,null,null,null,"NB: This page prints in landscape format"]
[]
[]
[]
[null,"Pond reference (e.g. Pond 16)",null,null,null,"Method:","Torch",null,null,"Bottle-trap",null,null,"Net",null,null,"Egg search","Larvae"]
[null,null,null,null,null,null,"Torch power:",null,null,"No. of traps used in pond:",null,null,null,null,null,"eggs found?","larvae found? (any method)"]
[null,"No. of survey visits to this pond:"]
[null,"Sex/life stage:",null,null,null,null,"Male","Female","Imm.","Male","Female","Imm.","Male","Female","Imm."]
[null,"(1) Date:","Air temp","Veg cover","Turbidity",{"$f":"IF(OR(AND(NOT(ISBLANK($C181)),$C181<5),AND(NOT(ISBLANK($D181)),$D181>3),AND(NOT(ISBLANK($E181)),$E181>3)),\"1\",\"0\")","v":"0"}]
[null,null,null,null,null,"Adult totals:",{"$f":"G180+H180","v":0},null,null,{"$f":"J180+K180","v":0},null,null,{"$f":"M180+N180","v":0}]
[null,"(2) Date:","Air temp","Veg cover","Turbidity",{"$f":"IF(OR(AND(NOT(ISBLANK($C183)),$C183<5),AND(NOT(ISBLANK($D183)),$D183>3),AND(NOT(ISBLANK($E183)),$E183>3)),\"1\",\"0\")","v":"0"}]
[null,null,null,null,null,"Adult totals:",{"$f":"G182+H182","v":0},null,null,{"$f":"J182+K182","v":0},null,null,{"$f":"M182+N182","v":0}]
[null,"(3) Date:","Air temp","Veg cover","Turbidity",{"$f":"IF(OR(AND(NOT(ISBLANK($C185)),$C185<5),AND(NOT(ISBLANK($D185)),$D185>3),AND(NOT(ISBLANK($E185)),$E185>3)),\"1\",\"0\")","v":"0"}]
[null,null,null,null,null,"Adult totals:",{"$f":"G184+H184","v":0},null,null,{"$f":"J184+K184","v":0},null,null,{"$f":"M184+N184","v":0}]
[null,"(4) Date:","Air temp","Veg cover","Turbidity",{"$f":"IF(OR(AND(NOT(ISBLANK($C187)),$C187<5),AND(NOT(ISBLANK($D187)),$D187>3),AND(NOT(ISBLANK($E187)),$E187>3)),\"1\",\"0\")","v":"0"}]
[null,null,null,null,null,"Adult totals:",{"$f":"G186+H186","v":0},null,null,{"$f":"J186+K186","v":0},null,null,{"$f":"M186+N186","v":0}]
[null,"(5) Date:","Air temp","Veg cover","Turbidity",{"$f":"IF(OR(AND(NOT(ISBLANK($C189)),$C189<5),AND(NOT(ISBLANK($D189)),$D189>3),AND(NOT(ISBLANK($E189)),$E189>3)),\"1\",\"0\")","v":"0"}]
[null,null,null,null,null,"Adult totals:",{"$f":"G188+H188","v":0},null,null,{"$f":"J188+K188","v":0},null,null,{"$f":"M188+N188","v":0}]
[null,"(6) Date:","Air temp","Veg cover","Turbidity",{"$f":"IF(OR(AND(NOT(ISBLANK($C191)),$C191<5),AND(NOT(ISBLANK($D191)),$D191>3),AND(NOT(ISBLANK($E191)),$E191>3)),\"1\",\"0\")","v":"0"}]
[null,null,null,null,null,"Adult totals:",{"$f":"G190+H190","v":0},null,null,{"$f":"J190+K190","v":0},null,null,{"$f":"M190+N190","v":0}]
[null,"(7) Date:","Air temp","Veg cover","Turbidity",{"$f":"IF(OR(AND(NOT(ISBLANK($C193)),$C193<5),AND(NOT(ISBLANK($D193)),$D193>3),AND(NOT(ISBLANK($E193)),$E193>3)),\"1\",\"0\")","v":"0"}]
[null,null,null,null,null,"Adult totals:",{"$f":"G192+H192","v":0},null,null,{"$f":"J192+K192","v":0},null,null,{"$f":"M192+N192","v":0}]
[null,"(8) Date:","Air temp","Veg cover","Turbidity",{"$f":"IF(OR(AND(NOT(ISBLANK($C195)),$C195<5),AND(NOT(ISBLANK($D195)),$D195>3),AND(NOT(ISBLANK($E195)),$E195>3)),\"1\",\"0\")","v":"0"}]
[null,null,null,null,null,"Adult totals:",{"$f":"G194+H194","v":0},null,null,{"$f":"J194+K194","v":0},null,null,{"$f":"M194+N194","v":0}]
[null,"Peak adult count for this pond in any one visit (by torch, trap or net):",null,null,null,null,null,null,null,{"$f":"MAX(G181,J181,M181,G183,J183,M183,G185,J185,M185,G187,J187,M187,G189,J189,M189,G191,J191,M191,G193,J193,M193,G195,J195,M195)","v":0}]
[null,"Comments and constraints:"]
[null,"Temp Veg Tur problem?",{"$f":"F180+F182+F184+F186+F188+F190+F192+F194","v":0}]
[null,"Torch power low?",{"$f":"IF(AND(NOT(ISBLANK(G178)),OR(G178=\"< 50,000 cp\",G178=\"50,000 - 499,999 cp\")),\"1\",\"0\")","v":"0"}]
[null,"Visit 1 overall det problem?",{"$f":"C198+C199","v":0}]
[null,"# ponds",{"$f":"$F$4","v":0}]
[]
[]
[null,{"$f":"+Ecologist&\": \"&+Site_name","v":": "}]
[null,"C4.3 Aquatic amphibian survey (conventional methods) - GCN results (cont.)",null,null,null,null,null,null,null,null,"NB: This page prints in landscape format"]
[]
[]
[]
[null,"Pond reference (e.g. Pond 37)",null,null,null,"Method:","Torch",null,null,"Bottle-trap",null,null,"Net",null,null,"Egg search","Larvae"]
[null,null,null,null,null,null,"Torch power:",null,null,"No. of traps used in pond:",null,null,null,null,null,"eggs found?","larvae found? (any method)"]
[null,"No. of survey visits to this pond:"]
[null,"Sex/life stage:",null,null,null,null,"Male","Female","Imm.","Male","Female","Imm.","Male","Female","Imm."]
[null,"(1) Date:","Air temp","Veg cover","Turbidity",{"$f":"IF(OR(AND(NOT(ISBLANK($C214)),$C214<5),AND(NOT(ISBLANK($D214)),$D214>3),AND(NOT(ISBLANK($E214)),$E214>3)),\"1\",\"0\")","v":"0"}]
[null,null,null,null,null,"Adult totals:",{"$f":"G213+H213","v":0},null,null,{"$f":"J213+K213","v":0},null,null,{"$f":"M213+N213","v":0}]
[null,"(2) Date:","Air temp","Veg cover","Turbidity",{"$f":"IF(OR(AND(NOT(ISBLANK($C216)),$C216<5),AND(NOT(ISBLANK($D216)),$D216>3),AND(NOT(ISBLANK($E216)),$E216>3)),\"1\",\"0\")","v":"0"}]
[null,null,null,null,null,"Adult totals:",{"$f":"G215+H215","v":0},null,null,{"$f":"J215+K215","v":0},null,null,{"$f":"M215+N215","v":0}]
[null,"(3) Date:","Air temp","Veg cover","Turbidity",{"$f":"IF(OR(AND(NOT(ISBLANK($C218)),$C218<5),AND(NOT(ISBLANK($D218)),$D218>3),AND(NOT(ISBLANK($E218)),$E218>3)),\"1\",\"0\")","v":"0"}]
[null,null,null,null,null,"Adult totals:",{"$f":"G217+H217","v":0},null,null,{"$f":"J217+K217","v":0},null,null,{"$f":"M217+N217","v":0}]
[null,"(4) Date:","Air temp","Veg cover","Turbidity",{"$f":"IF(OR(AND(NOT(ISBLANK($C220)),$C220<5),AND(NOT(ISBLANK($D220)),$D220>3),AND(NOT(ISBLANK($E220)),$E220>3)),\"1\",\"0\")","v":"0"}]
[null,null,null,null,null,"Adult totals:",{"$f":"G219+H219","v":0},null,null,{"$f":"J219+K219","v":0},null,null,{"$f":"M219+N219","v":0}]
[null,"(5) Date:","Air temp","Veg cover","Turbidity",{"$f":"IF(OR(AND(NOT(ISBLANK($C222)),$C222<5),AND(NOT(ISBLANK($D222)),$D222>3),AND(NOT(ISBLANK($E222)),$E222>3)),\"1\",\"0\")","v":"0"}]
[null,null,null,null,null,"Adult totals:",{"$f":"G221+H221","v":0},null,null,{"$f":"J221+K221","v":0},null,null,{"$f":"M221+N221","v":0}]
[null,"(6) Date:","Air temp","Veg cover","Turbidity",{"$f":"IF(OR(AND(NOT(ISBLANK($C224)),$C224<5),AND(NOT(ISBLANK($D224)),$D224>3),AND(NOT(ISBLANK($E224)),$E224>3)),\"1\",\"0\")","v":"0"}]
[null,null,null,null,null,"Adult totals:",{"$f":"G223+H223","v":0},null,null,{"$f":"J223+K223","v":0},null,null,{"$f":"M223+N223","v":0}]
[null,"(7) Date:","Air temp","Veg cover","Turbidity",{"$f":"IF(OR(AND(NOT(ISBLANK($C226)),$C226<5),AND(NOT(ISBLANK($D226)),$D226>3),AND(NOT(ISBLANK($E226)),$E226>3)),\"1\",\"0\")","v":"0"}]
[null,null,null,null,null,"Adult totals:",{"$f":"G225+H225","v":0},null,null,{"$f":"J225+K225","v":0},null,null,{"$f":"M225+N225","v":0}]
[null,"(8) Date:","Air temp","Veg cover","Turbidity",{"$f":"IF(OR(AND(NOT(ISBLANK($C228)),$C228<5),AND(NOT(ISBLANK($D228)),$D228>3),AND(NOT(ISBLANK($E228)),$E228>3)),\"1\",\"0\")","v":"0"}]
[null,null,null,null,null,"Adult totals:",{"$f":"G227+H227","v":0},null,null,{"$f":"J227+K227","v":0},null,null,{"$f":"M227+N227","v":0}]
[null,"Peak adult count for this pond in any one visit (by torch, trap or net):",null,null,null,null,null,null,null,{"$f":"MAX(G214,J214,M214,G216,J216,M216,G218,J218,M218,G220,J220,M220,G222,J222,M222,G224,J224,M224,G226,J226,M226,G228,J228,M228)","v":0}]
[null,"Comments and constraints:"]
[null,"Temp Veg Tur problem?",{"$f":"F213+F215+F217+F219+F221+F223+F225+F227","v":0}]
[null,"Torch power low?",{"$f":"IF(AND(NOT(ISBLANK(G211)),OR(G211=\"< 50,000 cp\",G211=\"50,000 - 499,999 cp\")),\"1\",\"0\")","v":"0"}]
[null,"Visit 1 overall det problem?",{"$f":"C231+C232","v":0}]
[null,"# ponds",{"$f":"$F$4","v":0}]
[]
[]
[null,{"$f":"+Ecologist&\": \"&+Site_name","v":": "}]
[null,"C4.3 Aquatic amphibian survey (conventional methods)- GCN results (cont.)",null,null,null,null,null,null,null,null,"NB: This page prints in landscape format"]
[]
[]
[]
[null,"Pond reference (e.g. Pond 38)",null,null,null,"Method:","Torch",null,null,"Bottle-trap",null,null,"Net",null,null,"Egg search","Larvae"]
[null,null,null,null,null,null,"Torch power:",null,null,"No. of traps used in pond:",null,null,null,null,null,"eggs found?","larvae found? (any method)"]
[null,"No. of survey visits to this pond:"]
[null,"Sex/life stage:",null,null,null,null,"Male","Female","Imm.","Male","Female","Imm.","Male","Female","Imm."]
[null,"(1) Date:","Air temp","Veg cover","Turbidity",{"$f":"IF(OR(AND(NOT(ISBLANK($C247)),$C247<5),AND(NOT(ISBLANK($D247)),$D247>3),AND(NOT(ISBLANK($E247)),$E247>3)),\"1\",\"0\")","v":"0"}]
[null,null,null,null,null,"Adult totals:",{"$f":"G246+H246","v":0},null,null,{"$f":"J246+K246","v":0},null,null,{"$f":"M246+N246","v":0}]
[null,"(2) Date:","Air temp","Veg cover","Turbidity",{"$f":"IF(OR(AND(NOT(ISBLANK($C249)),$C249<5),AND(NOT(ISBLANK($D249)),$D249>3),AND(NOT(ISBLANK($E249)),$E249>3)),\"1\",\"0\")","v":"0"}]
[null,null,null,null,null,"Adult totals:",{"$f":"G248+H248","v":0},null,null,{"$f":"J248+K248","v":0},null,null,{"$f":"M248+N248","v":0}]
[null,"(3) Date:","Air temp","Veg cover","Turbidity",{"$f":"IF(OR(AND(NOT(ISBLANK($C251)),$C251<5),AND(NOT(ISBLANK($D251)),$D251>3),AND(NOT(ISBLANK($E251)),$E251>3)),\"1\",\"0\")","v":"0"}]
[null,null,null,null,null,"Adult totals:",{"$f":"G250+H250","v":0},null,null,{"$f":"J250+K250","v":0},null,null,{"$f":"M250+N250","v":0}]
[null,"(4) Date:","Air temp","Veg cover","Turbidity",{"$f":"IF(OR(AND(NOT(ISBLANK($C253)),$C253<5),AND(NOT(ISBLANK($D253)),$D253>3),AND(NOT(ISBLANK($E253)),$E253>3)),\"1\",\"0\")","v":"0"}]
[null,null,null,null,null,"Adult totals:",{"$f":"G252+H252","v":0},null,null,{"$f":"J252+K252","v":0},null,null,{"$f":"M252+N252","v":0}]
[null,"(5) Date:","Air temp","Veg cover","Turbidity",{"$f":"IF(OR(AND(NOT(ISBLANK($C255)),$C255<5),AND(NOT(ISBLANK($D255)),$D255>3),AND(NOT(ISBLANK($E255)),$E255>3)),\"1\",\"0\")","v":"0"}]
[null,null,null,null,null,"Adult totals:",{"$f":"G254+H254","v":0},null,null,{"$f":"J254+K254","v":0},null,null,{"$f":"M254+N254","v":0}]
[null,"(6) Date:","Air temp","Veg cover","Turbidity",{"$f":"IF(OR(AND(NOT(ISBLANK($C257)),$C257<5),AND(NOT(ISBLANK($D257)),$D257>3),AND(NOT(ISBLANK($E257)),$E257>3)),\"1\",\"0\")","v":"0"}]
[null,null,null,null,null,"Adult totals:",{"$f":"G256+H256","v":0},null,null,{"$f":"J256+K256","v":0},null,null,{"$f":"M256+N256","v":0}]
[null,"(7) Date:","Air temp","Veg cover","Turbidity",{"$f":"IF(OR(AND(NOT(ISBLANK($C259)),$C259<5),AND(NOT(ISBLANK($D259)),$D259>3),AND(NOT(ISBLANK($E259)),$E259>3)),\"1\",\"0\")","v":"0"}]
[null,null,null,null,null,"Adult totals:",{"$f":"G258+H258","v":0},null,null,{"$f":"J258+K258","v":0},null,null,{"$f":"M258+N258","v":0}]
[null,"(8) Date:","Air temp","Veg cover","Turbidity",{"$f":"IF(OR(AND(NOT(ISBLANK($C261)),$C261<5),AND(NOT(ISBLANK($D261)),$D261>3),AND(NOT(ISBLANK($E261)),$E261>3)),\"1\",\"0\")","v":"0"}]
[null,null,null,null,null,"Adult totals:",{"$f":"G260+H260","v":0},null,null,{"$f":"J260+K260","v":0},null,null,{"$f":"M260+N260","v":0}]
[null,"Peak adult count for this pond in any one visit (by torch, trap or net):",null,null,null,null,null,null,null,{"$f":"MAX(G247,J247,M247,G249,J249,M249,G251,J251,M251,G253,J253,M253,G255,J255,M255,G257,J257,M257,G259,J259,M259,G261,J261,M261)","v":0}]
[null,"Comments and constraints:"]
[null,"Temp Veg Tur problem?",{"$f":"F246+F248+F250+F252+F254+F256+F258+F260","v":0}]
[null,"Torch power low?",{"$f":"IF(AND(NOT(ISBLANK(G244)),OR(G244=\"< 50,000 cp\",G244=\"50,000 - 499,999 cp\")),\"1\",\"0\")","v":"0"}]
[null,"Visit 1 overall det problem?",{"$f":"C264+C265","v":0}]
[null,"# ponds",{"$f":"$F$4","v":0}]
[]
[]
[null,{"$f":"+Ecologist&\": \"&+Site_name","v":": "}]
[null,"C4.3 Aquatic amphibian survey (conventional methods) - GCN results (cont.)",null,null,null,null,null,null,null,null,"NB: This page prints in landscape format"]
[]
[]
[]
[null,"Pond reference (e.g. Pond 39):",null,null,null,"Method:","Torch",null,null,"Bottle-trap",null,null,"Net",null,null,"Egg search","Larvae"]
[null,null,null,null,null,null,"Torch power:",null,null,"No. of traps used in pond:",null,null,null,null,null,"eggs found?","larvae found? (any method)"]
[null,"No. of survey visits to this pond:"]
[null,"Sex/life stage:",null,null,null,null,"Male","Female","Imm.","Male","Female","Imm.","Male","Female","Imm."]
[null,"(1) Date:","Air temp","Veg cover","Turbidity",{"$f":"IF(OR(AND(NOT(ISBLANK($C280)),$C280<5),AND(NOT(ISBLANK($D280)),$D280>3),AND(NOT(ISBLANK($E280)),$E280>3)),\"1\",\"0\")","v":"0"}]
[null,null,null,null,null,"Adult totals:",{"$f":"G279+H279","v":0},null,null,{"$f":"J279+K279","v":0},null,null,{"$f":"M279+N279","v":0}]
[null,"(2) Date:","Air temp","Veg cover","Turbidity",{"$f":"IF(OR(AND(NOT(ISBLANK($C282)),$C282<5),AND(NOT(ISBLANK($D282)),$D282>3),AND(NOT(ISBLANK($E282)),$E282>3)),\"1\",\"0\")","v":"0"}]
[null,null,null,null,null,"Adult totals:",{"$f":"G281+H281","v":0},null,null,{"$f":"J281+K281","v":0},null,null,{"$f":"M281+N281","v":0}]
[null,"(3) Date:","Air temp","Veg cover","Turbidity",{"$f":"IF(OR(AND(NOT(ISBLANK($C284)),$C284<5),AND(NOT(ISBLANK($D284)),$D284>3),AND(NOT(ISBLANK($E284)),$E284>3)),\"1\",\"0\")","v":"0"}]
[null,null,null,null,null,"Adult totals:",{"$f":"G283+H283","v":0},null,null,{"$f":"J283+K283","v":0},null,null,{"$f":"M283+N283","v":0}]
[null,"(4) Date:","Air temp","Veg cover","Turbidity",{"$f":"IF(OR(AND(NOT(ISBLANK($C286)),$C286<5),AND(NOT(ISBLANK($D286)),$D286>3),AND(NOT(ISBLANK($E286)),$E286>3)),\"1\",\"0\")","v":"0"}]
[null,null,null,null,null,"Adult totals:",{"$f":"G285+H285","v":0},null,null,{"$f":"J285+K285","v":0},null,null,{"$f":"M285+N285","v":0}]
[null,"(5) Date:","Air temp","Veg cover","Turbidity",{"$f":"IF(OR(AND(NOT(ISBLANK($C288)),$C288<5),AND(NOT(ISBLANK($D288)),$D288>3),AND(NOT(ISBLANK($E288)),$E288>3)),\"1\",\"0\")","v":"0"}]
[null,null,null,null,null,"Adult totals:",{"$f":"G287+H287","v":0},null,null,{"$f":"J287+K287","v":0},null,null,{"$f":"M287+N287","v":0}]
[null,"(6) Date:","Air temp","Veg cover","Turbidity",{"$f":"IF(OR(AND(NOT(ISBLANK($C290)),$C290<5),AND(NOT(ISBLANK($D290)),$D290>3),AND(NOT(ISBLANK($E290)),$E290>3)),\"1\",\"0\")","v":"0"}]
[null,null,null,null,null,"Adult totals:",{"$f":"G289+H289","v":0},null,null,{"$f":"J289+K289","v":0},null,null,{"$f":"M289+N289","v":0}]
[null,"(7) Date:","Air temp","Veg cover","Turbidity",{"$f":"IF(OR(AND(NOT(ISBLANK($C292)),$C292<5),AND(NOT(ISBLANK($D292)),$D292>3),AND(NOT(ISBLANK($E292)),$E292>3)),\"1\",\"0\")","v":"0"}]
[null,null,null,null,null,"Adult totals:",{"$f":"G291+H291","v":0},null,null,{"$f":"J291+K291","v":0},null,null,{"$f":"M291+N291","v":0}]
[null,"(8) Date:","Air temp","Veg cover","Turbidity",{"$f":"IF(OR(AND(NOT(ISBLANK($C294)),$C294<5),AND(NOT(ISBLANK($D294)),$D294>3),AND(NOT(ISBLANK($E294)),$E294>3)),\"1\",\"0\")","v":"0"}]
[null,null,null,null,null,"Adult totals:",{"$f":"G293+H293","v":0},null,null,{"$f":"J293+K293","v":0},null,null,{"$f":"M293+N293","v":0}]
[null,"Peak adult count for this pond in any one visit (by torch, trap or net):",null,null,null,null,null,null,null,{"$f":"MAX(G280,J280,M280,G282,J282,M282,G284,J284,M284,G286,J286,M286,G288,J288,M288,G290,J290,M290,G292,J292,M292,G294,J294,M294)","v":0}]
[null,"Comments and constraints:"]
[null,"Temp Veg Tur problem?",{"$f":"F279+F281+F283+F285+F287+F289+F291+F293","v":0}]
[null,"Torch power low?",{"$f":"IF(AND(NOT(ISBLANK(G277)),OR(G277=\"< 50,000 cp\",G277=\"50,000 - 499,999 cp\")),\"1\",\"0\")","v":"0"}]
[null,"Visit 1 overall det problem?",{"$f":"C297+C298","v":0}]
[null,"# ponds",{"$f":"$F$4","v":0}]
[]
[]
[null,{"$f":"+Ecologist&\": \"&+Site_name","v":": "}]
[null,"C4.3 Aquatic amphibian survey (conventional methods) - GCN results (cont.)",null,null,null,null,null,null,null,null,"NB: This page prints in landscape format"]
[]
[]
[]
[null,"Pond reference (e.g. Pond 40)",null,null,null,"Method:","Torch",null,null,"Bottle-trap",null,null,"Net",null,null,"Egg search","Larvae"]
[null,null,null,null,null,null,"Torch power:",null,null,"No. of traps used in pond:",null,null,null,null,null,"eggs found?","larvae found? (any method)"]
[null,"No. of survey visits to this pond:"]
[null,"Sex/life stage:",null,null,null,null,"Male","Female","Imm.","Male","Female","Imm.","Male","Female","Imm."]
[null,"(1) Date:","Air temp","Veg cover","Turbidity",{"$f":"IF(OR(AND(NOT(ISBLANK($C313)),$C313<5),AND(NOT(ISBLANK($D313)),$D313>3),AND(NOT(ISBLANK($E313)),$E313>3)),\"1\",\"0\")","v":"0"}]
[null,null,null,null,null,"Adult totals:",{"$f":"G312+H312","v":0},null,null,{"$f":"J312+K312","v":0},null,null,{"$f":"M312+N312","v":0}]
[null,"(2) Date:","Air temp","Veg cover","Turbidity",{"$f":"IF(OR(AND(NOT(ISBLANK($C315)),$C315<5),AND(NOT(ISBLANK($D315)),$D315>3),AND(NOT(ISBLANK($E315)),$E315>3)),\"1\",\"0\")","v":"0"}]
[null,null,null,null,null,"Adult totals:",{"$f":"G314+H314","v":0},null,null,{"$f":"J314+K314","v":0},null,null,{"$f":"M314+N314","v":0}]
[null,"(3) Date:","Air temp","Veg cover","Turbidity",{"$f":"IF(OR(AND(NOT(ISBLANK($C317)),$C317<5),AND(NOT(ISBLANK($D317)),$D317>3),AND(NOT(ISBLANK($E317)),$E317>3)),\"1\",\"0\")","v":"0"}]
[null,null,null,null,null,"Adult totals:",{"$f":"G316+H316","v":0},null,null,{"$f":"J316+K316","v":0},null,null,{"$f":"M316+N316","v":0}]
[null,"(4) Date:","Air temp","Veg cover","Turbidity",{"$f":"IF(OR(AND(NOT(ISBLANK($C319)),$C319<5),AND(NOT(ISBLANK($D319)),$D319>3),AND(NOT(ISBLANK($E319)),$E319>3)),\"1\",\"0\")","v":"0"}]
[null,null,null,null,null,"Adult totals:",{"$f":"G318+H318","v":0},null,null,{"$f":"J318+K318","v":0},null,null,{"$f":"M318+N318","v":0}]
[null,"(5) Date:","Air temp","Veg cover","Turbidity",{"$f":"IF(OR(AND(NOT(ISBLANK($C321)),$C321<5),AND(NOT(ISBLANK($D321)),$D321>3),AND(NOT(ISBLANK($E321)),$E321>3)),\"1\",\"0\")","v":"0"}]
[null,null,null,null,null,"Adult totals:",{"$f":"G320+H320","v":0},null,null,{"$f":"J320+K320","v":0},null,null,{"$f":"M320+N320","v":0}]
[null,"(6) Date:","Air temp","Veg cover","Turbidity",{"$f":"IF(OR(AND(NOT(ISBLANK($C323)),$C323<5),AND(NOT(ISBLANK($D323)),$D323>3),AND(NOT(ISBLANK($E323)),$E323>3)),\"1\",\"0\")","v":"0"}]
[null,null,null,null,null,"Adult totals:",{"$f":"G322+H322","v":0},null,null,{"$f":"J322+K322","v":0},null,null,{"$f":"M322+N322","v":0}]
[null,"(7) Date:","Air temp","Veg cover","Turbidity",{"$f":"IF(OR(AND(NOT(ISBLANK($C325)),$C325<5),AND(NOT(ISBLANK($D325)),$D325>3),AND(NOT(ISBLANK($E325)),$E325>3)),\"1\",\"0\")","v":"0"}]
[null,null,null,null,null,"Adult totals:",{"$f":"G324+H324","v":0},null,null,{"$f":"J324+K324","v":0},null,null,{"$f":"M324+N324","v":0}]
[null,"(8) Date:","Air temp","Veg cover","Turbidity",{"$f":"IF(OR(AND(NOT(ISBLANK($C327)),$C327<5),AND(NOT(ISBLANK($D327)),$D327>3),AND(NOT(ISBLANK($E327)),$E327>3)),\"1\",\"0\")","v":"0"}]
[null,null,null,null,null,"Adult totals:",{"$f":"G326+H326","v":0},null,null,{"$f":"J326+K326","v":0},null,null,{"$f":"M326+N326","v":0}]
[null,"Peak adult count for this pond in any one visit (by torch, trap or net):",null,null,null,null,null,null,null,{"$f":"MAX(G313,J313,M313,G315,J315,M315,G317,J317,M317,G319,J319,M319,G321,J321,M321,G323,J323,M323,G325,J325,M325,G327,J327,M327)","v":0}]
[null,"Comments and constraints:"]
[null,"Temp Veg Tur problem?",{"$f":"F312+F314+F316+F318+F320+F322+F324+F326","v":0}]
[null,"Torch power low?",{"$f":"IF(AND(NOT(ISBLANK(G310)),OR(G310=\"< 50,000 cp\",G310=\"50,000 - 499,999 cp\")),\"1\",\"0\")","v":"0"}]
[null,"Visit 1 overall det problem?",{"$f":"C330+C331","v":0}]
[null,"# ponds",{"$f":"$F$4","v":0}]